Workbook

Sheet Contents
C1: Go to Charts by Pressing Shift and Enter on Menu Item
C3: Sheet Tab | D3: Description | E3: Author
B4: 1 | C4: Contents
B5: 2 | C5: Menu Sheet
B6: 3 | C6: Equity Trend Analysis
B7: 4 | C7: EBITDA Trend Analysis
B8: 5 | C8: Single Company Graph
B9: 6 | C9: Historic for Model
B10: 7 | C10: Value Driver Equity
B11: 8 | C11: Value Driver ROI
B12: 9 | C12: MB and ROE
B13: 10 | C13: EV to Inv Cap and ROI
B14: 11 | C14: Dividend Discount
B15: 12 | C15: CAPM Summary
B16: 13 | C16: EV to EBITDA Analysis
B17: 14 | C17: PE Analysis
B18: 15 | C18: Data Cost of Capital
B19: 16 | C19: Data Extract Stocks
B20: 17 | C20: Data Extract Income Stmt
B21: 18 | C21: Data Extract Balance Sheet
B22: 19 | C22: General Instructions
B23: 20 | C23: Notes
B24: 21 | C24: BREAK
B25: 22 | C25: IBDRY Income St
B26: 23 | C26: IBDRY Balance Sheet
B27: 24 | C27: IBDRY Cash Flow
B28: 25 | C28: IBDRY Summary
B29: 26 | C29: IBDRY Mktw Sum
B30: 27 | C30: IBDRY Mkwt Basic
B31: 28 | C31: IBDRY Yahoo Gr
B32: 29 | C32: IBDRY Mktwth Gr
B33: 30 | C33: IBDRY Income Qtr
B34: 31 | C34: IBDRY Balance Qtr
B35: 32 | C35: IBDRY Cash Qtr
B36: 33 | C36: TNABY Income St
B37: 34 | C37: TNABY Balance Sheet
B38: 35 | C38: TNABY Cash Flow
B39: 36 | C39: TNABY Summary
B40: 37 | C40: TNABY Mktw Sum
B41: 38 | C41: TNABY Mkwt Basic
B42: 39 | C42: TNABY Yahoo Gr
B43: 40 | C43: TNABY Mktwth Gr
B44: 41 | C44: TNABY Income Qtr
B45: 42 | C45: TNABY Balance Qtr
B46: 43 | C46: TNABY Cash Qtr
B47: 44 | C47: MAEOY Income St
B48: 45 | C48: MAEOY Balance Sheet
B49: 46 | C49: MAEOY Cash Flow
B50: 47 | C50: MAEOY Summary
B51: 48 | C51: MAEOY Mktw Sum
B52: 49 | C52: MAEOY Mkwt Basic
B53: 50 | C53: MAEOY Yahoo Gr
B54: 51 | C54: MAEOY Mktwth Gr
B55: 52 | C55: MAEOY Income Qtr
B56: 53 | C56: MAEOY Balance Qtr
B57: 54 | C57: MAEOY Cash Qtr
B58: 55 | C58: ED Income St
B59: 56 | C59: ED Balance Sheet
B60: 57 | C60: ED Cash Flow
B61: 58 | C61: ED Summary
B62: 59 | C62: ED Mktw Sum
B63: 60 | C63: ED Mkwt Basic
B64: 61 | C64: ED Yahoo Gr
B65: 62 | C65: ED Mktwth Gr
B66: 63 | C66: ED Income Qtr
B67: 64 | C67: ED Balance Qtr
B68: 65 | C68: ED Cash Qtr
B69: 66 | C69: KEP Income St
B70: 67 | C70: KEP Balance Sheet
B71: 68 | C71: KEP Cash Flow
B72: 69 | C72: KEP Summary
B73: 70 | C73: KEP Mktw Sum
B74: 71 | C74: KEP Mkwt Basic
B75: 72 | C75: KEP Yahoo Gr
B76: 73 | C76: KEP Mktwth Gr
B77: 74 | C77: KEP Income Qtr
B78: 75 | C78: KEP Balance Qtr
B79: 76 | C79: KEP Cash Qtr
B80: 77 | C80: TKECY Income St
B81: 78 | C81: TKECY Balance Sheet
B82: 79 | C82: TKECY Cash Flow
B83: 80 | C83: TKECY Summary
B84: 81 | C84: TKECY Mktw Sum
B85: 82 | C85: TKECY Mkwt Basic
B86: 83 | C86: TKECY Yahoo Gr
B87: 84 | C87: TKECY Mktwth Gr
B88: 85 | C88: TKECY Income Qtr
B89: 86 | C89: TKECY Balance Qtr
B90: 87 | C90: TKECY Cash Qtr
B91: 88 | C91: SO Income St
B92: 89 | C92: SO Balance Sheet
B93: 90 | C93: SO Cash Flow
B94: 91 | C94: SO Summary
B95: 92 | C95: SO Mktw Sum
B96: 93 | C96: SO Mkwt Basic
B97: 94 | C97: SO Yahoo Gr
B98: 95 | C98: SO Mktwth Gr
B99: 96 | C99: SO Income Qtr
B100: 97 | C100: SO Balance Qtr
B101: 98 | C101: SO Cash Qtr
B102: 99 | C102: ECIFY Income St
B103: 100 | C103: ECIFY Balance Sheet
B104: 101 | C104: ECIFY Cash Flow
B105: 102 | C105: ECIFY Summary
B106: 103 | C106: ECIFY Mktw Sum
B107: 104 | C107: ECIFY Mkwt Basic
B108: 105 | C108: ECIFY Yahoo Gr
B109: 106 | C109: ECIFY Mktwth Gr
B110: 107 | C110: ECIFY Income Qtr
B111: 108 | C111: ECIFY Balance Qtr
B112: 109 | C112: ECIFY Cash Qtr
B113: 110 | C113: ENGIY Income St
B114: 111 | C114: ENGIY Balance Sheet
B115: 112 | C115: ENGIY Cash Flow
B116: 113 | C116: ENGIY Summary
B117: 114 | C117: ENGIY Mktw Sum
B118: 115 | C118: ENGIY Mkwt Basic
B119: 116 | C119: ENGIY Yahoo Gr
B120: 117 | C120: ENGIY Mktwth Gr
B121: 118 | C121: ENGIY Income Qtr
B122: 119 | C122: ENGIY Balance Qtr
B123: 120 | C123: ENGIY Cash Qtr
B124: 121 | C124: NGG Income St
B125: 122 | C125: NGG Balance Sheet
B126: 123 | C126: NGG Cash Flow
B127: 124 | C127: NGG Summary
B128: 125 | C128: NGG Mktw Sum
B129: 126 | C129: NGG Mkwt Basic
B130: 127 | C130: NGG Yahoo Gr
B131: 128 | C131: NGG Mktwth Gr
B132: 129 | C132: NGG Income Qtr
B133: 130 | C133: NGG Balance Qtr
B134: 131 | C134: NGG Cash Qtr
B135: 132 | C135: ENLAY Income St
B136: 133 | C136: ENLAY Balance Sheet
B137: 134 | C137: ENLAY Cash Flow
B138: 135 | C138: ENLAY Summary
B139: 136 | C139: ENLAY Mktw Sum
B140: 137 | C140: ENLAY Mkwt Basic
B141: 138 | C141: ENLAY Yahoo Gr
B142: 139 | C142: ENLAY Mktwth Gr
B143: 140 | C143: ENLAY Income Qtr
B144: 141 | C144: ENLAY Balance Qtr
B145: 142 | C145: ENLAY Cash Qtr
B146: 143 | C146: EONGY Income St
B147: 144 | C147: EONGY Balance Sheet
B148: 145 | C148: EONGY Cash Flow
B149: 146 | C149: EONGY Summary
B150: 147 | C150: EONGY Mktw Sum
B151: 148 | C151: EONGY Mkwt Basic
B152: 149 | C152: EONGY Yahoo Gr
B153: 150 | C153: EONGY Mktwth Gr
B154: 151 | C154: EONGY Income Qtr
B155: 152 | C155: EONGY Balance Qtr
B156: 153 | C156: EONGY Cash Qtr
B157: 154 | C157: EXC Income St
B158: 155 | C158: EXC Balance Sheet
B159: 156 | C159: EXC Cash Flow
B160: 157 | C160: EXC Summary
B161: 158 | C161: EXC Mktw Sum
B162: 159 | C162: EXC Mkwt Basic
B163: 160 | C163: EXC Yahoo Gr
B164: 161 | C164: EXC Mktwth Gr
B165: 162 | C165: EXC Income Qtr
B166: 163 | C166: EXC Balance Qtr
B167: 164 | C167: EXC Cash Qtr
B168: 165 | C168: DTE Income St
B169: 166 | C169: DTE Balance Sheet
B170: 167 | C170: DTE Cash Flow
B171: 168 | C171: DTE Summary
B172: 169 | C172: DTE Mktw Sum
B173: 170 | C173: DTE Mkwt Basic
B174: 171 | C174: DTE Yahoo Gr
B175: 172 | C175: DTE Mktwth Gr
B176: 173 | C176: DTE Income Qtr
B177: 174 | C177: DTE Balance Qtr
B178: 175 | C178: DTE Cash Qtr
B179: 176 | C179: AES Income St
B180: 177 | C180: AES Balance Sheet
B181: 178 | C181: AES Cash Flow
B182: 179 | C182: AES Summary
B183: 180 | C183: AES Mktw Sum
B184: 181 | C184: AES Mkwt Basic
B185: 182 | C185: AES Yahoo Gr
B186: 183 | C186: AES Mktwth Gr
B187: 184 | C187: AES Income Qtr
B188: 185 | C188: AES Balance Qtr
B189: 186 | C189: AES Cash Qtr
B190: 187 | C190: NRG Income St
B191: 188 | C191: NRG Balance Sheet
B192: 189 | C192: NRG Cash Flow
B193: 190 | C193: NRG Summary
B194: 191 | C194: NRG Mktw Sum
B195: 192 | C195: NRG Mkwt Basic
B196: 193 | C196: NRG Yahoo Gr
B197: 194 | C197: NRG Mktwth Gr
B198: 195 | C198: NRG Income Qtr
B199: 196 | C199: NRG Balance Qtr
B200: 197 | C200: NRG Cash Qtr
B201: 198 | C201: PCG Income St
... 85 more rows

Sheet Menu Sheet
B1: Menu Sheet to Read Stocks | F1: Max to Read | G1: 100 | J1: Stock Price | K1: End Year | L1: 2018 | M1: End Month | N1: 1
K2: End FY | L2: 2017 | M2: 1st Hist Data | N2: 2011
F3: Ticker Number | G3: 1 | K3: End Analysis | L3: 2017 | M3: Start Analysis
D4: Yahoo | E4: Mkt Watch | F4: URL Code | G4: 12 | I4: =INDEX(I44:I57,G4) -> https://www.marketwatch.com/investing/stock/MMM/financials/cash-flow/quarter | Q4: http://finance.yahoo.com/q/ks?s=RNW.TO+Key+Statistics
E5: Symbol to Implement | F5: =INDEX(D13:D2160,G3) -> MMM | G5: =INDEX(E13:E2160,G3) -> MMM
F6: Total Number of Companies to Read | G6: =MIN(COUNTA(D13:D34),G1) -> 21
F7: Sheet Name to Create | G7: =INDEX(P13:AA34,ticker_code,url_code) -> MMM Cash Qtr
I8: Start Time | J8: 14:38:56 | P8: Total Time | Q8: =End_Time-Start_Time -> 0.02354166667
I9: End Time | J9: 15:12:50
G10: Ticker | H10: Select | K10: Simple | P10: Sheet Names ---------------------------------------------------------------------------------------------------------->
C11: Currency | D11: Yahoo | E11: Mktwatch | F11: Yahoo Sum | G11: Name | H11: Ticker | I11: True Counter | K11: Count | L11: Match | N11: Adjusted Ticker | P11: Stock Price | Q11: Income Stmt | R11: Balance Sheet | S11: Cash Flow | T11: Summary | U11: Mkt W Summary | V11: MktW Basic | W11: Yahoo Projected Growth | X11: Mkt W Projected Growth | Y11: Qtly Income | Z11: Qtly Balance | AA11: Qtly Cash
I12: 0
B13: 3M | C13: 1 | D13: MMM | E13: MMM | F13: =E13 -> MMM | G13: ='Menu Sheet'!E13 -> MMM | H13: TRUE | I13: =I12+H13 -> 1 | K13: 1 | L13: =MATCH(K13,$I$13:$I$33,0) -> 1 | N13: =INDEX($G$13:$G$33,L13) -> MMM | P13: =D13&" "&$E$44 -> MMM Stock Price | Q13: =N13&" "&$E$45 -> MMM Income St | R13: =N13&" "&$E$46 -> MMM Balance Sheet | S13: =N13&" "&$E$47 -> MMM Cash Flow | T13: =F13&" "&$E$48 -> MMM Summary | U13: =N13&" "&$E$49 -> MMM Mktw Sum | V13: =$N13&" "&$E$50 -> MMM Mkwt Basic | W13: =F13&" "&$E$51 -> MMM Yahoo Gr | X13: =$N13&" "&$E$52 -> MMM Mktwth Gr | Y13: =$N13&" "&$E$53 -> MMM Income Qtr | Z13: =$N13&" "&$E$54 -> MMM Balance Qtr | AA13: =$N13&" "&$E$55 -> MMM Cash Qtr
B14: Apple | C14: 1 | D14: AAPL | E14: AAPL | F14: =E14 -> AAPL | G14: ='Menu Sheet'!E14 -> AAPL | H14: TRUE | I14: =I13+H14 -> 2 | K14: =K13+1 -> 2 | L14: 2 | N14: AAPL | P14: AAPL Stock Price | Q14: AAPL Income St | R14: AAPL Balance Sheet | S14: AAPL Cash Flow | T14: =F14&" "&$E$48 -> AAPL Summary | U14: AAPL Mktw Sum | V14: =N14&" "&$E$50 -> AAPL Mkwt Basic | W14: =F14&" "&$E$51 -> AAPL Yahoo Gr | X14: AAPL Mktwth Gr | Y14: AAPL Income Qtr | Z14: AAPL Balance Qtr | AA14: AAPL Cash Qtr
B15: Boeing | C15: 1 | D15: BA | E15: BA | F15: BA | G15: ='Menu Sheet'!E15 -> BA | H15: TRUE | I15: 3 | K15: =K14+1 -> 3 | L15: 3 | N15: BA | P15: BA Stock Price | Q15: BA Income St | R15: BA Balance Sheet | S15: BA Cash Flow | T15: BA Summary | U15: BA Mktw Sum | V15: BA Mkwt Basic | W15: BA Yahoo Gr | X15: BA Mktwth Gr | Y15: BA Income Qtr | Z15: BA Balance Qtr | AA15: BA Cash Qtr
B16: Caterpillar | C16: 1 | D16: CAT | E16: CAT | F16: CAT | G16: ='Menu Sheet'!E16 -> CAT | H16: TRUE | I16: 4 | K16: 4 | L16: 4 | N16: CAT | P16: CAT Stock Price | Q16: CAT Income St | R16: CAT Balance Sheet | S16: CAT Cash Flow | T16: CAT Summary | U16: CAT Mktw Sum | V16: CAT Mkwt Basic | W16: CAT Yahoo Gr | X16: CAT Mktwth Gr | Y16: CAT Income Qtr | Z16: CAT Balance Qtr | AA16: CAT Cash Qtr
B17: Chevron | C17: 1 | D17: CVX | E17: CVX | F17: CVX | G17: ='Menu Sheet'!E17 -> CVX | H17: TRUE | I17: 5 | K17: 5 | L17: 5 | N17: CVX | P17: CVX Stock Price | Q17: CVX Income St | R17: CVX Balance Sheet | S17: CVX Cash Flow | T17: CVX Summary | U17: CVX Mktw Sum | V17: CVX Mkwt Basic | W17: CVX Yahoo Gr | X17: CVX Mktwth Gr | Y17: CVX Income Qtr | Z17: CVX Balance Qtr | AA17: CVX Cash Qtr
B18: Cisco | C18: 1 | D18: CSCO | E18: CSCO | F18: CSCO | G18: ='Menu Sheet'!E18 -> CSCO | H18: TRUE | I18: 6 | K18: 6 | L18: 6 | N18: CSCO | P18: CSCO Stock Price | Q18: CSCO Income St | R18: CSCO Balance Sheet | S18: CSCO Cash Flow | T18: CSCO Summary | U18: CSCO Mktw Sum | V18: CSCO Mkwt Basic | W18: CSCO Yahoo Gr | X18: CSCO Mktwth Gr | Y18: CSCO Income Qtr | Z18: CSCO Balance Qtr | AA18: CSCO Cash Qtr
B19: Coca-Cola | C19: 1 | D19: KO | E19: KO | F19: KO | G19: ='Menu Sheet'!E19 -> KO | H19: TRUE | I19: =I18+H19 -> 7 | K19: 7 | L19: =MATCH(K19,$I$13:$I$33,0) -> 7 | N19: =INDEX($G$13:$G$33,L19) -> KO | P19: =D19&" "&$E$44 -> KO Stock Price | Q19: KO Income St | R19: KO Balance Sheet | S19: KO Cash Flow | T19: KO Summary | U19: KO Mktw Sum | V19: KO Mkwt Basic | W19: KO Yahoo Gr | X19: KO Mktwth Gr | Y19: KO Income Qtr | Z19: KO Balance Qtr | AA19: KO Cash Qtr
B20: Disney | C20: 1 | D20: DIS | E20: DIS | F20: DIS | G20: ='Menu Sheet'!E20 -> DIS | H20: TRUE | I20: 8 | K20: 8 | L20: 8 | N20: DIS | P20: DIS Stock Price | Q20: DIS Income St | R20: DIS Balance Sheet | S20: DIS Cash Flow | T20: DIS Summary | U20: DIS Mktw Sum | V20: DIS Mkwt Basic | W20: DIS Yahoo Gr | X20: DIS Mktwth Gr | Y20: DIS Income Qtr | Z20: DIS Balance Qtr | AA20: DIS Cash Qtr
B21: E I du Pont de Nemours and Co | C21: 1 | D21: DWDP | E21: DWDP | F21: DWDP | G21: ='Menu Sheet'!E21 -> DWDP | H21: TRUE | I21: 9 | K21: 9 | L21: 9 | N21: DWDP | P21: DWDP Stock Price | Q21: DWDP Income St | R21: DWDP Balance Sheet | S21: DWDP Cash Flow | T21: =F21&" "&$E$48 -> DWDP Summary | U21: DWDP Mktw Sum | V21: DWDP Mkwt Basic | W21: DWDP Yahoo Gr | X21: DWDP Mktwth Gr | Y21: DWDP Income Qtr | Z21: DWDP Balance Qtr | AA21: DWDP Cash Qtr
B22: Exxon Mobil | C22: 1 | D22: XOM | E22: XOM | F22: XOM | G22: ='Menu Sheet'!E22 -> XOM | H22: TRUE | I22: 10 | K22: 10 | L22: 10 | N22: XOM | P22: XOM Stock Price | Q22: XOM Income St | R22: XOM Balance Sheet | S22: XOM Cash Flow | T22: XOM Summary | U22: XOM Mktw Sum | V22: XOM Mkwt Basic | W22: XOM Yahoo Gr | X22: XOM Mktwth Gr | Y22: XOM Income Qtr | Z22: XOM Balance Qtr | AA22: XOM Cash Qtr
B23: General Electric | C23: 1 | D23: GE | E23: GE | F23: GE | G23: ='Menu Sheet'!E23 -> GE | H23: TRUE | I23: 11 | K23: 11 | L23: 11 | N23: GE | P23: GE Stock Price | Q23: GE Income St | R23: GE Balance Sheet | S23: GE Cash Flow | T23: GE Summary | U23: GE Mktw Sum | V23: GE Mkwt Basic | W23: GE Yahoo Gr | X23: GE Mktwth Gr | Y23: GE Income Qtr | Z23: GE Balance Qtr | AA23: GE Cash Qtr
B24: Home Depot | C24: 1 | D24: HD | E24: HD | F24: HD | G24: ='Menu Sheet'!E24 -> HD | H24: TRUE | I24: 12 | K24: 12 | L24: 12 | N24: HD | P24: HD Stock Price | Q24: HD Income St | R24: HD Balance Sheet | S24: HD Cash Flow | T24: HD Summary | U24: HD Mktw Sum | V24: HD Mkwt Basic | W24: HD Yahoo Gr | X24: HD Mktwth Gr | Y24: HD Income Qtr | Z24: HD Balance Qtr | AA24: HD Cash Qtr
B25: IBM | C25: 1 | D25: IBM | E25: IBM | F25: IBM | G25: ='Menu Sheet'!E25 -> IBM | H25: TRUE | I25: 13 | K25: 13 | L25: 13 | N25: IBM | P25: IBM Stock Price | Q25: IBM Income St | R25: IBM Balance Sheet | S25: IBM Cash Flow | T25: IBM Summary | U25: IBM Mktw Sum | V25: IBM Mkwt Basic | W25: IBM Yahoo Gr | X25: IBM Mktwth Gr | Y25: IBM Income Qtr | Z25: IBM Balance Qtr | AA25: IBM Cash Qtr
B26: Intel | C26: 1 | D26: INTC | E26: INTC | F26: INTC | G26: ='Menu Sheet'!E26 -> INTC | H26: TRUE | I26: 14 | K26: 14 | L26: 14 | N26: INTC | P26: INTC Stock Price | Q26: INTC Income St | R26: INTC Balance Sheet | S26: INTC Cash Flow | T26: INTC Summary | U26: INTC Mktw Sum | V26: INTC Mkwt Basic | W26: INTC Yahoo Gr | X26: INTC Mktwth Gr | Y26: INTC Income Qtr | Z26: INTC Balance Qtr | AA26: INTC Cash Qtr
B27: Johnson & Johnson | C27: 1 | D27: JNJ | E27: JNJ | F27: JNJ | G27: ='Menu Sheet'!E27 -> JNJ | H27: TRUE | I27: 15 | K27: 15 | L27: 15 | N27: JNJ | P27: JNJ Stock Price | Q27: JNJ Income St | R27: JNJ Balance Sheet | S27: JNJ Cash Flow | T27: JNJ Summary | U27: JNJ Mktw Sum | V27: JNJ Mkwt Basic | W27: JNJ Yahoo Gr | X27: JNJ Mktwth Gr | Y27: JNJ Income Qtr | Z27: JNJ Balance Qtr | AA27: JNJ Cash Qtr
B28: McDonald's | C28: 1 | D28: MCD | E28: MCD | F28: MCD | G28: ='Menu Sheet'!E28 -> MCD | H28: TRUE | I28: 16 | K28: 16 | L28: 16 | N28: MCD | P28: MCD Stock Price | Q28: MCD Income St | R28: MCD Balance Sheet | S28: MCD Cash Flow | T28: MCD Summary | U28: MCD Mktw Sum | V28: MCD Mkwt Basic | W28: MCD Yahoo Gr | X28: MCD Mktwth Gr | Y28: MCD Income Qtr | Z28: MCD Balance Qtr | AA28: MCD Cash Qtr
B29: Merck | C29: 1 | D29: MRK | E29: MRK | F29: MRK | G29: ='Menu Sheet'!E29 -> MRK | H29: TRUE | I29: 17 | K29: 17 | L29: 17 | N29: MRK | P29: MRK Stock Price | Q29: MRK Income St | R29: MRK Balance Sheet | S29: MRK Cash Flow | T29: MRK Summary | U29: MRK Mktw Sum | V29: MRK Mkwt Basic | W29: MRK Yahoo Gr | X29: MRK Mktwth Gr | Y29: MRK Income Qtr | Z29: MRK Balance Qtr | AA29: MRK Cash Qtr
B30: Microsoft | C30: 1 | D30: MSFT | E30: MSFT | F30: MSFT | G30: ='Menu Sheet'!E30 -> MSFT | H30: TRUE | I30: 18 | K30: 18 | L30: 18 | N30: MSFT | P30: MSFT Stock Price | Q30: MSFT Income St | R30: MSFT Balance Sheet | S30: MSFT Cash Flow | T30: MSFT Summary | U30: MSFT Mktw Sum | V30: MSFT Mkwt Basic | W30: MSFT Yahoo Gr | X30: MSFT Mktwth Gr | Y30: MSFT Income Qtr | Z30: MSFT Balance Qtr | AA30: MSFT Cash Qtr
B31: Nike | C31: 1 | D31: NKE | E31: NKE | F31: NKE | G31: ='Menu Sheet'!E31 -> NKE | H31: TRUE | I31: 19 | K31: 19 | L31: 19 | N31: NKE | P31: NKE Stock Price | Q31: NKE Income St | R31: NKE Balance Sheet | S31: NKE Cash Flow | T31: NKE Summary | U31: NKE Mktw Sum | V31: NKE Mkwt Basic | W31: NKE Yahoo Gr | X31: NKE Mktwth Gr | Y31: NKE Income Qtr | Z31: NKE Balance Qtr | AA31: NKE Cash Qtr
B32: Pfizer | C32: 1 | D32: PFE | E32: PFE | F32: PFE | G32: ='Menu Sheet'!E32 -> PFE | H32: TRUE | I32: 20 | K32: 20 | L32: 20 | N32: PFE | P32: PFE Stock Price | Q32: PFE Income St | R32: PFE Balance Sheet | S32: PFE Cash Flow | T32: PFE Summary | U32: PFE Mktw Sum | V32: PFE Mkwt Basic | W32: PFE Yahoo Gr | X32: PFE Mktwth Gr | Y32: PFE Income Qtr | Z32: PFE Balance Qtr | AA32: PFE Cash Qtr
B33: Procter & Gamble | C33: 1 | D33: PG | E33: PG | F33: PG | G33: ='Menu Sheet'!E33 -> PG | H33: TRUE | I33: 21 | K33: 21 | L33: 21 | N33: PG | P33: PG Stock Price | Q33: PG Income St | R33: PG Balance Sheet | S33: PG Cash Flow | T33: PG Summary | U33: PG Mktw Sum | V33: PG Mkwt Basic | W33: PG Yahoo Gr | X33: PG Mktwth Gr | Y33: PG Income Qtr | Z33: PG Balance Qtr | AA33: PG Cash Qtr
C34: 1 | F34: 0 | G34: ='Menu Sheet'!E34 -> 0 | H34: FALSE | I34: =I33+H34 -> 21 | K34: 22 | L34: =MATCH(K34,$I$13:$I$34,0) ->  | N34: =INDEX($G$13:$G$34,L34) ->  | P34: =D34&" "&$E$44 -> Stock Price | Q34: =N34&" "&$E$45 ->  | R34: =N34&" "&$E$46 ->  | S34: =N34&" "&$E$47 ->  | T34: =F34&" "&$E$48 -> 0 Summary | U34: =N34&" "&$E$49 ->  | V34: =N34&" "&$E$50 ->  | W34: =F34&" "&$E$51 -> 0 Yahoo Gr
E40: Total Check | F40: =IFERROR(SUM(I13:I33)," Make Sure that the Totals are Copied") -> 231
P41: Construction of URL's
A42: URL's for Companies
I43: Re-Combined Ticker | P43: Part 1 | T43: Part 2 | X43: Example
C44: 1 | E44: Stock Price | F44: Stock Prices from Yahoo | I44: =yahoo_url -> https://query1.finance.yahoo.com/v7/finance/download/MMM?period1=-631152000&period2=1535673600&interval=1wk&events=history&crumb=/31yW32ZzH5 | P44: http://real-chart.finance.yahoo.com/table.csv?s= | T44: &a=11&b=28&c=1950&d=01&e=17&f=2020&g=m&ignore=.csv | X44: https://query1.finance.yahoo.com/v7/finance/download/GE?period1=-631152000&period2=1510444800&interval=1wk&events=history&crumb=z9oVYd3qdiN
C45: 2 | E45: Income St | F45: Income St from Mkt Watch | I45: =P45&mw_tick&T45 -> http://www.marketwatch.com/investing/stock/MMM/financials | P45: http://www.marketwatch.com/investing/stock/ | T45: /financials | X45: http://www.marketwatch.com/investing/stock/AJSB/financials
C46: 3 | E46: Balance Sheet | F46: B/S from Mkt Watch | I46: =P46&mw_tick&T46 -> http://www.marketwatch.com/investing/stock/MMM/financials/balance-sheet | P46: http://www.marketwatch.com/investing/stock/ | T46: /financials/balance-sheet | X46: http://www.marketwatch.com/investing/stock/AJSB/financials/balance-sheet
C47: 4 | E47: Cash Flow | F47: CF from Mkt Watch | I47: =P47&mw_tick&T47 -> http://www.marketwatch.com/investing/stock/MMM/financials/cash-flow | P47: http://www.marketwatch.com/investing/stock/ | T47: /financials/cash-flow | X47: http://www.marketwatch.com/investing/stock/AJSB/financials/cash-flow
C48: 5 | E48: Summary | F48: Summary from Yahoo | I48: =P48&ticker&T48&ticker -> https://finance.yahoo.com/quote/MMM/key-statistics?p=MMM | P48: https://finance.yahoo.com/quote/ | T48: /key-statistics?p= | X48: http://finance.yahoo.com/q/ks?s=UAL+Key+Statistics
C49: 6 | E49: Mktw Sum | F49: Summary from Mkt Watch | I49: =P49&mw_tick&T49 -> http://www.marketwatch.com/investing/stock/MMM/profile | P49: http://www.marketwatch.com/investing/stock/ | T49: /profile | X49: http://www.marketwatch.com/investing/stock/exc/profile
C50: 7 | E50: Mkwt Basic | F50: Basic from Mkt Watch | I50: =P50&mw_tick&T50 -> http://www.marketwatch.com/investing/stock/MMM | P50: http://www.marketwatch.com/investing/stock/ | X50: http://www.marketwatch.com/investing/stock/exc
C51: 8 | E51: Yahoo Gr | F51: Analyst Est from Yahoo | I51: =P51&ticker&T51&ticker -> https://finance.yahoo.com/quote/MMM/analysts?p=MMM | P51: https://finance.yahoo.com/quote/ | T51: /analysts?p= | X51: http://finance.yahoo.com/q/ae?s=EXC+Analyst+Estimates
C52: 9 | E52: Mktwth Gr | F52: Analyst from Mkt Watch | I52: =P52&mw_tick&T52 -> https://www.marketwatch.com/investing/stock/MMM/analystestimates | P52: https://www.marketwatch.com/investing/stock/ | T52: /analystestimates | X52: https://www.marketwatch.com/investing/stock/MMM/analystestimates
C53: 10 | E53: Income Qtr | F53: Qtly Income Mkt Watch | I53: =P53&mw_tick&T53 -> https://www.marketwatch.com/investing/stock/MMM/financials/income/quarter | P53: https://www.marketwatch.com/investing/stock/ | T53: /financials/income/quarter
C54: 11 | E54: Balance Qtr | F54: Qtly Balance Mkt Watch | I54: =P54&mw_tick&T54 -> https://www.marketwatch.com/investing/stock/MMM/financials/balance-sheet/quarter | P54: https://www.marketwatch.com/investing/stock/ | T54: /financials/balance-sheet/quarter
C55: 12 | E55: Cash Qtr | F55: Qtly Cash Mkt Watch | I55: =P55&mw_tick&T55 -> https://www.marketwatch.com/investing/stock/MMM/financials/cash-flow/quarter | P55: https://www.marketwatch.com/investing/stock/ | T55: /financials/cash-flow/quarter
A59: URL's for Economic Data
F60: Code for Economic Data | G60: 1
E62: 10 year Treasury | F62: 10-year U.S. Treasury FRED | I62: https://research.stlouisfed.org/fred2/data/DGS10.txt
E63: 30 year Treasury | F63: 30-year U.S. Treasury FRED | I63: https://research.stlouisfed.org/fred2/data/DGS30.txt
E64: 10 year Infl Index | F64: 10-year Inflation Index FRED | I64: https://research.stlouisfed.org/fred2/data/DFII10.txt
E65: 30 year Infl Index | F65: 30-year Inflation Index FRED | I65: https://research.stlouisfed.org/fred2/data/DFII30.txt
O66: EXDNUS
B68: Applied in Index | E68: =INDEX(E62:E66,$G$60) -> 10 year Treasury | F68: =INDEX(F62:F66,$G$60) -> 10-year U.S. Treasury FRED | I68: =INDEX(I62:I66,$G$60) -> https://research.stlouisfed.org/fred2/data/DGS10.txt
P69: EV
A70: Enter Ticker Definitions for finance.yahoo.com and for marketwatch (DO NOT INSERT OR DELETE ROWS) -- JUST CLEAR THE DATA OR ENTER NEW TICKERS
B75: URL to read Yahoo stock with WEBREQUEST
C77: yahoo url | D77: =Part_1&D81&Part_2&Part_3&Part4&Crumb_String -> https://query1.finance.yahoo.com/v7/finance/download/MMM?period1=-631152000&period2=1535673600&interval=1wk&events=history&crumb=/31yW32ZzH5
BA78: 3 | BB78: z3DhW7hRCwX | BD78: B=dbvosklcocrl7&b=3&s=fq
B79: Parts to URL for WEBREQUEST | BA79: 4 | BB79: 0DogTmPS.ad
C80: Part 1 | D80: https://query1.finance.yahoo.com/v7/finance/download/ | BA80: 5 | BB80: YR4DTj5nWxK
C81: Part 2 | D81: =ticker -> MMM | BA81: 6 | BB81: .lxRRFrSiBH
C82: Part 2 | D82: ?period1=-631152000&period2= | BA82: 7 | BB82: ayso2ZErQOf
C83: Part 3 | D83: =TEXT(D91,0) -> 1535673600 | BA83: 8 | BB83: aTX22e7zn34
C84: Part4 | D84: &interval=1wk&events=history&crumb= | K84: Can read week of month | BA84: 9 | BB84: VI5Xh7BcvmY
C85: Crumb String | D85: /31yW32ZzH5
C86: Cookie String | D86: B=dsgd64pdoh90i&b=3&s=94 | BA86: 10 | BB86: Apevnkl89Do
BA87: 11 | BB87: UEsp04Vhq1V
C88: response wait | D88: 3
D90: =(A1-DATE(1970,1,1))*86400
B91: =TODAY() -> 43343 | D91: =(B91-DATE(1970,1,1))*86400 -> 1535673600
C93: Cookie num | D93: 1
C94: Cookie in VBA | D94: B=bt97nr5d0h3e6&b=3&s=t2
A100: List to Copy | D100: Beer
D102: Yahoo | E102: Market Watch | I102: Selected | J102: Yahoo | K102: Market Watch | P102: Utilities | U102: Dow Stocks | Z102: Yield Co and Other | AE102: Energy Companies | AL102: Telecom Companies | AP102: Yahoo | AQ102: Marketwatch | AT102: Insurance Companies | BA102: Food Companies | BG102: Oil Companies | BM102: Renewble | BQ102: Yahoo
B104: Carlesberg | C104: 1 | D104: CARL-B.CO | E104: CABGY | G104: 1 | H104: Google | J104: GOOG | K104: GOOG | O104: 1 | P104: ITC Holdings | R104: ITC | S104: ITC | T104: 1 | U104: 3M | V104: MMM | W104: MMM | Y104: 1 | Z104: Ibdrola | AB104: IBDRY | AC104: IBDRY | AE104: 1 | AF104: IBE.MC | AG104: IBDRY | AL104: Deutsche Telekom AG (ADR) | AP104: DTE.DE | AT104: L&G | AW104: LGEN.L | BA104: Nestle | BC104: NSRGY | BG104: Cheasapeak Energy | BJ104: CHK | BM104: General Electric | BQ104: GE
B105: Diageo | C105: 0.01 | D105: DGE.L | E105: DEO | G105: 1 | H105: Amazon | J105: AMZN | K105: AMZN | O105: 1 | P105: Allete Inc | R105: ALE | S105: ALE | T105: 1 | U105: Apple | V105: AAPL | W105: AAPL | Y105: 1 | Z105: NextEra | AB105: NEE | AC105: NEE | AE105: 1 | AF105: 5347.KL | AG105: TNABY | AL105: France Telecom SA (ADR) | AP105: FTE | AT105: L&G ADR | AW105: LGGNY | BA105: Kraft | BC105: KRFT | BG105: Range Resources | BJ105: RRC | BM105: Vestas (Denmark) | BQ105: VWS.CO
B106: Ambev SA (USD,BRL) | C106: 1 | D106: ABEV3.SA | E106: ABEV | G106: 1 | H106: Facebook | J106: FB | K106: FB | O106: 1 | P106: Con Edison | R106: ED | S106: ED | T106: 1 | U106: Boeing | V106: BA | W106: BA | Y106: 1 | Z106: Abgona | AB106: ABGOF | AC106: ABGOF | AE106: 50 | AF106: MAEOY | AG106: MAEOY | AL106: BT Group plc (ADR) (BT) | AP106: BT | AT106: Met Life | AW106: MET | BA106: Hershey | BC106: HSY | BG106: Contential Resources | BJ106: CLR | BM106: Gamesa Wind (Spain) | BQ106: GAM.MC
B107: Molson Coors Brewing Company | C107: 1 | D107: TAP | E107: TAP | G107: 1 | H107: Blackberry | J107: BBRY | K107: BBRY | O107: 1 | P107: WEC Energy Group | R107: WEC | S107: WEC | T107: 1 | U107: Caterpillar | V107: CAT | W107: CAT | Y107: 1 | Z107: Enbridge | AB107: ENB | AC107: ENB | AE107: 1 | AF107: ED | AG107: ED | AL107: Vodafone Group plc | AP107: VOD | AT107: AIG | AW107: AIG | BA107: Dannone | BC107: BN.PA | BG107: Sandy Ridge | BJ107: SD | BM107: Nordex Wind SE: German On-Shore Wind | BQ107: NDX1.DE
B108: Boston Beer | C108: 1 | D108: SAM | E108: SAM | G108: 1 | H108: HP | J108: HPQ | K108: HPQ | O108: 1 | P108: PG&E | R108: PGC | S108: PGC | T108: 1 | U108: Chevron | V108: CVX | W108: CVX | Y108: 1 | Z108: Transalta | AB108: TAC | AC108: TAC | AE108: 1 | AF108: 015760.KS | AG108: KEP | AL108: Verizon Communications... | AP108: VZ | AT108: Prudential | AW108: PRU | BA108: Pepsi Co | BC108: PEP | BG108: Midstates Petroleum | BJ108: MPO | BM108: Sinovel Wind: Chinese Wind Manufactrer | BQ108: 601558.SS
B109: Constellation Brands | C109: 1 | D109: STZ | E109: STZ | G109: 1 | H109: Apple | J109: AAPL | K109: AAPL | O109: 1 | P109: AGL Resources | R109: GAS | S109: GAS | T109: 1 | U109: Cisco | V109: CSCO | W109: CSCO | Y109: 1 | Z109: Sempra | AB109: SRE | AC109: SRE | AE109: 107.4 | AF109: TKECF | AG109: TKECY | AL109: Sprint | AP109: S | AT109: Genworth | AW109: GWO.TO | BA109: Coca Cola | BC109: CCE | BG109: Shell Oil | BJ109: RDS-B | BM109: Suzlon: Indian Wind Manufacturer | BQ109: SUZLON.NS
B110: Craft Brew Alliance | C110: 1 | D110: BREW | E110: BREW | G110: 1 | H110: Home Depot | J110: HD | K110: HD | O110: 1 | P110: MGE Energy Inc. | R110: MGEE | S110: MGEE | T110: 1 | U110: Coca-Cola | V110: KO | W110: KO | Y110: 1 | Z110: Enrl | AB110: ENEL.MI | AC110: IT:ENEL | AE110: 1 | AF110: SO | AG110: SO | AL110: Philippine Long Distance (PHI) | AP110: PHI | AT110: Genworth ADR | AW110: GNW | BA110: Kellog | BC110: K | BG110: Exxon Mobil | BJ110: XOM | BM110: Goldwind: Chinese Wind Manufacturer | BQ110: 002202.SZ
B111: Willamett Valley | C111: 1 | D111: WVVI | E111: WVVI | G111: 1 | H111: US Cellular | J111: USM | K111: USM | O111: 1 | P111: Ameren | R111: AEE | S111: AEE | T111: 1 | U111: Disney | V111: DIS | W111: DIS | Y111: 1 | Z111: Renewable Energy | AB111: REGI | AC111: REGI | AE111: 1 | AF111: EDF.PA | AG111: ECIFY | AL111: Turkcell Iletisim Hizm... | AP111: TKC | AT111: China Insurance Company | AW111: LFC | BA111: General Mills | BC111: GIS | BG111: Chevron | BJ111: CVX | BM111: RE Power: Wind Manufacturer owned by Suzlon | BQ111: RTJ.F
B112: Heineken | C112: 1 | D112: HEIA.AS | E112: HINKF | G112: 0.01 | H112: Vodaphone | J112: VOD | K112: VOD | O112: 1 | P112: Entergy | R112: ETR | S112: ETR | T112: 1 | U112: E I du Pont de Nemours and Co | V112: DWDP | W112: DWDP | Y112: 1 | Z112: Edison International | AB112: EIX | AC112: EIX | AE112: 1 | AF112: ENGI.PA | AG112: ENGIY | AL112: China Unicom Limited (ADR (CHU) | AP112: CHU | AT112: AIA Group | AW112: AAGIY | BA112: ConAgra | BC112: CAG | BG112: Breitling Energy Corp. | BJ112: BECC | BM112: Ming Yang: Chinese Wind Manufacturer | BQ112: MY
B113: Cott | C113: 1 | D113: COT | E113: COT | G113: 1 | H113: Sprint | J113: S | K113: S | O113: 1 | P113: Southern Company | R113: SO | S113: SO | T113: 1 | U113: Exxon Mobil | V113: XOM | W113: XOM | Y113: 1 | Z113: Hannanon Armstrong | AB113: HASI | AC113: HASI | AE113: 0.01 | AF113: NG.L | AG113: NGG | AL113: China Netcom Group Corp ( (CN) | AP113: CN | AT113: China Pacific Insrance | AW113: 2601.HK | BA113: Heinz | BC113: HNZ | BG113: Total | BJ113: TOT | BM113: First Solar (U.S.) | BQ113: FSLR
B114: Fomento Economico Mexicano SAB de CV (USD,MXN) | C114: 1 | D114: FCC.MC | E114: FMOCY | G114: 1 | H114: JP Morgan | J114: JPM | K114: JPM | O114: 1 | P114: Great Plains Energy | R114: GXP | S114: GXP | T114: 1 | U114: General Electric | V114: GE | W114: GE | Y114: 1 | Z114: NRG Yield | AB114: NYLD | AC114: NYLD | AE114: 1 | AF114: ENEL.MI | AG114: ENLAY | AL114: CenturyTel, Inc. (CTL) | AP114: CTL | AT114: Aflac | AW114: AFL | BA114: Sara Lee | BC114: SLE | BG114: BP | BJ114: BP | BM114: REC: Solar Manufacturer Norway | BQ114: RECSOL.OL
B115: Tsingtao Brewery Company Limited | C115: 1 | D115: 0168.HK | E115: TSGTF | G115: 1 | H115: Wall Mart | J115: WMT | K115: WMT | O115: 1 | P115: Xcel Energy | R115: XEL | S115: XEL | T115: 1 | U115: Home Depot | V115: HD | W115: HD | Y115: 1 | Z115: TransAlta Renewables | AB115: RNW.TO | AC115: CA:RNW | AE115: 1 | AF115: EOAN.DE | AG115: EONGY | AL115: NTT DoCoMo, Inc. (ADR) | AP115: DCM | AT115: Dai-ichi Life Holdings Inc | AW115: DSNKY | BA115: Seneca Foods Corp | BC115: SENEB | BG115: Goodrich Petroleum Corp. | BJ115: GDP | BM115: SunPower Corporation (U.S.) | BQ115: SPWR
B116: Monster Beverage | C116: 1 | D116: MNST | E116: MNST | G116: 1 | H116: Exelon | J116: EXC | K116: EXC | O116: 1 | P116: Centerpoint Energy | R116: CNP | S116: CNP | T116: 1 | U116: IBM | V116: IBM | W116: IBM | Y116: 1 | Z116: Pattern Energy Group | AB116: PEGI | AC116: PEGI | AE116: 1 | AF116: EXC | AG116: EXC | AL116: NII Holdings, Inc. (NIHD) | AP116: NIHD | AT116: Old Mutual | AW116: ODMTY | BA116: Cosan LTD | BC116: CZZ | BG116: Sanchez Energy Corp. | BJ116: SN | BM116: Trina Solar Limited (China) | BQ116: TSL
B117: Castle Brands Inc (USD) | C117: 1 | D117: ROX | E117: ROX | G117: 1 | H117: Consolidated Edison | J117: ED | K117: ED | O117: 1 | P117: Alliant Energy | R117: LNT | S117: LNT | T117: 1 | U117: Intel | V117: INTC | W117: INTC | Y117: 1 | Z117: Brookfield Renewable | AB117: BEP | AC117: BEP | AE117: 1 | AF117: DTE | AG117: DTE | AL117: Nippon Telegraph & Teleph (NTT) | AP117: NTT | AT117: Power Financial Corp | AW117: PWF.TO | BA117: John B Snfillippo | BC117: JBSS | BG117: Clayton Williams Energy Inc. | BJ117: CWEI | BM117: Solar City | BQ117: SCTY
B118: Pernod Ricard SA (USD,EUR) | C118: 1 | D118: RI.PA | E118: PDRDY | G118: 1 | H118: AES | J118: AES | K118: AES | T118: 1 | U118: Johnson & Johnson | V118: JNJ | W118: JNJ | Y118: 1 | Z118: Abengoa Yield | AB118: ABY | AC118: ABY | AE118: 1 | AF118: AES | AG118: AES | AL118: General Communication, In (GNCMA) | AP118: GNCMA | AT118: Lincoln National Corp | AW118: LNC | BA118: China Marine | BC118: CMFP | BG118: Callon Petroleum Co. | BJ118: CPE | BM118: SolarWorld (German Roof-top) | BQ118: SRWRY
B119: Thai Beverage PLC (USD,THB) | C119: 1 | D119: Y92.SI | E119: TBVPY | G119: 1 | H119: NRG Energy | J119: NRG | K119: NRG | T119: 1 | U119: McDonald's | V119: MCD | W119: MCD | Y119: 1 | Z119: NextEra Partners | AB119: NEP | AC119: NEP | AE119: 1 | AF119: NRG | AG119: NRG | AL119: P.T. Indosat Tbk (ADR) (IIT) | AP119: IIT | AT119: Principal Financial Group | AW119: PFG | BA119: Dean Foods | BC119: DF | BG119: Laredo Petroleum Co. | BJ119: LPI | BM119: Ascent Solar Tech., Inc. | BQ119: ASTI
B120: Brown-Forman Corp (USD) | C120: 1 | D120: BF-A | E120: BF.A | G120: 1 | H120: First Solar | J120: FSLR | K120: FSLR | T120: 1 | U120: Merck | V120: MRK | W120: MRK | Y120: 1 | Z120: TerraForm Power | AB120: TERP | AC120: TERP | AE120: 1 | AF120: PCG | AG120: PCG | AL120: j2 Global Communications (JCOM) | AP120: JCOM | AT120: Allianz | AW120: ALIZF | BA120: Delmonte | BC120: DLM | BG120: Oasis Petroleum Inc. | BJ120: OAS | BM120: Canadian Solar | BQ120: CSIQ
B121: Treasury Wine Estates Ltd. | C121: 1 | D121: TWE.AX | E121: TSRYY | G121: 1 | H121: Cheasapeak Energy | J121: CHK | K121: CHK | T121: 1 | U121: Microsoft | V121: MSFT | W121: MSFT | Y121: 1 | Z121: 8point3 | AB121: CAFD | AC121: CAFD | AE121: 1 | AF121: RWE.DE | AG121: RWEOY | AL121: Leap Wireless Internation (LEAP.OB) | AP121: LEAP.OB | AT121: Zurich Insurance Group | AW121: ZFSVF | BA121: Lancaster Colony | BC121: LANC | BG121: Stone Energy Corp. | BJ121: SGY | BM121: Bard (Germany) | BQ121: BR6.F
B122: Pepsi Co | C122: 1 | D122: PEP | E122: PEP | G122: 1 | H122: Range Resources | J122: RRC | K122: RRC | T122: 1 | U122: Nike | V122: NKE | W122: NKE | AE122: 1 | AF122: MGEE | AG122: MGEE | AL122: Mobile TeleSystems OJS... | AP122: MBT | AT122: Swiss Life | AW122: SWSDF | BA122: The JM Smucker Company | BC122: SJM | BG122: Triangle Petroleum Corp. | BJ122: TPLM | BM122: Q-Cells: German Solar Company | BQ122: HQCL
B123: Coca Cola Botteling | C123: 1 | D123: COKE | E123: COKE | G123: 1 | H123: Paypal | J123: PYPL | K123: PYPL | T123: 1 | U123: Pfizer | V123: PFE | W123: PFE | AE123: 1 | AF123: WEC | AG123: WEC | AL123: Telecom Corp of New Zeala (NZT) | AP123: NZT | AT123: Sun Life | AW123: SLF | BA123: Inventure Foods | BC123: SNAK | BG123: EP Energy Corp. Class A | BJ123: EPE | BM123: Solon: German Solar Manufacturer | BQ123: SGFRF
B124: Dr Pepper | C124: 1 | D124: DPS | E124: DPS | G124: 1 | H124: Priceline | J124: PCLN | K124: PCLN | T124: 1 | U124: Procter & Gamble | V124: PG | W124: PG | AE124: 1 | AF124: AEE | AG124: AEE | AL124: Premiere Global Services (PGI) | AP124: PGI | AT124: AXA SA | AW124: AXAHY | BA124: Flowers Foods | BC124: FLO | BG124: Noble Energy | BJ124: NBL | BM124: Yingili: Chinese Solar Manufacturer | BQ124: YGE
G125: 1 | H125: Ebay | J125: EBAY | K125: EBAY | AE125: 1 | AF125: CMS | AG125: CMS | AL125: Portugal Telecom, SGPS (A (PT) | AP125: PT | AT125: Sumpo Holdings | AW125: SMPNY | BA125: Yamazaki Baking Co. Ltd. (YMZBY) | BC125: YMZBY | BG125: Southwestern | BJ125: SWN | BM125: Jinko Solar: Chinese Solar Manufacturer | BQ125: JKS
AL126: Partner Communications Co (PTNR) | AP126: PTNR | AT126: Aegon NV | AW126: AEG | BA126: George Weston Limited (WN.TO) | BC126: WN.TO | BG126: Concho | BJ126: CXO | BM126: Neo Solar: Tawinese Solar Manufacturer | BQ126: 3576.TW
AL127: Cincinnati Bell Inc. (CBB) | AP127: CBB | AT127: NN Group NV | AW127: NNGRY | BA127: Tootsie Roll Industries Inc. (TR | BC127: TR | BG127: CNX | BJ127: CNX | BM127: LDK Solar Co., Ltd (China) | BQ127: LDKYQ
AL128: China Telecom Corporation (CHA) | AP128: CHA | BA128: Diamond Foods Inc | BC128: DMND | BG128: COG | BJ128: COG | BM128: SMA Solar: Solar Inverter | BQ128: S92.DE
AL129: China Mobile (Hong Kong) (CHL) | AP129: CHL | BG129: CPE | BJ129: CPE | BM129: Power-one | BQ129: PWER
AL130: Chung Hwa Telecom Co., Lt (CHT) | AP130: CHT | BG130: CRZO | BJ130: CRZO | BM130: GCL-Poly: Polysilicon in China | BQ130: 3800.HK
I131: https://finance.yahoo.com/quote/ge/analysts?p=ge | AL131: SK Telecom Co., Ltd. (ADR (SKM) | AP131: SKM | BG131: Devon Energy | BJ131: DVN | BM131: Wacker (Germany Polysilicon | BQ131: WKCMF.PK
I132: https://www.marketwatch.com/investing/stock/mmm/analystestimates | AL132: Singapore Telecommunicati (SNGNF.PK) | AP132: SNGNF.PK | BG132: ERF | BJ132: ERF | BM132: MEMC Electronic Materi... | BQ132: WFR
I133: https://www.marketwatch.com/investing/stock/mmm/financials | AL133: SpectraSite Inc. (SSI) | AP133: SSI | BG133: Goodrich Energy | BJ133: GDP | BM133: DayStar Technologies Inc. | BQ133: DSTI
I134: https://www.marketwatch.com/investing/stock/ge/financials/income/quarter | P134: https://www.marketwatch.com/investing/stock/ | S134: /financials/income/quarter | AL134: Telephone & Data Systems (TDS) | AP134: TDS | BG134: IDT | BJ134: IDT | BM134: Windflow Technology Limited | BQ134: WTL.NZ
I135: https://finance.yahoo.com/quote/MMM/key-statistics?p=MMM | P135: https://finance.yahoo.com/quote/ | S135: /key-statistics?p= | AL135: Telefonica S.A. (ADR) | AP135: TEF | BG135: Lucas Energy Company | BJ135: LEI | BM135: Iberdrola SA | BQ135: IBE.MC
I136: https://www.marketwatch.com/investing/stock/ge/financials/cash-flow/quarter | P136: https://www.marketwatch.com/investing/stock/ | S136: /financials/cash-flow/quarter | AL136: Telenor ASA (ADR) | AP136: TELNY | BG136: National Fuel Gas | BJ136: NFG | BM136: Fersa Energias Renovables, S.A. | BQ136: FRS.MC
I137: https://www.marketwatch.com/investing/stock/ge/financials/balance-sheet/quarter | P137: https://www.marketwatch.com/investing/stock/ | S137: /financials/balance-sheet/quarter | AL137: Telecom Italia S.p.A. (AD (TI) | AP137: TI | BG137: Natonal Gas Services | BJ137: NGS | BM137: Acciona,S.A. | BQ137: ANA.MC
I138: https://finance.yahoo.com/quote/GE/analysts?p=GE | P138: https://finance.yahoo.com/quote/ | S138: /analysts?p= | AL138: PT Telekomunikasi Indones (TLK) | AP138: TLK | BG138: Petroquest Energy | BJ138: PQ | BM138: Abengoa S | BQ138: AYO.DE
I139: https://www.marketwatch.com/investing/stock/MMM/analystestimates | P139: https://www.marketwatch.com/investing/stock/ | S139: /analystestimates | AL139: Tele Norte Leste Particip (TNE) | AP139: TNE | BG139: Pioneer Energy | BJ139: PXD | BM139: Americas Wind Energy Corporation | BQ139: AWNE.PK
AL140: United States Cellular Co (USM) | AP140: USM | BG140: Rex Energy Company | BJ140: REXX | BM140: Shanghai Taisheng Wind Power | BQ140: 300129.SZ
AL141: USA Mobility, Inc. (USMO) | AP141: USMO | BG141: UNT | BJ141: UNT | BM141: Sun Edison (Bankrupt Developer) | BQ141: SUNE
AL142: UTStarcom, Inc. (UTSI) | AP142: UTSI | BG142: Triangle Petroleum Corporation | BJ142: TPLM | BM142: Hannanon Armstrong (Yieldco) | BQ142: HASI
AL143: Vimpel-Communications (AD (VIP) | AP143: VIP | BG143: Antero | BJ143: AR | BM143: NRG Yield (Yieldco) | BQ143: NYLD
AL144: AT&T | AP144: T | BG144: Cheniere Energy | BJ144: LNG | BM144: TransAlta Renewables (Yieldco) | BQ144: RNW.TO
AL145: Alltel Corporation (AT) | AP145: AT | BG145: Kodiak Oil and Gas | BJ145: 4K2.F | BM145: Pattern Energy Group (Yieldco) | BQ145: PEGI
AL146: BCE Inc. (USA) (BCE) | AP146: BCE | BG146: Rosetta Resources | BJ146: ROSE | BM146: BEP (Yieldco) | BQ146: BEP
BG147: Magmum Hunter | BJ147: MHR | BM147: Abengoa Yield (Yieldco) | BQ147: ABY
BM148: NextEra Partners (Yieldco) | BQ148: NEP
BM149: TerraForm Power (Yieldco) | BQ149: TERP
BM150: 8point3 (Yieldco) | BQ150: CAFD
BM151: China Windpower Group Limited | BQ151: CMW.V
BM152: A Power - Chinese Wind | BQ152: APWR
BM153: Alero Solar (Germany) | BQ153: AS1.DU
BM154: Energy Conversion | BQ154: ENER
BM155: Suntech Power Hldgs. China | BQ155: STPFQ

Sheet Equity Trend Analysis
H1: =I46 -> 5
A3: P/E Summary
Y4: ="Note: Years after "&'Menu Sheet'!L3&" From Analyst Estimates" -> Note: Years after 2017 From Analyst Estimates
E5: =C64 -> Forward P/E - Ending Stock Price | P5: TRUE
P6: Counter | T6: =C64 -> Forward P/E - Ending Stock Price
B7: Raw Data Before Adjustments | E7: ='EBITDA Analysis'!C6 -> 2011 | F7: ='EBITDA Analysis'!D6 -> 2012 | G7: ='EBITDA Analysis'!E6 -> 2013 | H7: ='EBITDA Analysis'!F6 -> 2014 | I7: ='EBITDA Analysis'!G6 -> 2015 | J7: ='EBITDA Analysis'!H6 -> 2016 | K7: ='EBITDA Analysis'!I6 -> 2017 | L7: ='EBITDA Analysis'!J6 -> 2018 | M7: ='EBITDA Analysis'!K6 -> 2019 | N7: ='EBITDA Analysis'!L6 -> Current | O7: Include | P7: 0 | V7: =E7 -> 2011 | W7: 2012 | X7: 2013 | Y7: 2014 | Z7: 2015 | AA7: 2016 | AB7: 2017 | AC7: 2018 | AD7: 2019 | AE7: Current
C8: ='Data Current'!D11 -> 3M | E8: =IFERROR(CHOOSE($I$46, 'Equity Analysis'!C151,'Equity Analysis'!C204,'Equity Analysis'!C231, 'Equity Analysis'!P5, 'Equity Analysis'!C34, 'Equity Analysis'!P34, 'Equity Analysis'!C62, 'Equity Analysis'!P62, 'Equity Analysis'!C177, 'Data Extract Balance Sheet'!K260, 'Data Extract Balance Sheet'!K290), FALSE) -> FALSE | F8: =IFERROR(CHOOSE($I$46, 'Equity Analysis'!D151,'Equity Analysis'!D204,'Equity Analysis'!D231, 'Equity Analysis'!Q5, 'Equity Analysis'!D34, 'Equity Analysis'!Q34, 'Equity Analysis'!D62, 'Equity Analysis'!Q62, 'Equity Analysis'!D177, 'Data Extract Balance Sheet'!L260, 'Data Extract Balance Sheet'!L290), FALSE) -> 0 | G8: =IFERROR(CHOOSE($I$46, 'Equity Analysis'!E151,'Equity Analysis'!E204,'Equity Analysis'!E231, 'Equity Analysis'!R5, 'Equity Analysis'!E34, 'Equity Analysis'!R34, 'Equity Analysis'!E62, 'Equity Analysis'!R62, 'Equity Analysis'!E177, 'Data Extract Balance Sheet'!M260, 'Data Extract Balance Sheet'!M290), FALSE) -> 0 | H8: =IFERROR(CHOOSE($I$46, 'Equity Analysis'!F151,'Equity Analysis'!F204,'Equity Analysis'!F231, 'Equity Analysis'!S5, 'Equity Analysis'!F34, 'Equity Analysis'!S34, 'Equity Analysis'!F62, 'Equity Analysis'!S62, 'Equity Analysis'!F177, 'Data Extract Balance Sheet'!N260, 'Data Extract Balance Sheet'!N290), FALSE) -> 0 | I8: =IFERROR(CHOOSE($I$46, 'Equity Analysis'!G151,'Equity Analysis'!G204,'Equity Analysis'!G231, 'Equity Analysis'!T5, 'Equity Analysis'!G34, 'Equity Analysis'!T34, 'Equity Analysis'!G62, 'Equity Analysis'!T62, 'Equity Analysis'!G177, 'Data Extract Balance Sheet'!O260, 'Data Extract Balance Sheet'!O290), FALSE) -> 0 | J8: =IFERROR(CHOOSE($I$46, 'Equity Analysis'!H151,'Equity Analysis'!H204,'Equity Analysis'!H231, 'Equity Analysis'!U5, 'Equity Analysis'!H34, 'Equity Analysis'!U34, 'Equity Analysis'!H62, 'Equity Analysis'!U62, 'Equity Analysis'!H177, 'Data Extract Balance Sheet'!P260, 'Data Extract Balance Sheet'!P290), FALSE) -> 0 | K8: =IFERROR(CHOOSE($I$46, 'Equity Analysis'!I151,'Equity Analysis'!I204,'Equity Analysis'!I231, 'Equity Analysis'!V5, 'Equity Analysis'!I34, 'Equity Analysis'!V34, 'Equity Analysis'!I62, 'Equity Analysis'!V62, 'Equity Analysis'!I177, 'Data Extract Balance Sheet'!Q260, 'Data Extract Balance Sheet'!Q290), FALSE) -> 0 | L8: =IFERROR(CHOOSE($I$46, 'Equity Analysis'!J151,'Equity Analysis'!J204,'Equity Analysis'!J231, 'Equity Analysis'!W5, 'Equity Analysis'!J34, 'Equity Analysis'!W34, 'Equity Analysis'!J62, 'Equity Analysis'!W62, 'Equity Analysis'!J177, 'Data Extract Balance Sheet'!R260, 'Data Extract Balance Sheet'!R290), FALSE) -> 0 | M8: =IFERROR(CHOOSE($I$46, 'Equity Analysis'!K151,'Equity Analysis'!K204,'Equity Analysis'!K231, 'Equity Analysis'!X5, 'Equity Analysis'!K34, 'Equity Analysis'!X34, 'Equity Analysis'!K62, 'Equity Analysis'!X62, 'Equity Analysis'!K177, 'Data Extract Balance Sheet'!S260, 'Data Extract Balance Sheet'!S290), FALSE) -> FALSE | N8: =IFERROR(CHOOSE($I$46, 'Equity Analysis'!L151,'Equity Analysis'!L204,'Equity Analysis'!L231, 'Equity Analysis'!Y5, 'Equity Analysis'!L34, 'Equity Analysis'!Y34, 'Equity Analysis'!L62, 'Equity Analysis'!Y62, 'Equity Analysis'!L177, 'Data Extract Balance Sheet'!T260, 'Data Extract Balance Sheet'!T290), FALSE) -> 18.76 | O8: TRUE | P8: =O8+P7 -> 1
C9: ='Data Current'!D12 -> Apple | E9: =IFERROR(CHOOSE($I$46, 'Equity Analysis'!C152,'Equity Analysis'!C205,'Equity Analysis'!C232, 'Equity Analysis'!P6, 'Equity Analysis'!C35, 'Equity Analysis'!P35, 'Equity Analysis'!C63, 'Equity Analysis'!P63, 'Equity Analysis'!C178, 'Data Extract Balance Sheet'!K261, 'Data Extract Balance Sheet'!K291), FALSE) -> FALSE | F9: =IFERROR(CHOOSE($I$46, 'Equity Analysis'!D152,'Equity Analysis'!D205,'Equity Analysis'!D232, 'Equity Analysis'!Q6, 'Equity Analysis'!D35, 'Equity Analysis'!Q35, 'Equity Analysis'!D63, 'Equity Analysis'!Q63, 'Equity Analysis'!D178, 'Data Extract Balance Sheet'!L261, 'Data Extract Balance Sheet'!L291), FALSE) -> 0 | G9: =IFERROR(CHOOSE($I$46, 'Equity Analysis'!E152,'Equity Analysis'!E205,'Equity Analysis'!E232, 'Equity Analysis'!R6, 'Equity Analysis'!E35, 'Equity Analysis'!R35, 'Equity Analysis'!E63, 'Equity Analysis'!R63, 'Equity Analysis'!E178, 'Data Extract Balance Sheet'!M261, 'Data Extract Balance Sheet'!M291), FALSE) -> 0 | H9: =IFERROR(CHOOSE($I$46, 'Equity Analysis'!F152,'Equity Analysis'!F205,'Equity Analysis'!F232, 'Equity Analysis'!S6, 'Equity Analysis'!F35, 'Equity Analysis'!S35, 'Equity Analysis'!F63, 'Equity Analysis'!S63, 'Equity Analysis'!F178, 'Data Extract Balance Sheet'!N261, 'Data Extract Balance Sheet'!N291), FALSE) -> 0 | I9: =IFERROR(CHOOSE($I$46, 'Equity Analysis'!G152,'Equity Analysis'!G205,'Equity Analysis'!G232, 'Equity Analysis'!T6, 'Equity Analysis'!G35, 'Equity Analysis'!T35, 'Equity Analysis'!G63, 'Equity Analysis'!T63, 'Equity Analysis'!G178, 'Data Extract Balance Sheet'!O261, 'Data Extract Balance Sheet'!O291), FALSE) -> 0 | J9: =IFERROR(CHOOSE($I$46, 'Equity Analysis'!H152,'Equity Analysis'!H205,'Equity Analysis'!H232, 'Equity Analysis'!U6, 'Equity Analysis'!H35, 'Equity Analysis'!U35, 'Equity Analysis'!H63, 'Equity Analysis'!U63, 'Equity Analysis'!H178, 'Data Extract Balance Sheet'!P261, 'Data Extract Balance Sheet'!P291), FALSE) -> 0 | K9: =IFERROR(CHOOSE($I$46, 'Equity Analysis'!I152,'Equity Analysis'!I205,'Equity Analysis'!I232, 'Equity Analysis'!V6, 'Equity Analysis'!I35, 'Equity Analysis'!V35, 'Equity Analysis'!I63, 'Equity Analysis'!V63, 'Equity Analysis'!I178, 'Data Extract Balance Sheet'!Q261, 'Data Extract Balance Sheet'!Q291), FALSE) -> 0 | L9: =IFERROR(CHOOSE($I$46, 'Equity Analysis'!J152,'Equity Analysis'!J205,'Equity Analysis'!J232, 'Equity Analysis'!W6, 'Equity Analysis'!J35, 'Equity Analysis'!W35, 'Equity Analysis'!J63, 'Equity Analysis'!W63, 'Equity Analysis'!J178, 'Data Extract Balance Sheet'!R261, 'Data Extract Balance Sheet'!R291), FALSE) -> 0 | M9: =IFERROR(CHOOSE($I$46, 'Equity Analysis'!K152,'Equity Analysis'!K205,'Equity Analysis'!K232, 'Equity Analysis'!X6, 'Equity Analysis'!K35, 'Equity Analysis'!X35, 'Equity Analysis'!K63, 'Equity Analysis'!X63, 'Equity Analysis'!K178, 'Data Extract Balance Sheet'!S261, 'Data Extract Balance Sheet'!S291), FALSE) -> FALSE | N9: =IFERROR(CHOOSE($I$46, 'Equity Analysis'!L152,'Equity Analysis'!L205,'Equity Analysis'!L232, 'Equity Analysis'!Y6, 'Equity Analysis'!L35, 'Equity Analysis'!Y35, 'Equity Analysis'!L63, 'Equity Analysis'!Y63, 'Equity Analysis'!L178, 'Data Extract Balance Sheet'!T261, 'Data Extract Balance Sheet'!T291), FALSE) -> 16.43 | O9: TRUE | P9: 2 | T9: Average | V9: =IFERROR(AVERAGE(V14:V46),"") ->  | W9: =IFERROR(AVERAGE(W14:W46),"") -> 0 | X9: 0 | Y9: 0 | Z9: 0 | AA9: 0 | AB9: 0 | AC9: =IFERROR(AVERAGE(AC14:AC46),"") -> 0 | AD9: =IFERROR(AVERAGE(AD14:AD46),"") ->  | AE9: =IFERROR(AVERAGE(AE14:AE46),"") -> 18.42
C10: ='Data Current'!D13 -> Boeing | E10: =IFERROR(CHOOSE($I$46, 'Equity Analysis'!C153,'Equity Analysis'!C206,'Equity Analysis'!C233, 'Equity Analysis'!P7, 'Equity Analysis'!C36, 'Equity Analysis'!P36, 'Equity Analysis'!C64, 'Equity Analysis'!P64, 'Equity Analysis'!C179, 'Data Extract Balance Sheet'!K262, 'Data Extract Balance Sheet'!K292), FALSE) -> FALSE | F10: =IFERROR(CHOOSE($I$46, 'Equity Analysis'!D153,'Equity Analysis'!D206,'Equity Analysis'!D233, 'Equity Analysis'!Q7, 'Equity Analysis'!D36, 'Equity Analysis'!Q36, 'Equity Analysis'!D64, 'Equity Analysis'!Q64, 'Equity Analysis'!D179, 'Data Extract Balance Sheet'!L262, 'Data Extract Balance Sheet'!L292), FALSE) -> 0 | G10: =IFERROR(CHOOSE($I$46, 'Equity Analysis'!E153,'Equity Analysis'!E206,'Equity Analysis'!E233, 'Equity Analysis'!R7, 'Equity Analysis'!E36, 'Equity Analysis'!R36, 'Equity Analysis'!E64, 'Equity Analysis'!R64, 'Equity Analysis'!E179, 'Data Extract Balance Sheet'!M262, 'Data Extract Balance Sheet'!M292), FALSE) -> 0 | H10: =IFERROR(CHOOSE($I$46, 'Equity Analysis'!F153,'Equity Analysis'!F206,'Equity Analysis'!F233, 'Equity Analysis'!S7, 'Equity Analysis'!F36, 'Equity Analysis'!S36, 'Equity Analysis'!F64, 'Equity Analysis'!S64, 'Equity Analysis'!F179, 'Data Extract Balance Sheet'!N262, 'Data Extract Balance Sheet'!N292), FALSE) -> 0 | I10: =IFERROR(CHOOSE($I$46, 'Equity Analysis'!G153,'Equity Analysis'!G206,'Equity Analysis'!G233, 'Equity Analysis'!T7, 'Equity Analysis'!G36, 'Equity Analysis'!T36, 'Equity Analysis'!G64, 'Equity Analysis'!T64, 'Equity Analysis'!G179, 'Data Extract Balance Sheet'!O262, 'Data Extract Balance Sheet'!O292), FALSE) -> 0 | J10: =IFERROR(CHOOSE($I$46, 'Equity Analysis'!H153,'Equity Analysis'!H206,'Equity Analysis'!H233, 'Equity Analysis'!U7, 'Equity Analysis'!H36, 'Equity Analysis'!U36, 'Equity Analysis'!H64, 'Equity Analysis'!U64, 'Equity Analysis'!H179, 'Data Extract Balance Sheet'!P262, 'Data Extract Balance Sheet'!P292), FALSE) -> 0 | K10: =IFERROR(CHOOSE($I$46, 'Equity Analysis'!I153,'Equity Analysis'!I206,'Equity Analysis'!I233, 'Equity Analysis'!V7, 'Equity Analysis'!I36, 'Equity Analysis'!V36, 'Equity Analysis'!I64, 'Equity Analysis'!V64, 'Equity Analysis'!I179, 'Data Extract Balance Sheet'!Q262, 'Data Extract Balance Sheet'!Q292), FALSE) -> 0 | L10: =IFERROR(CHOOSE($I$46, 'Equity Analysis'!J153,'Equity Analysis'!J206,'Equity Analysis'!J233, 'Equity Analysis'!W7, 'Equity Analysis'!J36, 'Equity Analysis'!W36, 'Equity Analysis'!J64, 'Equity Analysis'!W64, 'Equity Analysis'!J179, 'Data Extract Balance Sheet'!R262, 'Data Extract Balance Sheet'!R292), FALSE) -> 0 | M10: =IFERROR(CHOOSE($I$46, 'Equity Analysis'!K153,'Equity Analysis'!K206,'Equity Analysis'!K233, 'Equity Analysis'!X7, 'Equity Analysis'!K36, 'Equity Analysis'!X36, 'Equity Analysis'!K64, 'Equity Analysis'!X64, 'Equity Analysis'!K179, 'Data Extract Balance Sheet'!S262, 'Data Extract Balance Sheet'!S292), FALSE) -> FALSE | N10: =IFERROR(CHOOSE($I$46, 'Equity Analysis'!L153,'Equity Analysis'!L206,'Equity Analysis'!L233, 'Equity Analysis'!Y7, 'Equity Analysis'!L36, 'Equity Analysis'!Y36, 'Equity Analysis'!L64, 'Equity Analysis'!Y64, 'Equity Analysis'!L179, 'Data Extract Balance Sheet'!T262, 'Data Extract Balance Sheet'!T292), FALSE) -> 20.07 | O10: TRUE | P10: 3 | T10: Median | V10: =IFERROR(MEDIAN(V14:V46),"") ->  | W10: =IFERROR(MEDIAN(W14:W46),"") -> 0 | X10: 0 | Y10: 0 | Z10: 0 | AA10: 0 | AB10: 0 | AC10: =IFERROR(MEDIAN(AC14:AC46),"") -> 0 | AD10: =IFERROR(MEDIAN(AD14:AD46),"") ->  | AE10: =IFERROR(MEDIAN(AE14:AE46),"") -> 18.76
C11: ='Data Current'!D14 -> Caterpillar | E11: =IFERROR(CHOOSE($I$46, 'Equity Analysis'!C154,'Equity Analysis'!C207,'Equity Analysis'!C234, 'Equity Analysis'!P8, 'Equity Analysis'!C37, 'Equity Analysis'!P37, 'Equity Analysis'!C65, 'Equity Analysis'!P65, 'Equity Analysis'!C180, 'Data Extract Balance Sheet'!K263, 'Data Extract Balance Sheet'!K293), FALSE) -> FALSE | F11: =IFERROR(CHOOSE($I$46, 'Equity Analysis'!D154,'Equity Analysis'!D207,'Equity Analysis'!D234, 'Equity Analysis'!Q8, 'Equity Analysis'!D37, 'Equity Analysis'!Q37, 'Equity Analysis'!D65, 'Equity Analysis'!Q65, 'Equity Analysis'!D180, 'Data Extract Balance Sheet'!L263, 'Data Extract Balance Sheet'!L293), FALSE) -> 0 | G11: =IFERROR(CHOOSE($I$46, 'Equity Analysis'!E154,'Equity Analysis'!E207,'Equity Analysis'!E234, 'Equity Analysis'!R8, 'Equity Analysis'!E37, 'Equity Analysis'!R37, 'Equity Analysis'!E65, 'Equity Analysis'!R65, 'Equity Analysis'!E180, 'Data Extract Balance Sheet'!M263, 'Data Extract Balance Sheet'!M293), FALSE) -> 0 | H11: =IFERROR(CHOOSE($I$46, 'Equity Analysis'!F154,'Equity Analysis'!F207,'Equity Analysis'!F234, 'Equity Analysis'!S8, 'Equity Analysis'!F37, 'Equity Analysis'!S37, 'Equity Analysis'!F65, 'Equity Analysis'!S65, 'Equity Analysis'!F180, 'Data Extract Balance Sheet'!N263, 'Data Extract Balance Sheet'!N293), FALSE) -> 0 | I11: =IFERROR(CHOOSE($I$46, 'Equity Analysis'!G154,'Equity Analysis'!G207,'Equity Analysis'!G234, 'Equity Analysis'!T8, 'Equity Analysis'!G37, 'Equity Analysis'!T37, 'Equity Analysis'!G65, 'Equity Analysis'!T65, 'Equity Analysis'!G180, 'Data Extract Balance Sheet'!O263, 'Data Extract Balance Sheet'!O293), FALSE) -> 0 | J11: =IFERROR(CHOOSE($I$46, 'Equity Analysis'!H154,'Equity Analysis'!H207,'Equity Analysis'!H234, 'Equity Analysis'!U8, 'Equity Analysis'!H37, 'Equity Analysis'!U37, 'Equity Analysis'!H65, 'Equity Analysis'!U65, 'Equity Analysis'!H180, 'Data Extract Balance Sheet'!P263, 'Data Extract Balance Sheet'!P293), FALSE) -> 0 | K11: =IFERROR(CHOOSE($I$46, 'Equity Analysis'!I154,'Equity Analysis'!I207,'Equity Analysis'!I234, 'Equity Analysis'!V8, 'Equity Analysis'!I37, 'Equity Analysis'!V37, 'Equity Analysis'!I65, 'Equity Analysis'!V65, 'Equity Analysis'!I180, 'Data Extract Balance Sheet'!Q263, 'Data Extract Balance Sheet'!Q293), FALSE) -> 0 | L11: =IFERROR(CHOOSE($I$46, 'Equity Analysis'!J154,'Equity Analysis'!J207,'Equity Analysis'!J234, 'Equity Analysis'!W8, 'Equity Analysis'!J37, 'Equity Analysis'!W37, 'Equity Analysis'!J65, 'Equity Analysis'!W65, 'Equity Analysis'!J180, 'Data Extract Balance Sheet'!R263, 'Data Extract Balance Sheet'!R293), FALSE) -> 0 | M11: =IFERROR(CHOOSE($I$46, 'Equity Analysis'!K154,'Equity Analysis'!K207,'Equity Analysis'!K234, 'Equity Analysis'!X8, 'Equity Analysis'!K37, 'Equity Analysis'!X37, 'Equity Analysis'!K65, 'Equity Analysis'!X65, 'Equity Analysis'!K180, 'Data Extract Balance Sheet'!S263, 'Data Extract Balance Sheet'!S293), FALSE) -> FALSE | N11: =IFERROR(CHOOSE($I$46, 'Equity Analysis'!L154,'Equity Analysis'!L207,'Equity Analysis'!L234, 'Equity Analysis'!Y8, 'Equity Analysis'!L37, 'Equity Analysis'!Y37, 'Equity Analysis'!L65, 'Equity Analysis'!Y65, 'Equity Analysis'!L180, 'Data Extract Balance Sheet'!T263, 'Data Extract Balance Sheet'!T293), FALSE) -> 10.84 | O11: FALSE | P11: 3
C12: ='Data Current'!D15 -> Chevron | E12: =IFERROR(CHOOSE($I$46, 'Equity Analysis'!C155,'Equity Analysis'!C208,'Equity Analysis'!C235, 'Equity Analysis'!P9, 'Equity Analysis'!C38, 'Equity Analysis'!P38, 'Equity Analysis'!C66, 'Equity Analysis'!P66, 'Equity Analysis'!C181, 'Data Extract Balance Sheet'!K264, 'Data Extract Balance Sheet'!K294), FALSE) -> FALSE | F12: =IFERROR(CHOOSE($I$46, 'Equity Analysis'!D155,'Equity Analysis'!D208,'Equity Analysis'!D235, 'Equity Analysis'!Q9, 'Equity Analysis'!D38, 'Equity Analysis'!Q38, 'Equity Analysis'!D66, 'Equity Analysis'!Q66, 'Equity Analysis'!D181, 'Data Extract Balance Sheet'!L264, 'Data Extract Balance Sheet'!L294), FALSE) -> 0 | G12: =IFERROR(CHOOSE($I$46, 'Equity Analysis'!E155,'Equity Analysis'!E208,'Equity Analysis'!E235, 'Equity Analysis'!R9, 'Equity Analysis'!E38, 'Equity Analysis'!R38, 'Equity Analysis'!E66, 'Equity Analysis'!R66, 'Equity Analysis'!E181, 'Data Extract Balance Sheet'!M264, 'Data Extract Balance Sheet'!M294), FALSE) -> 0 | H12: =IFERROR(CHOOSE($I$46, 'Equity Analysis'!F155,'Equity Analysis'!F208,'Equity Analysis'!F235, 'Equity Analysis'!S9, 'Equity Analysis'!F38, 'Equity Analysis'!S38, 'Equity Analysis'!F66, 'Equity Analysis'!S66, 'Equity Analysis'!F181, 'Data Extract Balance Sheet'!N264, 'Data Extract Balance Sheet'!N294), FALSE) -> 0 | I12: =IFERROR(CHOOSE($I$46, 'Equity Analysis'!G155,'Equity Analysis'!G208,'Equity Analysis'!G235, 'Equity Analysis'!T9, 'Equity Analysis'!G38, 'Equity Analysis'!T38, 'Equity Analysis'!G66, 'Equity Analysis'!T66, 'Equity Analysis'!G181, 'Data Extract Balance Sheet'!O264, 'Data Extract Balance Sheet'!O294), FALSE) -> 0 | J12: =IFERROR(CHOOSE($I$46, 'Equity Analysis'!H155,'Equity Analysis'!H208,'Equity Analysis'!H235, 'Equity Analysis'!U9, 'Equity Analysis'!H38, 'Equity Analysis'!U38, 'Equity Analysis'!H66, 'Equity Analysis'!U66, 'Equity Analysis'!H181, 'Data Extract Balance Sheet'!P264, 'Data Extract Balance Sheet'!P294), FALSE) -> 0 | K12: =IFERROR(CHOOSE($I$46, 'Equity Analysis'!I155,'Equity Analysis'!I208,'Equity Analysis'!I235, 'Equity Analysis'!V9, 'Equity Analysis'!I38, 'Equity Analysis'!V38, 'Equity Analysis'!I66, 'Equity Analysis'!V66, 'Equity Analysis'!I181, 'Data Extract Balance Sheet'!Q264, 'Data Extract Balance Sheet'!Q294), FALSE) -> 0 | L12: =IFERROR(CHOOSE($I$46, 'Equity Analysis'!J155,'Equity Analysis'!J208,'Equity Analysis'!J235, 'Equity Analysis'!W9, 'Equity Analysis'!J38, 'Equity Analysis'!W38, 'Equity Analysis'!J66, 'Equity Analysis'!W66, 'Equity Analysis'!J181, 'Data Extract Balance Sheet'!R264, 'Data Extract Balance Sheet'!R294), FALSE) -> 0 | M12: =IFERROR(CHOOSE($I$46, 'Equity Analysis'!K155,'Equity Analysis'!K208,'Equity Analysis'!K235, 'Equity Analysis'!X9, 'Equity Analysis'!K38, 'Equity Analysis'!X38, 'Equity Analysis'!K66, 'Equity Analysis'!X66, 'Equity Analysis'!K181, 'Data Extract Balance Sheet'!S264, 'Data Extract Balance Sheet'!S294), FALSE) -> FALSE | N12: =IFERROR(CHOOSE($I$46, 'Equity Analysis'!L155,'Equity Analysis'!L208,'Equity Analysis'!L235, 'Equity Analysis'!Y9, 'Equity Analysis'!L38, 'Equity Analysis'!Y38, 'Equity Analysis'!L66, 'Equity Analysis'!Y66, 'Equity Analysis'!L181, 'Data Extract Balance Sheet'!T264, 'Data Extract Balance Sheet'!T294), FALSE) -> 14 | O12: FALSE | P12: 3 | R12: No in | S12: Source
C13: ='Data Current'!D16 -> Cisco | E13: =IFERROR(CHOOSE($I$46, 'Equity Analysis'!C156,'Equity Analysis'!C209,'Equity Analysis'!C236, 'Equity Analysis'!P10, 'Equity Analysis'!C39, 'Equity Analysis'!P39, 'Equity Analysis'!C67, 'Equity Analysis'!P67, 'Equity Analysis'!C182, 'Data Extract Balance Sheet'!K265, 'Data Extract Balance Sheet'!K295), FALSE) -> FALSE | F13: =IFERROR(CHOOSE($I$46, 'Equity Analysis'!D156,'Equity Analysis'!D209,'Equity Analysis'!D236, 'Equity Analysis'!Q10, 'Equity Analysis'!D39, 'Equity Analysis'!Q39, 'Equity Analysis'!D67, 'Equity Analysis'!Q67, 'Equity Analysis'!D182, 'Data Extract Balance Sheet'!L265, 'Data Extract Balance Sheet'!L295), FALSE) -> 0 | G13: =IFERROR(CHOOSE($I$46, 'Equity Analysis'!E156,'Equity Analysis'!E209,'Equity Analysis'!E236, 'Equity Analysis'!R10, 'Equity Analysis'!E39, 'Equity Analysis'!R39, 'Equity Analysis'!E67, 'Equity Analysis'!R67, 'Equity Analysis'!E182, 'Data Extract Balance Sheet'!M265, 'Data Extract Balance Sheet'!M295), FALSE) -> 0 | H13: =IFERROR(CHOOSE($I$46, 'Equity Analysis'!F156,'Equity Analysis'!F209,'Equity Analysis'!F236, 'Equity Analysis'!S10, 'Equity Analysis'!F39, 'Equity Analysis'!S39, 'Equity Analysis'!F67, 'Equity Analysis'!S67, 'Equity Analysis'!F182, 'Data Extract Balance Sheet'!N265, 'Data Extract Balance Sheet'!N295), FALSE) -> 0 | I13: =IFERROR(CHOOSE($I$46, 'Equity Analysis'!G156,'Equity Analysis'!G209,'Equity Analysis'!G236, 'Equity Analysis'!T10, 'Equity Analysis'!G39, 'Equity Analysis'!T39, 'Equity Analysis'!G67, 'Equity Analysis'!T67, 'Equity Analysis'!G182, 'Data Extract Balance Sheet'!O265, 'Data Extract Balance Sheet'!O295), FALSE) -> 0 | J13: =IFERROR(CHOOSE($I$46, 'Equity Analysis'!H156,'Equity Analysis'!H209,'Equity Analysis'!H236, 'Equity Analysis'!U10, 'Equity Analysis'!H39, 'Equity Analysis'!U39, 'Equity Analysis'!H67, 'Equity Analysis'!U67, 'Equity Analysis'!H182, 'Data Extract Balance Sheet'!P265, 'Data Extract Balance Sheet'!P295), FALSE) -> 0 | K13: =IFERROR(CHOOSE($I$46, 'Equity Analysis'!I156,'Equity Analysis'!I209,'Equity Analysis'!I236, 'Equity Analysis'!V10, 'Equity Analysis'!I39, 'Equity Analysis'!V39, 'Equity Analysis'!I67, 'Equity Analysis'!V67, 'Equity Analysis'!I182, 'Data Extract Balance Sheet'!Q265, 'Data Extract Balance Sheet'!Q295), FALSE) -> 0 | L13: =IFERROR(CHOOSE($I$46, 'Equity Analysis'!J156,'Equity Analysis'!J209,'Equity Analysis'!J236, 'Equity Analysis'!W10, 'Equity Analysis'!J39, 'Equity Analysis'!W39, 'Equity Analysis'!J67, 'Equity Analysis'!W67, 'Equity Analysis'!J182, 'Data Extract Balance Sheet'!R265, 'Data Extract Balance Sheet'!R295), FALSE) -> 0 | M13: =IFERROR(CHOOSE($I$46, 'Equity Analysis'!K156,'Equity Analysis'!K209,'Equity Analysis'!K236, 'Equity Analysis'!X10, 'Equity Analysis'!K39, 'Equity Analysis'!X39, 'Equity Analysis'!K67, 'Equity Analysis'!X67, 'Equity Analysis'!K182, 'Data Extract Balance Sheet'!S265, 'Data Extract Balance Sheet'!S295), FALSE) -> FALSE | N13: =IFERROR(CHOOSE($I$46, 'Equity Analysis'!L156,'Equity Analysis'!L209,'Equity Analysis'!L236, 'Equity Analysis'!Y10, 'Equity Analysis'!L39, 'Equity Analysis'!Y39, 'Equity Analysis'!L67, 'Equity Analysis'!Y67, 'Equity Analysis'!L182, 'Data Extract Balance Sheet'!T265, 'Data Extract Balance Sheet'!T295), FALSE) -> 14.45 | O13: FALSE | P13: 3 | R13: Table | S13: Row #
C14: ='Data Current'!D17 -> Coca-Cola | E14: =IFERROR(CHOOSE($I$46, 'Equity Analysis'!C157,'Equity Analysis'!C210,'Equity Analysis'!C237, 'Equity Analysis'!P11, 'Equity Analysis'!C40, 'Equity Analysis'!P40, 'Equity Analysis'!C68, 'Equity Analysis'!P68, 'Equity Analysis'!C183, 'Data Extract Balance Sheet'!K266, 'Data Extract Balance Sheet'!K296), FALSE) -> FALSE | F14: =IFERROR(CHOOSE($I$46, 'Equity Analysis'!D157,'Equity Analysis'!D210,'Equity Analysis'!D237, 'Equity Analysis'!Q11, 'Equity Analysis'!D40, 'Equity Analysis'!Q40, 'Equity Analysis'!D68, 'Equity Analysis'!Q68, 'Equity Analysis'!D183, 'Data Extract Balance Sheet'!L266, 'Data Extract Balance Sheet'!L296), FALSE) -> 0 | G14: =IFERROR(CHOOSE($I$46, 'Equity Analysis'!E157,'Equity Analysis'!E210,'Equity Analysis'!E237, 'Equity Analysis'!R11, 'Equity Analysis'!E40, 'Equity Analysis'!R40, 'Equity Analysis'!E68, 'Equity Analysis'!R68, 'Equity Analysis'!E183, 'Data Extract Balance Sheet'!M266, 'Data Extract Balance Sheet'!M296), FALSE) -> 0 | H14: =IFERROR(CHOOSE($I$46, 'Equity Analysis'!F157,'Equity Analysis'!F210,'Equity Analysis'!F237, 'Equity Analysis'!S11, 'Equity Analysis'!F40, 'Equity Analysis'!S40, 'Equity Analysis'!F68, 'Equity Analysis'!S68, 'Equity Analysis'!F183, 'Data Extract Balance Sheet'!N266, 'Data Extract Balance Sheet'!N296), FALSE) -> 0 | I14: =IFERROR(CHOOSE($I$46, 'Equity Analysis'!G157,'Equity Analysis'!G210,'Equity Analysis'!G237, 'Equity Analysis'!T11, 'Equity Analysis'!G40, 'Equity Analysis'!T40, 'Equity Analysis'!G68, 'Equity Analysis'!T68, 'Equity Analysis'!G183, 'Data Extract Balance Sheet'!O266, 'Data Extract Balance Sheet'!O296), FALSE) -> 0 | J14: =IFERROR(CHOOSE($I$46, 'Equity Analysis'!H157,'Equity Analysis'!H210,'Equity Analysis'!H237, 'Equity Analysis'!U11, 'Equity Analysis'!H40, 'Equity Analysis'!U40, 'Equity Analysis'!H68, 'Equity Analysis'!U68, 'Equity Analysis'!H183, 'Data Extract Balance Sheet'!P266, 'Data Extract Balance Sheet'!P296), FALSE) -> 0 | K14: =IFERROR(CHOOSE($I$46, 'Equity Analysis'!I157,'Equity Analysis'!I210,'Equity Analysis'!I237, 'Equity Analysis'!V11, 'Equity Analysis'!I40, 'Equity Analysis'!V40, 'Equity Analysis'!I68, 'Equity Analysis'!V68, 'Equity Analysis'!I183, 'Data Extract Balance Sheet'!Q266, 'Data Extract Balance Sheet'!Q296), FALSE) -> 0 | L14: =IFERROR(CHOOSE($I$46, 'Equity Analysis'!J157,'Equity Analysis'!J210,'Equity Analysis'!J237, 'Equity Analysis'!W11, 'Equity Analysis'!J40, 'Equity Analysis'!W40, 'Equity Analysis'!J68, 'Equity Analysis'!W68, 'Equity Analysis'!J183, 'Data Extract Balance Sheet'!R266, 'Data Extract Balance Sheet'!R296), FALSE) -> 0 | M14: =IFERROR(CHOOSE($I$46, 'Equity Analysis'!K157,'Equity Analysis'!K210,'Equity Analysis'!K237, 'Equity Analysis'!X11, 'Equity Analysis'!K40, 'Equity Analysis'!X40, 'Equity Analysis'!K68, 'Equity Analysis'!X68, 'Equity Analysis'!K183, 'Data Extract Balance Sheet'!S266, 'Data Extract Balance Sheet'!S296), FALSE) -> FALSE | N14: =IFERROR(CHOOSE($I$46, 'Equity Analysis'!L157,'Equity Analysis'!L210,'Equity Analysis'!L237, 'Equity Analysis'!Y11, 'Equity Analysis'!L40, 'Equity Analysis'!Y40, 'Equity Analysis'!L68, 'Equity Analysis'!Y68, 'Equity Analysis'!L183, 'Data Extract Balance Sheet'!T266, 'Data Extract Balance Sheet'!T296), FALSE) -> 20.25 | O14: FALSE | P14: =O14+P13 -> 3 | R14: 1 | S14: =IFERROR(MATCH(R14,P:P,0),"") -> 8 | T14: =IFERROR(INDEX(C:C,S14),"") -> 3M | V14: =IFERROR(INDEX(E:E,$S14),"") -> FALSE | W14: =IFERROR(INDEX(F:F,$S14),"") -> 0 | X14: =IFERROR(INDEX(G:G,$S14),"") -> 0 | Y14: =IFERROR(INDEX(H:H,$S14),"") -> 0 | Z14: =IFERROR(INDEX(I:I,$S14),"") -> 0 | AA14: =IFERROR(INDEX(J:J,$S14),"") -> 0 | AB14: =IFERROR(INDEX(K:K,$S14),"") -> 0 | AC14: =IFERROR(INDEX(L:L,$S14),"") -> 0 | AD14: =IFERROR(INDEX(M:M,$S14),"") -> FALSE | AE14: =IFERROR(INDEX(N:N,$S14),"") -> 18.76
C15: ='Data Current'!D18 -> Disney | E15: =IFERROR(CHOOSE($I$46, 'Equity Analysis'!C158,'Equity Analysis'!C211,'Equity Analysis'!C238, 'Equity Analysis'!P12, 'Equity Analysis'!C41, 'Equity Analysis'!P41, 'Equity Analysis'!C69, 'Equity Analysis'!P69, 'Equity Analysis'!C184, 'Data Extract Balance Sheet'!K267, 'Data Extract Balance Sheet'!K297), FALSE) -> FALSE | F15: =IFERROR(CHOOSE($I$46, 'Equity Analysis'!D158,'Equity Analysis'!D211,'Equity Analysis'!D238, 'Equity Analysis'!Q12, 'Equity Analysis'!D41, 'Equity Analysis'!Q41, 'Equity Analysis'!D69, 'Equity Analysis'!Q69, 'Equity Analysis'!D184, 'Data Extract Balance Sheet'!L267, 'Data Extract Balance Sheet'!L297), FALSE) -> 0 | G15: =IFERROR(CHOOSE($I$46, 'Equity Analysis'!E158,'Equity Analysis'!E211,'Equity Analysis'!E238, 'Equity Analysis'!R12, 'Equity Analysis'!E41, 'Equity Analysis'!R41, 'Equity Analysis'!E69, 'Equity Analysis'!R69, 'Equity Analysis'!E184, 'Data Extract Balance Sheet'!M267, 'Data Extract Balance Sheet'!M297), FALSE) -> 0 | H15: =IFERROR(CHOOSE($I$46, 'Equity Analysis'!F158,'Equity Analysis'!F211,'Equity Analysis'!F238, 'Equity Analysis'!S12, 'Equity Analysis'!F41, 'Equity Analysis'!S41, 'Equity Analysis'!F69, 'Equity Analysis'!S69, 'Equity Analysis'!F184, 'Data Extract Balance Sheet'!N267, 'Data Extract Balance Sheet'!N297), FALSE) -> 0 | I15: =IFERROR(CHOOSE($I$46, 'Equity Analysis'!G158,'Equity Analysis'!G211,'Equity Analysis'!G238, 'Equity Analysis'!T12, 'Equity Analysis'!G41, 'Equity Analysis'!T41, 'Equity Analysis'!G69, 'Equity Analysis'!T69, 'Equity Analysis'!G184, 'Data Extract Balance Sheet'!O267, 'Data Extract Balance Sheet'!O297), FALSE) -> 0 | J15: =IFERROR(CHOOSE($I$46, 'Equity Analysis'!H158,'Equity Analysis'!H211,'Equity Analysis'!H238, 'Equity Analysis'!U12, 'Equity Analysis'!H41, 'Equity Analysis'!U41, 'Equity Analysis'!H69, 'Equity Analysis'!U69, 'Equity Analysis'!H184, 'Data Extract Balance Sheet'!P267, 'Data Extract Balance Sheet'!P297), FALSE) -> 0 | K15: =IFERROR(CHOOSE($I$46, 'Equity Analysis'!I158,'Equity Analysis'!I211,'Equity Analysis'!I238, 'Equity Analysis'!V12, 'Equity Analysis'!I41, 'Equity Analysis'!V41, 'Equity Analysis'!I69, 'Equity Analysis'!V69, 'Equity Analysis'!I184, 'Data Extract Balance Sheet'!Q267, 'Data Extract Balance Sheet'!Q297), FALSE) -> 0 | L15: =IFERROR(CHOOSE($I$46, 'Equity Analysis'!J158,'Equity Analysis'!J211,'Equity Analysis'!J238, 'Equity Analysis'!W12, 'Equity Analysis'!J41, 'Equity Analysis'!W41, 'Equity Analysis'!J69, 'Equity Analysis'!W69, 'Equity Analysis'!J184, 'Data Extract Balance Sheet'!R267, 'Data Extract Balance Sheet'!R297), FALSE) -> 0 | M15: =IFERROR(CHOOSE($I$46, 'Equity Analysis'!K158,'Equity Analysis'!K211,'Equity Analysis'!K238, 'Equity Analysis'!X12, 'Equity Analysis'!K41, 'Equity Analysis'!X41, 'Equity Analysis'!K69, 'Equity Analysis'!X69, 'Equity Analysis'!K184, 'Data Extract Balance Sheet'!S267, 'Data Extract Balance Sheet'!S297), FALSE) -> FALSE | N15: =IFERROR(CHOOSE($I$46, 'Equity Analysis'!L158,'Equity Analysis'!L211,'Equity Analysis'!L238, 'Equity Analysis'!Y12, 'Equity Analysis'!L41, 'Equity Analysis'!Y41, 'Equity Analysis'!L69, 'Equity Analysis'!Y69, 'Equity Analysis'!L184, 'Data Extract Balance Sheet'!T267, 'Data Extract Balance Sheet'!T297), FALSE) -> 15.22 | O15: FALSE | P15: 3 | R15: =R14+1 -> 2 | S15: =IFERROR(MATCH(R15,P:P,0),"") -> 9 | T15: Apple | V15: FALSE | W15: 0 | X15: 0 | Y15: 0 | Z15: 0 | AA15: 0 | AB15: 0 | AC15: 0 | AD15: FALSE | AE15: 16.43
C16: ='Data Current'!D19 -> E I du Pont de Nemours and Co | E16: =IFERROR(CHOOSE($I$46, 'Equity Analysis'!C159,'Equity Analysis'!C212,'Equity Analysis'!C239, 'Equity Analysis'!P13, 'Equity Analysis'!C42, 'Equity Analysis'!P42, 'Equity Analysis'!C70, 'Equity Analysis'!P70, 'Equity Analysis'!C185, 'Data Extract Balance Sheet'!K268, 'Data Extract Balance Sheet'!K298), FALSE) -> FALSE | F16: =IFERROR(CHOOSE($I$46, 'Equity Analysis'!D159,'Equity Analysis'!D212,'Equity Analysis'!D239, 'Equity Analysis'!Q13, 'Equity Analysis'!D42, 'Equity Analysis'!Q42, 'Equity Analysis'!D70, 'Equity Analysis'!Q70, 'Equity Analysis'!D185, 'Data Extract Balance Sheet'!L268, 'Data Extract Balance Sheet'!L298), FALSE) -> 0 | G16: =IFERROR(CHOOSE($I$46, 'Equity Analysis'!E159,'Equity Analysis'!E212,'Equity Analysis'!E239, 'Equity Analysis'!R13, 'Equity Analysis'!E42, 'Equity Analysis'!R42, 'Equity Analysis'!E70, 'Equity Analysis'!R70, 'Equity Analysis'!E185, 'Data Extract Balance Sheet'!M268, 'Data Extract Balance Sheet'!M298), FALSE) -> 0 | H16: =IFERROR(CHOOSE($I$46, 'Equity Analysis'!F159,'Equity Analysis'!F212,'Equity Analysis'!F239, 'Equity Analysis'!S13, 'Equity Analysis'!F42, 'Equity Analysis'!S42, 'Equity Analysis'!F70, 'Equity Analysis'!S70, 'Equity Analysis'!F185, 'Data Extract Balance Sheet'!N268, 'Data Extract Balance Sheet'!N298), FALSE) -> 0 | I16: =IFERROR(CHOOSE($I$46, 'Equity Analysis'!G159,'Equity Analysis'!G212,'Equity Analysis'!G239, 'Equity Analysis'!T13, 'Equity Analysis'!G42, 'Equity Analysis'!T42, 'Equity Analysis'!G70, 'Equity Analysis'!T70, 'Equity Analysis'!G185, 'Data Extract Balance Sheet'!O268, 'Data Extract Balance Sheet'!O298), FALSE) -> 0 | J16: =IFERROR(CHOOSE($I$46, 'Equity Analysis'!H159,'Equity Analysis'!H212,'Equity Analysis'!H239, 'Equity Analysis'!U13, 'Equity Analysis'!H42, 'Equity Analysis'!U42, 'Equity Analysis'!H70, 'Equity Analysis'!U70, 'Equity Analysis'!H185, 'Data Extract Balance Sheet'!P268, 'Data Extract Balance Sheet'!P298), FALSE) -> 0 | K16: =IFERROR(CHOOSE($I$46, 'Equity Analysis'!I159,'Equity Analysis'!I212,'Equity Analysis'!I239, 'Equity Analysis'!V13, 'Equity Analysis'!I42, 'Equity Analysis'!V42, 'Equity Analysis'!I70, 'Equity Analysis'!V70, 'Equity Analysis'!I185, 'Data Extract Balance Sheet'!Q268, 'Data Extract Balance Sheet'!Q298), FALSE) -> 0 | L16: =IFERROR(CHOOSE($I$46, 'Equity Analysis'!J159,'Equity Analysis'!J212,'Equity Analysis'!J239, 'Equity Analysis'!W13, 'Equity Analysis'!J42, 'Equity Analysis'!W42, 'Equity Analysis'!J70, 'Equity Analysis'!W70, 'Equity Analysis'!J185, 'Data Extract Balance Sheet'!R268, 'Data Extract Balance Sheet'!R298), FALSE) -> 0 | M16: =IFERROR(CHOOSE($I$46, 'Equity Analysis'!K159,'Equity Analysis'!K212,'Equity Analysis'!K239, 'Equity Analysis'!X13, 'Equity Analysis'!K42, 'Equity Analysis'!X42, 'Equity Analysis'!K70, 'Equity Analysis'!X70, 'Equity Analysis'!K185, 'Data Extract Balance Sheet'!S268, 'Data Extract Balance Sheet'!S298), FALSE) -> FALSE | N16: =IFERROR(CHOOSE($I$46, 'Equity Analysis'!L159,'Equity Analysis'!L212,'Equity Analysis'!L239, 'Equity Analysis'!Y13, 'Equity Analysis'!L42, 'Equity Analysis'!Y42, 'Equity Analysis'!L70, 'Equity Analysis'!Y70, 'Equity Analysis'!L185, 'Data Extract Balance Sheet'!T268, 'Data Extract Balance Sheet'!T298), FALSE) -> 14.43 | O16: FALSE | P16: 3 | R16: =R15+1 -> 3 | S16: =IFERROR(MATCH(R16,P:P,0),"") -> 10 | T16: Boeing | V16: =IFERROR(INDEX(E:E,$S16),"") -> FALSE | W16: 0 | X16: 0 | Y16: 0 | Z16: 0 | AA16: 0 | AB16: 0 | AC16: 0 | AD16: FALSE | AE16: 20.07
C17: ='Data Current'!D20 -> Exxon Mobil | E17: =IFERROR(CHOOSE($I$46, 'Equity Analysis'!C160,'Equity Analysis'!C213,'Equity Analysis'!C240, 'Equity Analysis'!P14, 'Equity Analysis'!C43, 'Equity Analysis'!P43, 'Equity Analysis'!C71, 'Equity Analysis'!P71, 'Equity Analysis'!C186, 'Data Extract Balance Sheet'!K269, 'Data Extract Balance Sheet'!K299), FALSE) -> FALSE | F17: =IFERROR(CHOOSE($I$46, 'Equity Analysis'!D160,'Equity Analysis'!D213,'Equity Analysis'!D240, 'Equity Analysis'!Q14, 'Equity Analysis'!D43, 'Equity Analysis'!Q43, 'Equity Analysis'!D71, 'Equity Analysis'!Q71, 'Equity Analysis'!D186, 'Data Extract Balance Sheet'!L269, 'Data Extract Balance Sheet'!L299), FALSE) -> 0 | G17: =IFERROR(CHOOSE($I$46, 'Equity Analysis'!E160,'Equity Analysis'!E213,'Equity Analysis'!E240, 'Equity Analysis'!R14, 'Equity Analysis'!E43, 'Equity Analysis'!R43, 'Equity Analysis'!E71, 'Equity Analysis'!R71, 'Equity Analysis'!E186, 'Data Extract Balance Sheet'!M269, 'Data Extract Balance Sheet'!M299), FALSE) -> 0 | H17: =IFERROR(CHOOSE($I$46, 'Equity Analysis'!F160,'Equity Analysis'!F213,'Equity Analysis'!F240, 'Equity Analysis'!S14, 'Equity Analysis'!F43, 'Equity Analysis'!S43, 'Equity Analysis'!F71, 'Equity Analysis'!S71, 'Equity Analysis'!F186, 'Data Extract Balance Sheet'!N269, 'Data Extract Balance Sheet'!N299), FALSE) -> 0 | I17: =IFERROR(CHOOSE($I$46, 'Equity Analysis'!G160,'Equity Analysis'!G213,'Equity Analysis'!G240, 'Equity Analysis'!T14, 'Equity Analysis'!G43, 'Equity Analysis'!T43, 'Equity Analysis'!G71, 'Equity Analysis'!T71, 'Equity Analysis'!G186, 'Data Extract Balance Sheet'!O269, 'Data Extract Balance Sheet'!O299), FALSE) -> 0 | J17: =IFERROR(CHOOSE($I$46, 'Equity Analysis'!H160,'Equity Analysis'!H213,'Equity Analysis'!H240, 'Equity Analysis'!U14, 'Equity Analysis'!H43, 'Equity Analysis'!U43, 'Equity Analysis'!H71, 'Equity Analysis'!U71, 'Equity Analysis'!H186, 'Data Extract Balance Sheet'!P269, 'Data Extract Balance Sheet'!P299), FALSE) -> 0 | K17: =IFERROR(CHOOSE($I$46, 'Equity Analysis'!I160,'Equity Analysis'!I213,'Equity Analysis'!I240, 'Equity Analysis'!V14, 'Equity Analysis'!I43, 'Equity Analysis'!V43, 'Equity Analysis'!I71, 'Equity Analysis'!V71, 'Equity Analysis'!I186, 'Data Extract Balance Sheet'!Q269, 'Data Extract Balance Sheet'!Q299), FALSE) -> 0 | L17: =IFERROR(CHOOSE($I$46, 'Equity Analysis'!J160,'Equity Analysis'!J213,'Equity Analysis'!J240, 'Equity Analysis'!W14, 'Equity Analysis'!J43, 'Equity Analysis'!W43, 'Equity Analysis'!J71, 'Equity Analysis'!W71, 'Equity Analysis'!J186, 'Data Extract Balance Sheet'!R269, 'Data Extract Balance Sheet'!R299), FALSE) -> 0 | M17: =IFERROR(CHOOSE($I$46, 'Equity Analysis'!K160,'Equity Analysis'!K213,'Equity Analysis'!K240, 'Equity Analysis'!X14, 'Equity Analysis'!K43, 'Equity Analysis'!X43, 'Equity Analysis'!K71, 'Equity Analysis'!X71, 'Equity Analysis'!K186, 'Data Extract Balance Sheet'!S269, 'Data Extract Balance Sheet'!S299), FALSE) -> FALSE | N17: =IFERROR(CHOOSE($I$46, 'Equity Analysis'!L160,'Equity Analysis'!L213,'Equity Analysis'!L240, 'Equity Analysis'!Y14, 'Equity Analysis'!L43, 'Equity Analysis'!Y43, 'Equity Analysis'!L71, 'Equity Analysis'!Y71, 'Equity Analysis'!L186, 'Data Extract Balance Sheet'!T269, 'Data Extract Balance Sheet'!T299), FALSE) -> 14.64 | O17: FALSE | P17: 3 | R17: 4
C18: ='Data Current'!D21 -> General Electric | E18: =IFERROR(CHOOSE($I$46, 'Equity Analysis'!C161,'Equity Analysis'!C214,'Equity Analysis'!C241, 'Equity Analysis'!P15, 'Equity Analysis'!C44, 'Equity Analysis'!P44, 'Equity Analysis'!C72, 'Equity Analysis'!P72, 'Equity Analysis'!C187, 'Data Extract Balance Sheet'!K270, 'Data Extract Balance Sheet'!K300), FALSE) -> FALSE | F18: =IFERROR(CHOOSE($I$46, 'Equity Analysis'!D161,'Equity Analysis'!D214,'Equity Analysis'!D241, 'Equity Analysis'!Q15, 'Equity Analysis'!D44, 'Equity Analysis'!Q44, 'Equity Analysis'!D72, 'Equity Analysis'!Q72, 'Equity Analysis'!D187, 'Data Extract Balance Sheet'!L270, 'Data Extract Balance Sheet'!L300), FALSE) -> 0 | G18: =IFERROR(CHOOSE($I$46, 'Equity Analysis'!E161,'Equity Analysis'!E214,'Equity Analysis'!E241, 'Equity Analysis'!R15, 'Equity Analysis'!E44, 'Equity Analysis'!R44, 'Equity Analysis'!E72, 'Equity Analysis'!R72, 'Equity Analysis'!E187, 'Data Extract Balance Sheet'!M270, 'Data Extract Balance Sheet'!M300), FALSE) -> 0 | H18: =IFERROR(CHOOSE($I$46, 'Equity Analysis'!F161,'Equity Analysis'!F214,'Equity Analysis'!F241, 'Equity Analysis'!S15, 'Equity Analysis'!F44, 'Equity Analysis'!S44, 'Equity Analysis'!F72, 'Equity Analysis'!S72, 'Equity Analysis'!F187, 'Data Extract Balance Sheet'!N270, 'Data Extract Balance Sheet'!N300), FALSE) -> 0 | I18: =IFERROR(CHOOSE($I$46, 'Equity Analysis'!G161,'Equity Analysis'!G214,'Equity Analysis'!G241, 'Equity Analysis'!T15, 'Equity Analysis'!G44, 'Equity Analysis'!T44, 'Equity Analysis'!G72, 'Equity Analysis'!T72, 'Equity Analysis'!G187, 'Data Extract Balance Sheet'!O270, 'Data Extract Balance Sheet'!O300), FALSE) -> 0 | J18: =IFERROR(CHOOSE($I$46, 'Equity Analysis'!H161,'Equity Analysis'!H214,'Equity Analysis'!H241, 'Equity Analysis'!U15, 'Equity Analysis'!H44, 'Equity Analysis'!U44, 'Equity Analysis'!H72, 'Equity Analysis'!U72, 'Equity Analysis'!H187, 'Data Extract Balance Sheet'!P270, 'Data Extract Balance Sheet'!P300), FALSE) -> 0 | K18: =IFERROR(CHOOSE($I$46, 'Equity Analysis'!I161,'Equity Analysis'!I214,'Equity Analysis'!I241, 'Equity Analysis'!V15, 'Equity Analysis'!I44, 'Equity Analysis'!V44, 'Equity Analysis'!I72, 'Equity Analysis'!V72, 'Equity Analysis'!I187, 'Data Extract Balance Sheet'!Q270, 'Data Extract Balance Sheet'!Q300), FALSE) -> 0 | L18: =IFERROR(CHOOSE($I$46, 'Equity Analysis'!J161,'Equity Analysis'!J214,'Equity Analysis'!J241, 'Equity Analysis'!W15, 'Equity Analysis'!J44, 'Equity Analysis'!W44, 'Equity Analysis'!J72, 'Equity Analysis'!W72, 'Equity Analysis'!J187, 'Data Extract Balance Sheet'!R270, 'Data Extract Balance Sheet'!R300), FALSE) -> 0 | M18: =IFERROR(CHOOSE($I$46, 'Equity Analysis'!K161,'Equity Analysis'!K214,'Equity Analysis'!K241, 'Equity Analysis'!X15, 'Equity Analysis'!K44, 'Equity Analysis'!X44, 'Equity Analysis'!K72, 'Equity Analysis'!X72, 'Equity Analysis'!K187, 'Data Extract Balance Sheet'!S270, 'Data Extract Balance Sheet'!S300), FALSE) -> FALSE | N18: =IFERROR(CHOOSE($I$46, 'Equity Analysis'!L161,'Equity Analysis'!L214,'Equity Analysis'!L241, 'Equity Analysis'!Y15, 'Equity Analysis'!L44, 'Equity Analysis'!Y44, 'Equity Analysis'!L72, 'Equity Analysis'!Y72, 'Equity Analysis'!L187, 'Data Extract Balance Sheet'!T270, 'Data Extract Balance Sheet'!T300), FALSE) -> 12.51 | O18: FALSE | P18: 3 | R18: 5 | S18: =IFERROR(MATCH(R18,P:P,0),"") -> 
C19: ='Data Current'!D22 -> Home Depot | E19: =IFERROR(CHOOSE($I$46, 'Equity Analysis'!C162,'Equity Analysis'!C215,'Equity Analysis'!C242, 'Equity Analysis'!P16, 'Equity Analysis'!C45, 'Equity Analysis'!P45, 'Equity Analysis'!C73, 'Equity Analysis'!P73, 'Equity Analysis'!C188, 'Data Extract Balance Sheet'!K271, 'Data Extract Balance Sheet'!K301), FALSE) -> FALSE | F19: =IFERROR(CHOOSE($I$46, 'Equity Analysis'!D162,'Equity Analysis'!D215,'Equity Analysis'!D242, 'Equity Analysis'!Q16, 'Equity Analysis'!D45, 'Equity Analysis'!Q45, 'Equity Analysis'!D73, 'Equity Analysis'!Q73, 'Equity Analysis'!D188, 'Data Extract Balance Sheet'!L271, 'Data Extract Balance Sheet'!L301), FALSE) -> 0 | G19: =IFERROR(CHOOSE($I$46, 'Equity Analysis'!E162,'Equity Analysis'!E215,'Equity Analysis'!E242, 'Equity Analysis'!R16, 'Equity Analysis'!E45, 'Equity Analysis'!R45, 'Equity Analysis'!E73, 'Equity Analysis'!R73, 'Equity Analysis'!E188, 'Data Extract Balance Sheet'!M271, 'Data Extract Balance Sheet'!M301), FALSE) -> 0 | H19: =IFERROR(CHOOSE($I$46, 'Equity Analysis'!F162,'Equity Analysis'!F215,'Equity Analysis'!F242, 'Equity Analysis'!S16, 'Equity Analysis'!F45, 'Equity Analysis'!S45, 'Equity Analysis'!F73, 'Equity Analysis'!S73, 'Equity Analysis'!F188, 'Data Extract Balance Sheet'!N271, 'Data Extract Balance Sheet'!N301), FALSE) -> 0 | I19: =IFERROR(CHOOSE($I$46, 'Equity Analysis'!G162,'Equity Analysis'!G215,'Equity Analysis'!G242, 'Equity Analysis'!T16, 'Equity Analysis'!G45, 'Equity Analysis'!T45, 'Equity Analysis'!G73, 'Equity Analysis'!T73, 'Equity Analysis'!G188, 'Data Extract Balance Sheet'!O271, 'Data Extract Balance Sheet'!O301), FALSE) -> 0 | J19: =IFERROR(CHOOSE($I$46, 'Equity Analysis'!H162,'Equity Analysis'!H215,'Equity Analysis'!H242, 'Equity Analysis'!U16, 'Equity Analysis'!H45, 'Equity Analysis'!U45, 'Equity Analysis'!H73, 'Equity Analysis'!U73, 'Equity Analysis'!H188, 'Data Extract Balance Sheet'!P271, 'Data Extract Balance Sheet'!P301), FALSE) -> 0 | K19: =IFERROR(CHOOSE($I$46, 'Equity Analysis'!I162,'Equity Analysis'!I215,'Equity Analysis'!I242, 'Equity Analysis'!V16, 'Equity Analysis'!I45, 'Equity Analysis'!V45, 'Equity Analysis'!I73, 'Equity Analysis'!V73, 'Equity Analysis'!I188, 'Data Extract Balance Sheet'!Q271, 'Data Extract Balance Sheet'!Q301), FALSE) -> 0 | L19: =IFERROR(CHOOSE($I$46, 'Equity Analysis'!J162,'Equity Analysis'!J215,'Equity Analysis'!J242, 'Equity Analysis'!W16, 'Equity Analysis'!J45, 'Equity Analysis'!W45, 'Equity Analysis'!J73, 'Equity Analysis'!W73, 'Equity Analysis'!J188, 'Data Extract Balance Sheet'!R271, 'Data Extract Balance Sheet'!R301), FALSE) -> 0 | M19: =IFERROR(CHOOSE($I$46, 'Equity Analysis'!K162,'Equity Analysis'!K215,'Equity Analysis'!K242, 'Equity Analysis'!X16, 'Equity Analysis'!K45, 'Equity Analysis'!X45, 'Equity Analysis'!K73, 'Equity Analysis'!X73, 'Equity Analysis'!K188, 'Data Extract Balance Sheet'!S271, 'Data Extract Balance Sheet'!S301), FALSE) -> FALSE | N19: =IFERROR(CHOOSE($I$46, 'Equity Analysis'!L162,'Equity Analysis'!L215,'Equity Analysis'!L242, 'Equity Analysis'!Y16, 'Equity Analysis'!L45, 'Equity Analysis'!Y45, 'Equity Analysis'!L73, 'Equity Analysis'!Y73, 'Equity Analysis'!L188, 'Data Extract Balance Sheet'!T271, 'Data Extract Balance Sheet'!T301), FALSE) -> 19.69 | O19: FALSE | P19: 3 | R19: 6
C20: ='Data Current'!D23 -> IBM | E20: =IFERROR(CHOOSE($I$46, 'Equity Analysis'!C163,'Equity Analysis'!C216,'Equity Analysis'!C243, 'Equity Analysis'!P17, 'Equity Analysis'!C46, 'Equity Analysis'!P46, 'Equity Analysis'!C74, 'Equity Analysis'!P74, 'Equity Analysis'!C189, 'Data Extract Balance Sheet'!K272, 'Data Extract Balance Sheet'!K302), FALSE) -> FALSE | F20: =IFERROR(CHOOSE($I$46, 'Equity Analysis'!D163,'Equity Analysis'!D216,'Equity Analysis'!D243, 'Equity Analysis'!Q17, 'Equity Analysis'!D46, 'Equity Analysis'!Q46, 'Equity Analysis'!D74, 'Equity Analysis'!Q74, 'Equity Analysis'!D189, 'Data Extract Balance Sheet'!L272, 'Data Extract Balance Sheet'!L302), FALSE) -> 0 | G20: =IFERROR(CHOOSE($I$46, 'Equity Analysis'!E163,'Equity Analysis'!E216,'Equity Analysis'!E243, 'Equity Analysis'!R17, 'Equity Analysis'!E46, 'Equity Analysis'!R46, 'Equity Analysis'!E74, 'Equity Analysis'!R74, 'Equity Analysis'!E189, 'Data Extract Balance Sheet'!M272, 'Data Extract Balance Sheet'!M302), FALSE) -> 0 | H20: =IFERROR(CHOOSE($I$46, 'Equity Analysis'!F163,'Equity Analysis'!F216,'Equity Analysis'!F243, 'Equity Analysis'!S17, 'Equity Analysis'!F46, 'Equity Analysis'!S46, 'Equity Analysis'!F74, 'Equity Analysis'!S74, 'Equity Analysis'!F189, 'Data Extract Balance Sheet'!N272, 'Data Extract Balance Sheet'!N302), FALSE) -> 0 | I20: =IFERROR(CHOOSE($I$46, 'Equity Analysis'!G163,'Equity Analysis'!G216,'Equity Analysis'!G243, 'Equity Analysis'!T17, 'Equity Analysis'!G46, 'Equity Analysis'!T46, 'Equity Analysis'!G74, 'Equity Analysis'!T74, 'Equity Analysis'!G189, 'Data Extract Balance Sheet'!O272, 'Data Extract Balance Sheet'!O302), FALSE) -> 0 | J20: =IFERROR(CHOOSE($I$46, 'Equity Analysis'!H163,'Equity Analysis'!H216,'Equity Analysis'!H243, 'Equity Analysis'!U17, 'Equity Analysis'!H46, 'Equity Analysis'!U46, 'Equity Analysis'!H74, 'Equity Analysis'!U74, 'Equity Analysis'!H189, 'Data Extract Balance Sheet'!P272, 'Data Extract Balance Sheet'!P302), FALSE) -> 0 | K20: =IFERROR(CHOOSE($I$46, 'Equity Analysis'!I163,'Equity Analysis'!I216,'Equity Analysis'!I243, 'Equity Analysis'!V17, 'Equity Analysis'!I46, 'Equity Analysis'!V46, 'Equity Analysis'!I74, 'Equity Analysis'!V74, 'Equity Analysis'!I189, 'Data Extract Balance Sheet'!Q272, 'Data Extract Balance Sheet'!Q302), FALSE) -> 0 | L20: =IFERROR(CHOOSE($I$46, 'Equity Analysis'!J163,'Equity Analysis'!J216,'Equity Analysis'!J243, 'Equity Analysis'!W17, 'Equity Analysis'!J46, 'Equity Analysis'!W46, 'Equity Analysis'!J74, 'Equity Analysis'!W74, 'Equity Analysis'!J189, 'Data Extract Balance Sheet'!R272, 'Data Extract Balance Sheet'!R302), FALSE) -> 0 | M20: =IFERROR(CHOOSE($I$46, 'Equity Analysis'!K163,'Equity Analysis'!K216,'Equity Analysis'!K243, 'Equity Analysis'!X17, 'Equity Analysis'!K46, 'Equity Analysis'!X46, 'Equity Analysis'!K74, 'Equity Analysis'!X74, 'Equity Analysis'!K189, 'Data Extract Balance Sheet'!S272, 'Data Extract Balance Sheet'!S302), FALSE) -> FALSE | N20: =IFERROR(CHOOSE($I$46, 'Equity Analysis'!L163,'Equity Analysis'!L216,'Equity Analysis'!L243, 'Equity Analysis'!Y17, 'Equity Analysis'!L46, 'Equity Analysis'!Y46, 'Equity Analysis'!L74, 'Equity Analysis'!Y74, 'Equity Analysis'!L189, 'Data Extract Balance Sheet'!T272, 'Data Extract Balance Sheet'!T302), FALSE) -> 10.45 | O20: FALSE | P20: 3 | R20: 7
C21: ='Data Current'!D24 -> Intel | E21: =IFERROR(CHOOSE($I$46, 'Equity Analysis'!C164,'Equity Analysis'!C217,'Equity Analysis'!C244, 'Equity Analysis'!P18, 'Equity Analysis'!C47, 'Equity Analysis'!P47, 'Equity Analysis'!C75, 'Equity Analysis'!P75, 'Equity Analysis'!C190, 'Data Extract Balance Sheet'!K273, 'Data Extract Balance Sheet'!K303), FALSE) -> FALSE | F21: =IFERROR(CHOOSE($I$46, 'Equity Analysis'!D164,'Equity Analysis'!D217,'Equity Analysis'!D244, 'Equity Analysis'!Q18, 'Equity Analysis'!D47, 'Equity Analysis'!Q47, 'Equity Analysis'!D75, 'Equity Analysis'!Q75, 'Equity Analysis'!D190, 'Data Extract Balance Sheet'!L273, 'Data Extract Balance Sheet'!L303), FALSE) -> 0 | G21: =IFERROR(CHOOSE($I$46, 'Equity Analysis'!E164,'Equity Analysis'!E217,'Equity Analysis'!E244, 'Equity Analysis'!R18, 'Equity Analysis'!E47, 'Equity Analysis'!R47, 'Equity Analysis'!E75, 'Equity Analysis'!R75, 'Equity Analysis'!E190, 'Data Extract Balance Sheet'!M273, 'Data Extract Balance Sheet'!M303), FALSE) -> 0 | H21: =IFERROR(CHOOSE($I$46, 'Equity Analysis'!F164,'Equity Analysis'!F217,'Equity Analysis'!F244, 'Equity Analysis'!S18, 'Equity Analysis'!F47, 'Equity Analysis'!S47, 'Equity Analysis'!F75, 'Equity Analysis'!S75, 'Equity Analysis'!F190, 'Data Extract Balance Sheet'!N273, 'Data Extract Balance Sheet'!N303), FALSE) -> 0 | I21: =IFERROR(CHOOSE($I$46, 'Equity Analysis'!G164,'Equity Analysis'!G217,'Equity Analysis'!G244, 'Equity Analysis'!T18, 'Equity Analysis'!G47, 'Equity Analysis'!T47, 'Equity Analysis'!G75, 'Equity Analysis'!T75, 'Equity Analysis'!G190, 'Data Extract Balance Sheet'!O273, 'Data Extract Balance Sheet'!O303), FALSE) -> 0 | J21: =IFERROR(CHOOSE($I$46, 'Equity Analysis'!H164,'Equity Analysis'!H217,'Equity Analysis'!H244, 'Equity Analysis'!U18, 'Equity Analysis'!H47, 'Equity Analysis'!U47, 'Equity Analysis'!H75, 'Equity Analysis'!U75, 'Equity Analysis'!H190, 'Data Extract Balance Sheet'!P273, 'Data Extract Balance Sheet'!P303), FALSE) -> 0 | K21: =IFERROR(CHOOSE($I$46, 'Equity Analysis'!I164,'Equity Analysis'!I217,'Equity Analysis'!I244, 'Equity Analysis'!V18, 'Equity Analysis'!I47, 'Equity Analysis'!V47, 'Equity Analysis'!I75, 'Equity Analysis'!V75, 'Equity Analysis'!I190, 'Data Extract Balance Sheet'!Q273, 'Data Extract Balance Sheet'!Q303), FALSE) -> 0 | L21: =IFERROR(CHOOSE($I$46, 'Equity Analysis'!J164,'Equity Analysis'!J217,'Equity Analysis'!J244, 'Equity Analysis'!W18, 'Equity Analysis'!J47, 'Equity Analysis'!W47, 'Equity Analysis'!J75, 'Equity Analysis'!W75, 'Equity Analysis'!J190, 'Data Extract Balance Sheet'!R273, 'Data Extract Balance Sheet'!R303), FALSE) -> 0 | M21: =IFERROR(CHOOSE($I$46, 'Equity Analysis'!K164,'Equity Analysis'!K217,'Equity Analysis'!K244, 'Equity Analysis'!X18, 'Equity Analysis'!K47, 'Equity Analysis'!X47, 'Equity Analysis'!K75, 'Equity Analysis'!X75, 'Equity Analysis'!K190, 'Data Extract Balance Sheet'!S273, 'Data Extract Balance Sheet'!S303), FALSE) -> FALSE | N21: =IFERROR(CHOOSE($I$46, 'Equity Analysis'!L164,'Equity Analysis'!L217,'Equity Analysis'!L244, 'Equity Analysis'!Y18, 'Equity Analysis'!L47, 'Equity Analysis'!Y47, 'Equity Analysis'!L75, 'Equity Analysis'!Y75, 'Equity Analysis'!L190, 'Data Extract Balance Sheet'!T273, 'Data Extract Balance Sheet'!T303), FALSE) -> 11.32 | O21: FALSE | P21: 3 | R21: 8
C22: ='Data Current'!D25 -> Johnson & Johnson | E22: =IFERROR(CHOOSE($I$46, 'Equity Analysis'!C165,'Equity Analysis'!C218,'Equity Analysis'!C245, 'Equity Analysis'!P19, 'Equity Analysis'!C48, 'Equity Analysis'!P48, 'Equity Analysis'!C76, 'Equity Analysis'!P76, 'Equity Analysis'!C191, 'Data Extract Balance Sheet'!K274, 'Data Extract Balance Sheet'!K304), FALSE) -> FALSE | F22: =IFERROR(CHOOSE($I$46, 'Equity Analysis'!D165,'Equity Analysis'!D218,'Equity Analysis'!D245, 'Equity Analysis'!Q19, 'Equity Analysis'!D48, 'Equity Analysis'!Q48, 'Equity Analysis'!D76, 'Equity Analysis'!Q76, 'Equity Analysis'!D191, 'Data Extract Balance Sheet'!L274, 'Data Extract Balance Sheet'!L304), FALSE) -> 0 | G22: =IFERROR(CHOOSE($I$46, 'Equity Analysis'!E165,'Equity Analysis'!E218,'Equity Analysis'!E245, 'Equity Analysis'!R19, 'Equity Analysis'!E48, 'Equity Analysis'!R48, 'Equity Analysis'!E76, 'Equity Analysis'!R76, 'Equity Analysis'!E191, 'Data Extract Balance Sheet'!M274, 'Data Extract Balance Sheet'!M304), FALSE) -> 0 | H22: =IFERROR(CHOOSE($I$46, 'Equity Analysis'!F165,'Equity Analysis'!F218,'Equity Analysis'!F245, 'Equity Analysis'!S19, 'Equity Analysis'!F48, 'Equity Analysis'!S48, 'Equity Analysis'!F76, 'Equity Analysis'!S76, 'Equity Analysis'!F191, 'Data Extract Balance Sheet'!N274, 'Data Extract Balance Sheet'!N304), FALSE) -> 0 | I22: =IFERROR(CHOOSE($I$46, 'Equity Analysis'!G165,'Equity Analysis'!G218,'Equity Analysis'!G245, 'Equity Analysis'!T19, 'Equity Analysis'!G48, 'Equity Analysis'!T48, 'Equity Analysis'!G76, 'Equity Analysis'!T76, 'Equity Analysis'!G191, 'Data Extract Balance Sheet'!O274, 'Data Extract Balance Sheet'!O304), FALSE) -> 0 | J22: =IFERROR(CHOOSE($I$46, 'Equity Analysis'!H165,'Equity Analysis'!H218,'Equity Analysis'!H245, 'Equity Analysis'!U19, 'Equity Analysis'!H48, 'Equity Analysis'!U48, 'Equity Analysis'!H76, 'Equity Analysis'!U76, 'Equity Analysis'!H191, 'Data Extract Balance Sheet'!P274, 'Data Extract Balance Sheet'!P304), FALSE) -> 0 | K22: =IFERROR(CHOOSE($I$46, 'Equity Analysis'!I165,'Equity Analysis'!I218,'Equity Analysis'!I245, 'Equity Analysis'!V19, 'Equity Analysis'!I48, 'Equity Analysis'!V48, 'Equity Analysis'!I76, 'Equity Analysis'!V76, 'Equity Analysis'!I191, 'Data Extract Balance Sheet'!Q274, 'Data Extract Balance Sheet'!Q304), FALSE) -> 0 | L22: =IFERROR(CHOOSE($I$46, 'Equity Analysis'!J165,'Equity Analysis'!J218,'Equity Analysis'!J245, 'Equity Analysis'!W19, 'Equity Analysis'!J48, 'Equity Analysis'!W48, 'Equity Analysis'!J76, 'Equity Analysis'!W76, 'Equity Analysis'!J191, 'Data Extract Balance Sheet'!R274, 'Data Extract Balance Sheet'!R304), FALSE) -> 0 | M22: =IFERROR(CHOOSE($I$46, 'Equity Analysis'!K165,'Equity Analysis'!K218,'Equity Analysis'!K245, 'Equity Analysis'!X19, 'Equity Analysis'!K48, 'Equity Analysis'!X48, 'Equity Analysis'!K76, 'Equity Analysis'!X76, 'Equity Analysis'!K191, 'Data Extract Balance Sheet'!S274, 'Data Extract Balance Sheet'!S304), FALSE) -> FALSE | N22: =IFERROR(CHOOSE($I$46, 'Equity Analysis'!L165,'Equity Analysis'!L218,'Equity Analysis'!L245, 'Equity Analysis'!Y19, 'Equity Analysis'!L48, 'Equity Analysis'!Y48, 'Equity Analysis'!L76, 'Equity Analysis'!Y76, 'Equity Analysis'!L191, 'Data Extract Balance Sheet'!T274, 'Data Extract Balance Sheet'!T304), FALSE) -> 15.62 | O22: FALSE | P22: 3 | R22: 9
C23: ='Data Current'!D26 -> McDonald's | E23: =IFERROR(CHOOSE($I$46, 'Equity Analysis'!C166,'Equity Analysis'!C219,'Equity Analysis'!C246, 'Equity Analysis'!P20, 'Equity Analysis'!C49, 'Equity Analysis'!P49, 'Equity Analysis'!C77, 'Equity Analysis'!P77, 'Equity Analysis'!C192, 'Data Extract Balance Sheet'!K275, 'Data Extract Balance Sheet'!K305), FALSE) -> FALSE | F23: =IFERROR(CHOOSE($I$46, 'Equity Analysis'!D166,'Equity Analysis'!D219,'Equity Analysis'!D246, 'Equity Analysis'!Q20, 'Equity Analysis'!D49, 'Equity Analysis'!Q49, 'Equity Analysis'!D77, 'Equity Analysis'!Q77, 'Equity Analysis'!D192, 'Data Extract Balance Sheet'!L275, 'Data Extract Balance Sheet'!L305), FALSE) -> 0 | G23: =IFERROR(CHOOSE($I$46, 'Equity Analysis'!E166,'Equity Analysis'!E219,'Equity Analysis'!E246, 'Equity Analysis'!R20, 'Equity Analysis'!E49, 'Equity Analysis'!R49, 'Equity Analysis'!E77, 'Equity Analysis'!R77, 'Equity Analysis'!E192, 'Data Extract Balance Sheet'!M275, 'Data Extract Balance Sheet'!M305), FALSE) -> 0 | H23: =IFERROR(CHOOSE($I$46, 'Equity Analysis'!F166,'Equity Analysis'!F219,'Equity Analysis'!F246, 'Equity Analysis'!S20, 'Equity Analysis'!F49, 'Equity Analysis'!S49, 'Equity Analysis'!F77, 'Equity Analysis'!S77, 'Equity Analysis'!F192, 'Data Extract Balance Sheet'!N275, 'Data Extract Balance Sheet'!N305), FALSE) -> 0 | I23: =IFERROR(CHOOSE($I$46, 'Equity Analysis'!G166,'Equity Analysis'!G219,'Equity Analysis'!G246, 'Equity Analysis'!T20, 'Equity Analysis'!G49, 'Equity Analysis'!T49, 'Equity Analysis'!G77, 'Equity Analysis'!T77, 'Equity Analysis'!G192, 'Data Extract Balance Sheet'!O275, 'Data Extract Balance Sheet'!O305), FALSE) -> 0 | J23: =IFERROR(CHOOSE($I$46, 'Equity Analysis'!H166,'Equity Analysis'!H219,'Equity Analysis'!H246, 'Equity Analysis'!U20, 'Equity Analysis'!H49, 'Equity Analysis'!U49, 'Equity Analysis'!H77, 'Equity Analysis'!U77, 'Equity Analysis'!H192, 'Data Extract Balance Sheet'!P275, 'Data Extract Balance Sheet'!P305), FALSE) -> 0 | K23: =IFERROR(CHOOSE($I$46, 'Equity Analysis'!I166,'Equity Analysis'!I219,'Equity Analysis'!I246, 'Equity Analysis'!V20, 'Equity Analysis'!I49, 'Equity Analysis'!V49, 'Equity Analysis'!I77, 'Equity Analysis'!V77, 'Equity Analysis'!I192, 'Data Extract Balance Sheet'!Q275, 'Data Extract Balance Sheet'!Q305), FALSE) -> 0 | L23: =IFERROR(CHOOSE($I$46, 'Equity Analysis'!J166,'Equity Analysis'!J219,'Equity Analysis'!J246, 'Equity Analysis'!W20, 'Equity Analysis'!J49, 'Equity Analysis'!W49, 'Equity Analysis'!J77, 'Equity Analysis'!W77, 'Equity Analysis'!J192, 'Data Extract Balance Sheet'!R275, 'Data Extract Balance Sheet'!R305), FALSE) -> 0 | M23: =IFERROR(CHOOSE($I$46, 'Equity Analysis'!K166,'Equity Analysis'!K219,'Equity Analysis'!K246, 'Equity Analysis'!X20, 'Equity Analysis'!K49, 'Equity Analysis'!X49, 'Equity Analysis'!K77, 'Equity Analysis'!X77, 'Equity Analysis'!K192, 'Data Extract Balance Sheet'!S275, 'Data Extract Balance Sheet'!S305), FALSE) -> FALSE | N23: =IFERROR(CHOOSE($I$46, 'Equity Analysis'!L166,'Equity Analysis'!L219,'Equity Analysis'!L246, 'Equity Analysis'!Y20, 'Equity Analysis'!L49, 'Equity Analysis'!Y49, 'Equity Analysis'!L77, 'Equity Analysis'!Y77, 'Equity Analysis'!L192, 'Data Extract Balance Sheet'!T275, 'Data Extract Balance Sheet'!T305), FALSE) -> 19.69 | O23: FALSE | P23: 3 | R23: 10
C24: ='Data Current'!D27 -> Merck | E24: =IFERROR(CHOOSE($I$46, 'Equity Analysis'!C167,'Equity Analysis'!C220,'Equity Analysis'!C247, 'Equity Analysis'!P21, 'Equity Analysis'!C50, 'Equity Analysis'!P50, 'Equity Analysis'!C78, 'Equity Analysis'!P78, 'Equity Analysis'!C193, 'Data Extract Balance Sheet'!K276, 'Data Extract Balance Sheet'!K306), FALSE) -> FALSE | F24: =IFERROR(CHOOSE($I$46, 'Equity Analysis'!D167,'Equity Analysis'!D220,'Equity Analysis'!D247, 'Equity Analysis'!Q21, 'Equity Analysis'!D50, 'Equity Analysis'!Q50, 'Equity Analysis'!D78, 'Equity Analysis'!Q78, 'Equity Analysis'!D193, 'Data Extract Balance Sheet'!L276, 'Data Extract Balance Sheet'!L306), FALSE) -> 0 | G24: =IFERROR(CHOOSE($I$46, 'Equity Analysis'!E167,'Equity Analysis'!E220,'Equity Analysis'!E247, 'Equity Analysis'!R21, 'Equity Analysis'!E50, 'Equity Analysis'!R50, 'Equity Analysis'!E78, 'Equity Analysis'!R78, 'Equity Analysis'!E193, 'Data Extract Balance Sheet'!M276, 'Data Extract Balance Sheet'!M306), FALSE) -> 0 | H24: =IFERROR(CHOOSE($I$46, 'Equity Analysis'!F167,'Equity Analysis'!F220,'Equity Analysis'!F247, 'Equity Analysis'!S21, 'Equity Analysis'!F50, 'Equity Analysis'!S50, 'Equity Analysis'!F78, 'Equity Analysis'!S78, 'Equity Analysis'!F193, 'Data Extract Balance Sheet'!N276, 'Data Extract Balance Sheet'!N306), FALSE) -> 0 | I24: =IFERROR(CHOOSE($I$46, 'Equity Analysis'!G167,'Equity Analysis'!G220,'Equity Analysis'!G247, 'Equity Analysis'!T21, 'Equity Analysis'!G50, 'Equity Analysis'!T50, 'Equity Analysis'!G78, 'Equity Analysis'!T78, 'Equity Analysis'!G193, 'Data Extract Balance Sheet'!O276, 'Data Extract Balance Sheet'!O306), FALSE) -> 0 | J24: =IFERROR(CHOOSE($I$46, 'Equity Analysis'!H167,'Equity Analysis'!H220,'Equity Analysis'!H247, 'Equity Analysis'!U21, 'Equity Analysis'!H50, 'Equity Analysis'!U50, 'Equity Analysis'!H78, 'Equity Analysis'!U78, 'Equity Analysis'!H193, 'Data Extract Balance Sheet'!P276, 'Data Extract Balance Sheet'!P306), FALSE) -> 0 | K24: =IFERROR(CHOOSE($I$46, 'Equity Analysis'!I167,'Equity Analysis'!I220,'Equity Analysis'!I247, 'Equity Analysis'!V21, 'Equity Analysis'!I50, 'Equity Analysis'!V50, 'Equity Analysis'!I78, 'Equity Analysis'!V78, 'Equity Analysis'!I193, 'Data Extract Balance Sheet'!Q276, 'Data Extract Balance Sheet'!Q306), FALSE) -> 0 | L24: =IFERROR(CHOOSE($I$46, 'Equity Analysis'!J167,'Equity Analysis'!J220,'Equity Analysis'!J247, 'Equity Analysis'!W21, 'Equity Analysis'!J50, 'Equity Analysis'!W50, 'Equity Analysis'!J78, 'Equity Analysis'!W78, 'Equity Analysis'!J193, 'Data Extract Balance Sheet'!R276, 'Data Extract Balance Sheet'!R306), FALSE) -> 0 | M24: =IFERROR(CHOOSE($I$46, 'Equity Analysis'!K167,'Equity Analysis'!K220,'Equity Analysis'!K247, 'Equity Analysis'!X21, 'Equity Analysis'!K50, 'Equity Analysis'!X50, 'Equity Analysis'!K78, 'Equity Analysis'!X78, 'Equity Analysis'!K193, 'Data Extract Balance Sheet'!S276, 'Data Extract Balance Sheet'!S306), FALSE) -> FALSE | N24: =IFERROR(CHOOSE($I$46, 'Equity Analysis'!L167,'Equity Analysis'!L220,'Equity Analysis'!L247, 'Equity Analysis'!Y21, 'Equity Analysis'!L50, 'Equity Analysis'!Y50, 'Equity Analysis'!L78, 'Equity Analysis'!Y78, 'Equity Analysis'!L193, 'Data Extract Balance Sheet'!T276, 'Data Extract Balance Sheet'!T306), FALSE) -> 15 | O24: FALSE | P24: 3 | R24: 11
C25: ='Data Current'!D28 -> Microsoft | E25: =IFERROR(CHOOSE($I$46, 'Equity Analysis'!C168,'Equity Analysis'!C221,'Equity Analysis'!C248, 'Equity Analysis'!P22, 'Equity Analysis'!C51, 'Equity Analysis'!P51, 'Equity Analysis'!C79, 'Equity Analysis'!P79, 'Equity Analysis'!C194, 'Data Extract Balance Sheet'!K277, 'Data Extract Balance Sheet'!K307), FALSE) -> FALSE | F25: =IFERROR(CHOOSE($I$46, 'Equity Analysis'!D168,'Equity Analysis'!D221,'Equity Analysis'!D248, 'Equity Analysis'!Q22, 'Equity Analysis'!D51, 'Equity Analysis'!Q51, 'Equity Analysis'!D79, 'Equity Analysis'!Q79, 'Equity Analysis'!D194, 'Data Extract Balance Sheet'!L277, 'Data Extract Balance Sheet'!L307), FALSE) -> 0 | G25: =IFERROR(CHOOSE($I$46, 'Equity Analysis'!E168,'Equity Analysis'!E221,'Equity Analysis'!E248, 'Equity Analysis'!R22, 'Equity Analysis'!E51, 'Equity Analysis'!R51, 'Equity Analysis'!E79, 'Equity Analysis'!R79, 'Equity Analysis'!E194, 'Data Extract Balance Sheet'!M277, 'Data Extract Balance Sheet'!M307), FALSE) -> 0 | H25: =IFERROR(CHOOSE($I$46, 'Equity Analysis'!F168,'Equity Analysis'!F221,'Equity Analysis'!F248, 'Equity Analysis'!S22, 'Equity Analysis'!F51, 'Equity Analysis'!S51, 'Equity Analysis'!F79, 'Equity Analysis'!S79, 'Equity Analysis'!F194, 'Data Extract Balance Sheet'!N277, 'Data Extract Balance Sheet'!N307), FALSE) -> 0 | I25: =IFERROR(CHOOSE($I$46, 'Equity Analysis'!G168,'Equity Analysis'!G221,'Equity Analysis'!G248, 'Equity Analysis'!T22, 'Equity Analysis'!G51, 'Equity Analysis'!T51, 'Equity Analysis'!G79, 'Equity Analysis'!T79, 'Equity Analysis'!G194, 'Data Extract Balance Sheet'!O277, 'Data Extract Balance Sheet'!O307), FALSE) -> 0 | J25: =IFERROR(CHOOSE($I$46, 'Equity Analysis'!H168,'Equity Analysis'!H221,'Equity Analysis'!H248, 'Equity Analysis'!U22, 'Equity Analysis'!H51, 'Equity Analysis'!U51, 'Equity Analysis'!H79, 'Equity Analysis'!U79, 'Equity Analysis'!H194, 'Data Extract Balance Sheet'!P277, 'Data Extract Balance Sheet'!P307), FALSE) -> 0 | K25: =IFERROR(CHOOSE($I$46, 'Equity Analysis'!I168,'Equity Analysis'!I221,'Equity Analysis'!I248, 'Equity Analysis'!V22, 'Equity Analysis'!I51, 'Equity Analysis'!V51, 'Equity Analysis'!I79, 'Equity Analysis'!V79, 'Equity Analysis'!I194, 'Data Extract Balance Sheet'!Q277, 'Data Extract Balance Sheet'!Q307), FALSE) -> 0 | L25: =IFERROR(CHOOSE($I$46, 'Equity Analysis'!J168,'Equity Analysis'!J221,'Equity Analysis'!J248, 'Equity Analysis'!W22, 'Equity Analysis'!J51, 'Equity Analysis'!W51, 'Equity Analysis'!J79, 'Equity Analysis'!W79, 'Equity Analysis'!J194, 'Data Extract Balance Sheet'!R277, 'Data Extract Balance Sheet'!R307), FALSE) -> 0 | M25: =IFERROR(CHOOSE($I$46, 'Equity Analysis'!K168,'Equity Analysis'!K221,'Equity Analysis'!K248, 'Equity Analysis'!X22, 'Equity Analysis'!K51, 'Equity Analysis'!X51, 'Equity Analysis'!K79, 'Equity Analysis'!X79, 'Equity Analysis'!K194, 'Data Extract Balance Sheet'!S277, 'Data Extract Balance Sheet'!S307), FALSE) -> FALSE | N25: =IFERROR(CHOOSE($I$46, 'Equity Analysis'!L168,'Equity Analysis'!L221,'Equity Analysis'!L248, 'Equity Analysis'!Y22, 'Equity Analysis'!L51, 'Equity Analysis'!Y51, 'Equity Analysis'!L79, 'Equity Analysis'!Y79, 'Equity Analysis'!L194, 'Data Extract Balance Sheet'!T277, 'Data Extract Balance Sheet'!T307), FALSE) -> 22.32 | O25: FALSE | P25: 3 | R25: 12
C26: ='Data Current'!D29 -> Nike | E26: =IFERROR(CHOOSE($I$46, 'Equity Analysis'!C169,'Equity Analysis'!C222,'Equity Analysis'!C249, 'Equity Analysis'!P23, 'Equity Analysis'!C52, 'Equity Analysis'!P52, 'Equity Analysis'!C80, 'Equity Analysis'!P80, 'Equity Analysis'!C195, 'Data Extract Balance Sheet'!K278, 'Data Extract Balance Sheet'!K308), FALSE) -> FALSE | F26: =IFERROR(CHOOSE($I$46, 'Equity Analysis'!D169,'Equity Analysis'!D222,'Equity Analysis'!D249, 'Equity Analysis'!Q23, 'Equity Analysis'!D52, 'Equity Analysis'!Q52, 'Equity Analysis'!D80, 'Equity Analysis'!Q80, 'Equity Analysis'!D195, 'Data Extract Balance Sheet'!L278, 'Data Extract Balance Sheet'!L308), FALSE) -> 0 | G26: =IFERROR(CHOOSE($I$46, 'Equity Analysis'!E169,'Equity Analysis'!E222,'Equity Analysis'!E249, 'Equity Analysis'!R23, 'Equity Analysis'!E52, 'Equity Analysis'!R52, 'Equity Analysis'!E80, 'Equity Analysis'!R80, 'Equity Analysis'!E195, 'Data Extract Balance Sheet'!M278, 'Data Extract Balance Sheet'!M308), FALSE) -> 0 | H26: =IFERROR(CHOOSE($I$46, 'Equity Analysis'!F169,'Equity Analysis'!F222,'Equity Analysis'!F249, 'Equity Analysis'!S23, 'Equity Analysis'!F52, 'Equity Analysis'!S52, 'Equity Analysis'!F80, 'Equity Analysis'!S80, 'Equity Analysis'!F195, 'Data Extract Balance Sheet'!N278, 'Data Extract Balance Sheet'!N308), FALSE) -> 0 | I26: =IFERROR(CHOOSE($I$46, 'Equity Analysis'!G169,'Equity Analysis'!G222,'Equity Analysis'!G249, 'Equity Analysis'!T23, 'Equity Analysis'!G52, 'Equity Analysis'!T52, 'Equity Analysis'!G80, 'Equity Analysis'!T80, 'Equity Analysis'!G195, 'Data Extract Balance Sheet'!O278, 'Data Extract Balance Sheet'!O308), FALSE) -> 0 | J26: =IFERROR(CHOOSE($I$46, 'Equity Analysis'!H169,'Equity Analysis'!H222,'Equity Analysis'!H249, 'Equity Analysis'!U23, 'Equity Analysis'!H52, 'Equity Analysis'!U52, 'Equity Analysis'!H80, 'Equity Analysis'!U80, 'Equity Analysis'!H195, 'Data Extract Balance Sheet'!P278, 'Data Extract Balance Sheet'!P308), FALSE) -> 0 | K26: =IFERROR(CHOOSE($I$46, 'Equity Analysis'!I169,'Equity Analysis'!I222,'Equity Analysis'!I249, 'Equity Analysis'!V23, 'Equity Analysis'!I52, 'Equity Analysis'!V52, 'Equity Analysis'!I80, 'Equity Analysis'!V80, 'Equity Analysis'!I195, 'Data Extract Balance Sheet'!Q278, 'Data Extract Balance Sheet'!Q308), FALSE) -> 0 | L26: =IFERROR(CHOOSE($I$46, 'Equity Analysis'!J169,'Equity Analysis'!J222,'Equity Analysis'!J249, 'Equity Analysis'!W23, 'Equity Analysis'!J52, 'Equity Analysis'!W52, 'Equity Analysis'!J80, 'Equity Analysis'!W80, 'Equity Analysis'!J195, 'Data Extract Balance Sheet'!R278, 'Data Extract Balance Sheet'!R308), FALSE) -> 0 | M26: =IFERROR(CHOOSE($I$46, 'Equity Analysis'!K169,'Equity Analysis'!K222,'Equity Analysis'!K249, 'Equity Analysis'!X23, 'Equity Analysis'!K52, 'Equity Analysis'!X52, 'Equity Analysis'!K80, 'Equity Analysis'!X80, 'Equity Analysis'!K195, 'Data Extract Balance Sheet'!S278, 'Data Extract Balance Sheet'!S308), FALSE) -> FALSE | N26: =IFERROR(CHOOSE($I$46, 'Equity Analysis'!L169,'Equity Analysis'!L222,'Equity Analysis'!L249, 'Equity Analysis'!Y23, 'Equity Analysis'!L52, 'Equity Analysis'!Y52, 'Equity Analysis'!L80, 'Equity Analysis'!Y80, 'Equity Analysis'!L195, 'Data Extract Balance Sheet'!T278, 'Data Extract Balance Sheet'!T308), FALSE) -> 26.38 | O26: FALSE | P26: 3 | R26: 13
C27: ='Data Current'!D30 -> Pfizer | E27: =IFERROR(CHOOSE($I$46, 'Equity Analysis'!C170,'Equity Analysis'!C223,'Equity Analysis'!C250, 'Equity Analysis'!P24, 'Equity Analysis'!C53, 'Equity Analysis'!P53, 'Equity Analysis'!C81, 'Equity Analysis'!P81, 'Equity Analysis'!C196, 'Data Extract Balance Sheet'!K279, 'Data Extract Balance Sheet'!K309), FALSE) -> FALSE | F27: =IFERROR(CHOOSE($I$46, 'Equity Analysis'!D170,'Equity Analysis'!D223,'Equity Analysis'!D250, 'Equity Analysis'!Q24, 'Equity Analysis'!D53, 'Equity Analysis'!Q53, 'Equity Analysis'!D81, 'Equity Analysis'!Q81, 'Equity Analysis'!D196, 'Data Extract Balance Sheet'!L279, 'Data Extract Balance Sheet'!L309), FALSE) -> 0 | G27: =IFERROR(CHOOSE($I$46, 'Equity Analysis'!E170,'Equity Analysis'!E223,'Equity Analysis'!E250, 'Equity Analysis'!R24, 'Equity Analysis'!E53, 'Equity Analysis'!R53, 'Equity Analysis'!E81, 'Equity Analysis'!R81, 'Equity Analysis'!E196, 'Data Extract Balance Sheet'!M279, 'Data Extract Balance Sheet'!M309), FALSE) -> 0 | H27: =IFERROR(CHOOSE($I$46, 'Equity Analysis'!F170,'Equity Analysis'!F223,'Equity Analysis'!F250, 'Equity Analysis'!S24, 'Equity Analysis'!F53, 'Equity Analysis'!S53, 'Equity Analysis'!F81, 'Equity Analysis'!S81, 'Equity Analysis'!F196, 'Data Extract Balance Sheet'!N279, 'Data Extract Balance Sheet'!N309), FALSE) -> 0 | I27: =IFERROR(CHOOSE($I$46, 'Equity Analysis'!G170,'Equity Analysis'!G223,'Equity Analysis'!G250, 'Equity Analysis'!T24, 'Equity Analysis'!G53, 'Equity Analysis'!T53, 'Equity Analysis'!G81, 'Equity Analysis'!T81, 'Equity Analysis'!G196, 'Data Extract Balance Sheet'!O279, 'Data Extract Balance Sheet'!O309), FALSE) -> 0 | J27: =IFERROR(CHOOSE($I$46, 'Equity Analysis'!H170,'Equity Analysis'!H223,'Equity Analysis'!H250, 'Equity Analysis'!U24, 'Equity Analysis'!H53, 'Equity Analysis'!U53, 'Equity Analysis'!H81, 'Equity Analysis'!U81, 'Equity Analysis'!H196, 'Data Extract Balance Sheet'!P279, 'Data Extract Balance Sheet'!P309), FALSE) -> 0 | K27: =IFERROR(CHOOSE($I$46, 'Equity Analysis'!I170,'Equity Analysis'!I223,'Equity Analysis'!I250, 'Equity Analysis'!V24, 'Equity Analysis'!I53, 'Equity Analysis'!V53, 'Equity Analysis'!I81, 'Equity Analysis'!V81, 'Equity Analysis'!I196, 'Data Extract Balance Sheet'!Q279, 'Data Extract Balance Sheet'!Q309), FALSE) -> 0 | L27: =IFERROR(CHOOSE($I$46, 'Equity Analysis'!J170,'Equity Analysis'!J223,'Equity Analysis'!J250, 'Equity Analysis'!W24, 'Equity Analysis'!J53, 'Equity Analysis'!W53, 'Equity Analysis'!J81, 'Equity Analysis'!W81, 'Equity Analysis'!J196, 'Data Extract Balance Sheet'!R279, 'Data Extract Balance Sheet'!R309), FALSE) -> 0 | M27: =IFERROR(CHOOSE($I$46, 'Equity Analysis'!K170,'Equity Analysis'!K223,'Equity Analysis'!K250, 'Equity Analysis'!X24, 'Equity Analysis'!K53, 'Equity Analysis'!X53, 'Equity Analysis'!K81, 'Equity Analysis'!X81, 'Equity Analysis'!K196, 'Data Extract Balance Sheet'!S279, 'Data Extract Balance Sheet'!S309), FALSE) -> FALSE | N27: =IFERROR(CHOOSE($I$46, 'Equity Analysis'!L170,'Equity Analysis'!L223,'Equity Analysis'!L250, 'Equity Analysis'!Y24, 'Equity Analysis'!L53, 'Equity Analysis'!Y53, 'Equity Analysis'!L81, 'Equity Analysis'!Y81, 'Equity Analysis'!L196, 'Data Extract Balance Sheet'!T279, 'Data Extract Balance Sheet'!T309), FALSE) -> 13.39 | O27: FALSE | P27: 3 | R27: 14
C28: ='Data Current'!D31 -> Procter & Gamble | E28: =IFERROR(CHOOSE($I$46, 'Equity Analysis'!C171,'Equity Analysis'!C224,'Equity Analysis'!C251, 'Equity Analysis'!P25, 'Equity Analysis'!C54, 'Equity Analysis'!P54, 'Equity Analysis'!C82, 'Equity Analysis'!P82, 'Equity Analysis'!C197, 'Data Extract Balance Sheet'!K280, 'Data Extract Balance Sheet'!K310), FALSE) -> FALSE | F28: =IFERROR(CHOOSE($I$46, 'Equity Analysis'!D171,'Equity Analysis'!D224,'Equity Analysis'!D251, 'Equity Analysis'!Q25, 'Equity Analysis'!D54, 'Equity Analysis'!Q54, 'Equity Analysis'!D82, 'Equity Analysis'!Q82, 'Equity Analysis'!D197, 'Data Extract Balance Sheet'!L280, 'Data Extract Balance Sheet'!L310), FALSE) -> 0 | G28: =IFERROR(CHOOSE($I$46, 'Equity Analysis'!E171,'Equity Analysis'!E224,'Equity Analysis'!E251, 'Equity Analysis'!R25, 'Equity Analysis'!E54, 'Equity Analysis'!R54, 'Equity Analysis'!E82, 'Equity Analysis'!R82, 'Equity Analysis'!E197, 'Data Extract Balance Sheet'!M280, 'Data Extract Balance Sheet'!M310), FALSE) -> 0 | H28: =IFERROR(CHOOSE($I$46, 'Equity Analysis'!F171,'Equity Analysis'!F224,'Equity Analysis'!F251, 'Equity Analysis'!S25, 'Equity Analysis'!F54, 'Equity Analysis'!S54, 'Equity Analysis'!F82, 'Equity Analysis'!S82, 'Equity Analysis'!F197, 'Data Extract Balance Sheet'!N280, 'Data Extract Balance Sheet'!N310), FALSE) -> 0 | I28: =IFERROR(CHOOSE($I$46, 'Equity Analysis'!G171,'Equity Analysis'!G224,'Equity Analysis'!G251, 'Equity Analysis'!T25, 'Equity Analysis'!G54, 'Equity Analysis'!T54, 'Equity Analysis'!G82, 'Equity Analysis'!T82, 'Equity Analysis'!G197, 'Data Extract Balance Sheet'!O280, 'Data Extract Balance Sheet'!O310), FALSE) -> 0 | J28: =IFERROR(CHOOSE($I$46, 'Equity Analysis'!H171,'Equity Analysis'!H224,'Equity Analysis'!H251, 'Equity Analysis'!U25, 'Equity Analysis'!H54, 'Equity Analysis'!U54, 'Equity Analysis'!H82, 'Equity Analysis'!U82, 'Equity Analysis'!H197, 'Data Extract Balance Sheet'!P280, 'Data Extract Balance Sheet'!P310), FALSE) -> 0 | K28: =IFERROR(CHOOSE($I$46, 'Equity Analysis'!I171,'Equity Analysis'!I224,'Equity Analysis'!I251, 'Equity Analysis'!V25, 'Equity Analysis'!I54, 'Equity Analysis'!V54, 'Equity Analysis'!I82, 'Equity Analysis'!V82, 'Equity Analysis'!I197, 'Data Extract Balance Sheet'!Q280, 'Data Extract Balance Sheet'!Q310), FALSE) -> 0 | L28: =IFERROR(CHOOSE($I$46, 'Equity Analysis'!J171,'Equity Analysis'!J224,'Equity Analysis'!J251, 'Equity Analysis'!W25, 'Equity Analysis'!J54, 'Equity Analysis'!W54, 'Equity Analysis'!J82, 'Equity Analysis'!W82, 'Equity Analysis'!J197, 'Data Extract Balance Sheet'!R280, 'Data Extract Balance Sheet'!R310), FALSE) -> 0 | M28: =IFERROR(CHOOSE($I$46, 'Equity Analysis'!K171,'Equity Analysis'!K224,'Equity Analysis'!K251, 'Equity Analysis'!X25, 'Equity Analysis'!K54, 'Equity Analysis'!X54, 'Equity Analysis'!K82, 'Equity Analysis'!X82, 'Equity Analysis'!K197, 'Data Extract Balance Sheet'!S280, 'Data Extract Balance Sheet'!S310), FALSE) -> FALSE | N28: =IFERROR(CHOOSE($I$46, 'Equity Analysis'!L171,'Equity Analysis'!L224,'Equity Analysis'!L251, 'Equity Analysis'!Y25, 'Equity Analysis'!L54, 'Equity Analysis'!Y54, 'Equity Analysis'!L82, 'Equity Analysis'!Y82, 'Equity Analysis'!L197, 'Data Extract Balance Sheet'!T280, 'Data Extract Balance Sheet'!T310), FALSE) -> 17.88 | O28: FALSE | P28: 3 | R28: 15
C29: ='Data Current'!D32 -> 0 | E29: =IFERROR(CHOOSE($I$46, 'Equity Analysis'!C172,'Equity Analysis'!C225,'Equity Analysis'!C252, 'Equity Analysis'!P26, 'Equity Analysis'!C55, 'Equity Analysis'!P55, 'Equity Analysis'!C83, 'Equity Analysis'!P83, 'Equity Analysis'!C198, 'Data Extract Balance Sheet'!K281, 'Data Extract Balance Sheet'!K311), FALSE) -> FALSE | F29: =IFERROR(CHOOSE($I$46, 'Equity Analysis'!D172,'Equity Analysis'!D225,'Equity Analysis'!D252, 'Equity Analysis'!Q26, 'Equity Analysis'!D55, 'Equity Analysis'!Q55, 'Equity Analysis'!D83, 'Equity Analysis'!Q83, 'Equity Analysis'!D198, 'Data Extract Balance Sheet'!L281, 'Data Extract Balance Sheet'!L311), FALSE) -> FALSE | G29: =IFERROR(CHOOSE($I$46, 'Equity Analysis'!E172,'Equity Analysis'!E225,'Equity Analysis'!E252, 'Equity Analysis'!R26, 'Equity Analysis'!E55, 'Equity Analysis'!R55, 'Equity Analysis'!E83, 'Equity Analysis'!R83, 'Equity Analysis'!E198, 'Data Extract Balance Sheet'!M281, 'Data Extract Balance Sheet'!M311), FALSE) -> FALSE | H29: =IFERROR(CHOOSE($I$46, 'Equity Analysis'!F172,'Equity Analysis'!F225,'Equity Analysis'!F252, 'Equity Analysis'!S26, 'Equity Analysis'!F55, 'Equity Analysis'!S55, 'Equity Analysis'!F83, 'Equity Analysis'!S83, 'Equity Analysis'!F198, 'Data Extract Balance Sheet'!N281, 'Data Extract Balance Sheet'!N311), FALSE) -> FALSE | I29: =IFERROR(CHOOSE($I$46, 'Equity Analysis'!G172,'Equity Analysis'!G225,'Equity Analysis'!G252, 'Equity Analysis'!T26, 'Equity Analysis'!G55, 'Equity Analysis'!T55, 'Equity Analysis'!G83, 'Equity Analysis'!T83, 'Equity Analysis'!G198, 'Data Extract Balance Sheet'!O281, 'Data Extract Balance Sheet'!O311), FALSE) -> FALSE | J29: =IFERROR(CHOOSE($I$46, 'Equity Analysis'!H172,'Equity Analysis'!H225,'Equity Analysis'!H252, 'Equity Analysis'!U26, 'Equity Analysis'!H55, 'Equity Analysis'!U55, 'Equity Analysis'!H83, 'Equity Analysis'!U83, 'Equity Analysis'!H198, 'Data Extract Balance Sheet'!P281, 'Data Extract Balance Sheet'!P311), FALSE) -> FALSE | K29: =IFERROR(CHOOSE($I$46, 'Equity Analysis'!I172,'Equity Analysis'!I225,'Equity Analysis'!I252, 'Equity Analysis'!V26, 'Equity Analysis'!I55, 'Equity Analysis'!V55, 'Equity Analysis'!I83, 'Equity Analysis'!V83, 'Equity Analysis'!I198, 'Data Extract Balance Sheet'!Q281, 'Data Extract Balance Sheet'!Q311), FALSE) -> FALSE | L29: =IFERROR(CHOOSE($I$46, 'Equity Analysis'!J172,'Equity Analysis'!J225,'Equity Analysis'!J252, 'Equity Analysis'!W26, 'Equity Analysis'!J55, 'Equity Analysis'!W55, 'Equity Analysis'!J83, 'Equity Analysis'!W83, 'Equity Analysis'!J198, 'Data Extract Balance Sheet'!R281, 'Data Extract Balance Sheet'!R311), FALSE) -> FALSE | M29: =IFERROR(CHOOSE($I$46, 'Equity Analysis'!K172,'Equity Analysis'!K225,'Equity Analysis'!K252, 'Equity Analysis'!X26, 'Equity Analysis'!K55, 'Equity Analysis'!X55, 'Equity Analysis'!K83, 'Equity Analysis'!X83, 'Equity Analysis'!K198, 'Data Extract Balance Sheet'!S281, 'Data Extract Balance Sheet'!S311), FALSE) -> FALSE | N29: =IFERROR(CHOOSE($I$46, 'Equity Analysis'!L172,'Equity Analysis'!L225,'Equity Analysis'!L252, 'Equity Analysis'!Y26, 'Equity Analysis'!L55, 'Equity Analysis'!Y55, 'Equity Analysis'!L83, 'Equity Analysis'!Y83, 'Equity Analysis'!L198, 'Data Extract Balance Sheet'!T281, 'Data Extract Balance Sheet'!T311), FALSE) -> FALSE | O29: FALSE | P29: 3 | R29: 16
C30: ='Data Current'!D33 -> 0 | E30: =IFERROR(CHOOSE($I$46, 'Equity Analysis'!C173,'Equity Analysis'!C226,'Equity Analysis'!C253, 'Equity Analysis'!P27, 'Equity Analysis'!C56, 'Equity Analysis'!P56, 'Equity Analysis'!C84, 'Equity Analysis'!P84, 'Equity Analysis'!C199, 'Data Extract Balance Sheet'!K282, 'Data Extract Balance Sheet'!K312), FALSE) -> FALSE | F30: =IFERROR(CHOOSE($I$46, 'Equity Analysis'!D173,'Equity Analysis'!D226,'Equity Analysis'!D253, 'Equity Analysis'!Q27, 'Equity Analysis'!D56, 'Equity Analysis'!Q56, 'Equity Analysis'!D84, 'Equity Analysis'!Q84, 'Equity Analysis'!D199, 'Data Extract Balance Sheet'!L282, 'Data Extract Balance Sheet'!L312), FALSE) -> FALSE | G30: =IFERROR(CHOOSE($I$46, 'Equity Analysis'!E173,'Equity Analysis'!E226,'Equity Analysis'!E253, 'Equity Analysis'!R27, 'Equity Analysis'!E56, 'Equity Analysis'!R56, 'Equity Analysis'!E84, 'Equity Analysis'!R84, 'Equity Analysis'!E199, 'Data Extract Balance Sheet'!M282, 'Data Extract Balance Sheet'!M312), FALSE) -> FALSE | H30: =IFERROR(CHOOSE($I$46, 'Equity Analysis'!F173,'Equity Analysis'!F226,'Equity Analysis'!F253, 'Equity Analysis'!S27, 'Equity Analysis'!F56, 'Equity Analysis'!S56, 'Equity Analysis'!F84, 'Equity Analysis'!S84, 'Equity Analysis'!F199, 'Data Extract Balance Sheet'!N282, 'Data Extract Balance Sheet'!N312), FALSE) -> FALSE | I30: =IFERROR(CHOOSE($I$46, 'Equity Analysis'!G173,'Equity Analysis'!G226,'Equity Analysis'!G253, 'Equity Analysis'!T27, 'Equity Analysis'!G56, 'Equity Analysis'!T56, 'Equity Analysis'!G84, 'Equity Analysis'!T84, 'Equity Analysis'!G199, 'Data Extract Balance Sheet'!O282, 'Data Extract Balance Sheet'!O312), FALSE) -> FALSE | J30: =IFERROR(CHOOSE($I$46, 'Equity Analysis'!H173,'Equity Analysis'!H226,'Equity Analysis'!H253, 'Equity Analysis'!U27, 'Equity Analysis'!H56, 'Equity Analysis'!U56, 'Equity Analysis'!H84, 'Equity Analysis'!U84, 'Equity Analysis'!H199, 'Data Extract Balance Sheet'!P282, 'Data Extract Balance Sheet'!P312), FALSE) -> FALSE | K30: =IFERROR(CHOOSE($I$46, 'Equity Analysis'!I173,'Equity Analysis'!I226,'Equity Analysis'!I253, 'Equity Analysis'!V27, 'Equity Analysis'!I56, 'Equity Analysis'!V56, 'Equity Analysis'!I84, 'Equity Analysis'!V84, 'Equity Analysis'!I199, 'Data Extract Balance Sheet'!Q282, 'Data Extract Balance Sheet'!Q312), FALSE) -> FALSE | L30: =IFERROR(CHOOSE($I$46, 'Equity Analysis'!J173,'Equity Analysis'!J226,'Equity Analysis'!J253, 'Equity Analysis'!W27, 'Equity Analysis'!J56, 'Equity Analysis'!W56, 'Equity Analysis'!J84, 'Equity Analysis'!W84, 'Equity Analysis'!J199, 'Data Extract Balance Sheet'!R282, 'Data Extract Balance Sheet'!R312), FALSE) -> FALSE | M30: =IFERROR(CHOOSE($I$46, 'Equity Analysis'!K173,'Equity Analysis'!K226,'Equity Analysis'!K253, 'Equity Analysis'!X27, 'Equity Analysis'!K56, 'Equity Analysis'!X56, 'Equity Analysis'!K84, 'Equity Analysis'!X84, 'Equity Analysis'!K199, 'Data Extract Balance Sheet'!S282, 'Data Extract Balance Sheet'!S312), FALSE) -> FALSE | N30: =IFERROR(CHOOSE($I$46, 'Equity Analysis'!L173,'Equity Analysis'!L226,'Equity Analysis'!L253, 'Equity Analysis'!Y27, 'Equity Analysis'!L56, 'Equity Analysis'!Y56, 'Equity Analysis'!L84, 'Equity Analysis'!Y84, 'Equity Analysis'!L199, 'Data Extract Balance Sheet'!T282, 'Data Extract Balance Sheet'!T312), FALSE) -> FALSE | O30: FALSE | P30: 3 | R30: 17
P31: 3 | R31: 18
R32: 19
R33: 20
R34: 21
E35: 9 | R35: 22
R36: 23
R37: 24
I46: 5
E50: Single Value to Find Data
C51: EPS - Basic | E51: ='Equity Analysis'!G151 -> 7.73 | F51: 1
C52: Earnings Growth | E52: ='Equity Analysis'!C204 -> 0 | F52: 2 | G52: Earnings Growth
C53: Book Value Growth | E53: ='Equity Analysis'!C231 -> 0 | F53: 3 | G53: Book Value Growth
C54: Trailing P/E - Average Stock Price | F54: 4
C55: Forward P/E - Ending Stock Price | E55: ='Equity Analysis'!G34 -> 0 | F55: 5
C56: Forward P/E - Average Price | E56: ='Equity Analysis'!T34 -> 0 | F56: 6
C57: Average Stock Price | F57: 7
C58: Ending Stock Price | F58: 8
C59: Book Value per Share | E59: ='Data Extract Balance Sheet'!P232 -> 17.03323962 | F59: 9
C60: Price to Book Ratio | F60: 10
C61: Return on Ending Equity | F61: 11
C64: =INDEX(C51:C61,I46) -> Forward P/E - Ending Stock Price

Sheet EBITDA Trend Analysis
G1: =E35 -> 20
A3: EV/EBITDA Analysis
T4: =B59 -> EBITDA
E5: =B59 -> EBITDA | P5: TRUE
P6: Counter | V6: =E7 -> 2011 | W6: 2012 | X6: 2013 | Y6: 2014 | Z6: 2015 | AA6: 2016 | AB6: 2017 | AC6: 2018 | AD6: 2019 | AE6: Current
B7: Raw Data Before Adjustments | E7: ='EBITDA Analysis'!C6 -> 2011 | F7: ='EBITDA Analysis'!D6 -> 2012 | G7: ='EBITDA Analysis'!E6 -> 2013 | H7: ='EBITDA Analysis'!F6 -> 2014 | I7: ='EBITDA Analysis'!G6 -> 2015 | J7: ='EBITDA Analysis'!H6 -> 2016 | K7: ='EBITDA Analysis'!I6 -> 2017 | L7: ='EBITDA Analysis'!J6 -> 2018 | M7: ='EBITDA Analysis'!K6 -> 2019 | N7: ='EBITDA Analysis'!L6 -> Current | O7: Include | P7: 0
C8: ='Data Current'!D11 -> 3M | E8: =CHOOSE($E$35,'EBITDA Analysis'!C462,'EBITDA Analysis'!P200,'EBITDA Analysis'!C7,'EBITDA Analysis'!C36,'EBITDA Analysis'!P333,'EBITDA Analysis'!P252,'EBITDA Analysis'!P306,'EBITDA Analysis'!P359,'EBITDA Analysis'!C146,'EBITDA Analysis'!P36,'EBITDA Analysis'!P7,'EBITDA Analysis'!P280,'EBITDA Analysis'!C280,'EBITDA Analysis'!C409,'EBITDA Analysis'!P462,'EBITDA Analysis'!P384,'EBITDA Analysis'!P434,'EBITDA Analysis'!P409,'EBITDA Analysis'!C434,'EBITDA Analysis'!C226) -> 0 | F8: =CHOOSE($E$35,'EBITDA Analysis'!D462,'EBITDA Analysis'!Q200,'EBITDA Analysis'!D7,'EBITDA Analysis'!D36,'EBITDA Analysis'!Q333,'EBITDA Analysis'!Q252,'EBITDA Analysis'!Q306,'EBITDA Analysis'!Q359,'EBITDA Analysis'!D146,'EBITDA Analysis'!Q36,'EBITDA Analysis'!Q7,'EBITDA Analysis'!Q280,'EBITDA Analysis'!D280,'EBITDA Analysis'!D409,'EBITDA Analysis'!Q462,'EBITDA Analysis'!Q384,'EBITDA Analysis'!Q434,'EBITDA Analysis'!Q409,'EBITDA Analysis'!D434,'EBITDA Analysis'!D226) -> FALSE | G8: =CHOOSE($E$35,'EBITDA Analysis'!E462,'EBITDA Analysis'!R200,'EBITDA Analysis'!E7,'EBITDA Analysis'!E36,'EBITDA Analysis'!R333,'EBITDA Analysis'!R252,'EBITDA Analysis'!R306,'EBITDA Analysis'!R359,'EBITDA Analysis'!E146,'EBITDA Analysis'!R36,'EBITDA Analysis'!R7,'EBITDA Analysis'!R280,'EBITDA Analysis'!E280,'EBITDA Analysis'!E409,'EBITDA Analysis'!R462,'EBITDA Analysis'!R384,'EBITDA Analysis'!R434,'EBITDA Analysis'!R409,'EBITDA Analysis'!E434,'EBITDA Analysis'!E226) -> 8029999.5 | H8: =CHOOSE($E$35,'EBITDA Analysis'!F462,'EBITDA Analysis'!S200,'EBITDA Analysis'!F7,'EBITDA Analysis'!F36,'EBITDA Analysis'!S333,'EBITDA Analysis'!S252,'EBITDA Analysis'!S306,'EBITDA Analysis'!S359,'EBITDA Analysis'!F146,'EBITDA Analysis'!S36,'EBITDA Analysis'!S7,'EBITDA Analysis'!S280,'EBITDA Analysis'!F280,'EBITDA Analysis'!F409,'EBITDA Analysis'!S462,'EBITDA Analysis'!S384,'EBITDA Analysis'!S434,'EBITDA Analysis'!S409,'EBITDA Analysis'!F434,'EBITDA Analysis'!F226) -> 8530000 | I8: =CHOOSE($E$35,'EBITDA Analysis'!G462,'EBITDA Analysis'!T200,'EBITDA Analysis'!G7,'EBITDA Analysis'!G36,'EBITDA Analysis'!T333,'EBITDA Analysis'!T252,'EBITDA Analysis'!T306,'EBITDA Analysis'!T359,'EBITDA Analysis'!G146,'EBITDA Analysis'!T36,'EBITDA Analysis'!T7,'EBITDA Analysis'!T280,'EBITDA Analysis'!G280,'EBITDA Analysis'!G409,'EBITDA Analysis'!T462,'EBITDA Analysis'!T384,'EBITDA Analysis'!T434,'EBITDA Analysis'!T409,'EBITDA Analysis'!G434,'EBITDA Analysis'!G226) -> 8310000.5 | J8: =CHOOSE($E$35,'EBITDA Analysis'!H462,'EBITDA Analysis'!U200,'EBITDA Analysis'!H7,'EBITDA Analysis'!H36,'EBITDA Analysis'!U333,'EBITDA Analysis'!U252,'EBITDA Analysis'!U306,'EBITDA Analysis'!U359,'EBITDA Analysis'!H146,'EBITDA Analysis'!U36,'EBITDA Analysis'!U7,'EBITDA Analysis'!U280,'EBITDA Analysis'!H280,'EBITDA Analysis'!H409,'EBITDA Analysis'!U462,'EBITDA Analysis'!U384,'EBITDA Analysis'!U434,'EBITDA Analysis'!U409,'EBITDA Analysis'!H434,'EBITDA Analysis'!H226) -> 8490000 | K8: =CHOOSE($E$35,'EBITDA Analysis'!I462,'EBITDA Analysis'!V200,'EBITDA Analysis'!I7,'EBITDA Analysis'!I36,'EBITDA Analysis'!V333,'EBITDA Analysis'!V252,'EBITDA Analysis'!V306,'EBITDA Analysis'!V359,'EBITDA Analysis'!I146,'EBITDA Analysis'!V36,'EBITDA Analysis'!V7,'EBITDA Analysis'!V280,'EBITDA Analysis'!I280,'EBITDA Analysis'!I409,'EBITDA Analysis'!V462,'EBITDA Analysis'!V384,'EBITDA Analysis'!V434,'EBITDA Analysis'!V409,'EBITDA Analysis'!I434,'EBITDA Analysis'!I226) -> 8900000 | L8: =CHOOSE($E$35,'EBITDA Analysis'!J462,'EBITDA Analysis'!W200,'EBITDA Analysis'!J7,'EBITDA Analysis'!J36,'EBITDA Analysis'!W333,'EBITDA Analysis'!W252,'EBITDA Analysis'!W306,'EBITDA Analysis'!W359,'EBITDA Analysis'!J146,'EBITDA Analysis'!W36,'EBITDA Analysis'!W7,'EBITDA Analysis'!W280,'EBITDA Analysis'!J280,'EBITDA Analysis'!J409,'EBITDA Analysis'!W462,'EBITDA Analysis'!W384,'EBITDA Analysis'!W434,'EBITDA Analysis'!W409,'EBITDA Analysis'!J434,'EBITDA Analysis'!J226) -> FALSE | M8: =CHOOSE($E$35,'EBITDA Analysis'!K462,'EBITDA Analysis'!X200,'EBITDA Analysis'!K7,'EBITDA Analysis'!K36,'EBITDA Analysis'!X333,'EBITDA Analysis'!X252,'EBITDA Analysis'!X306,'EBITDA Analysis'!X359,'EBITDA Analysis'!K146,'EBITDA Analysis'!X36,'EBITDA Analysis'!X7,'EBITDA Analysis'!X280,'EBITDA Analysis'!K280,'EBITDA Analysis'!K409,'EBITDA Analysis'!X462,'EBITDA Analysis'!X384,'EBITDA Analysis'!X434,'EBITDA Analysis'!X409,'EBITDA Analysis'!K434,'EBITDA Analysis'!K226) -> FALSE | N8: =CHOOSE($E$35,'EBITDA Analysis'!L462,'EBITDA Analysis'!Y200,'EBITDA Analysis'!L7,'EBITDA Analysis'!L36,'EBITDA Analysis'!Y333,'EBITDA Analysis'!Y252,'EBITDA Analysis'!Y306,'EBITDA Analysis'!Y359,'EBITDA Analysis'!L146,'EBITDA Analysis'!Y36,'EBITDA Analysis'!Y7,'EBITDA Analysis'!Y280,'EBITDA Analysis'!L280,'EBITDA Analysis'!L409,'EBITDA Analysis'!Y462,'EBITDA Analysis'!Y384,'EBITDA Analysis'!Y434,'EBITDA Analysis'!Y409,'EBITDA Analysis'!L434,'EBITDA Analysis'!L226) -> 8530000 | O8: TRUE | P8: =O8+P7 -> 1 | T8: Average | V8: =IFERROR(AVERAGE(V12:V34),"") -> 0 | W8: =IFERROR(AVERAGE(W12:W34),"") ->  | X8: 23759999.83 | Y8: 26076666.67 | Z8: 31733333.5 | AA8: 28310000 | AB8: 30403333.33 | AE8: =IFERROR(AVERAGE(AE12:AE34),"") -> 33373333.33
C9: ='Data Current'!D12 -> Apple | E9: =CHOOSE($E$35,'EBITDA Analysis'!C463,'EBITDA Analysis'!P201,'EBITDA Analysis'!C8,'EBITDA Analysis'!C37,'EBITDA Analysis'!P334,'EBITDA Analysis'!P253,'EBITDA Analysis'!P307,'EBITDA Analysis'!P360,'EBITDA Analysis'!C147,'EBITDA Analysis'!P37,'EBITDA Analysis'!P8,'EBITDA Analysis'!P281,'EBITDA Analysis'!C281,'EBITDA Analysis'!C410,'EBITDA Analysis'!P463,'EBITDA Analysis'!P385,'EBITDA Analysis'!P435,'EBITDA Analysis'!P410,'EBITDA Analysis'!C435,'EBITDA Analysis'!C227) -> 0 | F9: =CHOOSE($E$35,'EBITDA Analysis'!D463,'EBITDA Analysis'!Q201,'EBITDA Analysis'!D8,'EBITDA Analysis'!D37,'EBITDA Analysis'!Q334,'EBITDA Analysis'!Q253,'EBITDA Analysis'!Q307,'EBITDA Analysis'!Q360,'EBITDA Analysis'!D147,'EBITDA Analysis'!Q37,'EBITDA Analysis'!Q8,'EBITDA Analysis'!Q281,'EBITDA Analysis'!D281,'EBITDA Analysis'!D410,'EBITDA Analysis'!Q463,'EBITDA Analysis'!Q385,'EBITDA Analysis'!Q435,'EBITDA Analysis'!Q410,'EBITDA Analysis'!D435,'EBITDA Analysis'!D227) -> FALSE | G9: =CHOOSE($E$35,'EBITDA Analysis'!E463,'EBITDA Analysis'!R201,'EBITDA Analysis'!E8,'EBITDA Analysis'!E37,'EBITDA Analysis'!R334,'EBITDA Analysis'!R253,'EBITDA Analysis'!R307,'EBITDA Analysis'!R360,'EBITDA Analysis'!E147,'EBITDA Analysis'!R37,'EBITDA Analysis'!R8,'EBITDA Analysis'!R281,'EBITDA Analysis'!E281,'EBITDA Analysis'!E410,'EBITDA Analysis'!R463,'EBITDA Analysis'!R385,'EBITDA Analysis'!R435,'EBITDA Analysis'!R410,'EBITDA Analysis'!E435,'EBITDA Analysis'!E227) -> 55080000 | H9: =CHOOSE($E$35,'EBITDA Analysis'!F463,'EBITDA Analysis'!S201,'EBITDA Analysis'!F8,'EBITDA Analysis'!F37,'EBITDA Analysis'!S334,'EBITDA Analysis'!S253,'EBITDA Analysis'!S307,'EBITDA Analysis'!S360,'EBITDA Analysis'!F147,'EBITDA Analysis'!S37,'EBITDA Analysis'!S8,'EBITDA Analysis'!S281,'EBITDA Analysis'!F281,'EBITDA Analysis'!F410,'EBITDA Analysis'!S463,'EBITDA Analysis'!S385,'EBITDA Analysis'!S435,'EBITDA Analysis'!S410,'EBITDA Analysis'!F435,'EBITDA Analysis'!F227) -> 60600000 | I9: =CHOOSE($E$35,'EBITDA Analysis'!G463,'EBITDA Analysis'!T201,'EBITDA Analysis'!G8,'EBITDA Analysis'!G37,'EBITDA Analysis'!T334,'EBITDA Analysis'!T253,'EBITDA Analysis'!T307,'EBITDA Analysis'!T360,'EBITDA Analysis'!G147,'EBITDA Analysis'!T37,'EBITDA Analysis'!T8,'EBITDA Analysis'!T281,'EBITDA Analysis'!G281,'EBITDA Analysis'!G410,'EBITDA Analysis'!T463,'EBITDA Analysis'!T385,'EBITDA Analysis'!T435,'EBITDA Analysis'!T410,'EBITDA Analysis'!G435,'EBITDA Analysis'!G227) -> 77890000 | J9: =CHOOSE($E$35,'EBITDA Analysis'!H463,'EBITDA Analysis'!U201,'EBITDA Analysis'!H8,'EBITDA Analysis'!H37,'EBITDA Analysis'!U334,'EBITDA Analysis'!U253,'EBITDA Analysis'!U307,'EBITDA Analysis'!U360,'EBITDA Analysis'!H147,'EBITDA Analysis'!U37,'EBITDA Analysis'!U8,'EBITDA Analysis'!U281,'EBITDA Analysis'!H281,'EBITDA Analysis'!H410,'EBITDA Analysis'!U463,'EBITDA Analysis'!U385,'EBITDA Analysis'!U435,'EBITDA Analysis'!U410,'EBITDA Analysis'!H435,'EBITDA Analysis'!H227) -> 68990000 | K9: =CHOOSE($E$35,'EBITDA Analysis'!I463,'EBITDA Analysis'!V201,'EBITDA Analysis'!I8,'EBITDA Analysis'!I37,'EBITDA Analysis'!V334,'EBITDA Analysis'!V253,'EBITDA Analysis'!V307,'EBITDA Analysis'!V360,'EBITDA Analysis'!I147,'EBITDA Analysis'!V37,'EBITDA Analysis'!V8,'EBITDA Analysis'!V281,'EBITDA Analysis'!I281,'EBITDA Analysis'!I410,'EBITDA Analysis'!V463,'EBITDA Analysis'!V385,'EBITDA Analysis'!V435,'EBITDA Analysis'!V410,'EBITDA Analysis'!I435,'EBITDA Analysis'!I227) -> 70190000 | L9: =CHOOSE($E$35,'EBITDA Analysis'!J463,'EBITDA Analysis'!W201,'EBITDA Analysis'!J8,'EBITDA Analysis'!J37,'EBITDA Analysis'!W334,'EBITDA Analysis'!W253,'EBITDA Analysis'!W307,'EBITDA Analysis'!W360,'EBITDA Analysis'!J147,'EBITDA Analysis'!W37,'EBITDA Analysis'!W8,'EBITDA Analysis'!W281,'EBITDA Analysis'!J281,'EBITDA Analysis'!J410,'EBITDA Analysis'!W463,'EBITDA Analysis'!W385,'EBITDA Analysis'!W435,'EBITDA Analysis'!W410,'EBITDA Analysis'!J435,'EBITDA Analysis'!J227) -> FALSE | M9: =CHOOSE($E$35,'EBITDA Analysis'!K463,'EBITDA Analysis'!X201,'EBITDA Analysis'!K8,'EBITDA Analysis'!K37,'EBITDA Analysis'!X334,'EBITDA Analysis'!X253,'EBITDA Analysis'!X307,'EBITDA Analysis'!X360,'EBITDA Analysis'!K147,'EBITDA Analysis'!X37,'EBITDA Analysis'!X8,'EBITDA Analysis'!X281,'EBITDA Analysis'!K281,'EBITDA Analysis'!K410,'EBITDA Analysis'!X463,'EBITDA Analysis'!X385,'EBITDA Analysis'!X435,'EBITDA Analysis'!X410,'EBITDA Analysis'!K435,'EBITDA Analysis'!K227) -> FALSE | N9: =CHOOSE($E$35,'EBITDA Analysis'!L463,'EBITDA Analysis'!Y201,'EBITDA Analysis'!L8,'EBITDA Analysis'!L37,'EBITDA Analysis'!Y334,'EBITDA Analysis'!Y253,'EBITDA Analysis'!Y307,'EBITDA Analysis'!Y360,'EBITDA Analysis'!L147,'EBITDA Analysis'!Y37,'EBITDA Analysis'!Y8,'EBITDA Analysis'!Y281,'EBITDA Analysis'!L281,'EBITDA Analysis'!L410,'EBITDA Analysis'!Y463,'EBITDA Analysis'!Y385,'EBITDA Analysis'!Y435,'EBITDA Analysis'!Y410,'EBITDA Analysis'!L435,'EBITDA Analysis'!L227) -> 78530000 | O9: TRUE | P9: =O9+P8 -> 2 | T9: Median | V9: =IFERROR(MEDIAN(V12:V34),"") -> 0 | W9: =IFERROR(MEDIAN(W12:W34),"") ->  | X9: 8170000 | Y9: 9100000 | Z9: 9000000 | AA9: 8490000 | AB9: 12120000 | AE9: =IFERROR(MEDIAN(AE12:AE33),"") -> 13060000
C10: ='Data Current'!D13 -> Boeing | E10: =CHOOSE($E$35,'EBITDA Analysis'!C464,'EBITDA Analysis'!P202,'EBITDA Analysis'!C9,'EBITDA Analysis'!C38,'EBITDA Analysis'!P335,'EBITDA Analysis'!P254,'EBITDA Analysis'!P308,'EBITDA Analysis'!P361,'EBITDA Analysis'!C148,'EBITDA Analysis'!P38,'EBITDA Analysis'!P9,'EBITDA Analysis'!P282,'EBITDA Analysis'!C282,'EBITDA Analysis'!C411,'EBITDA Analysis'!P464,'EBITDA Analysis'!P386,'EBITDA Analysis'!P436,'EBITDA Analysis'!P411,'EBITDA Analysis'!C436,'EBITDA Analysis'!C228) -> 0 | F10: =CHOOSE($E$35,'EBITDA Analysis'!D464,'EBITDA Analysis'!Q202,'EBITDA Analysis'!D9,'EBITDA Analysis'!D38,'EBITDA Analysis'!Q335,'EBITDA Analysis'!Q254,'EBITDA Analysis'!Q308,'EBITDA Analysis'!Q361,'EBITDA Analysis'!D148,'EBITDA Analysis'!Q38,'EBITDA Analysis'!Q9,'EBITDA Analysis'!Q282,'EBITDA Analysis'!D282,'EBITDA Analysis'!D411,'EBITDA Analysis'!Q464,'EBITDA Analysis'!Q386,'EBITDA Analysis'!Q436,'EBITDA Analysis'!Q411,'EBITDA Analysis'!D436,'EBITDA Analysis'!D228) -> FALSE | G10: =CHOOSE($E$35,'EBITDA Analysis'!E464,'EBITDA Analysis'!R202,'EBITDA Analysis'!E9,'EBITDA Analysis'!E38,'EBITDA Analysis'!R335,'EBITDA Analysis'!R254,'EBITDA Analysis'!R308,'EBITDA Analysis'!R361,'EBITDA Analysis'!E148,'EBITDA Analysis'!R38,'EBITDA Analysis'!R9,'EBITDA Analysis'!R282,'EBITDA Analysis'!E282,'EBITDA Analysis'!E411,'EBITDA Analysis'!R464,'EBITDA Analysis'!R386,'EBITDA Analysis'!R436,'EBITDA Analysis'!R411,'EBITDA Analysis'!E436,'EBITDA Analysis'!E228) -> 8170000 | H10: =CHOOSE($E$35,'EBITDA Analysis'!F464,'EBITDA Analysis'!S202,'EBITDA Analysis'!F9,'EBITDA Analysis'!F38,'EBITDA Analysis'!S335,'EBITDA Analysis'!S254,'EBITDA Analysis'!S308,'EBITDA Analysis'!S361,'EBITDA Analysis'!F148,'EBITDA Analysis'!S38,'EBITDA Analysis'!S9,'EBITDA Analysis'!S282,'EBITDA Analysis'!F282,'EBITDA Analysis'!F411,'EBITDA Analysis'!S464,'EBITDA Analysis'!S386,'EBITDA Analysis'!S436,'EBITDA Analysis'!S411,'EBITDA Analysis'!F436,'EBITDA Analysis'!F228) -> 9100000 | I10: =CHOOSE($E$35,'EBITDA Analysis'!G464,'EBITDA Analysis'!T202,'EBITDA Analysis'!G9,'EBITDA Analysis'!G38,'EBITDA Analysis'!T335,'EBITDA Analysis'!T254,'EBITDA Analysis'!T308,'EBITDA Analysis'!T361,'EBITDA Analysis'!G148,'EBITDA Analysis'!T38,'EBITDA Analysis'!T9,'EBITDA Analysis'!T282,'EBITDA Analysis'!G282,'EBITDA Analysis'!G411,'EBITDA Analysis'!T464,'EBITDA Analysis'!T386,'EBITDA Analysis'!T436,'EBITDA Analysis'!T411,'EBITDA Analysis'!G436,'EBITDA Analysis'!G228) -> 9000000 | J10: =CHOOSE($E$35,'EBITDA Analysis'!H464,'EBITDA Analysis'!U202,'EBITDA Analysis'!H9,'EBITDA Analysis'!H38,'EBITDA Analysis'!U335,'EBITDA Analysis'!U254,'EBITDA Analysis'!U308,'EBITDA Analysis'!U361,'EBITDA Analysis'!H148,'EBITDA Analysis'!U38,'EBITDA Analysis'!U9,'EBITDA Analysis'!U282,'EBITDA Analysis'!H282,'EBITDA Analysis'!H411,'EBITDA Analysis'!U464,'EBITDA Analysis'!U386,'EBITDA Analysis'!U436,'EBITDA Analysis'!U411,'EBITDA Analysis'!H436,'EBITDA Analysis'!H228) -> 7450000 | K10: =CHOOSE($E$35,'EBITDA Analysis'!I464,'EBITDA Analysis'!V202,'EBITDA Analysis'!I9,'EBITDA Analysis'!I38,'EBITDA Analysis'!V335,'EBITDA Analysis'!V254,'EBITDA Analysis'!V308,'EBITDA Analysis'!V361,'EBITDA Analysis'!I148,'EBITDA Analysis'!V38,'EBITDA Analysis'!V9,'EBITDA Analysis'!V282,'EBITDA Analysis'!I282,'EBITDA Analysis'!I411,'EBITDA Analysis'!V464,'EBITDA Analysis'!V386,'EBITDA Analysis'!V436,'EBITDA Analysis'!V411,'EBITDA Analysis'!I436,'EBITDA Analysis'!I228) -> 12120000 | L10: =CHOOSE($E$35,'EBITDA Analysis'!J464,'EBITDA Analysis'!W202,'EBITDA Analysis'!J9,'EBITDA Analysis'!J38,'EBITDA Analysis'!W335,'EBITDA Analysis'!W254,'EBITDA Analysis'!W308,'EBITDA Analysis'!W361,'EBITDA Analysis'!J148,'EBITDA Analysis'!W38,'EBITDA Analysis'!W9,'EBITDA Analysis'!W282,'EBITDA Analysis'!J282,'EBITDA Analysis'!J411,'EBITDA Analysis'!W464,'EBITDA Analysis'!W386,'EBITDA Analysis'!W436,'EBITDA Analysis'!W411,'EBITDA Analysis'!J436,'EBITDA Analysis'!J228) -> FALSE | M10: =CHOOSE($E$35,'EBITDA Analysis'!K464,'EBITDA Analysis'!X202,'EBITDA Analysis'!K9,'EBITDA Analysis'!K38,'EBITDA Analysis'!X335,'EBITDA Analysis'!X254,'EBITDA Analysis'!X308,'EBITDA Analysis'!X361,'EBITDA Analysis'!K148,'EBITDA Analysis'!X38,'EBITDA Analysis'!X9,'EBITDA Analysis'!X282,'EBITDA Analysis'!K282,'EBITDA Analysis'!K411,'EBITDA Analysis'!X464,'EBITDA Analysis'!X386,'EBITDA Analysis'!X436,'EBITDA Analysis'!X411,'EBITDA Analysis'!K436,'EBITDA Analysis'!K228) -> FALSE | N10: =CHOOSE($E$35,'EBITDA Analysis'!L464,'EBITDA Analysis'!Y202,'EBITDA Analysis'!L9,'EBITDA Analysis'!L38,'EBITDA Analysis'!Y335,'EBITDA Analysis'!Y254,'EBITDA Analysis'!Y308,'EBITDA Analysis'!Y361,'EBITDA Analysis'!L148,'EBITDA Analysis'!Y38,'EBITDA Analysis'!Y9,'EBITDA Analysis'!Y282,'EBITDA Analysis'!L282,'EBITDA Analysis'!L411,'EBITDA Analysis'!Y464,'EBITDA Analysis'!Y386,'EBITDA Analysis'!Y436,'EBITDA Analysis'!Y411,'EBITDA Analysis'!L436,'EBITDA Analysis'!L228) -> 13060000 | O10: TRUE | P10: 3
C11: ='Data Current'!D14 -> Caterpillar | E11: =CHOOSE($E$35,'EBITDA Analysis'!C465,'EBITDA Analysis'!P203,'EBITDA Analysis'!C10,'EBITDA Analysis'!C39,'EBITDA Analysis'!P336,'EBITDA Analysis'!P255,'EBITDA Analysis'!P309,'EBITDA Analysis'!P362,'EBITDA Analysis'!C149,'EBITDA Analysis'!P39,'EBITDA Analysis'!P10,'EBITDA Analysis'!P283,'EBITDA Analysis'!C283,'EBITDA Analysis'!C412,'EBITDA Analysis'!P465,'EBITDA Analysis'!P387,'EBITDA Analysis'!P437,'EBITDA Analysis'!P412,'EBITDA Analysis'!C437,'EBITDA Analysis'!C229) -> 0 | F11: =CHOOSE($E$35,'EBITDA Analysis'!D465,'EBITDA Analysis'!Q203,'EBITDA Analysis'!D10,'EBITDA Analysis'!D39,'EBITDA Analysis'!Q336,'EBITDA Analysis'!Q255,'EBITDA Analysis'!Q309,'EBITDA Analysis'!Q362,'EBITDA Analysis'!D149,'EBITDA Analysis'!Q39,'EBITDA Analysis'!Q10,'EBITDA Analysis'!Q283,'EBITDA Analysis'!D283,'EBITDA Analysis'!D412,'EBITDA Analysis'!Q465,'EBITDA Analysis'!Q387,'EBITDA Analysis'!Q437,'EBITDA Analysis'!Q412,'EBITDA Analysis'!D437,'EBITDA Analysis'!D229) -> FALSE | G11: =CHOOSE($E$35,'EBITDA Analysis'!E465,'EBITDA Analysis'!R203,'EBITDA Analysis'!E10,'EBITDA Analysis'!E39,'EBITDA Analysis'!R336,'EBITDA Analysis'!R255,'EBITDA Analysis'!R309,'EBITDA Analysis'!R362,'EBITDA Analysis'!E149,'EBITDA Analysis'!R39,'EBITDA Analysis'!R10,'EBITDA Analysis'!R283,'EBITDA Analysis'!E283,'EBITDA Analysis'!E412,'EBITDA Analysis'!R465,'EBITDA Analysis'!R387,'EBITDA Analysis'!R437,'EBITDA Analysis'!R412,'EBITDA Analysis'!E437,'EBITDA Analysis'!E229) -> 8970000 | H11: =CHOOSE($E$35,'EBITDA Analysis'!F465,'EBITDA Analysis'!S203,'EBITDA Analysis'!F10,'EBITDA Analysis'!F39,'EBITDA Analysis'!S336,'EBITDA Analysis'!S255,'EBITDA Analysis'!S309,'EBITDA Analysis'!S362,'EBITDA Analysis'!F149,'EBITDA Analysis'!S39,'EBITDA Analysis'!S10,'EBITDA Analysis'!S283,'EBITDA Analysis'!F283,'EBITDA Analysis'!F412,'EBITDA Analysis'!S465,'EBITDA Analysis'!S387,'EBITDA Analysis'!S437,'EBITDA Analysis'!S412,'EBITDA Analysis'!F437,'EBITDA Analysis'!F229) -> 8950000 | I11: =CHOOSE($E$35,'EBITDA Analysis'!G465,'EBITDA Analysis'!T203,'EBITDA Analysis'!G10,'EBITDA Analysis'!G39,'EBITDA Analysis'!T336,'EBITDA Analysis'!T255,'EBITDA Analysis'!T309,'EBITDA Analysis'!T362,'EBITDA Analysis'!G149,'EBITDA Analysis'!T39,'EBITDA Analysis'!T10,'EBITDA Analysis'!T283,'EBITDA Analysis'!G283,'EBITDA Analysis'!G412,'EBITDA Analysis'!T465,'EBITDA Analysis'!T387,'EBITDA Analysis'!T437,'EBITDA Analysis'!T412,'EBITDA Analysis'!G437,'EBITDA Analysis'!G229) -> 7730000 | J11: =CHOOSE($E$35,'EBITDA Analysis'!H465,'EBITDA Analysis'!U203,'EBITDA Analysis'!H10,'EBITDA Analysis'!H39,'EBITDA Analysis'!U336,'EBITDA Analysis'!U255,'EBITDA Analysis'!U309,'EBITDA Analysis'!U362,'EBITDA Analysis'!H149,'EBITDA Analysis'!U39,'EBITDA Analysis'!U10,'EBITDA Analysis'!U283,'EBITDA Analysis'!H283,'EBITDA Analysis'!H412,'EBITDA Analysis'!U465,'EBITDA Analysis'!U387,'EBITDA Analysis'!U437,'EBITDA Analysis'!U412,'EBITDA Analysis'!H437,'EBITDA Analysis'!H229) -> 5150000 | K11: =CHOOSE($E$35,'EBITDA Analysis'!I465,'EBITDA Analysis'!V203,'EBITDA Analysis'!I10,'EBITDA Analysis'!I39,'EBITDA Analysis'!V336,'EBITDA Analysis'!V255,'EBITDA Analysis'!V309,'EBITDA Analysis'!V362,'EBITDA Analysis'!I149,'EBITDA Analysis'!V39,'EBITDA Analysis'!V10,'EBITDA Analysis'!V283,'EBITDA Analysis'!I283,'EBITDA Analysis'!I412,'EBITDA Analysis'!V465,'EBITDA Analysis'!V387,'EBITDA Analysis'!V437,'EBITDA Analysis'!V412,'EBITDA Analysis'!I437,'EBITDA Analysis'!I229) -> 8530000 | L11: =CHOOSE($E$35,'EBITDA Analysis'!J465,'EBITDA Analysis'!W203,'EBITDA Analysis'!J10,'EBITDA Analysis'!J39,'EBITDA Analysis'!W336,'EBITDA Analysis'!W255,'EBITDA Analysis'!W309,'EBITDA Analysis'!W362,'EBITDA Analysis'!J149,'EBITDA Analysis'!W39,'EBITDA Analysis'!W10,'EBITDA Analysis'!W283,'EBITDA Analysis'!J283,'EBITDA Analysis'!J412,'EBITDA Analysis'!W465,'EBITDA Analysis'!W387,'EBITDA Analysis'!W437,'EBITDA Analysis'!W412,'EBITDA Analysis'!J437,'EBITDA Analysis'!J229) -> FALSE | M11: =CHOOSE($E$35,'EBITDA Analysis'!K465,'EBITDA Analysis'!X203,'EBITDA Analysis'!K10,'EBITDA Analysis'!K39,'EBITDA Analysis'!X336,'EBITDA Analysis'!X255,'EBITDA Analysis'!X309,'EBITDA Analysis'!X362,'EBITDA Analysis'!K149,'EBITDA Analysis'!X39,'EBITDA Analysis'!X10,'EBITDA Analysis'!X283,'EBITDA Analysis'!K283,'EBITDA Analysis'!K412,'EBITDA Analysis'!X465,'EBITDA Analysis'!X387,'EBITDA Analysis'!X437,'EBITDA Analysis'!X412,'EBITDA Analysis'!K437,'EBITDA Analysis'!K229) -> FALSE | N11: =CHOOSE($E$35,'EBITDA Analysis'!L465,'EBITDA Analysis'!Y203,'EBITDA Analysis'!L10,'EBITDA Analysis'!L39,'EBITDA Analysis'!Y336,'EBITDA Analysis'!Y255,'EBITDA Analysis'!Y309,'EBITDA Analysis'!Y362,'EBITDA Analysis'!L149,'EBITDA Analysis'!Y39,'EBITDA Analysis'!Y10,'EBITDA Analysis'!Y283,'EBITDA Analysis'!L283,'EBITDA Analysis'!L412,'EBITDA Analysis'!Y465,'EBITDA Analysis'!Y387,'EBITDA Analysis'!Y437,'EBITDA Analysis'!Y412,'EBITDA Analysis'!L437,'EBITDA Analysis'!L229) -> 10410000 | O11: FALSE | P11: 3
C12: ='Data Current'!D15 -> Chevron | E12: =CHOOSE($E$35,'EBITDA Analysis'!C466,'EBITDA Analysis'!P204,'EBITDA Analysis'!C11,'EBITDA Analysis'!C40,'EBITDA Analysis'!P337,'EBITDA Analysis'!P256,'EBITDA Analysis'!P310,'EBITDA Analysis'!P363,'EBITDA Analysis'!C150,'EBITDA Analysis'!P40,'EBITDA Analysis'!P11,'EBITDA Analysis'!P284,'EBITDA Analysis'!C284,'EBITDA Analysis'!C413,'EBITDA Analysis'!P466,'EBITDA Analysis'!P388,'EBITDA Analysis'!P438,'EBITDA Analysis'!P413,'EBITDA Analysis'!C438,'EBITDA Analysis'!C230) -> 0 | F12: =CHOOSE($E$35,'EBITDA Analysis'!D466,'EBITDA Analysis'!Q204,'EBITDA Analysis'!D11,'EBITDA Analysis'!D40,'EBITDA Analysis'!Q337,'EBITDA Analysis'!Q256,'EBITDA Analysis'!Q310,'EBITDA Analysis'!Q363,'EBITDA Analysis'!D150,'EBITDA Analysis'!Q40,'EBITDA Analysis'!Q11,'EBITDA Analysis'!Q284,'EBITDA Analysis'!D284,'EBITDA Analysis'!D413,'EBITDA Analysis'!Q466,'EBITDA Analysis'!Q388,'EBITDA Analysis'!Q438,'EBITDA Analysis'!Q413,'EBITDA Analysis'!D438,'EBITDA Analysis'!D230) -> FALSE | G12: =CHOOSE($E$35,'EBITDA Analysis'!E466,'EBITDA Analysis'!R204,'EBITDA Analysis'!E11,'EBITDA Analysis'!E40,'EBITDA Analysis'!R337,'EBITDA Analysis'!R256,'EBITDA Analysis'!R310,'EBITDA Analysis'!R363,'EBITDA Analysis'!E150,'EBITDA Analysis'!R40,'EBITDA Analysis'!R11,'EBITDA Analysis'!R284,'EBITDA Analysis'!E284,'EBITDA Analysis'!E413,'EBITDA Analysis'!R466,'EBITDA Analysis'!R388,'EBITDA Analysis'!R438,'EBITDA Analysis'!R413,'EBITDA Analysis'!E438,'EBITDA Analysis'!E230) -> 42270000 | H12: =CHOOSE($E$35,'EBITDA Analysis'!F466,'EBITDA Analysis'!S204,'EBITDA Analysis'!F11,'EBITDA Analysis'!F40,'EBITDA Analysis'!S337,'EBITDA Analysis'!S256,'EBITDA Analysis'!S310,'EBITDA Analysis'!S363,'EBITDA Analysis'!F150,'EBITDA Analysis'!S40,'EBITDA Analysis'!S11,'EBITDA Analysis'!S284,'EBITDA Analysis'!F284,'EBITDA Analysis'!F413,'EBITDA Analysis'!S466,'EBITDA Analysis'!S388,'EBITDA Analysis'!S438,'EBITDA Analysis'!S413,'EBITDA Analysis'!F438,'EBITDA Analysis'!F230) -> 36860000 | I12: =CHOOSE($E$35,'EBITDA Analysis'!G466,'EBITDA Analysis'!T204,'EBITDA Analysis'!G11,'EBITDA Analysis'!G40,'EBITDA Analysis'!T337,'EBITDA Analysis'!T256,'EBITDA Analysis'!T310,'EBITDA Analysis'!T363,'EBITDA Analysis'!G150,'EBITDA Analysis'!T40,'EBITDA Analysis'!T11,'EBITDA Analysis'!T284,'EBITDA Analysis'!G284,'EBITDA Analysis'!G413,'EBITDA Analysis'!T466,'EBITDA Analysis'!T388,'EBITDA Analysis'!T438,'EBITDA Analysis'!T413,'EBITDA Analysis'!G438,'EBITDA Analysis'!G230) -> 19330000 | J12: =CHOOSE($E$35,'EBITDA Analysis'!H466,'EBITDA Analysis'!U204,'EBITDA Analysis'!H11,'EBITDA Analysis'!H40,'EBITDA Analysis'!U337,'EBITDA Analysis'!U256,'EBITDA Analysis'!U310,'EBITDA Analysis'!U363,'EBITDA Analysis'!H150,'EBITDA Analysis'!U40,'EBITDA Analysis'!U11,'EBITDA Analysis'!U284,'EBITDA Analysis'!H284,'EBITDA Analysis'!H413,'EBITDA Analysis'!U466,'EBITDA Analysis'!U388,'EBITDA Analysis'!U438,'EBITDA Analysis'!U413,'EBITDA Analysis'!H438,'EBITDA Analysis'!H230) -> 14110000 | K12: =CHOOSE($E$35,'EBITDA Analysis'!I466,'EBITDA Analysis'!V204,'EBITDA Analysis'!I11,'EBITDA Analysis'!I40,'EBITDA Analysis'!V337,'EBITDA Analysis'!V256,'EBITDA Analysis'!V310,'EBITDA Analysis'!V363,'EBITDA Analysis'!I150,'EBITDA Analysis'!V40,'EBITDA Analysis'!V11,'EBITDA Analysis'!V284,'EBITDA Analysis'!I284,'EBITDA Analysis'!I413,'EBITDA Analysis'!V466,'EBITDA Analysis'!V388,'EBITDA Analysis'!V438,'EBITDA Analysis'!V413,'EBITDA Analysis'!I438,'EBITDA Analysis'!I230) -> 22140000 | L12: =CHOOSE($E$35,'EBITDA Analysis'!J466,'EBITDA Analysis'!W204,'EBITDA Analysis'!J11,'EBITDA Analysis'!J40,'EBITDA Analysis'!W337,'EBITDA Analysis'!W256,'EBITDA Analysis'!W310,'EBITDA Analysis'!W363,'EBITDA Analysis'!J150,'EBITDA Analysis'!W40,'EBITDA Analysis'!W11,'EBITDA Analysis'!W284,'EBITDA Analysis'!J284,'EBITDA Analysis'!J413,'EBITDA Analysis'!W466,'EBITDA Analysis'!W388,'EBITDA Analysis'!W438,'EBITDA Analysis'!W413,'EBITDA Analysis'!J438,'EBITDA Analysis'!J230) -> FALSE | M12: =CHOOSE($E$35,'EBITDA Analysis'!K466,'EBITDA Analysis'!X204,'EBITDA Analysis'!K11,'EBITDA Analysis'!K40,'EBITDA Analysis'!X337,'EBITDA Analysis'!X256,'EBITDA Analysis'!X310,'EBITDA Analysis'!X363,'EBITDA Analysis'!K150,'EBITDA Analysis'!X40,'EBITDA Analysis'!X11,'EBITDA Analysis'!X284,'EBITDA Analysis'!K284,'EBITDA Analysis'!K413,'EBITDA Analysis'!X466,'EBITDA Analysis'!X388,'EBITDA Analysis'!X438,'EBITDA Analysis'!X413,'EBITDA Analysis'!K438,'EBITDA Analysis'!K230) -> FALSE | N12: =CHOOSE($E$35,'EBITDA Analysis'!L466,'EBITDA Analysis'!Y204,'EBITDA Analysis'!L11,'EBITDA Analysis'!L40,'EBITDA Analysis'!Y337,'EBITDA Analysis'!Y256,'EBITDA Analysis'!Y310,'EBITDA Analysis'!Y363,'EBITDA Analysis'!L150,'EBITDA Analysis'!Y40,'EBITDA Analysis'!Y11,'EBITDA Analysis'!Y284,'EBITDA Analysis'!L284,'EBITDA Analysis'!L413,'EBITDA Analysis'!Y466,'EBITDA Analysis'!Y388,'EBITDA Analysis'!Y438,'EBITDA Analysis'!Y413,'EBITDA Analysis'!L438,'EBITDA Analysis'!L230) -> 26280000 | O12: FALSE | P12: 3 | R12: 1 | S12: =IFERROR(MATCH(R12,P:P,0),"") -> 8 | T12: =IFERROR(INDEX(C:C,S12),"") -> 3M | V12: =IFERROR(INDEX(E:E,$S12),"") -> 0 | W12: =IFERROR(INDEX(F:F,$S12),"") -> FALSE | X12: =IFERROR(INDEX(G:G,$S12),"") -> 8029999.5 | Y12: =IFERROR(INDEX(H:H,$S12),"") -> 8530000 | Z12: =IFERROR(INDEX(I:I,$S12),"") -> 8310000.5 | AA12: =IFERROR(INDEX(J:J,$S12),"") -> 8490000 | AB12: =IFERROR(INDEX(K:K,$S12),"") -> 8900000 | AC12: =IFERROR(INDEX(L:L,$S12),"") -> FALSE | AD12: =IFERROR(INDEX(M:M,$S12),"") -> FALSE | AE12: =IFERROR(INDEX(N:N,$S12),"") -> 8530000 | AF12: =IFERROR(IRR(AH12:BG12),"") -> 
C13: ='Data Current'!D16 -> Cisco | E13: =CHOOSE($E$35,'EBITDA Analysis'!C467,'EBITDA Analysis'!P205,'EBITDA Analysis'!C12,'EBITDA Analysis'!C41,'EBITDA Analysis'!P338,'EBITDA Analysis'!P257,'EBITDA Analysis'!P311,'EBITDA Analysis'!P364,'EBITDA Analysis'!C151,'EBITDA Analysis'!P41,'EBITDA Analysis'!P12,'EBITDA Analysis'!P285,'EBITDA Analysis'!C285,'EBITDA Analysis'!C414,'EBITDA Analysis'!P467,'EBITDA Analysis'!P389,'EBITDA Analysis'!P439,'EBITDA Analysis'!P414,'EBITDA Analysis'!C439,'EBITDA Analysis'!C231) -> 0 | F13: =CHOOSE($E$35,'EBITDA Analysis'!D467,'EBITDA Analysis'!Q205,'EBITDA Analysis'!D12,'EBITDA Analysis'!D41,'EBITDA Analysis'!Q338,'EBITDA Analysis'!Q257,'EBITDA Analysis'!Q311,'EBITDA Analysis'!Q364,'EBITDA Analysis'!D151,'EBITDA Analysis'!Q41,'EBITDA Analysis'!Q12,'EBITDA Analysis'!Q285,'EBITDA Analysis'!D285,'EBITDA Analysis'!D414,'EBITDA Analysis'!Q467,'EBITDA Analysis'!Q389,'EBITDA Analysis'!Q439,'EBITDA Analysis'!Q414,'EBITDA Analysis'!D439,'EBITDA Analysis'!D231) -> FALSE | G13: =CHOOSE($E$35,'EBITDA Analysis'!E467,'EBITDA Analysis'!R205,'EBITDA Analysis'!E12,'EBITDA Analysis'!E41,'EBITDA Analysis'!R338,'EBITDA Analysis'!R257,'EBITDA Analysis'!R311,'EBITDA Analysis'!R364,'EBITDA Analysis'!E151,'EBITDA Analysis'!R41,'EBITDA Analysis'!R12,'EBITDA Analysis'!R285,'EBITDA Analysis'!E285,'EBITDA Analysis'!E414,'EBITDA Analysis'!R467,'EBITDA Analysis'!R389,'EBITDA Analysis'!R439,'EBITDA Analysis'!R414,'EBITDA Analysis'!E439,'EBITDA Analysis'!E231) -> 12090000 | H13: =CHOOSE($E$35,'EBITDA Analysis'!F467,'EBITDA Analysis'!S205,'EBITDA Analysis'!F12,'EBITDA Analysis'!F41,'EBITDA Analysis'!S338,'EBITDA Analysis'!S257,'EBITDA Analysis'!S311,'EBITDA Analysis'!S364,'EBITDA Analysis'!F151,'EBITDA Analysis'!S41,'EBITDA Analysis'!S12,'EBITDA Analysis'!S285,'EBITDA Analysis'!F285,'EBITDA Analysis'!F414,'EBITDA Analysis'!S467,'EBITDA Analysis'!S389,'EBITDA Analysis'!S439,'EBITDA Analysis'!S414,'EBITDA Analysis'!F439,'EBITDA Analysis'!F231) -> 14030000 | I13: =CHOOSE($E$35,'EBITDA Analysis'!G467,'EBITDA Analysis'!T205,'EBITDA Analysis'!G12,'EBITDA Analysis'!G41,'EBITDA Analysis'!T338,'EBITDA Analysis'!T257,'EBITDA Analysis'!T311,'EBITDA Analysis'!T364,'EBITDA Analysis'!G151,'EBITDA Analysis'!T41,'EBITDA Analysis'!T12,'EBITDA Analysis'!T285,'EBITDA Analysis'!G285,'EBITDA Analysis'!G414,'EBITDA Analysis'!T467,'EBITDA Analysis'!T389,'EBITDA Analysis'!T439,'EBITDA Analysis'!T414,'EBITDA Analysis'!G439,'EBITDA Analysis'!G231) -> 15120000 | J13: =CHOOSE($E$35,'EBITDA Analysis'!H467,'EBITDA Analysis'!U205,'EBITDA Analysis'!H12,'EBITDA Analysis'!H41,'EBITDA Analysis'!U338,'EBITDA Analysis'!U257,'EBITDA Analysis'!U311,'EBITDA Analysis'!U364,'EBITDA Analysis'!H151,'EBITDA Analysis'!U41,'EBITDA Analysis'!U12,'EBITDA Analysis'!U285,'EBITDA Analysis'!H285,'EBITDA Analysis'!H414,'EBITDA Analysis'!U467,'EBITDA Analysis'!U389,'EBITDA Analysis'!U439,'EBITDA Analysis'!U414,'EBITDA Analysis'!H439,'EBITDA Analysis'!H231) -> 15050000 | K13: =CHOOSE($E$35,'EBITDA Analysis'!I467,'EBITDA Analysis'!V205,'EBITDA Analysis'!I12,'EBITDA Analysis'!I41,'EBITDA Analysis'!V338,'EBITDA Analysis'!V257,'EBITDA Analysis'!V311,'EBITDA Analysis'!V364,'EBITDA Analysis'!I151,'EBITDA Analysis'!V41,'EBITDA Analysis'!V12,'EBITDA Analysis'!V285,'EBITDA Analysis'!I285,'EBITDA Analysis'!I414,'EBITDA Analysis'!V467,'EBITDA Analysis'!V389,'EBITDA Analysis'!V439,'EBITDA Analysis'!V414,'EBITDA Analysis'!I439,'EBITDA Analysis'!I231) -> 14860000 | L13: =CHOOSE($E$35,'EBITDA Analysis'!J467,'EBITDA Analysis'!W205,'EBITDA Analysis'!J12,'EBITDA Analysis'!J41,'EBITDA Analysis'!W338,'EBITDA Analysis'!W257,'EBITDA Analysis'!W311,'EBITDA Analysis'!W364,'EBITDA Analysis'!J151,'EBITDA Analysis'!W41,'EBITDA Analysis'!W12,'EBITDA Analysis'!W285,'EBITDA Analysis'!J285,'EBITDA Analysis'!J414,'EBITDA Analysis'!W467,'EBITDA Analysis'!W389,'EBITDA Analysis'!W439,'EBITDA Analysis'!W414,'EBITDA Analysis'!J439,'EBITDA Analysis'!J231) -> FALSE | M13: =CHOOSE($E$35,'EBITDA Analysis'!K467,'EBITDA Analysis'!X205,'EBITDA Analysis'!K12,'EBITDA Analysis'!K41,'EBITDA Analysis'!X338,'EBITDA Analysis'!X257,'EBITDA Analysis'!X311,'EBITDA Analysis'!X364,'EBITDA Analysis'!K151,'EBITDA Analysis'!X41,'EBITDA Analysis'!X12,'EBITDA Analysis'!X285,'EBITDA Analysis'!K285,'EBITDA Analysis'!K414,'EBITDA Analysis'!X467,'EBITDA Analysis'!X389,'EBITDA Analysis'!X439,'EBITDA Analysis'!X414,'EBITDA Analysis'!K439,'EBITDA Analysis'!K231) -> FALSE | N13: =CHOOSE($E$35,'EBITDA Analysis'!L467,'EBITDA Analysis'!Y205,'EBITDA Analysis'!L12,'EBITDA Analysis'!L41,'EBITDA Analysis'!Y338,'EBITDA Analysis'!Y257,'EBITDA Analysis'!Y311,'EBITDA Analysis'!Y364,'EBITDA Analysis'!L151,'EBITDA Analysis'!Y41,'EBITDA Analysis'!Y12,'EBITDA Analysis'!Y285,'EBITDA Analysis'!L285,'EBITDA Analysis'!L414,'EBITDA Analysis'!Y467,'EBITDA Analysis'!Y389,'EBITDA Analysis'!Y439,'EBITDA Analysis'!Y414,'EBITDA Analysis'!L439,'EBITDA Analysis'!L231) -> 14790000 | O13: FALSE | P13: 3 | R13: =R12+1 -> 2 | S13: 9 | T13: Apple | V13: 0 | W13: FALSE | X13: 55080000 | Y13: 60600000 | Z13: 77890000 | AA13: 68990000 | AB13: 70190000 | AC13: FALSE | AD13: FALSE | AE13: 78530000 | AF13: =IFERROR(IRR(AH13:BG13),"") -> 
C14: ='Data Current'!D17 -> Coca-Cola | E14: =CHOOSE($E$35,'EBITDA Analysis'!C468,'EBITDA Analysis'!P206,'EBITDA Analysis'!C13,'EBITDA Analysis'!C42,'EBITDA Analysis'!P339,'EBITDA Analysis'!P258,'EBITDA Analysis'!P312,'EBITDA Analysis'!P365,'EBITDA Analysis'!C152,'EBITDA Analysis'!P42,'EBITDA Analysis'!P13,'EBITDA Analysis'!P286,'EBITDA Analysis'!C286,'EBITDA Analysis'!C415,'EBITDA Analysis'!P468,'EBITDA Analysis'!P390,'EBITDA Analysis'!P440,'EBITDA Analysis'!P415,'EBITDA Analysis'!C440,'EBITDA Analysis'!C232) -> 0 | F14: =CHOOSE($E$35,'EBITDA Analysis'!D468,'EBITDA Analysis'!Q206,'EBITDA Analysis'!D13,'EBITDA Analysis'!D42,'EBITDA Analysis'!Q339,'EBITDA Analysis'!Q258,'EBITDA Analysis'!Q312,'EBITDA Analysis'!Q365,'EBITDA Analysis'!D152,'EBITDA Analysis'!Q42,'EBITDA Analysis'!Q13,'EBITDA Analysis'!Q286,'EBITDA Analysis'!D286,'EBITDA Analysis'!D415,'EBITDA Analysis'!Q468,'EBITDA Analysis'!Q390,'EBITDA Analysis'!Q440,'EBITDA Analysis'!Q415,'EBITDA Analysis'!D440,'EBITDA Analysis'!D232) -> FALSE | G14: =CHOOSE($E$35,'EBITDA Analysis'!E468,'EBITDA Analysis'!R206,'EBITDA Analysis'!E13,'EBITDA Analysis'!E42,'EBITDA Analysis'!R339,'EBITDA Analysis'!R258,'EBITDA Analysis'!R312,'EBITDA Analysis'!R365,'EBITDA Analysis'!E152,'EBITDA Analysis'!R42,'EBITDA Analysis'!R13,'EBITDA Analysis'!R286,'EBITDA Analysis'!E286,'EBITDA Analysis'!E415,'EBITDA Analysis'!R468,'EBITDA Analysis'!R390,'EBITDA Analysis'!R440,'EBITDA Analysis'!R415,'EBITDA Analysis'!E440,'EBITDA Analysis'!E232) -> 12970000 | H14: =CHOOSE($E$35,'EBITDA Analysis'!F468,'EBITDA Analysis'!S206,'EBITDA Analysis'!F13,'EBITDA Analysis'!F42,'EBITDA Analysis'!S339,'EBITDA Analysis'!S258,'EBITDA Analysis'!S312,'EBITDA Analysis'!S365,'EBITDA Analysis'!F152,'EBITDA Analysis'!S42,'EBITDA Analysis'!S13,'EBITDA Analysis'!S286,'EBITDA Analysis'!F286,'EBITDA Analysis'!F415,'EBITDA Analysis'!S468,'EBITDA Analysis'!S390,'EBITDA Analysis'!S440,'EBITDA Analysis'!S415,'EBITDA Analysis'!F440,'EBITDA Analysis'!F232) -> 12520000 | I14: =CHOOSE($E$35,'EBITDA Analysis'!G468,'EBITDA Analysis'!T206,'EBITDA Analysis'!G13,'EBITDA Analysis'!G42,'EBITDA Analysis'!T339,'EBITDA Analysis'!T258,'EBITDA Analysis'!T312,'EBITDA Analysis'!T365,'EBITDA Analysis'!G152,'EBITDA Analysis'!T42,'EBITDA Analysis'!T13,'EBITDA Analysis'!T286,'EBITDA Analysis'!G286,'EBITDA Analysis'!G415,'EBITDA Analysis'!T468,'EBITDA Analysis'!T390,'EBITDA Analysis'!T440,'EBITDA Analysis'!T415,'EBITDA Analysis'!G440,'EBITDA Analysis'!G232) -> 11770000 | J14: =CHOOSE($E$35,'EBITDA Analysis'!H468,'EBITDA Analysis'!U206,'EBITDA Analysis'!H13,'EBITDA Analysis'!H42,'EBITDA Analysis'!U339,'EBITDA Analysis'!U258,'EBITDA Analysis'!U312,'EBITDA Analysis'!U365,'EBITDA Analysis'!H152,'EBITDA Analysis'!U42,'EBITDA Analysis'!U13,'EBITDA Analysis'!U286,'EBITDA Analysis'!H286,'EBITDA Analysis'!H415,'EBITDA Analysis'!U468,'EBITDA Analysis'!U390,'EBITDA Analysis'!U440,'EBITDA Analysis'!U415,'EBITDA Analysis'!H440,'EBITDA Analysis'!H232) -> 11150000 | K14: =CHOOSE($E$35,'EBITDA Analysis'!I468,'EBITDA Analysis'!V206,'EBITDA Analysis'!I13,'EBITDA Analysis'!I42,'EBITDA Analysis'!V339,'EBITDA Analysis'!V258,'EBITDA Analysis'!V312,'EBITDA Analysis'!V365,'EBITDA Analysis'!I152,'EBITDA Analysis'!V42,'EBITDA Analysis'!V13,'EBITDA Analysis'!V286,'EBITDA Analysis'!I286,'EBITDA Analysis'!I415,'EBITDA Analysis'!V468,'EBITDA Analysis'!V390,'EBITDA Analysis'!V440,'EBITDA Analysis'!V415,'EBITDA Analysis'!I440,'EBITDA Analysis'!I232) -> 10420000 | L14: =CHOOSE($E$35,'EBITDA Analysis'!J468,'EBITDA Analysis'!W206,'EBITDA Analysis'!J13,'EBITDA Analysis'!J42,'EBITDA Analysis'!W339,'EBITDA Analysis'!W258,'EBITDA Analysis'!W312,'EBITDA Analysis'!W365,'EBITDA Analysis'!J152,'EBITDA Analysis'!W42,'EBITDA Analysis'!W13,'EBITDA Analysis'!W286,'EBITDA Analysis'!J286,'EBITDA Analysis'!J415,'EBITDA Analysis'!W468,'EBITDA Analysis'!W390,'EBITDA Analysis'!W440,'EBITDA Analysis'!W415,'EBITDA Analysis'!J440,'EBITDA Analysis'!J232) -> FALSE | M14: =CHOOSE($E$35,'EBITDA Analysis'!K468,'EBITDA Analysis'!X206,'EBITDA Analysis'!K13,'EBITDA Analysis'!K42,'EBITDA Analysis'!X339,'EBITDA Analysis'!X258,'EBITDA Analysis'!X312,'EBITDA Analysis'!X365,'EBITDA Analysis'!K152,'EBITDA Analysis'!X42,'EBITDA Analysis'!X13,'EBITDA Analysis'!X286,'EBITDA Analysis'!K286,'EBITDA Analysis'!K415,'EBITDA Analysis'!X468,'EBITDA Analysis'!X390,'EBITDA Analysis'!X440,'EBITDA Analysis'!X415,'EBITDA Analysis'!K440,'EBITDA Analysis'!K232) -> FALSE | N14: =CHOOSE($E$35,'EBITDA Analysis'!L468,'EBITDA Analysis'!Y206,'EBITDA Analysis'!L13,'EBITDA Analysis'!L42,'EBITDA Analysis'!Y339,'EBITDA Analysis'!Y258,'EBITDA Analysis'!Y312,'EBITDA Analysis'!Y365,'EBITDA Analysis'!L152,'EBITDA Analysis'!Y42,'EBITDA Analysis'!Y13,'EBITDA Analysis'!Y286,'EBITDA Analysis'!L286,'EBITDA Analysis'!L415,'EBITDA Analysis'!Y468,'EBITDA Analysis'!Y390,'EBITDA Analysis'!Y440,'EBITDA Analysis'!Y415,'EBITDA Analysis'!L440,'EBITDA Analysis'!L232) -> 10990000 | O14: FALSE | P14: 3 | R14: =R13+1 -> 3 | S14: 10 | T14: Boeing | V14: 0 | W14: FALSE | X14: 8170000 | Y14: 9100000 | Z14: 9000000 | AA14: 7450000 | AB14: 12120000 | AC14: FALSE | AD14: FALSE | AE14: 13060000
C15: ='Data Current'!D18 -> Disney | E15: =CHOOSE($E$35,'EBITDA Analysis'!C469,'EBITDA Analysis'!P207,'EBITDA Analysis'!C14,'EBITDA Analysis'!C43,'EBITDA Analysis'!P340,'EBITDA Analysis'!P259,'EBITDA Analysis'!P313,'EBITDA Analysis'!P366,'EBITDA Analysis'!C153,'EBITDA Analysis'!P43,'EBITDA Analysis'!P14,'EBITDA Analysis'!P287,'EBITDA Analysis'!C287,'EBITDA Analysis'!C416,'EBITDA Analysis'!P469,'EBITDA Analysis'!P391,'EBITDA Analysis'!P441,'EBITDA Analysis'!P416,'EBITDA Analysis'!C441,'EBITDA Analysis'!C233) -> 0 | F15: =CHOOSE($E$35,'EBITDA Analysis'!D469,'EBITDA Analysis'!Q207,'EBITDA Analysis'!D14,'EBITDA Analysis'!D43,'EBITDA Analysis'!Q340,'EBITDA Analysis'!Q259,'EBITDA Analysis'!Q313,'EBITDA Analysis'!Q366,'EBITDA Analysis'!D153,'EBITDA Analysis'!Q43,'EBITDA Analysis'!Q14,'EBITDA Analysis'!Q287,'EBITDA Analysis'!D287,'EBITDA Analysis'!D416,'EBITDA Analysis'!Q469,'EBITDA Analysis'!Q391,'EBITDA Analysis'!Q441,'EBITDA Analysis'!Q416,'EBITDA Analysis'!D441,'EBITDA Analysis'!D233) -> FALSE | G15: =CHOOSE($E$35,'EBITDA Analysis'!E469,'EBITDA Analysis'!R207,'EBITDA Analysis'!E14,'EBITDA Analysis'!E43,'EBITDA Analysis'!R340,'EBITDA Analysis'!R259,'EBITDA Analysis'!R313,'EBITDA Analysis'!R366,'EBITDA Analysis'!E153,'EBITDA Analysis'!R43,'EBITDA Analysis'!R14,'EBITDA Analysis'!R287,'EBITDA Analysis'!E287,'EBITDA Analysis'!E416,'EBITDA Analysis'!R469,'EBITDA Analysis'!R391,'EBITDA Analysis'!R441,'EBITDA Analysis'!R416,'EBITDA Analysis'!E441,'EBITDA Analysis'!E233) -> 11570000 | H15: =CHOOSE($E$35,'EBITDA Analysis'!F469,'EBITDA Analysis'!S207,'EBITDA Analysis'!F14,'EBITDA Analysis'!F43,'EBITDA Analysis'!S340,'EBITDA Analysis'!S259,'EBITDA Analysis'!S313,'EBITDA Analysis'!S366,'EBITDA Analysis'!F153,'EBITDA Analysis'!S43,'EBITDA Analysis'!S14,'EBITDA Analysis'!S287,'EBITDA Analysis'!F287,'EBITDA Analysis'!F416,'EBITDA Analysis'!S469,'EBITDA Analysis'!S391,'EBITDA Analysis'!S441,'EBITDA Analysis'!S416,'EBITDA Analysis'!F441,'EBITDA Analysis'!F233) -> 13810000 | I15: =CHOOSE($E$35,'EBITDA Analysis'!G469,'EBITDA Analysis'!T207,'EBITDA Analysis'!G14,'EBITDA Analysis'!G43,'EBITDA Analysis'!T340,'EBITDA Analysis'!T259,'EBITDA Analysis'!T313,'EBITDA Analysis'!T366,'EBITDA Analysis'!G153,'EBITDA Analysis'!T43,'EBITDA Analysis'!T14,'EBITDA Analysis'!T287,'EBITDA Analysis'!G287,'EBITDA Analysis'!G416,'EBITDA Analysis'!T469,'EBITDA Analysis'!T391,'EBITDA Analysis'!T441,'EBITDA Analysis'!T416,'EBITDA Analysis'!G441,'EBITDA Analysis'!G233) -> 15200000 | J15: =CHOOSE($E$35,'EBITDA Analysis'!H469,'EBITDA Analysis'!U207,'EBITDA Analysis'!H14,'EBITDA Analysis'!H43,'EBITDA Analysis'!U340,'EBITDA Analysis'!U259,'EBITDA Analysis'!U313,'EBITDA Analysis'!U366,'EBITDA Analysis'!H153,'EBITDA Analysis'!U43,'EBITDA Analysis'!U14,'EBITDA Analysis'!U287,'EBITDA Analysis'!H287,'EBITDA Analysis'!H416,'EBITDA Analysis'!U469,'EBITDA Analysis'!U391,'EBITDA Analysis'!U441,'EBITDA Analysis'!U416,'EBITDA Analysis'!H441,'EBITDA Analysis'!H233) -> 16680000 | K15: =CHOOSE($E$35,'EBITDA Analysis'!I469,'EBITDA Analysis'!V207,'EBITDA Analysis'!I14,'EBITDA Analysis'!I43,'EBITDA Analysis'!V340,'EBITDA Analysis'!V259,'EBITDA Analysis'!V313,'EBITDA Analysis'!V366,'EBITDA Analysis'!I153,'EBITDA Analysis'!V43,'EBITDA Analysis'!V14,'EBITDA Analysis'!V287,'EBITDA Analysis'!I287,'EBITDA Analysis'!I416,'EBITDA Analysis'!V469,'EBITDA Analysis'!V391,'EBITDA Analysis'!V441,'EBITDA Analysis'!V416,'EBITDA Analysis'!I441,'EBITDA Analysis'!I233) -> 16590000 | L15: =CHOOSE($E$35,'EBITDA Analysis'!J469,'EBITDA Analysis'!W207,'EBITDA Analysis'!J14,'EBITDA Analysis'!J43,'EBITDA Analysis'!W340,'EBITDA Analysis'!W259,'EBITDA Analysis'!W313,'EBITDA Analysis'!W366,'EBITDA Analysis'!J153,'EBITDA Analysis'!W43,'EBITDA Analysis'!W14,'EBITDA Analysis'!W287,'EBITDA Analysis'!J287,'EBITDA Analysis'!J416,'EBITDA Analysis'!W469,'EBITDA Analysis'!W391,'EBITDA Analysis'!W441,'EBITDA Analysis'!W416,'EBITDA Analysis'!J441,'EBITDA Analysis'!J233) -> FALSE | M15: =CHOOSE($E$35,'EBITDA Analysis'!K469,'EBITDA Analysis'!X207,'EBITDA Analysis'!K14,'EBITDA Analysis'!K43,'EBITDA Analysis'!X340,'EBITDA Analysis'!X259,'EBITDA Analysis'!X313,'EBITDA Analysis'!X366,'EBITDA Analysis'!K153,'EBITDA Analysis'!X43,'EBITDA Analysis'!X14,'EBITDA Analysis'!X287,'EBITDA Analysis'!K287,'EBITDA Analysis'!K416,'EBITDA Analysis'!X469,'EBITDA Analysis'!X391,'EBITDA Analysis'!X441,'EBITDA Analysis'!X416,'EBITDA Analysis'!K441,'EBITDA Analysis'!K233) -> FALSE | N15: =CHOOSE($E$35,'EBITDA Analysis'!L469,'EBITDA Analysis'!Y207,'EBITDA Analysis'!L14,'EBITDA Analysis'!L43,'EBITDA Analysis'!Y340,'EBITDA Analysis'!Y259,'EBITDA Analysis'!Y313,'EBITDA Analysis'!Y366,'EBITDA Analysis'!L153,'EBITDA Analysis'!Y43,'EBITDA Analysis'!Y14,'EBITDA Analysis'!Y287,'EBITDA Analysis'!L287,'EBITDA Analysis'!L416,'EBITDA Analysis'!Y469,'EBITDA Analysis'!Y391,'EBITDA Analysis'!Y441,'EBITDA Analysis'!Y416,'EBITDA Analysis'!L441,'EBITDA Analysis'!L233) -> 17420000 | O15: FALSE | P15: 3 | R15: 4
C16: ='Data Current'!D19 -> E I du Pont de Nemours and Co | E16: =CHOOSE($E$35,'EBITDA Analysis'!C470,'EBITDA Analysis'!P208,'EBITDA Analysis'!C15,'EBITDA Analysis'!C44,'EBITDA Analysis'!P341,'EBITDA Analysis'!P260,'EBITDA Analysis'!P314,'EBITDA Analysis'!P367,'EBITDA Analysis'!C154,'EBITDA Analysis'!P44,'EBITDA Analysis'!P15,'EBITDA Analysis'!P288,'EBITDA Analysis'!C288,'EBITDA Analysis'!C417,'EBITDA Analysis'!P470,'EBITDA Analysis'!P392,'EBITDA Analysis'!P442,'EBITDA Analysis'!P417,'EBITDA Analysis'!C442,'EBITDA Analysis'!C234) -> 0 | F16: =CHOOSE($E$35,'EBITDA Analysis'!D470,'EBITDA Analysis'!Q208,'EBITDA Analysis'!D15,'EBITDA Analysis'!D44,'EBITDA Analysis'!Q341,'EBITDA Analysis'!Q260,'EBITDA Analysis'!Q314,'EBITDA Analysis'!Q367,'EBITDA Analysis'!D154,'EBITDA Analysis'!Q44,'EBITDA Analysis'!Q15,'EBITDA Analysis'!Q288,'EBITDA Analysis'!D288,'EBITDA Analysis'!D417,'EBITDA Analysis'!Q470,'EBITDA Analysis'!Q392,'EBITDA Analysis'!Q442,'EBITDA Analysis'!Q417,'EBITDA Analysis'!D442,'EBITDA Analysis'!D234) -> FALSE | G16: =CHOOSE($E$35,'EBITDA Analysis'!E470,'EBITDA Analysis'!R208,'EBITDA Analysis'!E15,'EBITDA Analysis'!E44,'EBITDA Analysis'!R341,'EBITDA Analysis'!R260,'EBITDA Analysis'!R314,'EBITDA Analysis'!R367,'EBITDA Analysis'!E154,'EBITDA Analysis'!R44,'EBITDA Analysis'!R15,'EBITDA Analysis'!R288,'EBITDA Analysis'!E288,'EBITDA Analysis'!E417,'EBITDA Analysis'!R470,'EBITDA Analysis'!R392,'EBITDA Analysis'!R442,'EBITDA Analysis'!R417,'EBITDA Analysis'!E442,'EBITDA Analysis'!E234) -> 7170000 | H16: =CHOOSE($E$35,'EBITDA Analysis'!F470,'EBITDA Analysis'!S208,'EBITDA Analysis'!F15,'EBITDA Analysis'!F44,'EBITDA Analysis'!S341,'EBITDA Analysis'!S260,'EBITDA Analysis'!S314,'EBITDA Analysis'!S367,'EBITDA Analysis'!F154,'EBITDA Analysis'!S44,'EBITDA Analysis'!S15,'EBITDA Analysis'!S288,'EBITDA Analysis'!F288,'EBITDA Analysis'!F417,'EBITDA Analysis'!S470,'EBITDA Analysis'!S392,'EBITDA Analysis'!S442,'EBITDA Analysis'!S417,'EBITDA Analysis'!F442,'EBITDA Analysis'!F234) -> 8340000 | I16: =CHOOSE($E$35,'EBITDA Analysis'!G470,'EBITDA Analysis'!T208,'EBITDA Analysis'!G15,'EBITDA Analysis'!G44,'EBITDA Analysis'!T341,'EBITDA Analysis'!T260,'EBITDA Analysis'!T314,'EBITDA Analysis'!T367,'EBITDA Analysis'!G154,'EBITDA Analysis'!T44,'EBITDA Analysis'!T15,'EBITDA Analysis'!T288,'EBITDA Analysis'!G288,'EBITDA Analysis'!G417,'EBITDA Analysis'!T470,'EBITDA Analysis'!T392,'EBITDA Analysis'!T442,'EBITDA Analysis'!T417,'EBITDA Analysis'!G442,'EBITDA Analysis'!G234) -> 8620000 | J16: =CHOOSE($E$35,'EBITDA Analysis'!H470,'EBITDA Analysis'!U208,'EBITDA Analysis'!H15,'EBITDA Analysis'!H44,'EBITDA Analysis'!U341,'EBITDA Analysis'!U260,'EBITDA Analysis'!U314,'EBITDA Analysis'!U367,'EBITDA Analysis'!H154,'EBITDA Analysis'!U44,'EBITDA Analysis'!U15,'EBITDA Analysis'!U288,'EBITDA Analysis'!H288,'EBITDA Analysis'!H417,'EBITDA Analysis'!U470,'EBITDA Analysis'!U392,'EBITDA Analysis'!U442,'EBITDA Analysis'!U417,'EBITDA Analysis'!H442,'EBITDA Analysis'!H234) -> 8760000 | K16: =CHOOSE($E$35,'EBITDA Analysis'!I470,'EBITDA Analysis'!V208,'EBITDA Analysis'!I15,'EBITDA Analysis'!I44,'EBITDA Analysis'!V341,'EBITDA Analysis'!V260,'EBITDA Analysis'!V314,'EBITDA Analysis'!V367,'EBITDA Analysis'!I154,'EBITDA Analysis'!V44,'EBITDA Analysis'!V15,'EBITDA Analysis'!V288,'EBITDA Analysis'!I288,'EBITDA Analysis'!I417,'EBITDA Analysis'!V470,'EBITDA Analysis'!V392,'EBITDA Analysis'!V442,'EBITDA Analysis'!V417,'EBITDA Analysis'!I442,'EBITDA Analysis'!I234) -> 10300000 | L16: =CHOOSE($E$35,'EBITDA Analysis'!J470,'EBITDA Analysis'!W208,'EBITDA Analysis'!J15,'EBITDA Analysis'!J44,'EBITDA Analysis'!W341,'EBITDA Analysis'!W260,'EBITDA Analysis'!W314,'EBITDA Analysis'!W367,'EBITDA Analysis'!J154,'EBITDA Analysis'!W44,'EBITDA Analysis'!W15,'EBITDA Analysis'!W288,'EBITDA Analysis'!J288,'EBITDA Analysis'!J417,'EBITDA Analysis'!W470,'EBITDA Analysis'!W392,'EBITDA Analysis'!W442,'EBITDA Analysis'!W417,'EBITDA Analysis'!J442,'EBITDA Analysis'!J234) -> FALSE | M16: =CHOOSE($E$35,'EBITDA Analysis'!K470,'EBITDA Analysis'!X208,'EBITDA Analysis'!K15,'EBITDA Analysis'!K44,'EBITDA Analysis'!X341,'EBITDA Analysis'!X260,'EBITDA Analysis'!X314,'EBITDA Analysis'!X367,'EBITDA Analysis'!K154,'EBITDA Analysis'!X44,'EBITDA Analysis'!X15,'EBITDA Analysis'!X288,'EBITDA Analysis'!K288,'EBITDA Analysis'!K417,'EBITDA Analysis'!X470,'EBITDA Analysis'!X392,'EBITDA Analysis'!X442,'EBITDA Analysis'!X417,'EBITDA Analysis'!K442,'EBITDA Analysis'!K234) -> FALSE | N16: =CHOOSE($E$35,'EBITDA Analysis'!L470,'EBITDA Analysis'!Y208,'EBITDA Analysis'!L15,'EBITDA Analysis'!L44,'EBITDA Analysis'!Y341,'EBITDA Analysis'!Y260,'EBITDA Analysis'!Y314,'EBITDA Analysis'!Y367,'EBITDA Analysis'!L154,'EBITDA Analysis'!Y44,'EBITDA Analysis'!Y15,'EBITDA Analysis'!Y288,'EBITDA Analysis'!L288,'EBITDA Analysis'!L417,'EBITDA Analysis'!Y470,'EBITDA Analysis'!Y392,'EBITDA Analysis'!Y442,'EBITDA Analysis'!Y417,'EBITDA Analysis'!L442,'EBITDA Analysis'!L234) -> 15850000 | O16: FALSE | P16: 3 | R16: 5
C17: ='Data Current'!D20 -> Exxon Mobil | E17: =CHOOSE($E$35,'EBITDA Analysis'!C471,'EBITDA Analysis'!P209,'EBITDA Analysis'!C16,'EBITDA Analysis'!C45,'EBITDA Analysis'!P342,'EBITDA Analysis'!P261,'EBITDA Analysis'!P315,'EBITDA Analysis'!P368,'EBITDA Analysis'!C155,'EBITDA Analysis'!P45,'EBITDA Analysis'!P16,'EBITDA Analysis'!P289,'EBITDA Analysis'!C289,'EBITDA Analysis'!C418,'EBITDA Analysis'!P471,'EBITDA Analysis'!P393,'EBITDA Analysis'!P443,'EBITDA Analysis'!P418,'EBITDA Analysis'!C443,'EBITDA Analysis'!C235) -> 0 | F17: =CHOOSE($E$35,'EBITDA Analysis'!D471,'EBITDA Analysis'!Q209,'EBITDA Analysis'!D16,'EBITDA Analysis'!D45,'EBITDA Analysis'!Q342,'EBITDA Analysis'!Q261,'EBITDA Analysis'!Q315,'EBITDA Analysis'!Q368,'EBITDA Analysis'!D155,'EBITDA Analysis'!Q45,'EBITDA Analysis'!Q16,'EBITDA Analysis'!Q289,'EBITDA Analysis'!D289,'EBITDA Analysis'!D418,'EBITDA Analysis'!Q471,'EBITDA Analysis'!Q393,'EBITDA Analysis'!Q443,'EBITDA Analysis'!Q418,'EBITDA Analysis'!D443,'EBITDA Analysis'!D235) -> FALSE | G17: =CHOOSE($E$35,'EBITDA Analysis'!E471,'EBITDA Analysis'!R209,'EBITDA Analysis'!E16,'EBITDA Analysis'!E45,'EBITDA Analysis'!R342,'EBITDA Analysis'!R261,'EBITDA Analysis'!R315,'EBITDA Analysis'!R368,'EBITDA Analysis'!E155,'EBITDA Analysis'!R45,'EBITDA Analysis'!R16,'EBITDA Analysis'!R289,'EBITDA Analysis'!E289,'EBITDA Analysis'!E418,'EBITDA Analysis'!R471,'EBITDA Analysis'!R393,'EBITDA Analysis'!R443,'EBITDA Analysis'!R418,'EBITDA Analysis'!E443,'EBITDA Analysis'!E235) -> 57480000 | H17: =CHOOSE($E$35,'EBITDA Analysis'!F471,'EBITDA Analysis'!S209,'EBITDA Analysis'!F16,'EBITDA Analysis'!F45,'EBITDA Analysis'!S342,'EBITDA Analysis'!S261,'EBITDA Analysis'!S315,'EBITDA Analysis'!S368,'EBITDA Analysis'!F155,'EBITDA Analysis'!S45,'EBITDA Analysis'!S16,'EBITDA Analysis'!S289,'EBITDA Analysis'!F289,'EBITDA Analysis'!F418,'EBITDA Analysis'!S471,'EBITDA Analysis'!S393,'EBITDA Analysis'!S443,'EBITDA Analysis'!S418,'EBITDA Analysis'!F443,'EBITDA Analysis'!F235) -> 51380000 | I17: =CHOOSE($E$35,'EBITDA Analysis'!G471,'EBITDA Analysis'!T209,'EBITDA Analysis'!G16,'EBITDA Analysis'!G45,'EBITDA Analysis'!T342,'EBITDA Analysis'!T261,'EBITDA Analysis'!T315,'EBITDA Analysis'!T368,'EBITDA Analysis'!G155,'EBITDA Analysis'!T45,'EBITDA Analysis'!T16,'EBITDA Analysis'!T289,'EBITDA Analysis'!G289,'EBITDA Analysis'!G418,'EBITDA Analysis'!T471,'EBITDA Analysis'!T393,'EBITDA Analysis'!T443,'EBITDA Analysis'!T418,'EBITDA Analysis'!G443,'EBITDA Analysis'!G235) -> 30930000 | J17: =CHOOSE($E$35,'EBITDA Analysis'!H471,'EBITDA Analysis'!U209,'EBITDA Analysis'!H16,'EBITDA Analysis'!H45,'EBITDA Analysis'!U342,'EBITDA Analysis'!U261,'EBITDA Analysis'!U315,'EBITDA Analysis'!U368,'EBITDA Analysis'!H155,'EBITDA Analysis'!U45,'EBITDA Analysis'!U16,'EBITDA Analysis'!U289,'EBITDA Analysis'!H289,'EBITDA Analysis'!H418,'EBITDA Analysis'!U471,'EBITDA Analysis'!U393,'EBITDA Analysis'!U443,'EBITDA Analysis'!U418,'EBITDA Analysis'!H443,'EBITDA Analysis'!H235) -> 23240000 | K17: =CHOOSE($E$35,'EBITDA Analysis'!I471,'EBITDA Analysis'!V209,'EBITDA Analysis'!I16,'EBITDA Analysis'!I45,'EBITDA Analysis'!V342,'EBITDA Analysis'!V261,'EBITDA Analysis'!V315,'EBITDA Analysis'!V368,'EBITDA Analysis'!I155,'EBITDA Analysis'!V45,'EBITDA Analysis'!V16,'EBITDA Analysis'!V289,'EBITDA Analysis'!I289,'EBITDA Analysis'!I418,'EBITDA Analysis'!V471,'EBITDA Analysis'!V393,'EBITDA Analysis'!V443,'EBITDA Analysis'!V418,'EBITDA Analysis'!I443,'EBITDA Analysis'!I235) -> 31970000 | L17: =CHOOSE($E$35,'EBITDA Analysis'!J471,'EBITDA Analysis'!W209,'EBITDA Analysis'!J16,'EBITDA Analysis'!J45,'EBITDA Analysis'!W342,'EBITDA Analysis'!W261,'EBITDA Analysis'!W315,'EBITDA Analysis'!W368,'EBITDA Analysis'!J155,'EBITDA Analysis'!W45,'EBITDA Analysis'!W16,'EBITDA Analysis'!W289,'EBITDA Analysis'!J289,'EBITDA Analysis'!J418,'EBITDA Analysis'!W471,'EBITDA Analysis'!W393,'EBITDA Analysis'!W443,'EBITDA Analysis'!W418,'EBITDA Analysis'!J443,'EBITDA Analysis'!J235) -> FALSE | M17: =CHOOSE($E$35,'EBITDA Analysis'!K471,'EBITDA Analysis'!X209,'EBITDA Analysis'!K16,'EBITDA Analysis'!K45,'EBITDA Analysis'!X342,'EBITDA Analysis'!X261,'EBITDA Analysis'!X315,'EBITDA Analysis'!X368,'EBITDA Analysis'!K155,'EBITDA Analysis'!X45,'EBITDA Analysis'!X16,'EBITDA Analysis'!X289,'EBITDA Analysis'!K289,'EBITDA Analysis'!K418,'EBITDA Analysis'!X471,'EBITDA Analysis'!X393,'EBITDA Analysis'!X443,'EBITDA Analysis'!X418,'EBITDA Analysis'!K443,'EBITDA Analysis'!K235) -> FALSE | N17: =CHOOSE($E$35,'EBITDA Analysis'!L471,'EBITDA Analysis'!Y209,'EBITDA Analysis'!L16,'EBITDA Analysis'!L45,'EBITDA Analysis'!Y342,'EBITDA Analysis'!Y261,'EBITDA Analysis'!Y315,'EBITDA Analysis'!Y368,'EBITDA Analysis'!L155,'EBITDA Analysis'!Y45,'EBITDA Analysis'!Y16,'EBITDA Analysis'!Y289,'EBITDA Analysis'!L289,'EBITDA Analysis'!L418,'EBITDA Analysis'!Y471,'EBITDA Analysis'!Y393,'EBITDA Analysis'!Y443,'EBITDA Analysis'!Y418,'EBITDA Analysis'!L443,'EBITDA Analysis'!L235) -> 36850000 | O17: FALSE | P17: 3 | R17: 6
C18: ='Data Current'!D21 -> General Electric | E18: =CHOOSE($E$35,'EBITDA Analysis'!C472,'EBITDA Analysis'!P210,'EBITDA Analysis'!C17,'EBITDA Analysis'!C46,'EBITDA Analysis'!P343,'EBITDA Analysis'!P262,'EBITDA Analysis'!P316,'EBITDA Analysis'!P369,'EBITDA Analysis'!C156,'EBITDA Analysis'!P46,'EBITDA Analysis'!P17,'EBITDA Analysis'!P290,'EBITDA Analysis'!C290,'EBITDA Analysis'!C419,'EBITDA Analysis'!P472,'EBITDA Analysis'!P394,'EBITDA Analysis'!P444,'EBITDA Analysis'!P419,'EBITDA Analysis'!C444,'EBITDA Analysis'!C236) -> 0 | F18: =CHOOSE($E$35,'EBITDA Analysis'!D472,'EBITDA Analysis'!Q210,'EBITDA Analysis'!D17,'EBITDA Analysis'!D46,'EBITDA Analysis'!Q343,'EBITDA Analysis'!Q262,'EBITDA Analysis'!Q316,'EBITDA Analysis'!Q369,'EBITDA Analysis'!D156,'EBITDA Analysis'!Q46,'EBITDA Analysis'!Q17,'EBITDA Analysis'!Q290,'EBITDA Analysis'!D290,'EBITDA Analysis'!D419,'EBITDA Analysis'!Q472,'EBITDA Analysis'!Q394,'EBITDA Analysis'!Q444,'EBITDA Analysis'!Q419,'EBITDA Analysis'!D444,'EBITDA Analysis'!D236) -> FALSE | G18: =CHOOSE($E$35,'EBITDA Analysis'!E472,'EBITDA Analysis'!R210,'EBITDA Analysis'!E17,'EBITDA Analysis'!E46,'EBITDA Analysis'!R343,'EBITDA Analysis'!R262,'EBITDA Analysis'!R316,'EBITDA Analysis'!R369,'EBITDA Analysis'!E156,'EBITDA Analysis'!R46,'EBITDA Analysis'!R17,'EBITDA Analysis'!R290,'EBITDA Analysis'!E290,'EBITDA Analysis'!E419,'EBITDA Analysis'!R472,'EBITDA Analysis'!R394,'EBITDA Analysis'!R444,'EBITDA Analysis'!R419,'EBITDA Analysis'!E444,'EBITDA Analysis'!E236) -> 36810000 | H18: =CHOOSE($E$35,'EBITDA Analysis'!F472,'EBITDA Analysis'!S210,'EBITDA Analysis'!F17,'EBITDA Analysis'!F46,'EBITDA Analysis'!S343,'EBITDA Analysis'!S262,'EBITDA Analysis'!S316,'EBITDA Analysis'!S369,'EBITDA Analysis'!F156,'EBITDA Analysis'!S46,'EBITDA Analysis'!S17,'EBITDA Analysis'!S290,'EBITDA Analysis'!F290,'EBITDA Analysis'!F419,'EBITDA Analysis'!S472,'EBITDA Analysis'!S394,'EBITDA Analysis'!S444,'EBITDA Analysis'!S419,'EBITDA Analysis'!F444,'EBITDA Analysis'!F236) -> 19910000 | I18: =CHOOSE($E$35,'EBITDA Analysis'!G472,'EBITDA Analysis'!T210,'EBITDA Analysis'!G17,'EBITDA Analysis'!G46,'EBITDA Analysis'!T343,'EBITDA Analysis'!T262,'EBITDA Analysis'!T316,'EBITDA Analysis'!T369,'EBITDA Analysis'!G156,'EBITDA Analysis'!T46,'EBITDA Analysis'!T17,'EBITDA Analysis'!T290,'EBITDA Analysis'!G290,'EBITDA Analysis'!G419,'EBITDA Analysis'!T472,'EBITDA Analysis'!T394,'EBITDA Analysis'!T444,'EBITDA Analysis'!T419,'EBITDA Analysis'!G444,'EBITDA Analysis'!G236) -> 18640000 | J18: =CHOOSE($E$35,'EBITDA Analysis'!H472,'EBITDA Analysis'!U210,'EBITDA Analysis'!H17,'EBITDA Analysis'!H46,'EBITDA Analysis'!U343,'EBITDA Analysis'!U262,'EBITDA Analysis'!U316,'EBITDA Analysis'!U369,'EBITDA Analysis'!H156,'EBITDA Analysis'!U46,'EBITDA Analysis'!U17,'EBITDA Analysis'!U290,'EBITDA Analysis'!H290,'EBITDA Analysis'!H419,'EBITDA Analysis'!U472,'EBITDA Analysis'!U394,'EBITDA Analysis'!U444,'EBITDA Analysis'!U419,'EBITDA Analysis'!H444,'EBITDA Analysis'!H236) -> 20780000 | K18: =CHOOSE($E$35,'EBITDA Analysis'!I472,'EBITDA Analysis'!V210,'EBITDA Analysis'!I17,'EBITDA Analysis'!I46,'EBITDA Analysis'!V343,'EBITDA Analysis'!V262,'EBITDA Analysis'!V316,'EBITDA Analysis'!V369,'EBITDA Analysis'!I156,'EBITDA Analysis'!V46,'EBITDA Analysis'!V17,'EBITDA Analysis'!V290,'EBITDA Analysis'!I290,'EBITDA Analysis'!I419,'EBITDA Analysis'!V472,'EBITDA Analysis'!V394,'EBITDA Analysis'!V444,'EBITDA Analysis'!V419,'EBITDA Analysis'!I444,'EBITDA Analysis'!I236) -> 7160000 | L18: =CHOOSE($E$35,'EBITDA Analysis'!J472,'EBITDA Analysis'!W210,'EBITDA Analysis'!J17,'EBITDA Analysis'!J46,'EBITDA Analysis'!W343,'EBITDA Analysis'!W262,'EBITDA Analysis'!W316,'EBITDA Analysis'!W369,'EBITDA Analysis'!J156,'EBITDA Analysis'!W46,'EBITDA Analysis'!W17,'EBITDA Analysis'!W290,'EBITDA Analysis'!J290,'EBITDA Analysis'!J419,'EBITDA Analysis'!W472,'EBITDA Analysis'!W394,'EBITDA Analysis'!W444,'EBITDA Analysis'!W419,'EBITDA Analysis'!J444,'EBITDA Analysis'!J236) -> FALSE | M18: =CHOOSE($E$35,'EBITDA Analysis'!K472,'EBITDA Analysis'!X210,'EBITDA Analysis'!K17,'EBITDA Analysis'!K46,'EBITDA Analysis'!X343,'EBITDA Analysis'!X262,'EBITDA Analysis'!X316,'EBITDA Analysis'!X369,'EBITDA Analysis'!K156,'EBITDA Analysis'!X46,'EBITDA Analysis'!X17,'EBITDA Analysis'!X290,'EBITDA Analysis'!K290,'EBITDA Analysis'!K419,'EBITDA Analysis'!X472,'EBITDA Analysis'!X394,'EBITDA Analysis'!X444,'EBITDA Analysis'!X419,'EBITDA Analysis'!K444,'EBITDA Analysis'!K236) -> FALSE | N18: =CHOOSE($E$35,'EBITDA Analysis'!L472,'EBITDA Analysis'!Y210,'EBITDA Analysis'!L17,'EBITDA Analysis'!L46,'EBITDA Analysis'!Y343,'EBITDA Analysis'!Y262,'EBITDA Analysis'!Y316,'EBITDA Analysis'!Y369,'EBITDA Analysis'!L156,'EBITDA Analysis'!Y46,'EBITDA Analysis'!Y17,'EBITDA Analysis'!Y290,'EBITDA Analysis'!L290,'EBITDA Analysis'!L419,'EBITDA Analysis'!Y472,'EBITDA Analysis'!Y394,'EBITDA Analysis'!Y444,'EBITDA Analysis'!Y419,'EBITDA Analysis'!L444,'EBITDA Analysis'!L236) -> 5700000 | O18: FALSE | P18: 3 | R18: 7
C19: ='Data Current'!D22 -> Home Depot | E19: =CHOOSE($E$35,'EBITDA Analysis'!C473,'EBITDA Analysis'!P211,'EBITDA Analysis'!C18,'EBITDA Analysis'!C47,'EBITDA Analysis'!P344,'EBITDA Analysis'!P263,'EBITDA Analysis'!P317,'EBITDA Analysis'!P370,'EBITDA Analysis'!C157,'EBITDA Analysis'!P47,'EBITDA Analysis'!P18,'EBITDA Analysis'!P291,'EBITDA Analysis'!C291,'EBITDA Analysis'!C420,'EBITDA Analysis'!P473,'EBITDA Analysis'!P395,'EBITDA Analysis'!P445,'EBITDA Analysis'!P420,'EBITDA Analysis'!C445,'EBITDA Analysis'!C237) -> 0 | F19: =CHOOSE($E$35,'EBITDA Analysis'!D473,'EBITDA Analysis'!Q211,'EBITDA Analysis'!D18,'EBITDA Analysis'!D47,'EBITDA Analysis'!Q344,'EBITDA Analysis'!Q263,'EBITDA Analysis'!Q317,'EBITDA Analysis'!Q370,'EBITDA Analysis'!D157,'EBITDA Analysis'!Q47,'EBITDA Analysis'!Q18,'EBITDA Analysis'!Q291,'EBITDA Analysis'!D291,'EBITDA Analysis'!D420,'EBITDA Analysis'!Q473,'EBITDA Analysis'!Q395,'EBITDA Analysis'!Q445,'EBITDA Analysis'!Q420,'EBITDA Analysis'!D445,'EBITDA Analysis'!D237) -> FALSE | G19: =CHOOSE($E$35,'EBITDA Analysis'!E473,'EBITDA Analysis'!R211,'EBITDA Analysis'!E18,'EBITDA Analysis'!E47,'EBITDA Analysis'!R344,'EBITDA Analysis'!R263,'EBITDA Analysis'!R317,'EBITDA Analysis'!R370,'EBITDA Analysis'!E157,'EBITDA Analysis'!R47,'EBITDA Analysis'!R18,'EBITDA Analysis'!R291,'EBITDA Analysis'!E291,'EBITDA Analysis'!E420,'EBITDA Analysis'!R473,'EBITDA Analysis'!R395,'EBITDA Analysis'!R445,'EBITDA Analysis'!R420,'EBITDA Analysis'!E445,'EBITDA Analysis'!E237) -> 10920000 | H19: =CHOOSE($E$35,'EBITDA Analysis'!F473,'EBITDA Analysis'!S211,'EBITDA Analysis'!F18,'EBITDA Analysis'!F47,'EBITDA Analysis'!S344,'EBITDA Analysis'!S263,'EBITDA Analysis'!S317,'EBITDA Analysis'!S370,'EBITDA Analysis'!F157,'EBITDA Analysis'!S47,'EBITDA Analysis'!S18,'EBITDA Analysis'!S291,'EBITDA Analysis'!F291,'EBITDA Analysis'!F420,'EBITDA Analysis'!S473,'EBITDA Analysis'!S395,'EBITDA Analysis'!S445,'EBITDA Analysis'!S420,'EBITDA Analysis'!F445,'EBITDA Analysis'!F237) -> 12290000 | I19: =CHOOSE($E$35,'EBITDA Analysis'!G473,'EBITDA Analysis'!T211,'EBITDA Analysis'!G18,'EBITDA Analysis'!G47,'EBITDA Analysis'!T344,'EBITDA Analysis'!T263,'EBITDA Analysis'!T317,'EBITDA Analysis'!T370,'EBITDA Analysis'!G157,'EBITDA Analysis'!T47,'EBITDA Analysis'!T18,'EBITDA Analysis'!T291,'EBITDA Analysis'!G291,'EBITDA Analysis'!G420,'EBITDA Analysis'!T473,'EBITDA Analysis'!T395,'EBITDA Analysis'!T445,'EBITDA Analysis'!T420,'EBITDA Analysis'!G445,'EBITDA Analysis'!G237) -> 13770000 | J19: =CHOOSE($E$35,'EBITDA Analysis'!H473,'EBITDA Analysis'!U211,'EBITDA Analysis'!H18,'EBITDA Analysis'!H47,'EBITDA Analysis'!U344,'EBITDA Analysis'!U263,'EBITDA Analysis'!U317,'EBITDA Analysis'!U370,'EBITDA Analysis'!H157,'EBITDA Analysis'!U47,'EBITDA Analysis'!U18,'EBITDA Analysis'!U291,'EBITDA Analysis'!H291,'EBITDA Analysis'!H420,'EBITDA Analysis'!U473,'EBITDA Analysis'!U395,'EBITDA Analysis'!U445,'EBITDA Analysis'!U420,'EBITDA Analysis'!H445,'EBITDA Analysis'!H237) -> 15440000 | K19: =CHOOSE($E$35,'EBITDA Analysis'!I473,'EBITDA Analysis'!V211,'EBITDA Analysis'!I18,'EBITDA Analysis'!I47,'EBITDA Analysis'!V344,'EBITDA Analysis'!V263,'EBITDA Analysis'!V317,'EBITDA Analysis'!V370,'EBITDA Analysis'!I157,'EBITDA Analysis'!V47,'EBITDA Analysis'!V18,'EBITDA Analysis'!V291,'EBITDA Analysis'!I291,'EBITDA Analysis'!I420,'EBITDA Analysis'!V473,'EBITDA Analysis'!V395,'EBITDA Analysis'!V445,'EBITDA Analysis'!V420,'EBITDA Analysis'!I445,'EBITDA Analysis'!I237) -> 16910000 | L19: =CHOOSE($E$35,'EBITDA Analysis'!J473,'EBITDA Analysis'!W211,'EBITDA Analysis'!J18,'EBITDA Analysis'!J47,'EBITDA Analysis'!W344,'EBITDA Analysis'!W263,'EBITDA Analysis'!W317,'EBITDA Analysis'!W370,'EBITDA Analysis'!J157,'EBITDA Analysis'!W47,'EBITDA Analysis'!W18,'EBITDA Analysis'!W291,'EBITDA Analysis'!J291,'EBITDA Analysis'!J420,'EBITDA Analysis'!W473,'EBITDA Analysis'!W395,'EBITDA Analysis'!W445,'EBITDA Analysis'!W420,'EBITDA Analysis'!J445,'EBITDA Analysis'!J237) -> FALSE | M19: =CHOOSE($E$35,'EBITDA Analysis'!K473,'EBITDA Analysis'!X211,'EBITDA Analysis'!K18,'EBITDA Analysis'!K47,'EBITDA Analysis'!X344,'EBITDA Analysis'!X263,'EBITDA Analysis'!X317,'EBITDA Analysis'!X370,'EBITDA Analysis'!K157,'EBITDA Analysis'!X47,'EBITDA Analysis'!X18,'EBITDA Analysis'!X291,'EBITDA Analysis'!K291,'EBITDA Analysis'!K420,'EBITDA Analysis'!X473,'EBITDA Analysis'!X395,'EBITDA Analysis'!X445,'EBITDA Analysis'!X420,'EBITDA Analysis'!K445,'EBITDA Analysis'!K237) -> FALSE | N19: =CHOOSE($E$35,'EBITDA Analysis'!L473,'EBITDA Analysis'!Y211,'EBITDA Analysis'!L18,'EBITDA Analysis'!L47,'EBITDA Analysis'!Y344,'EBITDA Analysis'!Y263,'EBITDA Analysis'!Y317,'EBITDA Analysis'!Y370,'EBITDA Analysis'!L157,'EBITDA Analysis'!Y47,'EBITDA Analysis'!Y18,'EBITDA Analysis'!Y291,'EBITDA Analysis'!L291,'EBITDA Analysis'!L420,'EBITDA Analysis'!Y473,'EBITDA Analysis'!Y395,'EBITDA Analysis'!Y445,'EBITDA Analysis'!Y420,'EBITDA Analysis'!L445,'EBITDA Analysis'!L237) -> 17260000 | O19: FALSE | P19: 3 | R19: 8
C20: ='Data Current'!D23 -> IBM | E20: =CHOOSE($E$35,'EBITDA Analysis'!C474,'EBITDA Analysis'!P212,'EBITDA Analysis'!C19,'EBITDA Analysis'!C48,'EBITDA Analysis'!P345,'EBITDA Analysis'!P264,'EBITDA Analysis'!P318,'EBITDA Analysis'!P371,'EBITDA Analysis'!C158,'EBITDA Analysis'!P48,'EBITDA Analysis'!P19,'EBITDA Analysis'!P292,'EBITDA Analysis'!C292,'EBITDA Analysis'!C421,'EBITDA Analysis'!P474,'EBITDA Analysis'!P396,'EBITDA Analysis'!P446,'EBITDA Analysis'!P421,'EBITDA Analysis'!C446,'EBITDA Analysis'!C238) -> 0 | F20: =CHOOSE($E$35,'EBITDA Analysis'!D474,'EBITDA Analysis'!Q212,'EBITDA Analysis'!D19,'EBITDA Analysis'!D48,'EBITDA Analysis'!Q345,'EBITDA Analysis'!Q264,'EBITDA Analysis'!Q318,'EBITDA Analysis'!Q371,'EBITDA Analysis'!D158,'EBITDA Analysis'!Q48,'EBITDA Analysis'!Q19,'EBITDA Analysis'!Q292,'EBITDA Analysis'!D292,'EBITDA Analysis'!D421,'EBITDA Analysis'!Q474,'EBITDA Analysis'!Q396,'EBITDA Analysis'!Q446,'EBITDA Analysis'!Q421,'EBITDA Analysis'!D446,'EBITDA Analysis'!D238) -> FALSE | G20: =CHOOSE($E$35,'EBITDA Analysis'!E474,'EBITDA Analysis'!R212,'EBITDA Analysis'!E19,'EBITDA Analysis'!E48,'EBITDA Analysis'!R345,'EBITDA Analysis'!R264,'EBITDA Analysis'!R318,'EBITDA Analysis'!R371,'EBITDA Analysis'!E158,'EBITDA Analysis'!R48,'EBITDA Analysis'!R19,'EBITDA Analysis'!R292,'EBITDA Analysis'!E292,'EBITDA Analysis'!E421,'EBITDA Analysis'!R474,'EBITDA Analysis'!R396,'EBITDA Analysis'!R446,'EBITDA Analysis'!R421,'EBITDA Analysis'!E446,'EBITDA Analysis'!E238) -> 24870000 | H20: =CHOOSE($E$35,'EBITDA Analysis'!F474,'EBITDA Analysis'!S212,'EBITDA Analysis'!F19,'EBITDA Analysis'!F48,'EBITDA Analysis'!S345,'EBITDA Analysis'!S264,'EBITDA Analysis'!S318,'EBITDA Analysis'!S371,'EBITDA Analysis'!F158,'EBITDA Analysis'!S48,'EBITDA Analysis'!S19,'EBITDA Analysis'!S292,'EBITDA Analysis'!F292,'EBITDA Analysis'!F421,'EBITDA Analysis'!S474,'EBITDA Analysis'!S396,'EBITDA Analysis'!S446,'EBITDA Analysis'!S421,'EBITDA Analysis'!F446,'EBITDA Analysis'!F238) -> 23600000 | I20: =CHOOSE($E$35,'EBITDA Analysis'!G474,'EBITDA Analysis'!T212,'EBITDA Analysis'!G19,'EBITDA Analysis'!G48,'EBITDA Analysis'!T345,'EBITDA Analysis'!T264,'EBITDA Analysis'!T318,'EBITDA Analysis'!T371,'EBITDA Analysis'!G158,'EBITDA Analysis'!T48,'EBITDA Analysis'!T19,'EBITDA Analysis'!T292,'EBITDA Analysis'!G292,'EBITDA Analysis'!G421,'EBITDA Analysis'!T474,'EBITDA Analysis'!T396,'EBITDA Analysis'!T446,'EBITDA Analysis'!T421,'EBITDA Analysis'!G446,'EBITDA Analysis'!G238) -> 19030000 | J20: =CHOOSE($E$35,'EBITDA Analysis'!H474,'EBITDA Analysis'!U212,'EBITDA Analysis'!H19,'EBITDA Analysis'!H48,'EBITDA Analysis'!U345,'EBITDA Analysis'!U264,'EBITDA Analysis'!U318,'EBITDA Analysis'!U371,'EBITDA Analysis'!H158,'EBITDA Analysis'!U48,'EBITDA Analysis'!U19,'EBITDA Analysis'!U292,'EBITDA Analysis'!H292,'EBITDA Analysis'!H421,'EBITDA Analysis'!U474,'EBITDA Analysis'!U396,'EBITDA Analysis'!U446,'EBITDA Analysis'!U421,'EBITDA Analysis'!H446,'EBITDA Analysis'!H238) -> 16700001 | K20: =CHOOSE($E$35,'EBITDA Analysis'!I474,'EBITDA Analysis'!V212,'EBITDA Analysis'!I19,'EBITDA Analysis'!I48,'EBITDA Analysis'!V345,'EBITDA Analysis'!V264,'EBITDA Analysis'!V318,'EBITDA Analysis'!V371,'EBITDA Analysis'!I158,'EBITDA Analysis'!V48,'EBITDA Analysis'!V19,'EBITDA Analysis'!V292,'EBITDA Analysis'!I292,'EBITDA Analysis'!I421,'EBITDA Analysis'!V474,'EBITDA Analysis'!V396,'EBITDA Analysis'!V446,'EBITDA Analysis'!V421,'EBITDA Analysis'!I446,'EBITDA Analysis'!I238) -> 14770000 | L20: =CHOOSE($E$35,'EBITDA Analysis'!J474,'EBITDA Analysis'!W212,'EBITDA Analysis'!J19,'EBITDA Analysis'!J48,'EBITDA Analysis'!W345,'EBITDA Analysis'!W264,'EBITDA Analysis'!W318,'EBITDA Analysis'!W371,'EBITDA Analysis'!J158,'EBITDA Analysis'!W48,'EBITDA Analysis'!W19,'EBITDA Analysis'!W292,'EBITDA Analysis'!J292,'EBITDA Analysis'!J421,'EBITDA Analysis'!W474,'EBITDA Analysis'!W396,'EBITDA Analysis'!W446,'EBITDA Analysis'!W421,'EBITDA Analysis'!J446,'EBITDA Analysis'!J238) -> FALSE | M20: =CHOOSE($E$35,'EBITDA Analysis'!K474,'EBITDA Analysis'!X212,'EBITDA Analysis'!K19,'EBITDA Analysis'!K48,'EBITDA Analysis'!X345,'EBITDA Analysis'!X264,'EBITDA Analysis'!X318,'EBITDA Analysis'!X371,'EBITDA Analysis'!K158,'EBITDA Analysis'!X48,'EBITDA Analysis'!X19,'EBITDA Analysis'!X292,'EBITDA Analysis'!K292,'EBITDA Analysis'!K421,'EBITDA Analysis'!X474,'EBITDA Analysis'!X396,'EBITDA Analysis'!X446,'EBITDA Analysis'!X421,'EBITDA Analysis'!K446,'EBITDA Analysis'!K238) -> FALSE | N20: =CHOOSE($E$35,'EBITDA Analysis'!L474,'EBITDA Analysis'!Y212,'EBITDA Analysis'!L19,'EBITDA Analysis'!L48,'EBITDA Analysis'!Y345,'EBITDA Analysis'!Y264,'EBITDA Analysis'!Y318,'EBITDA Analysis'!Y371,'EBITDA Analysis'!L158,'EBITDA Analysis'!Y48,'EBITDA Analysis'!Y19,'EBITDA Analysis'!Y292,'EBITDA Analysis'!L292,'EBITDA Analysis'!L421,'EBITDA Analysis'!Y474,'EBITDA Analysis'!Y396,'EBITDA Analysis'!Y446,'EBITDA Analysis'!Y421,'EBITDA Analysis'!L446,'EBITDA Analysis'!L238) -> 17030000 | O20: FALSE | P20: 3 | R20: 9 | AF20: =IFERROR(IRR(AH20:BG20),"") -> 
C21: ='Data Current'!D24 -> Intel | E21: =CHOOSE($E$35,'EBITDA Analysis'!C475,'EBITDA Analysis'!P213,'EBITDA Analysis'!C20,'EBITDA Analysis'!C49,'EBITDA Analysis'!P346,'EBITDA Analysis'!P265,'EBITDA Analysis'!P319,'EBITDA Analysis'!P372,'EBITDA Analysis'!C159,'EBITDA Analysis'!P49,'EBITDA Analysis'!P20,'EBITDA Analysis'!P293,'EBITDA Analysis'!C293,'EBITDA Analysis'!C422,'EBITDA Analysis'!P475,'EBITDA Analysis'!P397,'EBITDA Analysis'!P447,'EBITDA Analysis'!P422,'EBITDA Analysis'!C447,'EBITDA Analysis'!C239) -> 0 | F21: =CHOOSE($E$35,'EBITDA Analysis'!D475,'EBITDA Analysis'!Q213,'EBITDA Analysis'!D20,'EBITDA Analysis'!D49,'EBITDA Analysis'!Q346,'EBITDA Analysis'!Q265,'EBITDA Analysis'!Q319,'EBITDA Analysis'!Q372,'EBITDA Analysis'!D159,'EBITDA Analysis'!Q49,'EBITDA Analysis'!Q20,'EBITDA Analysis'!Q293,'EBITDA Analysis'!D293,'EBITDA Analysis'!D422,'EBITDA Analysis'!Q475,'EBITDA Analysis'!Q397,'EBITDA Analysis'!Q447,'EBITDA Analysis'!Q422,'EBITDA Analysis'!D447,'EBITDA Analysis'!D239) -> FALSE | G21: =CHOOSE($E$35,'EBITDA Analysis'!E475,'EBITDA Analysis'!R213,'EBITDA Analysis'!E20,'EBITDA Analysis'!E49,'EBITDA Analysis'!R346,'EBITDA Analysis'!R265,'EBITDA Analysis'!R319,'EBITDA Analysis'!R372,'EBITDA Analysis'!E159,'EBITDA Analysis'!R49,'EBITDA Analysis'!R20,'EBITDA Analysis'!R293,'EBITDA Analysis'!E293,'EBITDA Analysis'!E422,'EBITDA Analysis'!R475,'EBITDA Analysis'!R397,'EBITDA Analysis'!R447,'EBITDA Analysis'!R422,'EBITDA Analysis'!E447,'EBITDA Analysis'!E239) -> 20590000 | H21: =CHOOSE($E$35,'EBITDA Analysis'!F475,'EBITDA Analysis'!S213,'EBITDA Analysis'!F20,'EBITDA Analysis'!F49,'EBITDA Analysis'!S346,'EBITDA Analysis'!S265,'EBITDA Analysis'!S319,'EBITDA Analysis'!S372,'EBITDA Analysis'!F159,'EBITDA Analysis'!S49,'EBITDA Analysis'!S20,'EBITDA Analysis'!S293,'EBITDA Analysis'!F293,'EBITDA Analysis'!F422,'EBITDA Analysis'!S475,'EBITDA Analysis'!S397,'EBITDA Analysis'!S447,'EBITDA Analysis'!S422,'EBITDA Analysis'!F447,'EBITDA Analysis'!F239) -> 24200000 | I21: =CHOOSE($E$35,'EBITDA Analysis'!G475,'EBITDA Analysis'!T213,'EBITDA Analysis'!G20,'EBITDA Analysis'!G49,'EBITDA Analysis'!T346,'EBITDA Analysis'!T265,'EBITDA Analysis'!T319,'EBITDA Analysis'!T372,'EBITDA Analysis'!G159,'EBITDA Analysis'!T49,'EBITDA Analysis'!T20,'EBITDA Analysis'!T293,'EBITDA Analysis'!G293,'EBITDA Analysis'!G422,'EBITDA Analysis'!T475,'EBITDA Analysis'!T397,'EBITDA Analysis'!T447,'EBITDA Analysis'!T422,'EBITDA Analysis'!G447,'EBITDA Analysis'!G239) -> 23580000 | J21: =CHOOSE($E$35,'EBITDA Analysis'!H475,'EBITDA Analysis'!U213,'EBITDA Analysis'!H20,'EBITDA Analysis'!H49,'EBITDA Analysis'!U346,'EBITDA Analysis'!U265,'EBITDA Analysis'!U319,'EBITDA Analysis'!U372,'EBITDA Analysis'!H159,'EBITDA Analysis'!U49,'EBITDA Analysis'!U20,'EBITDA Analysis'!U293,'EBITDA Analysis'!H293,'EBITDA Analysis'!H422,'EBITDA Analysis'!U475,'EBITDA Analysis'!U397,'EBITDA Analysis'!U447,'EBITDA Analysis'!U422,'EBITDA Analysis'!H447,'EBITDA Analysis'!H239) -> 22600000 | K21: =CHOOSE($E$35,'EBITDA Analysis'!I475,'EBITDA Analysis'!V213,'EBITDA Analysis'!I20,'EBITDA Analysis'!I49,'EBITDA Analysis'!V346,'EBITDA Analysis'!V265,'EBITDA Analysis'!V319,'EBITDA Analysis'!V372,'EBITDA Analysis'!I159,'EBITDA Analysis'!V49,'EBITDA Analysis'!V20,'EBITDA Analysis'!V293,'EBITDA Analysis'!I293,'EBITDA Analysis'!I422,'EBITDA Analysis'!V475,'EBITDA Analysis'!V397,'EBITDA Analysis'!V447,'EBITDA Analysis'!V422,'EBITDA Analysis'!I447,'EBITDA Analysis'!I239) -> 26460000 | L21: =CHOOSE($E$35,'EBITDA Analysis'!J475,'EBITDA Analysis'!W213,'EBITDA Analysis'!J20,'EBITDA Analysis'!J49,'EBITDA Analysis'!W346,'EBITDA Analysis'!W265,'EBITDA Analysis'!W319,'EBITDA Analysis'!W372,'EBITDA Analysis'!J159,'EBITDA Analysis'!W49,'EBITDA Analysis'!W20,'EBITDA Analysis'!W293,'EBITDA Analysis'!J293,'EBITDA Analysis'!J422,'EBITDA Analysis'!W475,'EBITDA Analysis'!W397,'EBITDA Analysis'!W447,'EBITDA Analysis'!W422,'EBITDA Analysis'!J447,'EBITDA Analysis'!J239) -> FALSE | M21: =CHOOSE($E$35,'EBITDA Analysis'!K475,'EBITDA Analysis'!X213,'EBITDA Analysis'!K20,'EBITDA Analysis'!K49,'EBITDA Analysis'!X346,'EBITDA Analysis'!X265,'EBITDA Analysis'!X319,'EBITDA Analysis'!X372,'EBITDA Analysis'!K159,'EBITDA Analysis'!X49,'EBITDA Analysis'!X20,'EBITDA Analysis'!X293,'EBITDA Analysis'!K293,'EBITDA Analysis'!K422,'EBITDA Analysis'!X475,'EBITDA Analysis'!X397,'EBITDA Analysis'!X447,'EBITDA Analysis'!X422,'EBITDA Analysis'!K447,'EBITDA Analysis'!K239) -> FALSE | N21: =CHOOSE($E$35,'EBITDA Analysis'!L475,'EBITDA Analysis'!Y213,'EBITDA Analysis'!L20,'EBITDA Analysis'!L49,'EBITDA Analysis'!Y346,'EBITDA Analysis'!Y265,'EBITDA Analysis'!Y319,'EBITDA Analysis'!Y372,'EBITDA Analysis'!L159,'EBITDA Analysis'!Y49,'EBITDA Analysis'!Y20,'EBITDA Analysis'!Y293,'EBITDA Analysis'!L293,'EBITDA Analysis'!L422,'EBITDA Analysis'!Y475,'EBITDA Analysis'!Y397,'EBITDA Analysis'!Y447,'EBITDA Analysis'!Y422,'EBITDA Analysis'!L447,'EBITDA Analysis'!L239) -> 28970000 | O21: FALSE | P21: 3 | R21: 10
C22: ='Data Current'!D25 -> Johnson & Johnson | E22: =CHOOSE($E$35,'EBITDA Analysis'!C476,'EBITDA Analysis'!P214,'EBITDA Analysis'!C21,'EBITDA Analysis'!C50,'EBITDA Analysis'!P347,'EBITDA Analysis'!P266,'EBITDA Analysis'!P320,'EBITDA Analysis'!P373,'EBITDA Analysis'!C160,'EBITDA Analysis'!P50,'EBITDA Analysis'!P21,'EBITDA Analysis'!P294,'EBITDA Analysis'!C294,'EBITDA Analysis'!C423,'EBITDA Analysis'!P476,'EBITDA Analysis'!P398,'EBITDA Analysis'!P448,'EBITDA Analysis'!P423,'EBITDA Analysis'!C448,'EBITDA Analysis'!C240) -> 0 | F22: =CHOOSE($E$35,'EBITDA Analysis'!D476,'EBITDA Analysis'!Q214,'EBITDA Analysis'!D21,'EBITDA Analysis'!D50,'EBITDA Analysis'!Q347,'EBITDA Analysis'!Q266,'EBITDA Analysis'!Q320,'EBITDA Analysis'!Q373,'EBITDA Analysis'!D160,'EBITDA Analysis'!Q50,'EBITDA Analysis'!Q21,'EBITDA Analysis'!Q294,'EBITDA Analysis'!D294,'EBITDA Analysis'!D423,'EBITDA Analysis'!Q476,'EBITDA Analysis'!Q398,'EBITDA Analysis'!Q448,'EBITDA Analysis'!Q423,'EBITDA Analysis'!D448,'EBITDA Analysis'!D240) -> FALSE | G22: =CHOOSE($E$35,'EBITDA Analysis'!E476,'EBITDA Analysis'!R214,'EBITDA Analysis'!E21,'EBITDA Analysis'!E50,'EBITDA Analysis'!R347,'EBITDA Analysis'!R266,'EBITDA Analysis'!R320,'EBITDA Analysis'!R373,'EBITDA Analysis'!E160,'EBITDA Analysis'!R50,'EBITDA Analysis'!R21,'EBITDA Analysis'!R294,'EBITDA Analysis'!E294,'EBITDA Analysis'!E423,'EBITDA Analysis'!R476,'EBITDA Analysis'!R398,'EBITDA Analysis'!R448,'EBITDA Analysis'!R423,'EBITDA Analysis'!E448,'EBITDA Analysis'!E240) -> 22930000 | H22: =CHOOSE($E$35,'EBITDA Analysis'!F476,'EBITDA Analysis'!S214,'EBITDA Analysis'!F21,'EBITDA Analysis'!F50,'EBITDA Analysis'!S347,'EBITDA Analysis'!S266,'EBITDA Analysis'!S320,'EBITDA Analysis'!S373,'EBITDA Analysis'!F160,'EBITDA Analysis'!S50,'EBITDA Analysis'!S21,'EBITDA Analysis'!S294,'EBITDA Analysis'!F294,'EBITDA Analysis'!F423,'EBITDA Analysis'!S476,'EBITDA Analysis'!S398,'EBITDA Analysis'!S448,'EBITDA Analysis'!S423,'EBITDA Analysis'!F448,'EBITDA Analysis'!F240) -> 24820000 | I22: =CHOOSE($E$35,'EBITDA Analysis'!G476,'EBITDA Analysis'!T214,'EBITDA Analysis'!G21,'EBITDA Analysis'!G50,'EBITDA Analysis'!T347,'EBITDA Analysis'!T266,'EBITDA Analysis'!T320,'EBITDA Analysis'!T373,'EBITDA Analysis'!G160,'EBITDA Analysis'!T50,'EBITDA Analysis'!T21,'EBITDA Analysis'!T294,'EBITDA Analysis'!G294,'EBITDA Analysis'!G423,'EBITDA Analysis'!T476,'EBITDA Analysis'!T398,'EBITDA Analysis'!T448,'EBITDA Analysis'!T423,'EBITDA Analysis'!G448,'EBITDA Analysis'!G240) -> 22110000 | J22: =CHOOSE($E$35,'EBITDA Analysis'!H476,'EBITDA Analysis'!U214,'EBITDA Analysis'!H21,'EBITDA Analysis'!H50,'EBITDA Analysis'!U347,'EBITDA Analysis'!U266,'EBITDA Analysis'!U320,'EBITDA Analysis'!U373,'EBITDA Analysis'!H160,'EBITDA Analysis'!U50,'EBITDA Analysis'!U21,'EBITDA Analysis'!U294,'EBITDA Analysis'!H294,'EBITDA Analysis'!H423,'EBITDA Analysis'!U476,'EBITDA Analysis'!U398,'EBITDA Analysis'!U448,'EBITDA Analysis'!U423,'EBITDA Analysis'!H448,'EBITDA Analysis'!H240) -> 25100000 | K22: =CHOOSE($E$35,'EBITDA Analysis'!I476,'EBITDA Analysis'!V214,'EBITDA Analysis'!I21,'EBITDA Analysis'!I50,'EBITDA Analysis'!V347,'EBITDA Analysis'!V266,'EBITDA Analysis'!V320,'EBITDA Analysis'!V373,'EBITDA Analysis'!I160,'EBITDA Analysis'!V50,'EBITDA Analysis'!V21,'EBITDA Analysis'!V294,'EBITDA Analysis'!I294,'EBITDA Analysis'!I423,'EBITDA Analysis'!V476,'EBITDA Analysis'!V398,'EBITDA Analysis'!V448,'EBITDA Analysis'!V423,'EBITDA Analysis'!I448,'EBITDA Analysis'!I240) -> 25210000 | L22: =CHOOSE($E$35,'EBITDA Analysis'!J476,'EBITDA Analysis'!W214,'EBITDA Analysis'!J21,'EBITDA Analysis'!J50,'EBITDA Analysis'!W347,'EBITDA Analysis'!W266,'EBITDA Analysis'!W320,'EBITDA Analysis'!W373,'EBITDA Analysis'!J160,'EBITDA Analysis'!W50,'EBITDA Analysis'!W21,'EBITDA Analysis'!W294,'EBITDA Analysis'!J294,'EBITDA Analysis'!J423,'EBITDA Analysis'!W476,'EBITDA Analysis'!W398,'EBITDA Analysis'!W448,'EBITDA Analysis'!W423,'EBITDA Analysis'!J448,'EBITDA Analysis'!J240) -> FALSE | M22: =CHOOSE($E$35,'EBITDA Analysis'!K476,'EBITDA Analysis'!X214,'EBITDA Analysis'!K21,'EBITDA Analysis'!K50,'EBITDA Analysis'!X347,'EBITDA Analysis'!X266,'EBITDA Analysis'!X320,'EBITDA Analysis'!X373,'EBITDA Analysis'!K160,'EBITDA Analysis'!X50,'EBITDA Analysis'!X21,'EBITDA Analysis'!X294,'EBITDA Analysis'!K294,'EBITDA Analysis'!K423,'EBITDA Analysis'!X476,'EBITDA Analysis'!X398,'EBITDA Analysis'!X448,'EBITDA Analysis'!X423,'EBITDA Analysis'!K448,'EBITDA Analysis'!K240) -> FALSE | N22: =CHOOSE($E$35,'EBITDA Analysis'!L476,'EBITDA Analysis'!Y214,'EBITDA Analysis'!L21,'EBITDA Analysis'!L50,'EBITDA Analysis'!Y347,'EBITDA Analysis'!Y266,'EBITDA Analysis'!Y320,'EBITDA Analysis'!Y373,'EBITDA Analysis'!L160,'EBITDA Analysis'!Y50,'EBITDA Analysis'!Y21,'EBITDA Analysis'!Y294,'EBITDA Analysis'!L294,'EBITDA Analysis'!L423,'EBITDA Analysis'!Y476,'EBITDA Analysis'!Y398,'EBITDA Analysis'!Y448,'EBITDA Analysis'!Y423,'EBITDA Analysis'!L448,'EBITDA Analysis'!L240) -> 26760000 | O22: FALSE | P22: 3 | R22: 11
C23: ='Data Current'!D26 -> McDonald's | E23: =CHOOSE($E$35,'EBITDA Analysis'!C477,'EBITDA Analysis'!P215,'EBITDA Analysis'!C22,'EBITDA Analysis'!C51,'EBITDA Analysis'!P348,'EBITDA Analysis'!P267,'EBITDA Analysis'!P321,'EBITDA Analysis'!P374,'EBITDA Analysis'!C161,'EBITDA Analysis'!P51,'EBITDA Analysis'!P22,'EBITDA Analysis'!P295,'EBITDA Analysis'!C295,'EBITDA Analysis'!C424,'EBITDA Analysis'!P477,'EBITDA Analysis'!P399,'EBITDA Analysis'!P449,'EBITDA Analysis'!P424,'EBITDA Analysis'!C449,'EBITDA Analysis'!C241) -> 0 | F23: =CHOOSE($E$35,'EBITDA Analysis'!D477,'EBITDA Analysis'!Q215,'EBITDA Analysis'!D22,'EBITDA Analysis'!D51,'EBITDA Analysis'!Q348,'EBITDA Analysis'!Q267,'EBITDA Analysis'!Q321,'EBITDA Analysis'!Q374,'EBITDA Analysis'!D161,'EBITDA Analysis'!Q51,'EBITDA Analysis'!Q22,'EBITDA Analysis'!Q295,'EBITDA Analysis'!D295,'EBITDA Analysis'!D424,'EBITDA Analysis'!Q477,'EBITDA Analysis'!Q399,'EBITDA Analysis'!Q449,'EBITDA Analysis'!Q424,'EBITDA Analysis'!D449,'EBITDA Analysis'!D241) -> FALSE | G23: =CHOOSE($E$35,'EBITDA Analysis'!E477,'EBITDA Analysis'!R215,'EBITDA Analysis'!E22,'EBITDA Analysis'!E51,'EBITDA Analysis'!R348,'EBITDA Analysis'!R267,'EBITDA Analysis'!R321,'EBITDA Analysis'!R374,'EBITDA Analysis'!E161,'EBITDA Analysis'!R51,'EBITDA Analysis'!R22,'EBITDA Analysis'!R295,'EBITDA Analysis'!E295,'EBITDA Analysis'!E424,'EBITDA Analysis'!R477,'EBITDA Analysis'!R399,'EBITDA Analysis'!R449,'EBITDA Analysis'!R424,'EBITDA Analysis'!E449,'EBITDA Analysis'!E241) -> 10080000 | H23: =CHOOSE($E$35,'EBITDA Analysis'!F477,'EBITDA Analysis'!S215,'EBITDA Analysis'!F22,'EBITDA Analysis'!F51,'EBITDA Analysis'!S348,'EBITDA Analysis'!S267,'EBITDA Analysis'!S321,'EBITDA Analysis'!S374,'EBITDA Analysis'!F161,'EBITDA Analysis'!S51,'EBITDA Analysis'!S22,'EBITDA Analysis'!S295,'EBITDA Analysis'!F295,'EBITDA Analysis'!F424,'EBITDA Analysis'!S477,'EBITDA Analysis'!S399,'EBITDA Analysis'!S449,'EBITDA Analysis'!S424,'EBITDA Analysis'!F449,'EBITDA Analysis'!F241) -> 9590000 | I23: =CHOOSE($E$35,'EBITDA Analysis'!G477,'EBITDA Analysis'!T215,'EBITDA Analysis'!G22,'EBITDA Analysis'!G51,'EBITDA Analysis'!T348,'EBITDA Analysis'!T267,'EBITDA Analysis'!T321,'EBITDA Analysis'!T374,'EBITDA Analysis'!G161,'EBITDA Analysis'!T51,'EBITDA Analysis'!T22,'EBITDA Analysis'!T295,'EBITDA Analysis'!G295,'EBITDA Analysis'!G424,'EBITDA Analysis'!T477,'EBITDA Analysis'!T399,'EBITDA Analysis'!T449,'EBITDA Analysis'!T424,'EBITDA Analysis'!G449,'EBITDA Analysis'!G241) -> 8910000 | J23: =CHOOSE($E$35,'EBITDA Analysis'!H477,'EBITDA Analysis'!U215,'EBITDA Analysis'!H22,'EBITDA Analysis'!H51,'EBITDA Analysis'!U348,'EBITDA Analysis'!U267,'EBITDA Analysis'!U321,'EBITDA Analysis'!U374,'EBITDA Analysis'!H161,'EBITDA Analysis'!U51,'EBITDA Analysis'!U22,'EBITDA Analysis'!U295,'EBITDA Analysis'!H295,'EBITDA Analysis'!H424,'EBITDA Analysis'!U477,'EBITDA Analysis'!U399,'EBITDA Analysis'!U449,'EBITDA Analysis'!U424,'EBITDA Analysis'!H449,'EBITDA Analysis'!H241) -> 9340000 | K23: =CHOOSE($E$35,'EBITDA Analysis'!I477,'EBITDA Analysis'!V215,'EBITDA Analysis'!I22,'EBITDA Analysis'!I51,'EBITDA Analysis'!V348,'EBITDA Analysis'!V267,'EBITDA Analysis'!V321,'EBITDA Analysis'!V374,'EBITDA Analysis'!I161,'EBITDA Analysis'!V51,'EBITDA Analysis'!V22,'EBITDA Analysis'!V295,'EBITDA Analysis'!I295,'EBITDA Analysis'!I424,'EBITDA Analysis'!V477,'EBITDA Analysis'!V399,'EBITDA Analysis'!V449,'EBITDA Analysis'!V424,'EBITDA Analysis'!I449,'EBITDA Analysis'!I241) -> 9750000 | L23: =CHOOSE($E$35,'EBITDA Analysis'!J477,'EBITDA Analysis'!W215,'EBITDA Analysis'!J22,'EBITDA Analysis'!J51,'EBITDA Analysis'!W348,'EBITDA Analysis'!W267,'EBITDA Analysis'!W321,'EBITDA Analysis'!W374,'EBITDA Analysis'!J161,'EBITDA Analysis'!W51,'EBITDA Analysis'!W22,'EBITDA Analysis'!W295,'EBITDA Analysis'!J295,'EBITDA Analysis'!J424,'EBITDA Analysis'!W477,'EBITDA Analysis'!W399,'EBITDA Analysis'!W449,'EBITDA Analysis'!W424,'EBITDA Analysis'!J449,'EBITDA Analysis'!J241) -> FALSE | M23: =CHOOSE($E$35,'EBITDA Analysis'!K477,'EBITDA Analysis'!X215,'EBITDA Analysis'!K22,'EBITDA Analysis'!K51,'EBITDA Analysis'!X348,'EBITDA Analysis'!X267,'EBITDA Analysis'!X321,'EBITDA Analysis'!X374,'EBITDA Analysis'!K161,'EBITDA Analysis'!X51,'EBITDA Analysis'!X22,'EBITDA Analysis'!X295,'EBITDA Analysis'!K295,'EBITDA Analysis'!K424,'EBITDA Analysis'!X477,'EBITDA Analysis'!X399,'EBITDA Analysis'!X449,'EBITDA Analysis'!X424,'EBITDA Analysis'!K449,'EBITDA Analysis'!K241) -> FALSE | N23: =CHOOSE($E$35,'EBITDA Analysis'!L477,'EBITDA Analysis'!Y215,'EBITDA Analysis'!L22,'EBITDA Analysis'!L51,'EBITDA Analysis'!Y348,'EBITDA Analysis'!Y267,'EBITDA Analysis'!Y321,'EBITDA Analysis'!Y374,'EBITDA Analysis'!L161,'EBITDA Analysis'!Y51,'EBITDA Analysis'!Y22,'EBITDA Analysis'!Y295,'EBITDA Analysis'!L295,'EBITDA Analysis'!L424,'EBITDA Analysis'!Y477,'EBITDA Analysis'!Y399,'EBITDA Analysis'!Y449,'EBITDA Analysis'!Y424,'EBITDA Analysis'!L449,'EBITDA Analysis'!L241) -> 9880000 | O23: FALSE | P23: 3 | R23: 12
C24: ='Data Current'!D27 -> Merck | E24: =CHOOSE($E$35,'EBITDA Analysis'!C478,'EBITDA Analysis'!P216,'EBITDA Analysis'!C23,'EBITDA Analysis'!C52,'EBITDA Analysis'!P349,'EBITDA Analysis'!P268,'EBITDA Analysis'!P322,'EBITDA Analysis'!P375,'EBITDA Analysis'!C162,'EBITDA Analysis'!P52,'EBITDA Analysis'!P23,'EBITDA Analysis'!P296,'EBITDA Analysis'!C296,'EBITDA Analysis'!C425,'EBITDA Analysis'!P478,'EBITDA Analysis'!P400,'EBITDA Analysis'!P450,'EBITDA Analysis'!P425,'EBITDA Analysis'!C450,'EBITDA Analysis'!C242) -> 0 | F24: =CHOOSE($E$35,'EBITDA Analysis'!D478,'EBITDA Analysis'!Q216,'EBITDA Analysis'!D23,'EBITDA Analysis'!D52,'EBITDA Analysis'!Q349,'EBITDA Analysis'!Q268,'EBITDA Analysis'!Q322,'EBITDA Analysis'!Q375,'EBITDA Analysis'!D162,'EBITDA Analysis'!Q52,'EBITDA Analysis'!Q23,'EBITDA Analysis'!Q296,'EBITDA Analysis'!D296,'EBITDA Analysis'!D425,'EBITDA Analysis'!Q478,'EBITDA Analysis'!Q400,'EBITDA Analysis'!Q450,'EBITDA Analysis'!Q425,'EBITDA Analysis'!D450,'EBITDA Analysis'!D242) -> FALSE | G24: =CHOOSE($E$35,'EBITDA Analysis'!E478,'EBITDA Analysis'!R216,'EBITDA Analysis'!E23,'EBITDA Analysis'!E52,'EBITDA Analysis'!R349,'EBITDA Analysis'!R268,'EBITDA Analysis'!R322,'EBITDA Analysis'!R375,'EBITDA Analysis'!E162,'EBITDA Analysis'!R52,'EBITDA Analysis'!R23,'EBITDA Analysis'!R296,'EBITDA Analysis'!E296,'EBITDA Analysis'!E425,'EBITDA Analysis'!R478,'EBITDA Analysis'!R400,'EBITDA Analysis'!R450,'EBITDA Analysis'!R425,'EBITDA Analysis'!E450,'EBITDA Analysis'!E242) -> 16299999 | H24: =CHOOSE($E$35,'EBITDA Analysis'!F478,'EBITDA Analysis'!S216,'EBITDA Analysis'!F23,'EBITDA Analysis'!F52,'EBITDA Analysis'!S349,'EBITDA Analysis'!S268,'EBITDA Analysis'!S322,'EBITDA Analysis'!S375,'EBITDA Analysis'!F162,'EBITDA Analysis'!S52,'EBITDA Analysis'!S23,'EBITDA Analysis'!S296,'EBITDA Analysis'!F296,'EBITDA Analysis'!F425,'EBITDA Analysis'!S478,'EBITDA Analysis'!S400,'EBITDA Analysis'!S450,'EBITDA Analysis'!S425,'EBITDA Analysis'!F450,'EBITDA Analysis'!F242) -> 15880000 | I24: =CHOOSE($E$35,'EBITDA Analysis'!G478,'EBITDA Analysis'!T216,'EBITDA Analysis'!G23,'EBITDA Analysis'!G52,'EBITDA Analysis'!T349,'EBITDA Analysis'!T268,'EBITDA Analysis'!T322,'EBITDA Analysis'!T375,'EBITDA Analysis'!G162,'EBITDA Analysis'!T52,'EBITDA Analysis'!T23,'EBITDA Analysis'!T296,'EBITDA Analysis'!G296,'EBITDA Analysis'!G425,'EBITDA Analysis'!T478,'EBITDA Analysis'!T400,'EBITDA Analysis'!T450,'EBITDA Analysis'!T425,'EBITDA Analysis'!G450,'EBITDA Analysis'!G242) -> 13810000 | J24: =CHOOSE($E$35,'EBITDA Analysis'!H478,'EBITDA Analysis'!U216,'EBITDA Analysis'!H23,'EBITDA Analysis'!H52,'EBITDA Analysis'!U349,'EBITDA Analysis'!U268,'EBITDA Analysis'!U322,'EBITDA Analysis'!U375,'EBITDA Analysis'!H162,'EBITDA Analysis'!U52,'EBITDA Analysis'!U23,'EBITDA Analysis'!U296,'EBITDA Analysis'!H296,'EBITDA Analysis'!H425,'EBITDA Analysis'!U478,'EBITDA Analysis'!U400,'EBITDA Analysis'!U450,'EBITDA Analysis'!U425,'EBITDA Analysis'!H450,'EBITDA Analysis'!H242) -> 15930000 | K24: =CHOOSE($E$35,'EBITDA Analysis'!I478,'EBITDA Analysis'!V216,'EBITDA Analysis'!I23,'EBITDA Analysis'!I52,'EBITDA Analysis'!V349,'EBITDA Analysis'!V268,'EBITDA Analysis'!V322,'EBITDA Analysis'!V375,'EBITDA Analysis'!I162,'EBITDA Analysis'!V52,'EBITDA Analysis'!V23,'EBITDA Analysis'!V296,'EBITDA Analysis'!I296,'EBITDA Analysis'!I425,'EBITDA Analysis'!V478,'EBITDA Analysis'!V400,'EBITDA Analysis'!V450,'EBITDA Analysis'!V425,'EBITDA Analysis'!I450,'EBITDA Analysis'!I242) -> 12640000 | L24: =CHOOSE($E$35,'EBITDA Analysis'!J478,'EBITDA Analysis'!W216,'EBITDA Analysis'!J23,'EBITDA Analysis'!J52,'EBITDA Analysis'!W349,'EBITDA Analysis'!W268,'EBITDA Analysis'!W322,'EBITDA Analysis'!W375,'EBITDA Analysis'!J162,'EBITDA Analysis'!W52,'EBITDA Analysis'!W23,'EBITDA Analysis'!W296,'EBITDA Analysis'!J296,'EBITDA Analysis'!J425,'EBITDA Analysis'!W478,'EBITDA Analysis'!W400,'EBITDA Analysis'!W450,'EBITDA Analysis'!W425,'EBITDA Analysis'!J450,'EBITDA Analysis'!J242) -> FALSE | M24: =CHOOSE($E$35,'EBITDA Analysis'!K478,'EBITDA Analysis'!X216,'EBITDA Analysis'!K23,'EBITDA Analysis'!K52,'EBITDA Analysis'!X349,'EBITDA Analysis'!X268,'EBITDA Analysis'!X322,'EBITDA Analysis'!X375,'EBITDA Analysis'!K162,'EBITDA Analysis'!X52,'EBITDA Analysis'!X23,'EBITDA Analysis'!X296,'EBITDA Analysis'!K296,'EBITDA Analysis'!K425,'EBITDA Analysis'!X478,'EBITDA Analysis'!X400,'EBITDA Analysis'!X450,'EBITDA Analysis'!X425,'EBITDA Analysis'!K450,'EBITDA Analysis'!K242) -> FALSE | N24: =CHOOSE($E$35,'EBITDA Analysis'!L478,'EBITDA Analysis'!Y216,'EBITDA Analysis'!L23,'EBITDA Analysis'!L52,'EBITDA Analysis'!Y349,'EBITDA Analysis'!Y268,'EBITDA Analysis'!Y322,'EBITDA Analysis'!Y375,'EBITDA Analysis'!L162,'EBITDA Analysis'!Y52,'EBITDA Analysis'!Y23,'EBITDA Analysis'!Y296,'EBITDA Analysis'!L296,'EBITDA Analysis'!L425,'EBITDA Analysis'!Y478,'EBITDA Analysis'!Y400,'EBITDA Analysis'!Y450,'EBITDA Analysis'!Y425,'EBITDA Analysis'!L450,'EBITDA Analysis'!L242) -> 11870000 | O24: FALSE | P24: 3 | R24: 13
C25: ='Data Current'!D28 -> Microsoft | E25: =CHOOSE($E$35,'EBITDA Analysis'!C479,'EBITDA Analysis'!P217,'EBITDA Analysis'!C24,'EBITDA Analysis'!C53,'EBITDA Analysis'!P350,'EBITDA Analysis'!P269,'EBITDA Analysis'!P323,'EBITDA Analysis'!P376,'EBITDA Analysis'!C163,'EBITDA Analysis'!P53,'EBITDA Analysis'!P24,'EBITDA Analysis'!P297,'EBITDA Analysis'!C297,'EBITDA Analysis'!C426,'EBITDA Analysis'!P479,'EBITDA Analysis'!P401,'EBITDA Analysis'!P451,'EBITDA Analysis'!P426,'EBITDA Analysis'!C451,'EBITDA Analysis'!C243) -> 0 | F25: =CHOOSE($E$35,'EBITDA Analysis'!D479,'EBITDA Analysis'!Q217,'EBITDA Analysis'!D24,'EBITDA Analysis'!D53,'EBITDA Analysis'!Q350,'EBITDA Analysis'!Q269,'EBITDA Analysis'!Q323,'EBITDA Analysis'!Q376,'EBITDA Analysis'!D163,'EBITDA Analysis'!Q53,'EBITDA Analysis'!Q24,'EBITDA Analysis'!Q297,'EBITDA Analysis'!D297,'EBITDA Analysis'!D426,'EBITDA Analysis'!Q479,'EBITDA Analysis'!Q401,'EBITDA Analysis'!Q451,'EBITDA Analysis'!Q426,'EBITDA Analysis'!D451,'EBITDA Analysis'!D243) -> FALSE | G25: =CHOOSE($E$35,'EBITDA Analysis'!E479,'EBITDA Analysis'!R217,'EBITDA Analysis'!E24,'EBITDA Analysis'!E53,'EBITDA Analysis'!R350,'EBITDA Analysis'!R269,'EBITDA Analysis'!R323,'EBITDA Analysis'!R376,'EBITDA Analysis'!E163,'EBITDA Analysis'!R53,'EBITDA Analysis'!R24,'EBITDA Analysis'!R297,'EBITDA Analysis'!E297,'EBITDA Analysis'!E426,'EBITDA Analysis'!R479,'EBITDA Analysis'!R401,'EBITDA Analysis'!R451,'EBITDA Analysis'!R426,'EBITDA Analysis'!E451,'EBITDA Analysis'!E243) -> 32230000 | H25: =CHOOSE($E$35,'EBITDA Analysis'!F479,'EBITDA Analysis'!S217,'EBITDA Analysis'!F24,'EBITDA Analysis'!F53,'EBITDA Analysis'!S350,'EBITDA Analysis'!S269,'EBITDA Analysis'!S323,'EBITDA Analysis'!S376,'EBITDA Analysis'!F163,'EBITDA Analysis'!S53,'EBITDA Analysis'!S24,'EBITDA Analysis'!S297,'EBITDA Analysis'!F297,'EBITDA Analysis'!F426,'EBITDA Analysis'!S479,'EBITDA Analysis'!S401,'EBITDA Analysis'!S451,'EBITDA Analysis'!S426,'EBITDA Analysis'!F451,'EBITDA Analysis'!F243) -> 33040000 | I25: =CHOOSE($E$35,'EBITDA Analysis'!G479,'EBITDA Analysis'!T217,'EBITDA Analysis'!G24,'EBITDA Analysis'!G53,'EBITDA Analysis'!T350,'EBITDA Analysis'!T269,'EBITDA Analysis'!T323,'EBITDA Analysis'!T376,'EBITDA Analysis'!G163,'EBITDA Analysis'!T53,'EBITDA Analysis'!T24,'EBITDA Analysis'!T297,'EBITDA Analysis'!G297,'EBITDA Analysis'!G426,'EBITDA Analysis'!T479,'EBITDA Analysis'!T401,'EBITDA Analysis'!T451,'EBITDA Analysis'!T426,'EBITDA Analysis'!G451,'EBITDA Analysis'!G243) -> 26610000 | J25: =CHOOSE($E$35,'EBITDA Analysis'!H479,'EBITDA Analysis'!U217,'EBITDA Analysis'!H24,'EBITDA Analysis'!H53,'EBITDA Analysis'!U350,'EBITDA Analysis'!U269,'EBITDA Analysis'!U323,'EBITDA Analysis'!U376,'EBITDA Analysis'!H163,'EBITDA Analysis'!U53,'EBITDA Analysis'!U24,'EBITDA Analysis'!U297,'EBITDA Analysis'!H297,'EBITDA Analysis'!H426,'EBITDA Analysis'!U479,'EBITDA Analysis'!U401,'EBITDA Analysis'!U451,'EBITDA Analysis'!U426,'EBITDA Analysis'!H451,'EBITDA Analysis'!H243) -> 36630000 | K25: =CHOOSE($E$35,'EBITDA Analysis'!I479,'EBITDA Analysis'!V217,'EBITDA Analysis'!I24,'EBITDA Analysis'!I53,'EBITDA Analysis'!V350,'EBITDA Analysis'!V269,'EBITDA Analysis'!V323,'EBITDA Analysis'!V376,'EBITDA Analysis'!I163,'EBITDA Analysis'!V53,'EBITDA Analysis'!V24,'EBITDA Analysis'!V297,'EBITDA Analysis'!I297,'EBITDA Analysis'!I426,'EBITDA Analysis'!V479,'EBITDA Analysis'!V401,'EBITDA Analysis'!V451,'EBITDA Analysis'!V426,'EBITDA Analysis'!I451,'EBITDA Analysis'!I243) -> 44830000 | L25: =CHOOSE($E$35,'EBITDA Analysis'!J479,'EBITDA Analysis'!W217,'EBITDA Analysis'!J24,'EBITDA Analysis'!J53,'EBITDA Analysis'!W350,'EBITDA Analysis'!W269,'EBITDA Analysis'!W323,'EBITDA Analysis'!W376,'EBITDA Analysis'!J163,'EBITDA Analysis'!W53,'EBITDA Analysis'!W24,'EBITDA Analysis'!W297,'EBITDA Analysis'!J297,'EBITDA Analysis'!J426,'EBITDA Analysis'!W479,'EBITDA Analysis'!W401,'EBITDA Analysis'!W451,'EBITDA Analysis'!W426,'EBITDA Analysis'!J451,'EBITDA Analysis'!J243) -> FALSE | M25: =CHOOSE($E$35,'EBITDA Analysis'!K479,'EBITDA Analysis'!X217,'EBITDA Analysis'!K24,'EBITDA Analysis'!K53,'EBITDA Analysis'!X350,'EBITDA Analysis'!X269,'EBITDA Analysis'!X323,'EBITDA Analysis'!X376,'EBITDA Analysis'!K163,'EBITDA Analysis'!X53,'EBITDA Analysis'!X24,'EBITDA Analysis'!X297,'EBITDA Analysis'!K297,'EBITDA Analysis'!K426,'EBITDA Analysis'!X479,'EBITDA Analysis'!X401,'EBITDA Analysis'!X451,'EBITDA Analysis'!X426,'EBITDA Analysis'!K451,'EBITDA Analysis'!K243) -> FALSE | N25: =CHOOSE($E$35,'EBITDA Analysis'!L479,'EBITDA Analysis'!Y217,'EBITDA Analysis'!L24,'EBITDA Analysis'!L53,'EBITDA Analysis'!Y350,'EBITDA Analysis'!Y269,'EBITDA Analysis'!Y323,'EBITDA Analysis'!Y376,'EBITDA Analysis'!L163,'EBITDA Analysis'!Y53,'EBITDA Analysis'!Y24,'EBITDA Analysis'!Y297,'EBITDA Analysis'!L297,'EBITDA Analysis'!L426,'EBITDA Analysis'!Y479,'EBITDA Analysis'!Y401,'EBITDA Analysis'!Y451,'EBITDA Analysis'!Y426,'EBITDA Analysis'!L451,'EBITDA Analysis'!L243) -> 44960000 | O25: FALSE | P25: 3 | R25: 14
C26: ='Data Current'!D29 -> Nike | E26: =CHOOSE($E$35,'EBITDA Analysis'!C480,'EBITDA Analysis'!P218,'EBITDA Analysis'!C25,'EBITDA Analysis'!C54,'EBITDA Analysis'!P351,'EBITDA Analysis'!P270,'EBITDA Analysis'!P324,'EBITDA Analysis'!P377,'EBITDA Analysis'!C164,'EBITDA Analysis'!P54,'EBITDA Analysis'!P25,'EBITDA Analysis'!P298,'EBITDA Analysis'!C298,'EBITDA Analysis'!C427,'EBITDA Analysis'!P480,'EBITDA Analysis'!P402,'EBITDA Analysis'!P452,'EBITDA Analysis'!P427,'EBITDA Analysis'!C452,'EBITDA Analysis'!C244) -> 0 | F26: =CHOOSE($E$35,'EBITDA Analysis'!D480,'EBITDA Analysis'!Q218,'EBITDA Analysis'!D25,'EBITDA Analysis'!D54,'EBITDA Analysis'!Q351,'EBITDA Analysis'!Q270,'EBITDA Analysis'!Q324,'EBITDA Analysis'!Q377,'EBITDA Analysis'!D164,'EBITDA Analysis'!Q54,'EBITDA Analysis'!Q25,'EBITDA Analysis'!Q298,'EBITDA Analysis'!D298,'EBITDA Analysis'!D427,'EBITDA Analysis'!Q480,'EBITDA Analysis'!Q402,'EBITDA Analysis'!Q452,'EBITDA Analysis'!Q427,'EBITDA Analysis'!D452,'EBITDA Analysis'!D244) -> FALSE | G26: =CHOOSE($E$35,'EBITDA Analysis'!E480,'EBITDA Analysis'!R218,'EBITDA Analysis'!E25,'EBITDA Analysis'!E54,'EBITDA Analysis'!R351,'EBITDA Analysis'!R270,'EBITDA Analysis'!R324,'EBITDA Analysis'!R377,'EBITDA Analysis'!E164,'EBITDA Analysis'!R54,'EBITDA Analysis'!R25,'EBITDA Analysis'!R298,'EBITDA Analysis'!E298,'EBITDA Analysis'!E427,'EBITDA Analysis'!R480,'EBITDA Analysis'!R402,'EBITDA Analysis'!R452,'EBITDA Analysis'!R427,'EBITDA Analysis'!E452,'EBITDA Analysis'!E244) -> 4200000 | H26: =CHOOSE($E$35,'EBITDA Analysis'!F480,'EBITDA Analysis'!S218,'EBITDA Analysis'!F25,'EBITDA Analysis'!F54,'EBITDA Analysis'!S351,'EBITDA Analysis'!S270,'EBITDA Analysis'!S324,'EBITDA Analysis'!S377,'EBITDA Analysis'!F164,'EBITDA Analysis'!S54,'EBITDA Analysis'!S25,'EBITDA Analysis'!S298,'EBITDA Analysis'!F298,'EBITDA Analysis'!F427,'EBITDA Analysis'!S480,'EBITDA Analysis'!S402,'EBITDA Analysis'!S452,'EBITDA Analysis'!S427,'EBITDA Analysis'!F452,'EBITDA Analysis'!F244) -> 4660000 | I26: =CHOOSE($E$35,'EBITDA Analysis'!G480,'EBITDA Analysis'!T218,'EBITDA Analysis'!G25,'EBITDA Analysis'!G54,'EBITDA Analysis'!T351,'EBITDA Analysis'!T270,'EBITDA Analysis'!T324,'EBITDA Analysis'!T377,'EBITDA Analysis'!G164,'EBITDA Analysis'!T54,'EBITDA Analysis'!T25,'EBITDA Analysis'!T298,'EBITDA Analysis'!G298,'EBITDA Analysis'!G427,'EBITDA Analysis'!T480,'EBITDA Analysis'!T402,'EBITDA Analysis'!T452,'EBITDA Analysis'!T427,'EBITDA Analysis'!G452,'EBITDA Analysis'!G244) -> 4650000 | J26: =CHOOSE($E$35,'EBITDA Analysis'!H480,'EBITDA Analysis'!U218,'EBITDA Analysis'!H25,'EBITDA Analysis'!H54,'EBITDA Analysis'!U351,'EBITDA Analysis'!U270,'EBITDA Analysis'!U324,'EBITDA Analysis'!U377,'EBITDA Analysis'!H164,'EBITDA Analysis'!U54,'EBITDA Analysis'!U25,'EBITDA Analysis'!U298,'EBITDA Analysis'!H298,'EBITDA Analysis'!H427,'EBITDA Analysis'!U480,'EBITDA Analysis'!U402,'EBITDA Analysis'!U452,'EBITDA Analysis'!U427,'EBITDA Analysis'!H452,'EBITDA Analysis'!H244) -> 5020000 | K26: =CHOOSE($E$35,'EBITDA Analysis'!I480,'EBITDA Analysis'!V218,'EBITDA Analysis'!I25,'EBITDA Analysis'!I54,'EBITDA Analysis'!V351,'EBITDA Analysis'!V270,'EBITDA Analysis'!V324,'EBITDA Analysis'!V377,'EBITDA Analysis'!I164,'EBITDA Analysis'!V54,'EBITDA Analysis'!V25,'EBITDA Analysis'!V298,'EBITDA Analysis'!I298,'EBITDA Analysis'!I427,'EBITDA Analysis'!V480,'EBITDA Analysis'!V402,'EBITDA Analysis'!V452,'EBITDA Analysis'!V427,'EBITDA Analysis'!I452,'EBITDA Analysis'!I244) -> 5250000 | L26: =CHOOSE($E$35,'EBITDA Analysis'!J480,'EBITDA Analysis'!W218,'EBITDA Analysis'!J25,'EBITDA Analysis'!J54,'EBITDA Analysis'!W351,'EBITDA Analysis'!W270,'EBITDA Analysis'!W324,'EBITDA Analysis'!W377,'EBITDA Analysis'!J164,'EBITDA Analysis'!W54,'EBITDA Analysis'!W25,'EBITDA Analysis'!W298,'EBITDA Analysis'!J298,'EBITDA Analysis'!J427,'EBITDA Analysis'!W480,'EBITDA Analysis'!W402,'EBITDA Analysis'!W452,'EBITDA Analysis'!W427,'EBITDA Analysis'!J452,'EBITDA Analysis'!J244) -> FALSE | M26: =CHOOSE($E$35,'EBITDA Analysis'!K480,'EBITDA Analysis'!X218,'EBITDA Analysis'!K25,'EBITDA Analysis'!K54,'EBITDA Analysis'!X351,'EBITDA Analysis'!X270,'EBITDA Analysis'!X324,'EBITDA Analysis'!X377,'EBITDA Analysis'!K164,'EBITDA Analysis'!X54,'EBITDA Analysis'!X25,'EBITDA Analysis'!X298,'EBITDA Analysis'!K298,'EBITDA Analysis'!K427,'EBITDA Analysis'!X480,'EBITDA Analysis'!X402,'EBITDA Analysis'!X452,'EBITDA Analysis'!X427,'EBITDA Analysis'!K452,'EBITDA Analysis'!K244) -> FALSE | N26: =CHOOSE($E$35,'EBITDA Analysis'!L480,'EBITDA Analysis'!Y218,'EBITDA Analysis'!L25,'EBITDA Analysis'!L54,'EBITDA Analysis'!Y351,'EBITDA Analysis'!Y270,'EBITDA Analysis'!Y324,'EBITDA Analysis'!Y377,'EBITDA Analysis'!L164,'EBITDA Analysis'!Y54,'EBITDA Analysis'!Y25,'EBITDA Analysis'!Y298,'EBITDA Analysis'!L298,'EBITDA Analysis'!L427,'EBITDA Analysis'!Y480,'EBITDA Analysis'!Y402,'EBITDA Analysis'!Y452,'EBITDA Analysis'!Y427,'EBITDA Analysis'!L452,'EBITDA Analysis'!L244) -> 5220000 | O26: FALSE | P26: 3 | R26: 15
C27: ='Data Current'!D30 -> Pfizer | E27: =CHOOSE($E$35,'EBITDA Analysis'!C481,'EBITDA Analysis'!P219,'EBITDA Analysis'!C26,'EBITDA Analysis'!C55,'EBITDA Analysis'!P352,'EBITDA Analysis'!P271,'EBITDA Analysis'!P325,'EBITDA Analysis'!P378,'EBITDA Analysis'!C165,'EBITDA Analysis'!P55,'EBITDA Analysis'!P26,'EBITDA Analysis'!P299,'EBITDA Analysis'!C299,'EBITDA Analysis'!C428,'EBITDA Analysis'!P481,'EBITDA Analysis'!P403,'EBITDA Analysis'!P453,'EBITDA Analysis'!P428,'EBITDA Analysis'!C453,'EBITDA Analysis'!C245) -> 0 | F27: =CHOOSE($E$35,'EBITDA Analysis'!D481,'EBITDA Analysis'!Q219,'EBITDA Analysis'!D26,'EBITDA Analysis'!D55,'EBITDA Analysis'!Q352,'EBITDA Analysis'!Q271,'EBITDA Analysis'!Q325,'EBITDA Analysis'!Q378,'EBITDA Analysis'!D165,'EBITDA Analysis'!Q55,'EBITDA Analysis'!Q26,'EBITDA Analysis'!Q299,'EBITDA Analysis'!D299,'EBITDA Analysis'!D428,'EBITDA Analysis'!Q481,'EBITDA Analysis'!Q403,'EBITDA Analysis'!Q453,'EBITDA Analysis'!Q428,'EBITDA Analysis'!D453,'EBITDA Analysis'!D245) -> FALSE | G27: =CHOOSE($E$35,'EBITDA Analysis'!E481,'EBITDA Analysis'!R219,'EBITDA Analysis'!E26,'EBITDA Analysis'!E55,'EBITDA Analysis'!R352,'EBITDA Analysis'!R271,'EBITDA Analysis'!R325,'EBITDA Analysis'!R378,'EBITDA Analysis'!E165,'EBITDA Analysis'!R55,'EBITDA Analysis'!R26,'EBITDA Analysis'!R299,'EBITDA Analysis'!E299,'EBITDA Analysis'!E428,'EBITDA Analysis'!R481,'EBITDA Analysis'!R403,'EBITDA Analysis'!R453,'EBITDA Analysis'!R428,'EBITDA Analysis'!E453,'EBITDA Analysis'!E245) -> 23300000 | H27: =CHOOSE($E$35,'EBITDA Analysis'!F481,'EBITDA Analysis'!S219,'EBITDA Analysis'!F26,'EBITDA Analysis'!F55,'EBITDA Analysis'!S352,'EBITDA Analysis'!S271,'EBITDA Analysis'!S325,'EBITDA Analysis'!S378,'EBITDA Analysis'!F165,'EBITDA Analysis'!S55,'EBITDA Analysis'!S26,'EBITDA Analysis'!S299,'EBITDA Analysis'!F299,'EBITDA Analysis'!F428,'EBITDA Analysis'!S481,'EBITDA Analysis'!S403,'EBITDA Analysis'!S453,'EBITDA Analysis'!S428,'EBITDA Analysis'!F453,'EBITDA Analysis'!F245) -> 19570000 | I27: =CHOOSE($E$35,'EBITDA Analysis'!G481,'EBITDA Analysis'!T219,'EBITDA Analysis'!G26,'EBITDA Analysis'!G55,'EBITDA Analysis'!T352,'EBITDA Analysis'!T271,'EBITDA Analysis'!T325,'EBITDA Analysis'!T378,'EBITDA Analysis'!G165,'EBITDA Analysis'!T55,'EBITDA Analysis'!T26,'EBITDA Analysis'!T299,'EBITDA Analysis'!G299,'EBITDA Analysis'!G428,'EBITDA Analysis'!T481,'EBITDA Analysis'!T403,'EBITDA Analysis'!T453,'EBITDA Analysis'!T428,'EBITDA Analysis'!G453,'EBITDA Analysis'!G245) -> 18450000 | J27: =CHOOSE($E$35,'EBITDA Analysis'!H481,'EBITDA Analysis'!U219,'EBITDA Analysis'!H26,'EBITDA Analysis'!H55,'EBITDA Analysis'!U352,'EBITDA Analysis'!U271,'EBITDA Analysis'!U325,'EBITDA Analysis'!U378,'EBITDA Analysis'!H165,'EBITDA Analysis'!U55,'EBITDA Analysis'!U26,'EBITDA Analysis'!U299,'EBITDA Analysis'!H299,'EBITDA Analysis'!H428,'EBITDA Analysis'!U481,'EBITDA Analysis'!U403,'EBITDA Analysis'!U453,'EBITDA Analysis'!U428,'EBITDA Analysis'!H453,'EBITDA Analysis'!H245) -> 20030000 | K27: =CHOOSE($E$35,'EBITDA Analysis'!I481,'EBITDA Analysis'!V219,'EBITDA Analysis'!I26,'EBITDA Analysis'!I55,'EBITDA Analysis'!V352,'EBITDA Analysis'!V271,'EBITDA Analysis'!V325,'EBITDA Analysis'!V378,'EBITDA Analysis'!I165,'EBITDA Analysis'!V55,'EBITDA Analysis'!V26,'EBITDA Analysis'!V299,'EBITDA Analysis'!I299,'EBITDA Analysis'!I428,'EBITDA Analysis'!V481,'EBITDA Analysis'!V403,'EBITDA Analysis'!V453,'EBITDA Analysis'!V428,'EBITDA Analysis'!I453,'EBITDA Analysis'!I245) -> 20690000 | L27: =CHOOSE($E$35,'EBITDA Analysis'!J481,'EBITDA Analysis'!W219,'EBITDA Analysis'!J26,'EBITDA Analysis'!J55,'EBITDA Analysis'!W352,'EBITDA Analysis'!W271,'EBITDA Analysis'!W325,'EBITDA Analysis'!W378,'EBITDA Analysis'!J165,'EBITDA Analysis'!W55,'EBITDA Analysis'!W26,'EBITDA Analysis'!W299,'EBITDA Analysis'!J299,'EBITDA Analysis'!J428,'EBITDA Analysis'!W481,'EBITDA Analysis'!W403,'EBITDA Analysis'!W453,'EBITDA Analysis'!W428,'EBITDA Analysis'!J453,'EBITDA Analysis'!J245) -> FALSE | M27: =CHOOSE($E$35,'EBITDA Analysis'!K481,'EBITDA Analysis'!X219,'EBITDA Analysis'!K26,'EBITDA Analysis'!K55,'EBITDA Analysis'!X352,'EBITDA Analysis'!X271,'EBITDA Analysis'!X325,'EBITDA Analysis'!X378,'EBITDA Analysis'!K165,'EBITDA Analysis'!X55,'EBITDA Analysis'!X26,'EBITDA Analysis'!X299,'EBITDA Analysis'!K299,'EBITDA Analysis'!K428,'EBITDA Analysis'!X481,'EBITDA Analysis'!X403,'EBITDA Analysis'!X453,'EBITDA Analysis'!X428,'EBITDA Analysis'!K453,'EBITDA Analysis'!K245) -> FALSE | N27: =CHOOSE($E$35,'EBITDA Analysis'!L481,'EBITDA Analysis'!Y219,'EBITDA Analysis'!L26,'EBITDA Analysis'!L55,'EBITDA Analysis'!Y352,'EBITDA Analysis'!Y271,'EBITDA Analysis'!Y325,'EBITDA Analysis'!Y378,'EBITDA Analysis'!L165,'EBITDA Analysis'!Y55,'EBITDA Analysis'!Y26,'EBITDA Analysis'!Y299,'EBITDA Analysis'!L299,'EBITDA Analysis'!L428,'EBITDA Analysis'!Y481,'EBITDA Analysis'!Y403,'EBITDA Analysis'!Y453,'EBITDA Analysis'!Y428,'EBITDA Analysis'!L453,'EBITDA Analysis'!L245) -> 21470000 | O27: FALSE | P27: 3 | R27: 16
C28: ='Data Current'!D31 -> Procter & Gamble | E28: =CHOOSE($E$35,'EBITDA Analysis'!C482,'EBITDA Analysis'!P220,'EBITDA Analysis'!C27,'EBITDA Analysis'!C56,'EBITDA Analysis'!P353,'EBITDA Analysis'!P272,'EBITDA Analysis'!P326,'EBITDA Analysis'!P379,'EBITDA Analysis'!C166,'EBITDA Analysis'!P56,'EBITDA Analysis'!P27,'EBITDA Analysis'!P300,'EBITDA Analysis'!C300,'EBITDA Analysis'!C429,'EBITDA Analysis'!P482,'EBITDA Analysis'!P404,'EBITDA Analysis'!P454,'EBITDA Analysis'!P429,'EBITDA Analysis'!C454,'EBITDA Analysis'!C246) -> 0 | F28: =CHOOSE($E$35,'EBITDA Analysis'!D482,'EBITDA Analysis'!Q220,'EBITDA Analysis'!D27,'EBITDA Analysis'!D56,'EBITDA Analysis'!Q353,'EBITDA Analysis'!Q272,'EBITDA Analysis'!Q326,'EBITDA Analysis'!Q379,'EBITDA Analysis'!D166,'EBITDA Analysis'!Q56,'EBITDA Analysis'!Q27,'EBITDA Analysis'!Q300,'EBITDA Analysis'!D300,'EBITDA Analysis'!D429,'EBITDA Analysis'!Q482,'EBITDA Analysis'!Q404,'EBITDA Analysis'!Q454,'EBITDA Analysis'!Q429,'EBITDA Analysis'!D454,'EBITDA Analysis'!D246) -> FALSE | G28: =CHOOSE($E$35,'EBITDA Analysis'!E482,'EBITDA Analysis'!R220,'EBITDA Analysis'!E27,'EBITDA Analysis'!E56,'EBITDA Analysis'!R353,'EBITDA Analysis'!R272,'EBITDA Analysis'!R326,'EBITDA Analysis'!R379,'EBITDA Analysis'!E166,'EBITDA Analysis'!R56,'EBITDA Analysis'!R27,'EBITDA Analysis'!R300,'EBITDA Analysis'!E300,'EBITDA Analysis'!E429,'EBITDA Analysis'!R482,'EBITDA Analysis'!R404,'EBITDA Analysis'!R454,'EBITDA Analysis'!R429,'EBITDA Analysis'!E454,'EBITDA Analysis'!E246) -> 18480000 | H28: =CHOOSE($E$35,'EBITDA Analysis'!F482,'EBITDA Analysis'!S220,'EBITDA Analysis'!F27,'EBITDA Analysis'!F56,'EBITDA Analysis'!S353,'EBITDA Analysis'!S272,'EBITDA Analysis'!S326,'EBITDA Analysis'!S379,'EBITDA Analysis'!F166,'EBITDA Analysis'!S56,'EBITDA Analysis'!S27,'EBITDA Analysis'!S300,'EBITDA Analysis'!F300,'EBITDA Analysis'!F429,'EBITDA Analysis'!S482,'EBITDA Analysis'!S404,'EBITDA Analysis'!S454,'EBITDA Analysis'!S429,'EBITDA Analysis'!F454,'EBITDA Analysis'!F246) -> 17870000 | I28: =CHOOSE($E$35,'EBITDA Analysis'!G482,'EBITDA Analysis'!T220,'EBITDA Analysis'!G27,'EBITDA Analysis'!G56,'EBITDA Analysis'!T353,'EBITDA Analysis'!T272,'EBITDA Analysis'!T326,'EBITDA Analysis'!T379,'EBITDA Analysis'!G166,'EBITDA Analysis'!T56,'EBITDA Analysis'!T27,'EBITDA Analysis'!T300,'EBITDA Analysis'!G300,'EBITDA Analysis'!G429,'EBITDA Analysis'!T482,'EBITDA Analysis'!T404,'EBITDA Analysis'!T454,'EBITDA Analysis'!T429,'EBITDA Analysis'!G454,'EBITDA Analysis'!G246) -> 17560000 | J28: =CHOOSE($E$35,'EBITDA Analysis'!H482,'EBITDA Analysis'!U220,'EBITDA Analysis'!H27,'EBITDA Analysis'!H56,'EBITDA Analysis'!U353,'EBITDA Analysis'!U272,'EBITDA Analysis'!U326,'EBITDA Analysis'!U379,'EBITDA Analysis'!H166,'EBITDA Analysis'!U56,'EBITDA Analysis'!U27,'EBITDA Analysis'!U300,'EBITDA Analysis'!H300,'EBITDA Analysis'!H429,'EBITDA Analysis'!U482,'EBITDA Analysis'!U404,'EBITDA Analysis'!U454,'EBITDA Analysis'!U429,'EBITDA Analysis'!H454,'EBITDA Analysis'!H246) -> 17350000 | K28: =CHOOSE($E$35,'EBITDA Analysis'!I482,'EBITDA Analysis'!V220,'EBITDA Analysis'!I27,'EBITDA Analysis'!I56,'EBITDA Analysis'!V353,'EBITDA Analysis'!V272,'EBITDA Analysis'!V326,'EBITDA Analysis'!V379,'EBITDA Analysis'!I166,'EBITDA Analysis'!V56,'EBITDA Analysis'!V27,'EBITDA Analysis'!V300,'EBITDA Analysis'!I300,'EBITDA Analysis'!I429,'EBITDA Analysis'!V482,'EBITDA Analysis'!V404,'EBITDA Analysis'!V454,'EBITDA Analysis'!V429,'EBITDA Analysis'!I454,'EBITDA Analysis'!I246) -> 17620000 | L28: =CHOOSE($E$35,'EBITDA Analysis'!J482,'EBITDA Analysis'!W220,'EBITDA Analysis'!J27,'EBITDA Analysis'!J56,'EBITDA Analysis'!W353,'EBITDA Analysis'!W272,'EBITDA Analysis'!W326,'EBITDA Analysis'!W379,'EBITDA Analysis'!J166,'EBITDA Analysis'!W56,'EBITDA Analysis'!W27,'EBITDA Analysis'!W300,'EBITDA Analysis'!J300,'EBITDA Analysis'!J429,'EBITDA Analysis'!W482,'EBITDA Analysis'!W404,'EBITDA Analysis'!W454,'EBITDA Analysis'!W429,'EBITDA Analysis'!J454,'EBITDA Analysis'!J246) -> FALSE | M28: =CHOOSE($E$35,'EBITDA Analysis'!K482,'EBITDA Analysis'!X220,'EBITDA Analysis'!K27,'EBITDA Analysis'!K56,'EBITDA Analysis'!X353,'EBITDA Analysis'!X272,'EBITDA Analysis'!X326,'EBITDA Analysis'!X379,'EBITDA Analysis'!K166,'EBITDA Analysis'!X56,'EBITDA Analysis'!X27,'EBITDA Analysis'!X300,'EBITDA Analysis'!K300,'EBITDA Analysis'!K429,'EBITDA Analysis'!X482,'EBITDA Analysis'!X404,'EBITDA Analysis'!X454,'EBITDA Analysis'!X429,'EBITDA Analysis'!K454,'EBITDA Analysis'!K246) -> FALSE | N28: =CHOOSE($E$35,'EBITDA Analysis'!L482,'EBITDA Analysis'!Y220,'EBITDA Analysis'!L27,'EBITDA Analysis'!L56,'EBITDA Analysis'!Y353,'EBITDA Analysis'!Y272,'EBITDA Analysis'!Y326,'EBITDA Analysis'!Y379,'EBITDA Analysis'!L166,'EBITDA Analysis'!Y56,'EBITDA Analysis'!Y27,'EBITDA Analysis'!Y300,'EBITDA Analysis'!L300,'EBITDA Analysis'!L429,'EBITDA Analysis'!Y482,'EBITDA Analysis'!Y404,'EBITDA Analysis'!Y454,'EBITDA Analysis'!Y429,'EBITDA Analysis'!L454,'EBITDA Analysis'!L246) -> 17610000 | O28: FALSE | P28: 3 | R28: 17
C29: ='Data Current'!D32 -> 0 | E29: =CHOOSE($E$35,'EBITDA Analysis'!C483,'EBITDA Analysis'!P221,'EBITDA Analysis'!C28,'EBITDA Analysis'!C57,'EBITDA Analysis'!P354,'EBITDA Analysis'!P273,'EBITDA Analysis'!P327,'EBITDA Analysis'!P380,'EBITDA Analysis'!C167,'EBITDA Analysis'!P57,'EBITDA Analysis'!P28,'EBITDA Analysis'!P301,'EBITDA Analysis'!C301,'EBITDA Analysis'!C430,'EBITDA Analysis'!P483,'EBITDA Analysis'!P405,'EBITDA Analysis'!P455,'EBITDA Analysis'!P430,'EBITDA Analysis'!C455,'EBITDA Analysis'!C247) -> 0 | F29: =CHOOSE($E$35,'EBITDA Analysis'!D483,'EBITDA Analysis'!Q221,'EBITDA Analysis'!D28,'EBITDA Analysis'!D57,'EBITDA Analysis'!Q354,'EBITDA Analysis'!Q273,'EBITDA Analysis'!Q327,'EBITDA Analysis'!Q380,'EBITDA Analysis'!D167,'EBITDA Analysis'!Q57,'EBITDA Analysis'!Q28,'EBITDA Analysis'!Q301,'EBITDA Analysis'!D301,'EBITDA Analysis'!D430,'EBITDA Analysis'!Q483,'EBITDA Analysis'!Q405,'EBITDA Analysis'!Q455,'EBITDA Analysis'!Q430,'EBITDA Analysis'!D455,'EBITDA Analysis'!D247) -> FALSE | G29: =CHOOSE($E$35,'EBITDA Analysis'!E483,'EBITDA Analysis'!R221,'EBITDA Analysis'!E28,'EBITDA Analysis'!E57,'EBITDA Analysis'!R354,'EBITDA Analysis'!R273,'EBITDA Analysis'!R327,'EBITDA Analysis'!R380,'EBITDA Analysis'!E167,'EBITDA Analysis'!R57,'EBITDA Analysis'!R28,'EBITDA Analysis'!R301,'EBITDA Analysis'!E301,'EBITDA Analysis'!E430,'EBITDA Analysis'!R483,'EBITDA Analysis'!R405,'EBITDA Analysis'!R455,'EBITDA Analysis'!R430,'EBITDA Analysis'!E455,'EBITDA Analysis'!E247) -> FALSE | H29: =CHOOSE($E$35,'EBITDA Analysis'!F483,'EBITDA Analysis'!S221,'EBITDA Analysis'!F28,'EBITDA Analysis'!F57,'EBITDA Analysis'!S354,'EBITDA Analysis'!S273,'EBITDA Analysis'!S327,'EBITDA Analysis'!S380,'EBITDA Analysis'!F167,'EBITDA Analysis'!S57,'EBITDA Analysis'!S28,'EBITDA Analysis'!S301,'EBITDA Analysis'!F301,'EBITDA Analysis'!F430,'EBITDA Analysis'!S483,'EBITDA Analysis'!S405,'EBITDA Analysis'!S455,'EBITDA Analysis'!S430,'EBITDA Analysis'!F455,'EBITDA Analysis'!F247) -> FALSE | I29: =CHOOSE($E$35,'EBITDA Analysis'!G483,'EBITDA Analysis'!T221,'EBITDA Analysis'!G28,'EBITDA Analysis'!G57,'EBITDA Analysis'!T354,'EBITDA Analysis'!T273,'EBITDA Analysis'!T327,'EBITDA Analysis'!T380,'EBITDA Analysis'!G167,'EBITDA Analysis'!T57,'EBITDA Analysis'!T28,'EBITDA Analysis'!T301,'EBITDA Analysis'!G301,'EBITDA Analysis'!G430,'EBITDA Analysis'!T483,'EBITDA Analysis'!T405,'EBITDA Analysis'!T455,'EBITDA Analysis'!T430,'EBITDA Analysis'!G455,'EBITDA Analysis'!G247) -> FALSE | J29: =CHOOSE($E$35,'EBITDA Analysis'!H483,'EBITDA Analysis'!U221,'EBITDA Analysis'!H28,'EBITDA Analysis'!H57,'EBITDA Analysis'!U354,'EBITDA Analysis'!U273,'EBITDA Analysis'!U327,'EBITDA Analysis'!U380,'EBITDA Analysis'!H167,'EBITDA Analysis'!U57,'EBITDA Analysis'!U28,'EBITDA Analysis'!U301,'EBITDA Analysis'!H301,'EBITDA Analysis'!H430,'EBITDA Analysis'!U483,'EBITDA Analysis'!U405,'EBITDA Analysis'!U455,'EBITDA Analysis'!U430,'EBITDA Analysis'!H455,'EBITDA Analysis'!H247) -> FALSE | K29: =CHOOSE($E$35,'EBITDA Analysis'!I483,'EBITDA Analysis'!V221,'EBITDA Analysis'!I28,'EBITDA Analysis'!I57,'EBITDA Analysis'!V354,'EBITDA Analysis'!V273,'EBITDA Analysis'!V327,'EBITDA Analysis'!V380,'EBITDA Analysis'!I167,'EBITDA Analysis'!V57,'EBITDA Analysis'!V28,'EBITDA Analysis'!V301,'EBITDA Analysis'!I301,'EBITDA Analysis'!I430,'EBITDA Analysis'!V483,'EBITDA Analysis'!V405,'EBITDA Analysis'!V455,'EBITDA Analysis'!V430,'EBITDA Analysis'!I455,'EBITDA Analysis'!I247) -> FALSE | L29: =CHOOSE($E$35,'EBITDA Analysis'!J483,'EBITDA Analysis'!W221,'EBITDA Analysis'!J28,'EBITDA Analysis'!J57,'EBITDA Analysis'!W354,'EBITDA Analysis'!W273,'EBITDA Analysis'!W327,'EBITDA Analysis'!W380,'EBITDA Analysis'!J167,'EBITDA Analysis'!W57,'EBITDA Analysis'!W28,'EBITDA Analysis'!W301,'EBITDA Analysis'!J301,'EBITDA Analysis'!J430,'EBITDA Analysis'!W483,'EBITDA Analysis'!W405,'EBITDA Analysis'!W455,'EBITDA Analysis'!W430,'EBITDA Analysis'!J455,'EBITDA Analysis'!J247) -> FALSE | M29: =CHOOSE($E$35,'EBITDA Analysis'!K483,'EBITDA Analysis'!X221,'EBITDA Analysis'!K28,'EBITDA Analysis'!K57,'EBITDA Analysis'!X354,'EBITDA Analysis'!X273,'EBITDA Analysis'!X327,'EBITDA Analysis'!X380,'EBITDA Analysis'!K167,'EBITDA Analysis'!X57,'EBITDA Analysis'!X28,'EBITDA Analysis'!X301,'EBITDA Analysis'!K301,'EBITDA Analysis'!K430,'EBITDA Analysis'!X483,'EBITDA Analysis'!X405,'EBITDA Analysis'!X455,'EBITDA Analysis'!X430,'EBITDA Analysis'!K455,'EBITDA Analysis'!K247) -> FALSE | N29: =CHOOSE($E$35,'EBITDA Analysis'!L483,'EBITDA Analysis'!Y221,'EBITDA Analysis'!L28,'EBITDA Analysis'!L57,'EBITDA Analysis'!Y354,'EBITDA Analysis'!Y273,'EBITDA Analysis'!Y327,'EBITDA Analysis'!Y380,'EBITDA Analysis'!L167,'EBITDA Analysis'!Y57,'EBITDA Analysis'!Y28,'EBITDA Analysis'!Y301,'EBITDA Analysis'!L301,'EBITDA Analysis'!L430,'EBITDA Analysis'!Y483,'EBITDA Analysis'!Y405,'EBITDA Analysis'!Y455,'EBITDA Analysis'!Y430,'EBITDA Analysis'!L455,'EBITDA Analysis'!L247) -> FALSE | O29: FALSE | P29: 3 | R29: 18
C30: ='Data Current'!D33 -> 0 | E30: =CHOOSE($E$35,'EBITDA Analysis'!C484,'EBITDA Analysis'!P222,'EBITDA Analysis'!C29,'EBITDA Analysis'!C58,'EBITDA Analysis'!P355,'EBITDA Analysis'!P274,'EBITDA Analysis'!P328,'EBITDA Analysis'!P381,'EBITDA Analysis'!C168,'EBITDA Analysis'!P58,'EBITDA Analysis'!P29,'EBITDA Analysis'!P302,'EBITDA Analysis'!C302,'EBITDA Analysis'!C431,'EBITDA Analysis'!P484,'EBITDA Analysis'!P406,'EBITDA Analysis'!P456,'EBITDA Analysis'!P431,'EBITDA Analysis'!C456,'EBITDA Analysis'!C248) -> 0 | F30: =CHOOSE($E$35,'EBITDA Analysis'!D484,'EBITDA Analysis'!Q222,'EBITDA Analysis'!D29,'EBITDA Analysis'!D58,'EBITDA Analysis'!Q355,'EBITDA Analysis'!Q274,'EBITDA Analysis'!Q328,'EBITDA Analysis'!Q381,'EBITDA Analysis'!D168,'EBITDA Analysis'!Q58,'EBITDA Analysis'!Q29,'EBITDA Analysis'!Q302,'EBITDA Analysis'!D302,'EBITDA Analysis'!D431,'EBITDA Analysis'!Q484,'EBITDA Analysis'!Q406,'EBITDA Analysis'!Q456,'EBITDA Analysis'!Q431,'EBITDA Analysis'!D456,'EBITDA Analysis'!D248) -> FALSE | G30: =CHOOSE($E$35,'EBITDA Analysis'!E484,'EBITDA Analysis'!R222,'EBITDA Analysis'!E29,'EBITDA Analysis'!E58,'EBITDA Analysis'!R355,'EBITDA Analysis'!R274,'EBITDA Analysis'!R328,'EBITDA Analysis'!R381,'EBITDA Analysis'!E168,'EBITDA Analysis'!R58,'EBITDA Analysis'!R29,'EBITDA Analysis'!R302,'EBITDA Analysis'!E302,'EBITDA Analysis'!E431,'EBITDA Analysis'!R484,'EBITDA Analysis'!R406,'EBITDA Analysis'!R456,'EBITDA Analysis'!R431,'EBITDA Analysis'!E456,'EBITDA Analysis'!E248) -> FALSE | H30: =CHOOSE($E$35,'EBITDA Analysis'!F484,'EBITDA Analysis'!S222,'EBITDA Analysis'!F29,'EBITDA Analysis'!F58,'EBITDA Analysis'!S355,'EBITDA Analysis'!S274,'EBITDA Analysis'!S328,'EBITDA Analysis'!S381,'EBITDA Analysis'!F168,'EBITDA Analysis'!S58,'EBITDA Analysis'!S29,'EBITDA Analysis'!S302,'EBITDA Analysis'!F302,'EBITDA Analysis'!F431,'EBITDA Analysis'!S484,'EBITDA Analysis'!S406,'EBITDA Analysis'!S456,'EBITDA Analysis'!S431,'EBITDA Analysis'!F456,'EBITDA Analysis'!F248) -> FALSE | I30: =CHOOSE($E$35,'EBITDA Analysis'!G484,'EBITDA Analysis'!T222,'EBITDA Analysis'!G29,'EBITDA Analysis'!G58,'EBITDA Analysis'!T355,'EBITDA Analysis'!T274,'EBITDA Analysis'!T328,'EBITDA Analysis'!T381,'EBITDA Analysis'!G168,'EBITDA Analysis'!T58,'EBITDA Analysis'!T29,'EBITDA Analysis'!T302,'EBITDA Analysis'!G302,'EBITDA Analysis'!G431,'EBITDA Analysis'!T484,'EBITDA Analysis'!T406,'EBITDA Analysis'!T456,'EBITDA Analysis'!T431,'EBITDA Analysis'!G456,'EBITDA Analysis'!G248) -> FALSE | J30: =CHOOSE($E$35,'EBITDA Analysis'!H484,'EBITDA Analysis'!U222,'EBITDA Analysis'!H29,'EBITDA Analysis'!H58,'EBITDA Analysis'!U355,'EBITDA Analysis'!U274,'EBITDA Analysis'!U328,'EBITDA Analysis'!U381,'EBITDA Analysis'!H168,'EBITDA Analysis'!U58,'EBITDA Analysis'!U29,'EBITDA Analysis'!U302,'EBITDA Analysis'!H302,'EBITDA Analysis'!H431,'EBITDA Analysis'!U484,'EBITDA Analysis'!U406,'EBITDA Analysis'!U456,'EBITDA Analysis'!U431,'EBITDA Analysis'!H456,'EBITDA Analysis'!H248) -> FALSE | K30: =CHOOSE($E$35,'EBITDA Analysis'!I484,'EBITDA Analysis'!V222,'EBITDA Analysis'!I29,'EBITDA Analysis'!I58,'EBITDA Analysis'!V355,'EBITDA Analysis'!V274,'EBITDA Analysis'!V328,'EBITDA Analysis'!V381,'EBITDA Analysis'!I168,'EBITDA Analysis'!V58,'EBITDA Analysis'!V29,'EBITDA Analysis'!V302,'EBITDA Analysis'!I302,'EBITDA Analysis'!I431,'EBITDA Analysis'!V484,'EBITDA Analysis'!V406,'EBITDA Analysis'!V456,'EBITDA Analysis'!V431,'EBITDA Analysis'!I456,'EBITDA Analysis'!I248) -> FALSE | L30: =CHOOSE($E$35,'EBITDA Analysis'!J484,'EBITDA Analysis'!W222,'EBITDA Analysis'!J29,'EBITDA Analysis'!J58,'EBITDA Analysis'!W355,'EBITDA Analysis'!W274,'EBITDA Analysis'!W328,'EBITDA Analysis'!W381,'EBITDA Analysis'!J168,'EBITDA Analysis'!W58,'EBITDA Analysis'!W29,'EBITDA Analysis'!W302,'EBITDA Analysis'!J302,'EBITDA Analysis'!J431,'EBITDA Analysis'!W484,'EBITDA Analysis'!W406,'EBITDA Analysis'!W456,'EBITDA Analysis'!W431,'EBITDA Analysis'!J456,'EBITDA Analysis'!J248) -> FALSE | M30: =CHOOSE($E$35,'EBITDA Analysis'!K484,'EBITDA Analysis'!X222,'EBITDA Analysis'!K29,'EBITDA Analysis'!K58,'EBITDA Analysis'!X355,'EBITDA Analysis'!X274,'EBITDA Analysis'!X328,'EBITDA Analysis'!X381,'EBITDA Analysis'!K168,'EBITDA Analysis'!X58,'EBITDA Analysis'!X29,'EBITDA Analysis'!X302,'EBITDA Analysis'!K302,'EBITDA Analysis'!K431,'EBITDA Analysis'!X484,'EBITDA Analysis'!X406,'EBITDA Analysis'!X456,'EBITDA Analysis'!X431,'EBITDA Analysis'!K456,'EBITDA Analysis'!K248) -> FALSE | N30: =CHOOSE($E$35,'EBITDA Analysis'!L484,'EBITDA Analysis'!Y222,'EBITDA Analysis'!L29,'EBITDA Analysis'!L58,'EBITDA Analysis'!Y355,'EBITDA Analysis'!Y274,'EBITDA Analysis'!Y328,'EBITDA Analysis'!Y381,'EBITDA Analysis'!L168,'EBITDA Analysis'!Y58,'EBITDA Analysis'!Y29,'EBITDA Analysis'!Y302,'EBITDA Analysis'!L302,'EBITDA Analysis'!L431,'EBITDA Analysis'!Y484,'EBITDA Analysis'!Y406,'EBITDA Analysis'!Y456,'EBITDA Analysis'!Y431,'EBITDA Analysis'!L456,'EBITDA Analysis'!L248) -> FALSE | O30: FALSE | P30: 3 | R30: 19
R31: 20
R32: 21
R33: 22
R34: 23
E35: 20
B38: EBITDA Growth | E38: 1 | F38: C456
B39: Enterprise Value | E39: 2 | F39: P196
B40: EV/EBITDA | E40: 3 | F40: C5
B41: EV/EBIT | E41: 4 | F41: C32
B42: Revenue Growth | E42: 5 | F42: P327
B43: Income Tax Rate | E43: 6 | F43: P248
B44: COGS to Revenues | E44: 7 | F44: P300
B45: R&D to Gross Margin | E45: 8 | F45: P353
B46: Cash and Investments | E46: 9 | F46: C142
B47: ROIC - Simple Invested Capital | E47: 10 | F47: P32
B48: EV/Invested Capital | E48: 11 | F48: P5
B49: ROIC - Detailed Invested Capital | E49: 12 | F49: P274
B50: Deprecition Rate | E50: 13 | F50: C274
B51: SG&A Expense to Revenues | E51: 14 | F51: C403 | T51: (1) Assumes 25 year continuing EBITDA without growth
B52: A/R to Sales | E52: 15 | F52: P456
B53: EBITDA/Sales | E53: 16 | F53: P378
B54: Cap Exp/EBITDA | E54: 17 | F54: P428
B55: Cap Exp/Sales | E55: 18 | F55: P403
B56: Cap Exp/Depreciation | E56: 19 | F56: C428
B57: EBITDA | E57: 20 | F57: C226
B59: =INDEX(B38:B57,G1) -> EBITDA

Sheet Single Company Graph
H1: 1 | N1: 2013
J3: =INDEX('Equity Trend Analysis'!C8:C31,'Single Company Graph'!H1) -> 3M
L4: 1 Year | M4: 5 Year
J5: Expected Growth | L5: =INDEX('Data Current'!AT11:AT33,'Single Company Graph'!H1) -> 0.086 | M5: =INDEX('Data Current'!AU11:AU33,'Single Company Graph'!H1) -> 0.097
J6: Past Growth | M6: =INDEX('Data Current'!AV11:AV33,'Single Company Graph'!H1) -> 0.0701 | P6: Yahoo
J8: Dividend Yield | L8: =INDEX('Data Current'!BZ11:BZ33,'Single Company Graph'!H1) -> 0.0259 | P8: EPS
J9: Dividend Payout | L9: =IFERROR(INDEX('Data Current'!CB11:CB33,'Single Company Graph'!H1),0) -> 0.5285382662 | O9: Current Quarters Estimate: | P9: =INDEX('Data Current'!BD11:BD33,'Single Company Graph'!H1) -> 2.74
J10: Historic ROE | L10: =INDEX('Data Current'!AK11:AK33,'Single Company Graph'!H1) -> 0.4444 | O10: Current Year's Estimate: | P10: =INDEX('Data Current'!BK11:BK33,'Single Company Graph'!H1) -> 10.33
J11: Forward ROE | L11: =INDEX('Data Current'!AO11:AO33,'Single Company Graph'!H1) -> 0.6355404641 | O11: Next Fiscal Year Estimate: | P11: =INDEX('Data Current'!BO11:BO33,'Single Company Graph'!H1) -> 11.22
J12: Stock Price | L12: =INDEX('Data Current'!M11:M33,'Single Company Graph'!H1) -> 210.89
N13: Market Watch
N14: =INDEX('Data Extract Income Stmt'!H556:H578,'Single Company Graph'!H1) -> Fiscal year is January-December. All values USD millions.
J15: ROIC Reported | L15: =INDEX('Data Current'!DB11:DB33,H1) -> 0.2172
J16: Depreciation Rate | L16: =INDEX('Data Current'!DD11:DD33,H1) -> 0.06182256122 | P16: Revenue | Q16: EPS
J17: Tax Rate | L17: =INDEX('Data Current'!DG11:DG33,'Single Company Graph'!H1) -> 0.286225195 | N17: =INDEX('Data Current'!BC11:BC33,'Single Company Graph'!$H$1) -> Current Qtr. (Sep 2018) | P17: =INDEX('Data Current'!BF11:BF33,'Single Company Graph'!H1) -> 8470000 | Q17: =INDEX('Data Current'!BE11:BE33,'Single Company Graph'!H1) -> 2.74
J18: EBITDA | L18: =INDEX('Data Current'!CP11:CP33,'Single Company Graph'!H1) -> 8530000 | N18: =INDEX('Data Current'!BG11:BG33,'Single Company Graph'!$H$1) -> Next Qtr. (Dec 2018) | P18: =INDEX('Data Current'!BI11:BI33,'Single Company Graph'!H1) -> 8149999.5 | Q18: =INDEX('Data Current'!BH11:BH33,'Single Company Graph'!H1) -> 2.52
J19: Enterprise Value | L19: =INDEX('Data Current'!CJ11:CJ33,'Single Company Graph'!H1) -> 134870000 | N19: =INDEX('Data Current'!BJ11:BJ33,'Single Company Graph'!H1) -> Current Year (2018) | P19: =INDEX('Data Current'!BM11:BM33,'Single Company Graph'!H1) -> 33310002 | Q19: =INDEX('Data Current'!BL11:BL33,'Single Company Graph'!H1) -> 10.34
N20: =INDEX('Data Current'!BN11:BN33,'Single Company Graph'!H1) -> Next Year (2019) | P20: =INDEX('Data Current'!BQ11:BQ33,'Single Company Graph'!H1) -> 34430000 | Q20: =INDEX('Data Current'!BP11:BP33,'Single Company Graph'!H1) -> 11.23
J21: Net Debt | L21: =INDEX('Data Current'!CO11:CO33,'Single Company Graph'!H1) -> 11552845.8
J22: Shares | L22: =INDEX('Data Current'!CD11:CD33,'Single Company Graph'!H1) -> 586610 | N22: Growth Rate | P22: =IFERROR(P20/P19-1,FALSE) -> 0.03362347441 | Q22: =IFERROR(Q20/Q19-1,FALSE) -> 0.08607350097
J23: Net Debt to Mkt Cap | L23: =INDEX('Data Current'!DF11:DF33,'Single Company Graph'!H1) -> 0.09203910092
J24: Invested Capital | L24: =INDEX('Data Current'!CZ11:CZ33,'Single Company Graph'!H1) -> 21713707.62
J25: Invested Capital/Share | L25: =L24/L22 -> 37.01557699
B26: Max | C26: Min
B27: 40 | C27: =F27*-1 -> -5 | F27: 5
G47: ='Equity Trend Analysis'!E7 -> 2011 | H47: =G47+1 -> 2012 | I47: =H47+1 -> 2013 | J47: 2014 | K47: 2015 | L47: 2016 | M47: 2017 | N47: 2018 | O47: 2019 | P47: =E48+0.1 -> 2019.1
D48: =N1 -> 2013 | E48: ='Menu Sheet'!L3+2 -> 2019 | G48: =AND(G47>=$D$48,G47<=$E$48) -> FALSE | H48: FALSE | I48: TRUE | J48: TRUE | K48: TRUE | L48: TRUE | M48: TRUE | N48: TRUE | O48: TRUE | P48: FALSE
G50: =IF(G48,G47,NA()) ->  | I50: 2013 | J50: 2014 | K50: 2015 | L50: 2016 | M50: 2017 | N50: 2018 | O50: 2019 | P50: =P47 -> 2019.1
F51: ='Single Company Graph'!J3&" "&'Equity Trend Analysis'!$E$5&" " -> 3M Forward P/E - Ending Stock Price | G51: =IF(G48,INDEX('Equity Trend Analysis'!E8:E31,'Single Company Graph'!$H$1),NA()) ->  | H51: =IF(H48,INDEX('Equity Trend Analysis'!F8:F31,'Single Company Graph'!$H$1),NA()) ->  | I51: =IF(I48,INDEX('Equity Trend Analysis'!G8:G31,'Single Company Graph'!$H$1),NA()) -> 0 | J51: =IF(J48,INDEX('Equity Trend Analysis'!H8:H31,'Single Company Graph'!$H$1),NA()) -> 0 | K51: =IF(K48,INDEX('Equity Trend Analysis'!I8:I31,'Single Company Graph'!$H$1),NA()) -> 0 | L51: =IF(L48,INDEX('Equity Trend Analysis'!J8:J31,'Single Company Graph'!$H$1),NA()) -> 0 | M51: =IF(M48,INDEX('Equity Trend Analysis'!K8:K31,'Single Company Graph'!$H$1),NA()) -> 0 | N51: =IF(N48,INDEX('Equity Trend Analysis'!L8:L31,'Single Company Graph'!$H$1),NA()) -> 0 | O51: =IF(O48,INDEX('Equity Trend Analysis'!M8:M31,'Single Company Graph'!$H$1),NA()) -> FALSE | P51: =IF(P48,INDEX('Equity Trend Analysis'!N8:N31,'Single Company Graph'!$H$1),NA()) -> 
D53: Historic Switch | F53: ='Menu Sheet'!L3 -> 2017 | G53: =G47<=$F$53 -> TRUE | H53: =H47<=$F$53 -> TRUE | I53: TRUE | J53: TRUE | K53: TRUE | L53: TRUE | M53: TRUE | N53: FALSE | O53: FALSE | P53: FALSE
G54: =G50 ->  | H54: =H50 ->  | I54: 2013 | J54: 2014 | K54: 2015 | L54: 2016 | M54: 2017 | N54: 2018 | O54: 2019 | P54: 2019.1
E55: History | G55: =IF(G53,G51,NA()) ->  | H55: =IF(H53,H51,NA()) ->  | I55: 0 | J55: 0 | K55: 0 | L55: 0 | M55: 0
E56: Forecast | G56: =IF(NOT(G53),G51,NA()) ->  | H56: =IF(NOT(H53),H51,NA()) ->  | N56: 0 | O56: FALSE
G59: ='EBITDA Trend Analysis'!E7 -> 2011 | H59: =G59+1 -> 2012 | I59: 2013 | J59: 2014 | K59: 2015 | L59: 2016 | M59: 2017 | N59: 2018 | O59: ='EBITDA Trend Analysis'!N7 -> Current | P59: =E60+1 -> 2019
D60: =D48 -> 2013 | E60: ='Menu Sheet'!$L$3+1 -> 2018 | G60: =AND(G59>=$D$60,G59<=$E$60) -> FALSE | H60: FALSE | I60: TRUE | J60: TRUE | K60: TRUE | L60: TRUE | M60: TRUE | N60: TRUE | O60: FALSE | P60: TRUE
G62: =IF(G60,G59,NA()) ->  | I62: 2013 | J62: 2014 | K62: 2015 | L62: 2016 | M62: 2017 | N62: 2018 | P62: 2019
F63: =J3&" "&INDEX('EBITDA Trend Analysis'!$B$38:$B$49,'EBITDA Trend Analysis'!$E$35) ->  | G63: =IF(G60,INDEX('EBITDA Trend Analysis'!E8:E30,$H$1),NA()) ->  | H63: =IF(H60,INDEX('EBITDA Trend Analysis'!F8:F30,$H$1),NA()) ->  | I63: =IF(I60,INDEX('EBITDA Trend Analysis'!G8:G30,$H$1),NA()) -> 8029999.5 | J63: =IF(J60,INDEX('EBITDA Trend Analysis'!H8:H30,$H$1),NA()) -> 8530000 | K63: =IF(K60,INDEX('EBITDA Trend Analysis'!I8:I30,$H$1),NA()) -> 8310000.5 | L63: =IF(L60,INDEX('EBITDA Trend Analysis'!J8:J30,$H$1),NA()) -> 8490000 | M63: =IF(M60,INDEX('EBITDA Trend Analysis'!K8:K30,$H$1),NA()) -> 8900000 | N63: =IF(N60,INDEX('EBITDA Trend Analysis'!L8:L30,$H$1),NA()) -> FALSE | O63: =IF(O60,INDEX('EBITDA Trend Analysis'!M8:M30,$H$1),NA()) ->  | P63: =IF(P60,INDEX('EBITDA Trend Analysis'!N8:N30,$H$1),NA()) -> 8530000
G66: =G54 ->  | H66: =H54 ->  | I66: 2013 | J66: 2014 | K66: 2015 | L66: 2016 | M66: 2017 | N66: 2018 | O66: 2019 | P66: =P47 -> 2019.1
E67: History | G67: =IF(G53,G63,NA()) ->  | H67: =IF(H53,H63,NA()) ->  | I67: 8029999.5 | J67: 8530000 | K67: 8310000.5 | L67: 8490000 | M67: 8900000
E68: Forecast | G68: =IF(NOT(G53),IF(G63,G63,NA()),NA()) ->  | H68: =IF(NOT(H53),IF(H63,H63,NA()),NA()) ->  | P68: 8530000

Sheet Historic for Model
D1: ='Single Company Graph'!$H$1 -> 1 | F1: Jan Start | G1: =G2=1 -> TRUE | H1: Annual Analysis for Financial Model --------------------------------------------------------------------------------> | O1: Quarterly ----------------------------------------------------------------------------------> | T1: Annualisation ---------------------------------------------------------------------->
B2: =INDEX(INDIRECT(D183&"A:A"),MATCH(E8,INDIRECT(D183&"A:A"),0)+1) -> Fiscal year is January-December. All values USD millions. | F2: First Month | G2: =IF(SUM(188:188)>0,SUM(188:188),1) -> 1 | H2: =DATE(G3,$G$2,1) -> 2013-01-01 | I2: =H3+1 -> 2014-01-01 | J2: =I3+1 -> 2015-01-01 | K2: =J3+1 -> 2016-01-01 | L2: =K3+1 -> 2017-01-01 | M2: =L3+1 -> 2018-01-01 | O2: FALSE | R2: Periods Not Inc | S2: =COUNTIF(10:10,TRUE) -> 2
B3: Last Annual Date | F3: First Year | G3: =IF(G1,H9,H9-1) -> 2013 | H3: =EOMONTH(H2,11) -> 2013-12-31 | I3: 2014-12-31 | J3: 2015-12-31 | K3: 2016-12-31 | L3: 2017-12-31 | M3: 2018-12-31
C4: Histoic Year | F4: Last Year | G4: =IF(G1,L9,L9-1) -> 2017 | H4: =H3<=$G$5 -> TRUE | I4: TRUE | J4: TRUE | K4: TRUE | L4: TRUE | M4: FALSE
C5: Partial Historic Year | G5: =IFERROR(DATE(G4+1,G2,1)-1,DATE(2000,1,1)) -> 2017-12-31 | H5: =YEAR(H3)=$G$6 -> FALSE | I5: FALSE | J5: FALSE | K5: FALSE | L5: FALSE | M5: TRUE
C6: Assumption Year | F6: Annual Row | G6: =G4+1 -> 2018 | H6: =OR(H4:H5) -> TRUE | I6: TRUE | J6: TRUE | K6: TRUE | L6: TRUE | M6: TRUE | O6: =O9 -> 2017-06-30 | P6: =P9 -> 2017-09-30 | Q6: 2017-12-31 | R6: 2018-03-31 | S6: 2018-06-30 | T6: Not In Annual | U6: YTD | V6: Growth | W6: Growth Amount | X6: Ratio
A7: Profit and Loss | O7: =IFERROR(O12/O11,FALSE) -> 0.4558258643 | P7: =IFERROR(P12/P11,FALSE) -> 0.4492044064 | Q7: =Q12/Q11 -> 0.4655819775 | R7: =R12/R11 -> 0.4601449553 | S7: =S12/S11 -> 0.4553039333
C8: All values USD millions. | E8: View Ratios | O8: =IFERROR(O15/O11,FALSE) -> 0.204865557 | P8: =IFERROR(P15/P11,FALSE) -> 0.1982864137 | Q8: =Q15/Q11 -> 0.2152690864 | R8: =R15/R11 -> 0.2004831039 | S8: =S15/S11 -> 0.2121573302 | W8: =W15/W11 -> 0.2058072176
C9: Fiscal Year | E9: =IFERROR(match_partial_sheet($C$9,"A",10,D182,200),FALSE) -> 107 | F9: =IFERROR(match_partial_sheet($C$8,"A",10,H182,200),FALSE) -> 94 | H9: =INDEX(INDIRECT($D$183&V$191),$E9) -> 2013 | I9: =INDEX(INDIRECT($D$183&H$191),$E9) -> 2014 | J9: =INDEX(INDIRECT($D$183&I$191),$E9) -> 2015 | K9: =INDEX(INDIRECT($D$183&J$191),$E9) -> 2016 | L9: =INDEX(INDIRECT($D$183&K$191),$E9) -> 2017 | M9: =YEAR(M3) -> 2018 | O9: =INDEX(INDIRECT($H$183&O$191),$F$9) -> 42916 | P9: =INDEX(INDIRECT($H$183&P$191),$F$9) -> 43008 | Q9: =INDEX(INDIRECT($H$183&Q$191),$F$9) -> 2017-12-31 | R9: =INDEX(INDIRECT($H$183&R$191),$F$9) -> 2018-03-31 | S9: =INDEX(INDIRECT($H$183&S$191),$F$9) -> 2018-06-30 | T9: Not In Annual | U9: YTD | V9: Growth | W9: Growth Amount | X9: Ratio
C10: Income Statement | O10: =O9>$G$5 -> FALSE | P10: =P9>$G$5 -> FALSE | Q10: =Q9>$G$5 -> FALSE | R10: =R9>$G$5 -> TRUE | S10: =S9>$G$5 -> TRUE
D11: Sales/Revenue | E11: =IFERROR(MATCH($D11,INDIRECT($D$183&"A:A"),0),FALSE) -> 108 | F11: =IFERROR(MATCH($D11,INDIRECT($H$183&"A:A"),0),FALSE) -> 95 | H11: =IF($E11,clean_alt(INDEX(INDIRECT($D$183&O$191),$E11)),FALSE) -> 30870000 | I11: =IF($E11,clean_alt(INDEX(INDIRECT($D$183&P$191),$E11)),FALSE) -> 31820000 | J11: =IF($E11,clean_alt(INDEX(INDIRECT($D$183&Q$191),$E11)),FALSE) -> 30270000 | K11: =IF($E11,clean_alt(INDEX(INDIRECT($D$183&R$191),$E11)),FALSE) -> 30110000 | L11: =IF($E11,clean_alt(INDEX(INDIRECT($D$183&S$191),$E11)),FALSE) -> 31660000 | M11: =W11 -> 24875152.5 | O11: =IF($F11,clean_alt(INDEX(INDIRECT($H$183&O$191),$F11)),FALSE) -> 7810000 | P11: =IF($F11,clean_alt(INDEX(INDIRECT($H$183&P$191),$F11)),FALSE) -> 8170000 | Q11: =IF($F11,clean_alt(INDEX(INDIRECT($H$183&Q$191),$F11)),FALSE) -> 7990000 | R11: =IF($F11,clean_alt(INDEX(INDIRECT($H$183&R$191),$F11)),FALSE) -> 8279999.5 | S11: =IF($F11,clean_alt(INDEX(INDIRECT($H$183&S$191),$F11)),FALSE) -> 8390000 | T11: =SUMIF($10:$10,TRUE,11:11) -> 16669999.5 | U11: =SUM(P11:S11) -> 32829999.5 | V11: =IFERROR(OFFSET(S11,0,-$S$2)/OFFSET(S11,0,-$S$2-1),FALSE) -> 0.9779681763 | W11: =V11*S11+T11 -> 24875152.5 | X11: =T11+'Single Company Graph'!P17 -> 25139999.5 | Y11: ='Single Company Graph'!P17 -> 8470000
D12: COGS excluding D&A | E12: =IFERROR(MATCH($D12,INDIRECT($D$183&"A:A"),0),FALSE) -> 111 | F12: =IFERROR(MATCH($D12,INDIRECT($H$183&"A:A"),0),FALSE) -> 98 | H12: =IF($E12,clean_alt(INDEX(INDIRECT($D$183&O$191),$E12)),FALSE) -> 14740000 | I12: =IF($E12,clean_alt(INDEX(INDIRECT($D$183&P$191),$E12)),FALSE) -> 15060000 | J12: =IF($E12,clean_alt(INDEX(INDIRECT($D$183&Q$191),$E12)),FALSE) -> 14100000 | K12: =IF($E12,clean_alt(INDEX(INDIRECT($D$183&R$191),$E12)),FALSE) -> 13660000 | L12: =IF($E12,clean_alt(INDEX(INDIRECT($D$183&S$191),$E12)),FALSE) -> 14400000 | M12: =X12 -> 11434761.32 | O12: =IF($F12,clean_alt(INDEX(INDIRECT($H$183&O$191),$F12)),FALSE) -> 3560000 | P12: =IF($F12,clean_alt(INDEX(INDIRECT($H$183&P$191),$F12)),FALSE) -> 3670000 | Q12: =IF($F12,clean_alt(INDEX(INDIRECT($H$183&Q$191),$F12)),FALSE) -> 3720000 | R12: =IF($F12,clean_alt(INDEX(INDIRECT($H$183&R$191),$F12)),FALSE) -> 3810000 | S12: =IF($F12,clean_alt(INDEX(INDIRECT($H$183&S$191),$F12)),FALSE) -> 3820000 | T12: =SUMIF($10:$10,TRUE,12:12) -> 7630000 | U12: =SUM(P12:S12) -> 15020000 | V12: =IFERROR(OFFSET(S12,0,-$S$2)/OFFSET(S12,0,-$S$2-1),FALSE) -> 1.013623978 | W12: =V12*S12+T12 -> 11502043.6 | X12: =T12+Y12 -> 11434761.32 | Y12: =Y11*P7 -> 3804761.322
D13: Cash Gross Margin | E13: Calc | H13: =H11-H12 -> 16130000 | I13: 16760000 | J13: 16170000 | K13: 16450000 | L13: 17260000 | M13: 13440391.18 | O13: =O11-O12 -> 4250000 | P13: 4500000 | Q13: 4270000 | R13: 4469999.5 | S13: 4570000 | T13: 9039999.5 | U13: 17809999.5 | V13: -0.03565580195 | W13: 13373108.9 | X13: 13705238.18
D14: Research & Development | E14: =IFERROR(MATCH($D14,INDIRECT($D$183&"A:A"),0),FALSE) -> 121 | F14: =IFERROR(MATCH($D14,INDIRECT($H$183&"A:A"),0),FALSE) -> 108 | H14: =IF($E14,clean_alt(INDEX(INDIRECT($D$183&O$191),$E14)),FALSE) -> 1720000 | I14: =IF($E14,clean_alt(INDEX(INDIRECT($D$183&P$191),$E14)),FALSE) -> 1770000 | J14: =IF($E14,clean_alt(INDEX(INDIRECT($D$183&Q$191),$E14)),FALSE) -> 1750000 | K14: =IF($E14,clean_alt(INDEX(INDIRECT($D$183&R$191),$E14)),FALSE) -> 1740000 | L14: =IF($E14,clean_alt(INDEX(INDIRECT($D$183&S$191),$E14)),FALSE) -> 1840000 | M14: =X14 -> 1908000 | O14: =IF($F14,clean_alt(INDEX(INDIRECT($H$183&O$191),$F14)),FALSE) -> 465000 | P14: =IF($F14,clean_alt(INDEX(INDIRECT($H$183&P$191),$F14)),FALSE) -> 463000 | Q14: =IF($F14,clean_alt(INDEX(INDIRECT($H$183&Q$191),$F14)),FALSE) -> 443000 | R14: =IF($F14,clean_alt(INDEX(INDIRECT($H$183&R$191),$F14)),FALSE) -> 486000 | S14: =IF($F14,clean_alt(INDEX(INDIRECT($H$183&S$191),$F14)),FALSE) -> 468000 | T14: =SUMIF($10:$10,TRUE,14:14) -> 954000 | U14: =SUM(P14:S14) -> 1860000 | V14: =IFERROR(OFFSET(S14,0,-$S$2)/OFFSET(S14,0,-$S$2-1),FALSE) -> 0.9568034557 | W14: =V14*S14+T14 -> 1401784.017 | X14: =IFERROR(4/$S$2*T14,FALSE) -> 1908000
D15: Other SG&A | E15: =IFERROR(MATCH($D15,INDIRECT($D$183&"A:A"),0),FALSE) -> 122 | F15: =IFERROR(MATCH($D15,INDIRECT($H$183&"A:A"),0),FALSE) -> 109 | H15: =IF($E15,clean_alt(INDEX(INDIRECT($D$183&O$191),$E15)),FALSE) -> 6380000 | I15: =IF($E15,clean_alt(INDEX(INDIRECT($D$183&P$191),$E15)),FALSE) -> 6470000 | J15: =IF($E15,clean_alt(INDEX(INDIRECT($D$183&Q$191),$E15)),FALSE) -> 6120000 | K15: =IF($E15,clean_alt(INDEX(INDIRECT($D$183&R$191),$E15)),FALSE) -> 6220000 | L15: =IF($E15,clean_alt(INDEX(INDIRECT($D$183&S$191),$E15)),FALSE) -> 6520000 | M15: =W15 -> 5119485.924 | O15: =IF($F15,clean_alt(INDEX(INDIRECT($H$183&O$191),$F15)),FALSE) -> 1600000 | P15: =IF($F15,clean_alt(INDEX(INDIRECT($H$183&P$191),$F15)),FALSE) -> 1620000 | Q15: =IF($F15,clean_alt(INDEX(INDIRECT($H$183&Q$191),$F15)),FALSE) -> 1720000 | R15: =IF($F15,clean_alt(INDEX(INDIRECT($H$183&R$191),$F15)),FALSE) -> 1660000 | S15: =IF($F15,clean_alt(INDEX(INDIRECT($H$183&S$191),$F15)),FALSE) -> 1780000 | T15: =SUMIF($10:$10,TRUE,15:15) -> 3440000 | U15: =SUM(P15:S15) -> 6780000 | V15: =IFERROR(OFFSET(S15,0,-$S$2)/OFFSET(S15,0,-$S$2-1),FALSE) -> 1.061728395 | W15: =T15+Y11*P8 -> 5119485.924 | X15: =IFERROR(4/$S$2*T15,FALSE) -> 6880000
D16: Other Operating Expense | E16: =IFERROR(MATCH($D16,INDIRECT($D$183&"A:A"),0),FALSE) -> 124 | F16: =IFERROR(MATCH($D16,INDIRECT($H$183&"A:A"),0),FALSE) -> 111 | H16: =IF($E16,clean_alt(INDEX(INDIRECT($D$183&O$191),$E16)),FALSE) -> 0 | I16: =IF($E16,clean_alt(INDEX(INDIRECT($D$183&P$191),$E16)),FALSE) -> 0 | J16: =IF($E16,clean_alt(INDEX(INDIRECT($D$183&Q$191),$E16)),FALSE) -> 0 | K16: =IF($E16,clean_alt(INDEX(INDIRECT($D$183&R$191),$E16)),FALSE) -> 0 | L16: =IF($E16,clean_alt(INDEX(INDIRECT($D$183&S$191),$E16)),FALSE) -> 0 | M16: =W16 -> 0 | O16: =IF($F16,clean_alt(INDEX(INDIRECT($H$183&O$191),$F16)),FALSE) -> 0 | P16: =IF($F16,clean_alt(INDEX(INDIRECT($H$183&P$191),$F16)),FALSE) -> 0 | Q16: =IF($F16,clean_alt(INDEX(INDIRECT($H$183&Q$191),$F16)),FALSE) -> 0 | R16: =IF($F16,clean_alt(INDEX(INDIRECT($H$183&R$191),$F16)),FALSE) -> 0 | S16: =IF($F16,clean_alt(INDEX(INDIRECT($H$183&S$191),$F16)),FALSE) -> 0 | T16: =SUMIF($10:$10,TRUE,16:16) -> 0 | U16: =SUM(P16:S16) -> 0 | V16: =IFERROR(OFFSET(S16,0,-$S$2)/OFFSET(S16,0,-$S$2-1),FALSE) -> FALSE | W16: =V16*S16+T16 -> 0 | X16: =IFERROR(4/$S$2*T16,FALSE) -> 0
D17: EBITDA Calculated | H17: =H13-H14-H15-H16 -> 8030000 | I17: 8520000 | J17: 8300000 | K17: 8490000 | L17: 8900000 | M17: 6412905.253 | O17: =O13-O14-O15-O16 -> 2185000 | P17: 2417000 | Q17: 2107000 | R17: 2323999.5 | S17: 2322000 | T17: 4645999.5 | U17: 9169999.5 | V17: -2.054187653 | W17: 6851838.961 | X17: 4917238.178
D18: Unusual Expense | E18: =IFERROR(MATCH($D18,INDIRECT($D$183&"A:A"),0),FALSE) -> 125 | F18: =IFERROR(MATCH($D18,INDIRECT($H$183&"A:A"),0),FALSE) -> 112 | H18: =IF($E18,clean_alt(INDEX(INDIRECT($D$183&O$191),$E18)),FALSE) -> 24000 | I18: =IF($E18,clean_alt(INDEX(INDIRECT($D$183&P$191),$E18)),FALSE) -> 30000 | J18: =IF($E18,clean_alt(INDEX(INDIRECT($D$183&Q$191),$E18)),FALSE) -> 19000 | K18: =IF($E18,clean_alt(INDEX(INDIRECT($D$183&R$191),$E18)),FALSE) -> 8000 | L18: =IF($E18,clean_alt(INDEX(INDIRECT($D$183&S$191),$E18)),FALSE) -> 365000 | M18: =X18 -> 1980000 | O18: =IF($F18,clean_alt(INDEX(INDIRECT($H$183&O$191),$F18)),FALSE) -> 228000 | P18: =IF($F18,clean_alt(INDEX(INDIRECT($H$183&P$191),$F18)),FALSE) -> 63000 | Q18: =IF($F18,clean_alt(INDEX(INDIRECT($H$183&Q$191),$F18)),FALSE) -> -3000 | R18: =IF($F18,clean_alt(INDEX(INDIRECT($H$183&R$191),$F18)),FALSE) -> 880000 | S18: =IF($F18,clean_alt(INDEX(INDIRECT($H$183&S$191),$F18)),FALSE) -> 110000 | T18: =SUMIF($10:$10,TRUE,18:18) -> 990000 | U18: =SUM(P18:S18) -> 1050000 | V18: =IFERROR(OFFSET(S18,0,-$S$2)/OFFSET(S18,0,-$S$2-1),FALSE) -> -0.04761904762 | W18: =V18*S18+T18 -> 984761.9048 | X18: =IFERROR(4/$S$2*T18,FALSE) -> 1980000
D19: Depreciation | E19: =IFERROR(MATCH($D19,INDIRECT($D$183&"A:A"),0),FALSE) -> 113 | F19: =IFERROR(MATCH($D19,INDIRECT($H$183&"A:A"),0),FALSE) -> 100 | H19: =IF($E19,clean_alt(INDEX(INDIRECT($D$183&O$191),$E19)),FALSE) -> 1140000 | I19: =IF($E19,clean_alt(INDEX(INDIRECT($D$183&P$191),$E19)),FALSE) -> 1180000 | J19: =IF($E19,clean_alt(INDEX(INDIRECT($D$183&Q$191),$E19)),FALSE) -> 1210000 | K19: =IF($E19,clean_alt(INDEX(INDIRECT($D$183&R$191),$E19)),FALSE) -> 1210000 | L19: =IF($E19,clean_alt(INDEX(INDIRECT($D$183&S$191),$E19)),FALSE) -> 1310000 | M19: =W19 -> 0 | O19: =IF($F19,clean_alt(INDEX(INDIRECT($H$183&O$191),$F19)),FALSE) -> 0 | P19: =IF($F19,clean_alt(INDEX(INDIRECT($H$183&P$191),$F19)),FALSE) -> 0 | Q19: =IF($F19,clean_alt(INDEX(INDIRECT($H$183&Q$191),$F19)),FALSE) -> 0 | R19: =IF($F19,clean_alt(INDEX(INDIRECT($H$183&R$191),$F19)),FALSE) -> 0 | S19: =IF($F19,clean_alt(INDEX(INDIRECT($H$183&S$191),$F19)),FALSE) -> 0 | T19: =SUMIF($10:$10,TRUE,19:19) -> 0 | U19: =SUM(P19:S19) -> 0 | V19: =IFERROR(OFFSET(S19,0,-$S$2)/OFFSET(S19,0,-$S$2-1),FALSE) -> FALSE | W19: =V19*S19+T19 -> 0 | X19: =IFERROR(4/$S$2*T19,FALSE) -> 0
D20: Amortization of Intangibles | E20: =IFERROR(MATCH($D20,INDIRECT($D$183&"A:A"),0),FALSE) -> 114 | F20: =IFERROR(MATCH($D20,INDIRECT($H$183&"A:A"),0),FALSE) -> 101 | H20: =IF($E20,clean_alt(INDEX(INDIRECT($D$183&O$191),$E20)),FALSE) -> 236000 | I20: =IF($E20,clean_alt(INDEX(INDIRECT($D$183&P$191),$E20)),FALSE) -> 228000 | J20: =IF($E20,clean_alt(INDEX(INDIRECT($D$183&Q$191),$E20)),FALSE) -> 229000 | K20: =IF($E20,clean_alt(INDEX(INDIRECT($D$183&R$191),$E20)),FALSE) -> 262000 | L20: =IF($E20,clean_alt(INDEX(INDIRECT($D$183&S$191),$E20)),FALSE) -> 238000 | M20: =W20 -> 0 | O20: =IF($F20,clean_alt(INDEX(INDIRECT($H$183&O$191),$F20)),FALSE) -> 0 | P20: =IF($F20,clean_alt(INDEX(INDIRECT($H$183&P$191),$F20)),FALSE) -> 0 | Q20: =IF($F20,clean_alt(INDEX(INDIRECT($H$183&Q$191),$F20)),FALSE) -> 0 | R20: =IF($F20,clean_alt(INDEX(INDIRECT($H$183&R$191),$F20)),FALSE) -> 0 | S20: =IF($F20,clean_alt(INDEX(INDIRECT($H$183&S$191),$F20)),FALSE) -> 0 | T20: =SUMIF($10:$10,TRUE,20:20) -> 0 | U20: =SUM(P20:S20) -> 0 | V20: =IFERROR(OFFSET(S20,0,-$S$2)/OFFSET(S20,0,-$S$2-1),FALSE) -> FALSE | W20: =V20*S20+T20 -> 0 | X20: =IFERROR(4/$S$2*T20,FALSE) -> 0
D21: EBIT Computed | H21: =H17-H18-H19-H20 -> 6630000 | I21: 7082000 | J21: 6842000 | K21: 7010000 | L21: 6987000 | M21: 4432905.253 | O21: =O17-O18-O19-O20 -> 1957000 | P21: 2354000 | Q21: 2110000 | R21: 1443999.5 | S21: 2212000 | T21: 3655999.5 | U21: 8119999.5 | V21: -2.006568605 | W21: 5867077.056 | X21: 2937238.178
D22: Non Operating Income/Expense | E22: =IFERROR(MATCH($D22,INDIRECT($D$183&"A:A"),0),FALSE) -> 127 | F22: =IFERROR(MATCH($D22,INDIRECT($H$183&"A:A"),0),FALSE) -> 114 | H22: =IF($E22,clean_alt(INDEX(INDIRECT($D$183&O$191),$E22)),FALSE) -> -115000 | I22: =IF($E22,clean_alt(INDEX(INDIRECT($D$183&P$191),$E22)),FALSE) -> 4000 | J22: =IF($E22,clean_alt(INDEX(INDIRECT($D$183&Q$191),$E22)),FALSE) -> 174000 | K22: =IF($E22,clean_alt(INDEX(INDIRECT($D$183&R$191),$E22)),FALSE) -> 220000 | L22: =IF($E22,clean_alt(INDEX(INDIRECT($D$183&S$191),$E22)),FALSE) -> 593000 | M22: =W22 -> 5734375 | O22: =IF($F22,clean_alt(INDEX(INDIRECT($H$183&O$191),$F22)),FALSE) -> 550000 | P22: =IF($F22,clean_alt(INDEX(INDIRECT($H$183&P$191),$F22)),FALSE) -> 8000 | Q22: =IF($F22,clean_alt(INDEX(INDIRECT($H$183&Q$191),$F22)),FALSE) -> 83000 | R22: =IF($F22,clean_alt(INDEX(INDIRECT($H$183&R$191),$F22)),FALSE) -> -10000 | S22: =IF($F22,clean_alt(INDEX(INDIRECT($H$183&S$191),$F22)),FALSE) -> 505000 | T22: =SUMIF($10:$10,TRUE,22:22) -> 495000 | U22: =SUM(P22:S22) -> 586000 | V22: =IFERROR(OFFSET(S22,0,-$S$2)/OFFSET(S22,0,-$S$2-1),FALSE) -> 10.375 | W22: =V22*S22+T22 -> 5734375 | X22: =IFERROR(4/$S$2*T22,FALSE) -> 990000
D23: Non-Operating Interest Income | E23: =IFERROR(MATCH($D23,INDIRECT($D$183&"A:A"),0),FALSE) -> 128 | F23: =IFERROR(MATCH($D23,INDIRECT($H$183&"A:A"),0),FALSE) -> 115 | H23: =IF($E23,clean_alt(INDEX(INDIRECT($D$183&O$191),$E23)),FALSE) -> 41000 | I23: =IF($E23,clean_alt(INDEX(INDIRECT($D$183&P$191),$E23)),FALSE) -> 33000 | J23: =IF($E23,clean_alt(INDEX(INDIRECT($D$183&Q$191),$E23)),FALSE) -> 26000 | K23: =IF($E23,clean_alt(INDEX(INDIRECT($D$183&R$191),$E23)),FALSE) -> 29000 | L23: =IF($E23,clean_alt(INDEX(INDIRECT($D$183&S$191),$E23)),FALSE) -> 50000 | M23: =W23 -> 0 | O23: =IF($F23,clean_alt(INDEX(INDIRECT($H$183&O$191),$F23)),FALSE) -> 0 | P23: =IF($F23,clean_alt(INDEX(INDIRECT($H$183&P$191),$F23)),FALSE) -> 0 | Q23: =IF($F23,clean_alt(INDEX(INDIRECT($H$183&Q$191),$F23)),FALSE) -> 0 | R23: =IF($F23,clean_alt(INDEX(INDIRECT($H$183&R$191),$F23)),FALSE) -> 0 | S23: =IF($F23,clean_alt(INDEX(INDIRECT($H$183&S$191),$F23)),FALSE) -> 0 | T23: =SUMIF($10:$10,TRUE,23:23) -> 0 | U23: =SUM(P23:S23) -> 0 | V23: =IFERROR(OFFSET(S23,0,-$S$2)/OFFSET(S23,0,-$S$2-1),FALSE) -> FALSE | W23: =V23*S23+T23 -> 0 | X23: =IFERROR(4/$S$2*T23,FALSE) -> 0
D24: Equity in Affiliates (Pretax) | E24: =IFERROR(MATCH($D24,INDIRECT($D$183&"A:A"),0),FALSE) -> 129 | F24: =IFERROR(MATCH($D24,INDIRECT($H$183&"A:A"),0),FALSE) -> 116 | H24: =IF($E24,clean_alt(INDEX(INDIRECT($D$183&O$191),$E24)),FALSE) -> 0 | I24: =IF($E24,clean_alt(INDEX(INDIRECT($D$183&P$191),$E24)),FALSE) -> 0 | J24: =IF($E24,clean_alt(INDEX(INDIRECT($D$183&Q$191),$E24)),FALSE) -> 0 | K24: =IF($E24,clean_alt(INDEX(INDIRECT($D$183&R$191),$E24)),FALSE) -> 0 | L24: =IF($E24,clean_alt(INDEX(INDIRECT($D$183&S$191),$E24)),FALSE) -> 0 | M24: =W24 -> 0 | O24: =IF($F24,clean_alt(INDEX(INDIRECT($H$183&O$191),$F24)),FALSE) -> 0 | P24: =IF($F24,clean_alt(INDEX(INDIRECT($H$183&P$191),$F24)),FALSE) -> 0 | Q24: =IF($F24,clean_alt(INDEX(INDIRECT($H$183&Q$191),$F24)),FALSE) -> 0 | R24: =IF($F24,clean_alt(INDEX(INDIRECT($H$183&R$191),$F24)),FALSE) -> 0 | S24: =IF($F24,clean_alt(INDEX(INDIRECT($H$183&S$191),$F24)),FALSE) -> 0 | T24: =SUMIF($10:$10,TRUE,24:24) -> 0 | U24: =SUM(P24:S24) -> 0 | V24: =IFERROR(OFFSET(S24,0,-$S$2)/OFFSET(S24,0,-$S$2-1),FALSE) -> FALSE | W24: =V24*S24+T24 -> 0 | X24: =IFERROR(4/$S$2*T24,FALSE) -> 0
D25: Interest Expense | E25: =IFERROR(MATCH($D25,INDIRECT($D$183&"A:A"),0),FALSE) -> 130 | F25: =IFERROR(MATCH($D25,INDIRECT($H$183&"A:A"),0),FALSE) -> 117 | H25: =IF($E25,clean_alt(INDEX(INDIRECT($D$183&O$191),$E25)),FALSE) -> 0 | I25: =IF($E25,clean_alt(INDEX(INDIRECT($D$183&P$191),$E25)),FALSE) -> 101000 | J25: =IF($E25,clean_alt(INDEX(INDIRECT($D$183&Q$191),$E25)),FALSE) -> 229000 | K25: =IF($E25,clean_alt(INDEX(INDIRECT($D$183&R$191),$E25)),FALSE) -> 207000 | L25: =IF($E25,clean_alt(INDEX(INDIRECT($D$183&S$191),$E25)),FALSE) -> 84000 | M25: =W25 -> 105000 | O25: =IF($F25,clean_alt(INDEX(INDIRECT($H$183&O$191),$F25)),FALSE) -> 0 | P25: =IF($F25,clean_alt(INDEX(INDIRECT($H$183&P$191),$F25)),FALSE) -> 0 | Q25: =IF($F25,clean_alt(INDEX(INDIRECT($H$183&Q$191),$F25)),FALSE) -> 188000 | R25: =IF($F25,clean_alt(INDEX(INDIRECT($H$183&R$191),$F25)),FALSE) -> 105000 | S25: =IF($F25,clean_alt(INDEX(INDIRECT($H$183&S$191),$F25)),FALSE) -> 0 | T25: =SUMIF($10:$10,TRUE,25:25) -> 105000 | U25: =SUM(P25:S25) -> 293000 | V25: =IFERROR(OFFSET(S25,0,-$S$2)/OFFSET(S25,0,-$S$2-1),FALSE) -> FALSE | W25: =V25*S25+T25 -> 105000 | X25: =IFERROR(4/$S$2*T25,FALSE) -> 210000
D26: Pretax Income Computed | H26: =H21+H22+H23+H24-H25 -> 6556000 | I26: 7018000 | J26: 6813000 | K26: 7052000 | L26: 7546000 | M26: 10062280.25 | O26: =O21+O22+O23+O24-O25 -> 2507000 | P26: 2362000 | Q26: 2005000 | R26: 1328999.5 | S26: 2717000 | T26: 4045999.5 | U26: 8412999.5 | V26: 8.368431395 | W26: 11496452.06 | X26: 3717238.178
D27: Income Tax | E27: =IFERROR(MATCH($D27,INDIRECT($D$183&"A:A"),0),FALSE) -> 137 | F27: =IFERROR(MATCH($D27,INDIRECT($H$183&"A:A"),0),FALSE) -> 124 | H27: =IF($E27,clean_alt(INDEX(INDIRECT($D$183&O$191),$E27)),FALSE) -> 1840000 | I27: =IF($E27,clean_alt(INDEX(INDIRECT($D$183&P$191),$E27)),FALSE) -> 2030000 | J27: =IF($E27,clean_alt(INDEX(INDIRECT($D$183&Q$191),$E27)),FALSE) -> 1980000 | K27: =IF($E27,clean_alt(INDEX(INDIRECT($D$183&R$191),$E27)),FALSE) -> 2000000 | L27: =IF($E27,clean_alt(INDEX(INDIRECT($D$183&S$191),$E27)),FALSE) -> 2680000 | M27: =W27 -> 1842035.461 | O27: =IF($F27,clean_alt(INDEX(INDIRECT($H$183&O$191),$F27)),FALSE) -> 557000 | P27: =IF($F27,clean_alt(INDEX(INDIRECT($H$183&P$191),$F27)),FALSE) -> 564000 | Q27: =IF($F27,clean_alt(INDEX(INDIRECT($H$183&Q$191),$F27)),FALSE) -> 1150000 | R27: =IF($F27,clean_alt(INDEX(INDIRECT($H$183&R$191),$F27)),FALSE) -> 359000 | S27: =IF($F27,clean_alt(INDEX(INDIRECT($H$183&S$191),$F27)),FALSE) -> 488000 | T27: =SUMIF($10:$10,TRUE,27:27) -> 847000 | U27: =SUM(P27:S27) -> 2561000 | V27: =IFERROR(OFFSET(S27,0,-$S$2)/OFFSET(S27,0,-$S$2-1),FALSE) -> 2.039007092 | W27: =V27*S27+T27 -> 1842035.461 | X27: =IFERROR(4/$S$2*T27,FALSE) -> 1694000
D28: Equity in Affiliates | E28: =IFERROR(MATCH($D28,INDIRECT($D$183&"A:A"),0),FALSE) -> 143 | F28: =IFERROR(MATCH($D28,INDIRECT($H$183&"A:A"),0),FALSE) -> 130 | H28: =IF($E28,clean_alt(INDEX(INDIRECT($D$183&O$191),$E28)),FALSE) -> 0 | I28: =IF($E28,clean_alt(INDEX(INDIRECT($D$183&P$191),$E28)),FALSE) -> 0 | J28: =IF($E28,clean_alt(INDEX(INDIRECT($D$183&Q$191),$E28)),FALSE) -> 0 | K28: =IF($E28,clean_alt(INDEX(INDIRECT($D$183&R$191),$E28)),FALSE) -> 0 | L28: =IF($E28,clean_alt(INDEX(INDIRECT($D$183&S$191),$E28)),FALSE) -> 0 | M28: =W28 -> 0 | O28: =IF($F28,clean_alt(INDEX(INDIRECT($H$183&O$191),$F28)),FALSE) -> 0 | P28: =IF($F28,clean_alt(INDEX(INDIRECT($H$183&P$191),$F28)),FALSE) -> 0 | Q28: =IF($F28,clean_alt(INDEX(INDIRECT($H$183&Q$191),$F28)),FALSE) -> 0 | R28: =IF($F28,clean_alt(INDEX(INDIRECT($H$183&R$191),$F28)),FALSE) -> 0 | S28: =IF($F28,clean_alt(INDEX(INDIRECT($H$183&S$191),$F28)),FALSE) -> 0 | T28: =SUMIF($10:$10,TRUE,28:28) -> 0 | U28: =SUM(P28:S28) -> 0 | V28: =IFERROR(OFFSET(S28,0,-$S$2)/OFFSET(S28,0,-$S$2-1),FALSE) -> FALSE | W28: =V28*S28+T28 -> 0 | X28: =IFERROR(4/$S$2*T28,FALSE) -> 0
D29: Other After Tax Income (Expense) | E29: =IFERROR(MATCH($D29,INDIRECT($D$183&"A:A"),0),FALSE) -> 144 | F29: =IFERROR(MATCH($D29,INDIRECT($H$183&"A:A"),0),FALSE) -> 131 | H29: =IF($E29,clean_alt(INDEX(INDIRECT($D$183&O$191),$E29)),FALSE) -> 0 | I29: =IF($E29,clean_alt(INDEX(INDIRECT($D$183&P$191),$E29)),FALSE) -> 0 | J29: =IF($E29,clean_alt(INDEX(INDIRECT($D$183&Q$191),$E29)),FALSE) -> 0 | K29: =IF($E29,clean_alt(INDEX(INDIRECT($D$183&R$191),$E29)),FALSE) -> 0 | L29: =IF($E29,clean_alt(INDEX(INDIRECT($D$183&S$191),$E29)),FALSE) -> 0 | M29: =W29 -> 0 | O29: =IF($F29,clean_alt(INDEX(INDIRECT($H$183&O$191),$F29)),FALSE) -> 0 | P29: =IF($F29,clean_alt(INDEX(INDIRECT($H$183&P$191),$F29)),FALSE) -> 0 | Q29: =IF($F29,clean_alt(INDEX(INDIRECT($H$183&Q$191),$F29)),FALSE) -> 0 | R29: =IF($F29,clean_alt(INDEX(INDIRECT($H$183&R$191),$F29)),FALSE) -> 0 | S29: =IF($F29,clean_alt(INDEX(INDIRECT($H$183&S$191),$F29)),FALSE) -> 0 | T29: =SUMIF($10:$10,TRUE,29:29) -> 0 | U29: =SUM(P29:S29) -> 0 | V29: =IFERROR(OFFSET(S29,0,-$S$2)/OFFSET(S29,0,-$S$2-1),FALSE) -> FALSE | W29: =V29*S29+T29 -> 0 | X29: =IFERROR(4/$S$2*T29,FALSE) -> 0
D30: Consolidated Net Income | E30: =IFERROR(MATCH($D30,INDIRECT($D$183&"A:A"),0),FALSE) -> 145 | F30: =IFERROR(MATCH($D30,INDIRECT($H$183&"A:A"),0),FALSE) -> 132 | H30: =IF($E30,clean_alt(INDEX(INDIRECT($D$183&O$191),$E30)),FALSE) -> 4720000 | I30: =IF($E30,clean_alt(INDEX(INDIRECT($D$183&P$191),$E30)),FALSE) -> 5000000 | J30: =IF($E30,clean_alt(INDEX(INDIRECT($D$183&Q$191),$E30)),FALSE) -> 4840000 | K30: =IF($E30,clean_alt(INDEX(INDIRECT($D$183&R$191),$E30)),FALSE) -> 5060000 | L30: =IF($E30,clean_alt(INDEX(INDIRECT($D$183&S$191),$E30)),FALSE) -> 4870000 | O30: =IF($F30,clean_alt(INDEX(INDIRECT($H$183&O$191),$F30)),FALSE) -> 1590000 | P30: =IF($F30,clean_alt(INDEX(INDIRECT($H$183&P$191),$F30)),FALSE) -> 1430000 | Q30: =IF($F30,clean_alt(INDEX(INDIRECT($H$183&Q$191),$F30)),FALSE) -> 525000 | R30: =IF($F30,clean_alt(INDEX(INDIRECT($H$183&R$191),$F30)),FALSE) -> 606000 | S30: =IF($F30,clean_alt(INDEX(INDIRECT($H$183&S$191),$F30)),FALSE) -> 1860000
D31: Other Reconciling Item (Income) | H31: =H30-(H26-H27+H28+H29) -> 4000 | I31: =I30-(I26-I27+I28+I29) -> 12000 | J31: =J30-(J26-J27+J28+J29) -> 7000 | K31: =K30-(K26-K27+K28+K29) -> 8000 | L31: =L30-(L26-L27+L28+L29) -> 4000 | O31: =O30-(O26-O27+O28+O29) -> -360000 | P31: =P30-(P26-P27+P28+P29) -> -368000 | Q31: =Q30-(Q26-Q27+Q28+Q29) -> -330000 | R31: =R30-(R26-R27+R28+R29) -> -363999.5 | S31: =S30-(S26-S27+S28+S29) -> -369000 | T31: =SUMIF($10:$10,TRUE,31:31) -> -732999.5 | U31: =SUM(P31:S31) -> -1430999.5 | V31: =IFERROR(OFFSET(S31,0,-$S$2)/OFFSET(S31,0,-$S$2-1),FALSE) -> 0.8967391304 | W31: =V31*S31+T31 -> -1063896.239 | X31: =IFERROR(4/$S$2*T31,FALSE) -> -1465999
D32: Net Income Computed | H32: =H26-H27+H28+H31 -> 4720000 | I32: =I26-I27+I28+I31 -> 5000000 | J32: =J26-J27+J28+J31 -> 4840000 | K32: =K26-K27+K28+K31 -> 5060000 | L32: =L26-L27+L28+L31 -> 4870000 | O32: =O26-O27+O28+O29+O31 -> 1590000 | P32: =P26-P27+P28+P29+P31 -> 1430000 | Q32: =Q26-Q27+Q28+Q29+Q31 -> 525000 | R32: =R26-R27+R28+R29+R31 -> 606000 | S32: =S26-S27+S28+S29+S31 -> 1860000 | T32: =SUMIF($10:$10,TRUE,32:32) -> 2466000 | U32: =SUM(P32:S32) -> 4421000 | V32: =IFERROR(OFFSET(S32,0,-$S$2)/OFFSET(S32,0,-$S$2-1),FALSE) -> 0.3671328671 | W32: =V32*S32+T32 -> 3148867.133 | X32: =IFERROR(4/$S$2*T32,FALSE) -> 4932000
D33: Minority Interest Expense | E33: =IFERROR(MATCH($D33,INDIRECT($D$183&"A:A"),0),FALSE) -> 146 | F33: =IFERROR(MATCH($D33,INDIRECT($H$183&"A:A"),0),FALSE) -> 133 | H33: =IF($E33,clean_alt(INDEX(INDIRECT($D$183&O$191),$E33)),FALSE) -> 62000 | I33: =IF($E33,clean_alt(INDEX(INDIRECT($D$183&P$191),$E33)),FALSE) -> 42000 | J33: =IF($E33,clean_alt(INDEX(INDIRECT($D$183&Q$191),$E33)),FALSE) -> 8000 | K33: =IF($E33,clean_alt(INDEX(INDIRECT($D$183&R$191),$E33)),FALSE) -> 8000 | L33: =IF($E33,clean_alt(INDEX(INDIRECT($D$183&S$191),$E33)),FALSE) -> 11000 | O33: =IF($F33,clean_alt(INDEX(INDIRECT($H$183&O$191),$F33)),FALSE) -> 2000 | P33: =IF($F33,clean_alt(INDEX(INDIRECT($H$183&P$191),$F33)),FALSE) -> 4000 | Q33: =IF($F33,clean_alt(INDEX(INDIRECT($H$183&Q$191),$F33)),FALSE) -> 2000 | R33: =IF($F33,clean_alt(INDEX(INDIRECT($H$183&R$191),$F33)),FALSE) -> 4000 | S33: =IF($F33,clean_alt(INDEX(INDIRECT($H$183&S$191),$F33)),FALSE) -> 5000 | T33: =SUMIF($10:$10,TRUE,33:33) -> 9000 | U33: =SUM(P33:S33) -> 15000 | V33: =IFERROR(OFFSET(S33,0,-$S$2)/OFFSET(S33,0,-$S$2-1),FALSE) -> 0.5 | W33: =V33*S33+T33 -> 11500 | X33: =IFERROR(4/$S$2*T33,FALSE) -> 18000
D34: Net Income | E34: 147 | F34: 134 | H34: =IF($E34,clean_alt(INDEX(INDIRECT($D$183&O$191),$E34)),FALSE) -> 4660000 | I34: =IF($E34,clean_alt(INDEX(INDIRECT($D$183&P$191),$E34)),FALSE) -> 4960000 | J34: =IF($E34,clean_alt(INDEX(INDIRECT($D$183&Q$191),$E34)),FALSE) -> 4830000 | K34: =IF($E34,clean_alt(INDEX(INDIRECT($D$183&R$191),$E34)),FALSE) -> 5050000 | L34: =IF($E34,clean_alt(INDEX(INDIRECT($D$183&S$191),$E34)),FALSE) -> 4860000 | O34: =IF($F34,clean_alt(INDEX(INDIRECT($H$183&O$191),$F34)),FALSE) -> 1580000 | P34: =IF($F34,clean_alt(INDEX(INDIRECT($H$183&P$191),$F34)),FALSE) -> 1430000 | Q34: =IF($F34,clean_alt(INDEX(INDIRECT($H$183&Q$191),$F34)),FALSE) -> 523000 | R34: =IF($F34,clean_alt(INDEX(INDIRECT($H$183&R$191),$F34)),FALSE) -> 602000 | S34: =IF($F34,clean_alt(INDEX(INDIRECT($H$183&S$191),$F34)),FALSE) -> 1860000
D35: Extraordinaries & Discontinued Operations | E35: 150 | F35: 137 | H35: =IF($E35,clean_alt(INDEX(INDIRECT($D$183&O$191),$E35)),FALSE) -> 0 | I35: =IF($E35,clean_alt(INDEX(INDIRECT($D$183&P$191),$E35)),FALSE) -> 0 | J35: =IF($E35,clean_alt(INDEX(INDIRECT($D$183&Q$191),$E35)),FALSE) -> 0 | K35: =IF($E35,clean_alt(INDEX(INDIRECT($D$183&R$191),$E35)),FALSE) -> 0 | L35: =IF($E35,clean_alt(INDEX(INDIRECT($D$183&S$191),$E35)),FALSE) -> 0 | O35: =IF($F35,clean_alt(INDEX(INDIRECT($H$183&O$191),$F35)),FALSE) -> 0 | P35: =IF($F35,clean_alt(INDEX(INDIRECT($H$183&P$191),$F35)),FALSE) -> 0 | Q35: =IF($F35,clean_alt(INDEX(INDIRECT($H$183&Q$191),$F35)),FALSE) -> 0 | R35: =IF($F35,clean_alt(INDEX(INDIRECT($H$183&R$191),$F35)),FALSE) -> 0 | S35: =IF($F35,clean_alt(INDEX(INDIRECT($H$183&S$191),$F35)),FALSE) -> 0
D36: Net Income After Extraordinaries | E36: 154 | F36: 141 | H36: =IF($E36,clean_alt(INDEX(INDIRECT($D$183&O$191),$E36)),FALSE) -> 4660000 | I36: =IF($E36,clean_alt(INDEX(INDIRECT($D$183&P$191),$E36)),FALSE) -> 4960000 | J36: =IF($E36,clean_alt(INDEX(INDIRECT($D$183&Q$191),$E36)),FALSE) -> 4830000 | K36: =IF($E36,clean_alt(INDEX(INDIRECT($D$183&R$191),$E36)),FALSE) -> 5050000 | L36: =IF($E36,clean_alt(INDEX(INDIRECT($D$183&S$191),$E36)),FALSE) -> 4860000 | O36: =IF($F36,clean_alt(INDEX(INDIRECT($H$183&O$191),$F36)),FALSE) -> 1580000 | P36: =IF($F36,clean_alt(INDEX(INDIRECT($H$183&P$191),$F36)),FALSE) -> 1430000 | Q36: =IF($F36,clean_alt(INDEX(INDIRECT($H$183&Q$191),$F36)),FALSE) -> 523000 | R36: =IF($F36,clean_alt(INDEX(INDIRECT($H$183&R$191),$F36)),FALSE) -> 602000 | S36: =IF($F36,clean_alt(INDEX(INDIRECT($H$183&S$191),$F36)),FALSE) -> 1860000
D37: Preferred Dividends | E37: 155 | F37: 142 | H37: =IF($E37,clean_alt(INDEX(INDIRECT($D$183&O$191),$E37)),FALSE) -> 0 | I37: =IF($E37,clean_alt(INDEX(INDIRECT($D$183&P$191),$E37)),FALSE) -> 0 | J37: =IF($E37,clean_alt(INDEX(INDIRECT($D$183&Q$191),$E37)),FALSE) -> 0 | K37: =IF($E37,clean_alt(INDEX(INDIRECT($D$183&R$191),$E37)),FALSE) -> 0 | L37: =IF($E37,clean_alt(INDEX(INDIRECT($D$183&S$191),$E37)),FALSE) -> 0 | O37: =IF($F37,clean_alt(INDEX(INDIRECT($H$183&O$191),$F37)),FALSE) -> 0 | P37: =IF($F37,clean_alt(INDEX(INDIRECT($H$183&P$191),$F37)),FALSE) -> 0 | Q37: =IF($F37,clean_alt(INDEX(INDIRECT($H$183&Q$191),$F37)),FALSE) -> 0 | R37: =IF($F37,clean_alt(INDEX(INDIRECT($H$183&R$191),$F37)),FALSE) -> 0 | S37: =IF($F37,clean_alt(INDEX(INDIRECT($H$183&S$191),$F37)),FALSE) -> 0
D38: Net Income Available to Common | E38: 156 | F38: 143 | H38: =IF($E38,clean_alt(INDEX(INDIRECT($D$183&O$191),$E38)),FALSE) -> 4660000 | I38: =IF($E38,clean_alt(INDEX(INDIRECT($D$183&P$191),$E38)),FALSE) -> 4960000 | J38: =IF($E38,clean_alt(INDEX(INDIRECT($D$183&Q$191),$E38)),FALSE) -> 4830000 | K38: =IF($E38,clean_alt(INDEX(INDIRECT($D$183&R$191),$E38)),FALSE) -> 5050000 | L38: =IF($E38,clean_alt(INDEX(INDIRECT($D$183&S$191),$E38)),FALSE) -> 4860000 | O38: =IF($F38,clean_alt(INDEX(INDIRECT($H$183&O$191),$F38)),FALSE) -> 1580000 | P38: =IF($F38,clean_alt(INDEX(INDIRECT($H$183&P$191),$F38)),FALSE) -> 1430000 | Q38: =IF($F38,clean_alt(INDEX(INDIRECT($H$183&Q$191),$F38)),FALSE) -> 523000 | R38: =IF($F38,clean_alt(INDEX(INDIRECT($H$183&R$191),$F38)),FALSE) -> 602000 | S38: =IF($F38,clean_alt(INDEX(INDIRECT($H$183&S$191),$F38)),FALSE) -> 1860000
D40: EPS (Basic) | E40: =IFERROR(MATCH($D40,INDIRECT($D$183&"A:A"),0),FALSE) -> 157 | F40: =IFERROR(MATCH($D40,INDIRECT($H$183&"A:A"),0),FALSE) -> 144 | H40: =IF($E40,INDEX(INDIRECT($D$183&O$191),$E40),FALSE) -> 6.83 | I40: =IF($E40,INDEX(INDIRECT($D$183&P$191),$E40),FALSE) -> 7.63 | J40: =IF($E40,INDEX(INDIRECT($D$183&Q$191),$E40),FALSE) -> 7.73 | K40: =IF($E40,INDEX(INDIRECT($D$183&R$191),$E40),FALSE) -> 8.35 | L40: =IF($E40,INDEX(INDIRECT($D$183&S$191),$E40),FALSE) -> 8.13 | O40: =IF($F40,clean_alt(INDEX(INDIRECT($H$183&O$191),$F40)),FALSE)*1000 -> 2650 | P40: =IF($F40,clean_alt(INDEX(INDIRECT($H$183&P$191),$F40)),FALSE)*1000 -> 2390 | Q40: =IF($F40,clean_alt(INDEX(INDIRECT($H$183&Q$191),$F40)),FALSE)*1000 -> 880 | R40: =IF($F40,clean_alt(INDEX(INDIRECT($H$183&R$191),$F40)),FALSE)*1000 -> 1010 | S40: =IF($F40,clean_alt(INDEX(INDIRECT($H$183&S$191),$F40)),FALSE)*1000 -> 3140
D41: Basic Shares Outstanding | E41: =IFERROR(MATCH($D41,INDIRECT($D$183&"A:A"),0),FALSE) -> 159 | F41: =IFERROR(MATCH($D41,INDIRECT($H$183&"A:A"),0),FALSE) -> 146 | H41: =IF($E41,clean_alt(INDEX(INDIRECT($D$183&O$191),$E41)),FALSE) -> 681900 | I41: =IF($E41,clean_alt(INDEX(INDIRECT($D$183&P$191),$E41)),FALSE) -> 649200 | J41: =IF($E41,clean_alt(INDEX(INDIRECT($D$183&Q$191),$E41)),FALSE) -> 625600 | K41: =IF($E41,clean_alt(INDEX(INDIRECT($D$183&R$191),$E41)),FALSE) -> 604700 | L41: =IF($E41,clean_alt(INDEX(INDIRECT($D$183&S$191),$E41)),FALSE) -> 597500 | O41: =IF($F41,clean_alt(INDEX(INDIRECT($H$183&O$191),$F41)),FALSE) -> 598100 | P41: =IF($F41,clean_alt(INDEX(INDIRECT($H$183&P$191),$F41)),FALSE) -> 597600 | Q41: =IF($F41,clean_alt(INDEX(INDIRECT($H$183&Q$191),$F41)),FALSE) -> 596500 | R41: =IF($F41,clean_alt(INDEX(INDIRECT($H$183&R$191),$F41)),FALSE) -> 596200 | S41: =IF($F41,clean_alt(INDEX(INDIRECT($H$183&S$191),$F41)),FALSE) -> 591400
D42: EPS (Diluted) | E42: =IFERROR(MATCH($D42,INDIRECT($D$183&"A:A"),0),FALSE) -> 160 | F42: =IFERROR(MATCH($D42,INDIRECT($H$183&"A:A"),0),FALSE) -> 147 | H42: =IF($E42,INDEX(INDIRECT($D$183&O$191),$E42),FALSE) -> 6.72 | I42: =IF($E42,INDEX(INDIRECT($D$183&P$191),$E42),FALSE) -> 7.49 | J42: =IF($E42,INDEX(INDIRECT($D$183&Q$191),$E42),FALSE) -> 7.58 | K42: =IF($E42,INDEX(INDIRECT($D$183&R$191),$E42),FALSE) -> 8.16 | L42: =IF($E42,INDEX(INDIRECT($D$183&S$191),$E42),FALSE) -> 7.93 | O42: =IF($F42,clean_alt(INDEX(INDIRECT($H$183&O$191),$F42)),FALSE)*1000 -> 2580 | P42: =IF($F42,clean_alt(INDEX(INDIRECT($H$183&P$191),$F42)),FALSE)*1000 -> 2330 | Q42: =IF($F42,clean_alt(INDEX(INDIRECT($H$183&Q$191),$F42)),FALSE)*1000 -> 850 | R42: =IF($F42,clean_alt(INDEX(INDIRECT($H$183&R$191),$F42)),FALSE)*1000 -> 980 | S42: =IF($F42,clean_alt(INDEX(INDIRECT($H$183&S$191),$F42)),FALSE)*1000 -> 3070
D43: Diluted Shares Outstanding | E43: =IFERROR(MATCH($D43,INDIRECT($D$183&"A:A"),0),FALSE) -> 162 | F43: =IFERROR(MATCH($D43,INDIRECT($H$183&"A:A"),0),FALSE) -> 149 | H43: =IF($E43,clean_alt(INDEX(INDIRECT($D$183&O$191),$E43)),FALSE) -> 693600 | I43: =IF($E43,clean_alt(INDEX(INDIRECT($D$183&P$191),$E43)),FALSE) -> 662000 | J43: =IF($E43,clean_alt(INDEX(INDIRECT($D$183&Q$191),$E43)),FALSE) -> 637200 | K43: =IF($E43,clean_alt(INDEX(INDIRECT($D$183&R$191),$E43)),FALSE) -> 618700 | L43: =IF($E43,clean_alt(INDEX(INDIRECT($D$183&S$191),$E43)),FALSE) -> 612700 | O43: =IF($F43,clean_alt(INDEX(INDIRECT($H$183&O$191),$F43)),FALSE) -> 612800 | P43: =IF($F43,clean_alt(INDEX(INDIRECT($H$183&P$191),$F43)),FALSE) -> 612700 | Q43: =IF($F43,clean_alt(INDEX(INDIRECT($H$183&Q$191),$F43)),FALSE) -> 613400 | R43: =IF($F43,clean_alt(INDEX(INDIRECT($H$183&R$191),$F43)),FALSE) -> 612700 | S43: =IF($F43,clean_alt(INDEX(INDIRECT($H$183&S$191),$F43)),FALSE) -> 604200
A45: Cash Flow
B46: View Ratios
B47: All values USD millions. | E47: =INDEX(INDIRECT(F183&"A:A"),MATCH(B46,INDIRECT(F183&"A:A"),0)+2) -> Fiscal year is January-December. All values USD millions.
B48: Fiscal Year | E48: =IFERROR(match_partial_sheet(B48,"A",10,F182,200),FALSE) -> 108 | F48: =IFERROR(match_partial_sheet(B48,"A",10,F182,200),FALSE) -> 108 | H48: =INDEX(INDIRECT($F$183&V$191),$E48) -> 2013 | I48: =INDEX(INDIRECT($F$183&H$191),$E48) -> 2014 | J48: =INDEX(INDIRECT($F$183&I$191),$E48) -> 2015 | K48: =INDEX(INDIRECT($F$183&J$191),$E48) -> 2016 | L48: =INDEX(INDIRECT($F$183&K$191),$E48) -> 2017 | O48: =INDEX(INDIRECT($J$183&O$191),$F$91) -> (175M) | P48: =INDEX(INDIRECT($J$183&P$191),$F$91) -> (183M) | Q48: =INDEX(INDIRECT($J$183&Q$191),$F$91) -> 350M | R48: =INDEX(INDIRECT($J$183&R$191),$F$91) -> (260M) | S48: =INDEX(INDIRECT($J$183&S$191),$F$91) -> (346M)
D49: Net Income before Extraordinaries | E49: =IFERROR(MATCH($D49,INDIRECT($F$183&"A:A"),0),FALSE) -> 109 | F49: =IFERROR(MATCH($D49,INDIRECT($J$183&"A:A"),0),FALSE) -> 96 | H49: =IF($E49,clean_alt(INDEX(INDIRECT($F$183&O$191),$E49)),FALSE) -> 4720000 | I49: =IF($E49,clean_alt(INDEX(INDIRECT($F$183&P$191),$E49)),FALSE) -> 5000000 | J49: =IF($E49,clean_alt(INDEX(INDIRECT($F$183&Q$191),$E49)),FALSE) -> 4840000 | K49: =IF($E49,clean_alt(INDEX(INDIRECT($F$183&R$191),$E49)),FALSE) -> 5060000 | L49: =IF($E49,clean_alt(INDEX(INDIRECT($F$183&S$191),$E49)),FALSE) -> 4870000 | O49: =IF($F49,clean_alt(INDEX(INDIRECT($J$183&O$191),$F49)),FALSE) -> 1590000 | P49: =IF($F49,clean_alt(INDEX(INDIRECT($J$183&P$191),$F49)),FALSE) -> 1430000 | Q49: =IF($F49,clean_alt(INDEX(INDIRECT($J$183&Q$191),$F49)),FALSE) -> 525000 | R49: =IF($F49,clean_alt(INDEX(INDIRECT($J$183&R$191),$F49)),FALSE) -> 606000 | S49: =IF($F49,clean_alt(INDEX(INDIRECT($J$183&S$191),$F49)),FALSE) -> 1860000
D50: Depreciation, Depletion & Amortization | E50: =IFERROR(MATCH($D50,INDIRECT($F$183&"A:A"),0),FALSE) -> 111 | F50: =IFERROR(MATCH($D50,INDIRECT($J$183&"A:A"),0),FALSE) -> 98 | H50: =IF($E50,clean_alt(INDEX(INDIRECT($D$183&O$191),$E50)),FALSE) -> 14740000 | I50: =IF($E50,clean_alt(INDEX(INDIRECT($D$183&P$191),$E50)),FALSE) -> 15060000 | J50: =IF($E50,clean_alt(INDEX(INDIRECT($D$183&Q$191),$E50)),FALSE) -> 14100000 | K50: =IF($E50,clean_alt(INDEX(INDIRECT($D$183&R$191),$E50)),FALSE) -> 13660000 | L50: =IF($E50,clean_alt(INDEX(INDIRECT($D$183&S$191),$E50)),FALSE) -> 14400000 | M50: =X50 -> 1524000 | O50: =IF($F50,clean_alt(INDEX(INDIRECT($J$183&O$191),$F50)),FALSE) -> 380000 | P50: =IF($F50,clean_alt(INDEX(INDIRECT($J$183&P$191),$F50)),FALSE) -> 377000 | Q50: =IF($F50,clean_alt(INDEX(INDIRECT($J$183&Q$191),$F50)),FALSE) -> 349000 | R50: =IF($F50,clean_alt(INDEX(INDIRECT($J$183&R$191),$F50)),FALSE) -> 382000 | S50: =IF($F50,clean_alt(INDEX(INDIRECT($J$183&S$191),$F50)),FALSE) -> 380000 | T50: =SUMIF($10:$10,TRUE,50:50) -> 762000 | U50: =SUM(P50:S50) -> 1488000 | V50: =IFERROR(OFFSET(S50,0,-$S$2)/OFFSET(S50,0,-$S$2-1),FALSE) -> 0.925729443 | W50: =V50*S50+T50 -> 1113777.188 | X50: =IFERROR(4/$S$2*T50,FALSE) -> 1524000
D51: Deferred Taxes & Investment Tax Credit | E51: =IFERROR(MATCH($D51,INDIRECT($F$183&"A:A"),0),FALSE) -> 114 | F51: =IFERROR(MATCH($D51,INDIRECT($J$183&"A:A"),0),FALSE) -> 101 | H51: =IF($E51,clean_alt(INDEX(INDIRECT($D$183&O$191),$E51)),FALSE) -> 236000 | I51: =IF($E51,clean_alt(INDEX(INDIRECT($D$183&P$191),$E51)),FALSE) -> 228000 | J51: =IF($E51,clean_alt(INDEX(INDIRECT($D$183&Q$191),$E51)),FALSE) -> 229000 | K51: =IF($E51,clean_alt(INDEX(INDIRECT($D$183&R$191),$E51)),FALSE) -> 262000 | L51: =IF($E51,clean_alt(INDEX(INDIRECT($D$183&S$191),$E51)),FALSE) -> 238000 | M51: =U51 -> 0 | O51: =IF($F51,clean_alt(INDEX(INDIRECT($J$183&O$191),$F51)),FALSE) -> 0 | P51: =IF($F51,clean_alt(INDEX(INDIRECT($J$183&P$191),$F51)),FALSE) -> 0 | Q51: =IF($F51,clean_alt(INDEX(INDIRECT($J$183&Q$191),$F51)),FALSE) -> 0 | R51: =IF($F51,clean_alt(INDEX(INDIRECT($J$183&R$191),$F51)),FALSE) -> 0 | S51: =IF($F51,clean_alt(INDEX(INDIRECT($J$183&S$191),$F51)),FALSE) -> 0 | T51: =SUMIF($10:$10,TRUE,51:51) -> 0 | U51: =SUM(P51:S51) -> 0 | V51: =IFERROR(OFFSET(S51,0,-$S$2)/OFFSET(S51,0,-$S$2-1),FALSE) -> FALSE | W51: =V51*S51+T51 -> 0 | X51: =IFERROR(4/$S$2*T51,FALSE) -> 0
D52: Other Funds | E52: =IFERROR(MATCH($D52,INDIRECT($F$183&"A:A"),0),FALSE) -> 117 | F52: =IFERROR(MATCH($D52,INDIRECT($J$183&"A:A"),0),FALSE) -> 104 | H52: =IF($E52,clean_alt(INDEX(INDIRECT($D$183&O$191),$E52)),FALSE) -> 0 | I52: =IF($E52,clean_alt(INDEX(INDIRECT($D$183&P$191),$E52)),FALSE) -> 0.0406 | J52: =IF($E52,clean_alt(INDEX(INDIRECT($D$183&Q$191),$E52)),FALSE) -> -0.0401 | K52: =IF($E52,clean_alt(INDEX(INDIRECT($D$183&R$191),$E52)),FALSE) -> 0.0159 | L52: =IF($E52,clean_alt(INDEX(INDIRECT($D$183&S$191),$E52)),FALSE) -> 0.0494 | M52: =U52 -> -874000 | O52: =IF($F52,clean_alt(INDEX(INDIRECT($J$183&O$191),$F52)),FALSE) -> -381000 | P52: =IF($F52,clean_alt(INDEX(INDIRECT($J$183&P$191),$F52)),FALSE) -> 107000 | Q52: =IF($F52,clean_alt(INDEX(INDIRECT($J$183&Q$191),$F52)),FALSE) -> -602000 | R52: =IF($F52,clean_alt(INDEX(INDIRECT($J$183&R$191),$F52)),FALSE) -> 5000 | S52: =IF($F52,clean_alt(INDEX(INDIRECT($J$183&S$191),$F52)),FALSE) -> -384000 | T52: =SUMIF($10:$10,TRUE,52:52) -> -379000 | U52: =SUM(P52:S52) -> -874000 | V52: =IFERROR(OFFSET(S52,0,-$S$2)/OFFSET(S52,0,-$S$2-1),FALSE) -> -5.626168224 | W52: =V52*S52+T52 -> 1781448.598 | X52: =IFERROR(4/$S$2*T52,FALSE) -> -758000
D53: Funds from Operations | H53: =SUM(H49:H52) -> 19696000 | I53: =SUM(I49:I52) -> 20288000.04 | J53: =SUM(J49:J52) -> 19168999.96 | K53: =SUM(K49:K52) -> 18982000.02 | L53: =SUM(L49:L52) -> 19508000.05 | O53: =SUM(O49:O52) -> 1589000 | P53: =SUM(P49:P52) -> 1914000 | Q53: =SUM(Q49:Q52) -> 272000 | R53: =SUM(R49:R52) -> 993000 | S53: =SUM(S49:S52) -> 1856000
D54: Extraordinaries | E54: =IFERROR(MATCH($D54,INDIRECT($F$183&"A:A"),0),FALSE) -> 119 | F54: =IFERROR(MATCH($D54,INDIRECT($J$183&"A:A"),0),FALSE) -> 106 | H54: =IF($E54,clean_alt(INDEX(INDIRECT($F$183&O$191),$E54)),FALSE) -> 0 | I54: =IF($E54,clean_alt(INDEX(INDIRECT($F$183&P$191),$E54)),FALSE) -> 0 | J54: =IF($E54,clean_alt(INDEX(INDIRECT($F$183&Q$191),$E54)),FALSE) -> 0 | K54: =IF($E54,clean_alt(INDEX(INDIRECT($F$183&R$191),$E54)),FALSE) -> 0 | L54: =IF($E54,clean_alt(INDEX(INDIRECT($F$183&S$191),$E54)),FALSE) -> 0 | M54: =U54 -> 0 | O54: =IF($F54,clean_alt(INDEX(INDIRECT($J$183&O$191),$F54)),FALSE) -> 0 | P54: =IF($F54,clean_alt(INDEX(INDIRECT($J$183&P$191),$F54)),FALSE) -> 0 | Q54: =IF($F54,clean_alt(INDEX(INDIRECT($J$183&Q$191),$F54)),FALSE) -> 0 | R54: =IF($F54,clean_alt(INDEX(INDIRECT($J$183&R$191),$F54)),FALSE) -> 0 | S54: =IF($F54,clean_alt(INDEX(INDIRECT($J$183&S$191),$F54)),FALSE) -> 0 | T54: =SUMIF($10:$10,TRUE,54:54) -> 0 | U54: =SUM(P54:S54) -> 0 | V54: =IFERROR(OFFSET(S54,0,-$S$2)/OFFSET(S54,0,-$S$2-1),FALSE) -> FALSE | W54: =V54*S54+T54 -> 0 | X54: =IFERROR(4/$S$2*T54,FALSE) -> 0
D55: Changes in Working Capital | E55: =IFERROR(MATCH($D55,INDIRECT($F$183&"A:A"),0),FALSE) -> 120 | F55: =IFERROR(MATCH($D55,INDIRECT($J$183&"A:A"),0),FALSE) -> 107 | H55: =IF($E55,clean_alt(INDEX(INDIRECT($F$183&O$191),$E55)),FALSE) -> -327000 | I55: =IF($E55,clean_alt(INDEX(INDIRECT($F$183&P$191),$E55)),FALSE) -> 77000 | J55: =IF($E55,clean_alt(INDEX(INDIRECT($F$183&Q$191),$E55)),FALSE) -> -662000 | K55: =IF($E55,clean_alt(INDEX(INDIRECT($F$183&R$191),$E55)),FALSE) -> -43000 | L55: =IF($E55,clean_alt(INDEX(INDIRECT($F$183&S$191),$E55)),FALSE) -> 616000 | M55: =U55 -> 390000 | O55: =IF($F55,clean_alt(INDEX(INDIRECT($J$183&O$191),$F55)),FALSE) -> 94000 | P55: =IF($F55,clean_alt(INDEX(INDIRECT($J$183&P$191),$F55)),FALSE) -> -182000 | Q55: =IF($F55,clean_alt(INDEX(INDIRECT($J$183&Q$191),$F55)),FALSE) -> 1380000 | R55: =IF($F55,clean_alt(INDEX(INDIRECT($J$183&R$191),$F55)),FALSE) -> -747000 | S55: =IF($F55,clean_alt(INDEX(INDIRECT($J$183&S$191),$F55)),FALSE) -> -61000 | T55: =SUMIF($10:$10,TRUE,55:55) -> -808000 | U55: =SUM(P55:S55) -> 390000 | V55: =IFERROR(OFFSET(S55,0,-$S$2)/OFFSET(S55,0,-$S$2-1),FALSE) -> -7.582417582 | W55: =V55*S55+T55 -> -345472.5275 | X55: =IFERROR(4/$S$2*T55,FALSE) -> -1616000
D56: Net Operating Cash Flow | H56: =H53+H54+H55 -> 19369000 | I56: =I53+I54+I55 -> 20365000.04 | J56: =J53+J54+J55 -> 18506999.96 | K56: =K53+K54+K55 -> 18939000.02 | L56: =L53+L54+L55 -> 20124000.05 | O56: =O53+O54+O55 -> 1683000 | P56: =P53+P54+P55 -> 1732000 | Q56: =Q53+Q54+Q55 -> 1652000 | R56: =R53+R54+R55 -> 246000 | S56: =S53+S54+S55 -> 1795000
D57: Investing Activities
D58: Capital Expenditures (Fixed Assets) | E58: =IFERROR(MATCH($D58,INDIRECT($F$183&"A:A"),0),FALSE) -> 132 | F58: =IFERROR(MATCH($D58,INDIRECT($J$183&"A:A"),0),FALSE) -> 119 | H58: =IF($E58,clean_alt(INDEX(INDIRECT($F$183&O$191),$E58)),FALSE) -> -1670000 | I58: =IF($E58,clean_alt(INDEX(INDIRECT($F$183&P$191),$E58)),FALSE) -> -1490000 | J58: =IF($E58,clean_alt(INDEX(INDIRECT($F$183&Q$191),$E58)),FALSE) -> -1460000 | K58: =IF($E58,clean_alt(INDEX(INDIRECT($F$183&R$191),$E58)),FALSE) -> -1420000 | L58: =IF($E58,clean_alt(INDEX(INDIRECT($F$183&S$191),$E58)),FALSE) -> -1370000 | M58: =U58 -> -1453000 | O58: =IF($F58,clean_alt(INDEX(INDIRECT($J$183&O$191),$F58)),FALSE) -> -302000 | P58: =IF($F58,clean_alt(INDEX(INDIRECT($J$183&P$191),$F58)),FALSE) -> -325000 | Q58: =IF($F58,clean_alt(INDEX(INDIRECT($J$183&Q$191),$F58)),FALSE) -> -459000 | R58: =IF($F58,clean_alt(INDEX(INDIRECT($J$183&R$191),$F58)),FALSE) -> -304000 | S58: =IF($F58,clean_alt(INDEX(INDIRECT($J$183&S$191),$F58)),FALSE) -> -365000 | T58: =SUMIF($10:$10,TRUE,58:58) -> -669000 | U58: =SUM(P58:S58) -> -1453000 | V58: =IFERROR(OFFSET(S58,0,-$S$2)/OFFSET(S58,0,-$S$2-1),FALSE) -> 1.412307692 | W58: =V58*S58+T58 -> -1184492.308 | X58: =IFERROR(4/$S$2*T58,FALSE) -> -1338000
D59: Capital Expenditures (Other Assets) | E59: =IFERROR(MATCH($D59,INDIRECT($F$183&"A:A"),0),FALSE) -> 133 | F59: =IFERROR(MATCH($D59,INDIRECT($J$183&"A:A"),0),FALSE) -> 120 | H59: =IF($E59,clean_alt(INDEX(INDIRECT($F$183&O$191),$E59)),FALSE) -> 0 | I59: =IF($E59,clean_alt(INDEX(INDIRECT($F$183&P$191),$E59)),FALSE) -> 0 | J59: =IF($E59,clean_alt(INDEX(INDIRECT($F$183&Q$191),$E59)),FALSE) -> 0 | K59: =IF($E59,clean_alt(INDEX(INDIRECT($F$183&R$191),$E59)),FALSE) -> 0 | L59: =IF($E59,clean_alt(INDEX(INDIRECT($F$183&S$191),$E59)),FALSE) -> 0 | M59: =U59 -> 0 | O59: =IF($F59,clean_alt(INDEX(INDIRECT($J$183&O$191),$F59)),FALSE) -> 0 | P59: =IF($F59,clean_alt(INDEX(INDIRECT($J$183&P$191),$F59)),FALSE) -> 0 | Q59: =IF($F59,clean_alt(INDEX(INDIRECT($J$183&Q$191),$F59)),FALSE) -> 0 | R59: =IF($F59,clean_alt(INDEX(INDIRECT($J$183&R$191),$F59)),FALSE) -> 0 | S59: =IF($F59,clean_alt(INDEX(INDIRECT($J$183&S$191),$F59)),FALSE) -> 0 | T59: =SUMIF($10:$10,TRUE,59:59) -> 0 | U59: =SUM(P59:S59) -> 0 | V59: =IFERROR(OFFSET(S59,0,-$S$2)/OFFSET(S59,0,-$S$2-1),FALSE) -> FALSE | W59: =V59*S59+T59 -> 0 | X59: =IFERROR(4/$S$2*T59,FALSE) -> 0
D60: Net Assets from Acquisitions | E60: =IFERROR(MATCH($D60,INDIRECT($F$183&"A:A"),0),FALSE) -> 136 | F60: =IFERROR(MATCH($D60,INDIRECT($J$183&"A:A"),0),FALSE) -> 123 | H60: =IF($E60,clean_alt(INDEX(INDIRECT($F$183&O$191),$E60)),FALSE) -> 0 | I60: =IF($E60,clean_alt(INDEX(INDIRECT($F$183&P$191),$E60)),FALSE) -> -955000 | J60: =IF($E60,clean_alt(INDEX(INDIRECT($F$183&Q$191),$E60)),FALSE) -> -2910000 | K60: =IF($E60,clean_alt(INDEX(INDIRECT($F$183&R$191),$E60)),FALSE) -> -16000 | L60: =IF($E60,clean_alt(INDEX(INDIRECT($F$183&S$191),$E60)),FALSE) -> -2020000 | M60: =X60 -> 0 | O60: =IF($F60,clean_alt(INDEX(INDIRECT($J$183&O$191),$F60)),FALSE) -> 0 | P60: =IF($F60,clean_alt(INDEX(INDIRECT($J$183&P$191),$F60)),FALSE) -> -12000 | Q60: =IF($F60,clean_alt(INDEX(INDIRECT($J$183&Q$191),$F60)),FALSE) -> -2010000 | R60: =IF($F60,clean_alt(INDEX(INDIRECT($J$183&R$191),$F60)),FALSE) -> 0 | S60: =IF($F60,clean_alt(INDEX(INDIRECT($J$183&S$191),$F60)),FALSE) -> 0 | T60: =SUMIF($10:$10,TRUE,60:60) -> 0 | U60: =SUM(P60:S60) -> -2022000 | V60: =IFERROR(OFFSET(S60,0,-$S$2)/OFFSET(S60,0,-$S$2-1),FALSE) -> 167.5 | W60: =V60*S60+T60 -> 0 | X60: =IFERROR(4/$S$2*T60,FALSE) -> 0
D61: Sale of Fixed Assets & Businesses | E61: =IFERROR(MATCH($D61,INDIRECT($F$183&"A:A"),0),FALSE) -> 137 | F61: =IFERROR(MATCH($D61,INDIRECT($J$183&"A:A"),0),FALSE) -> 124 | H61: =IF($E61,clean_alt(INDEX(INDIRECT($F$183&O$191),$E61)),FALSE) -> 136000 | I61: =IF($E61,clean_alt(INDEX(INDIRECT($F$183&P$191),$E61)),FALSE) -> 135000 | J61: =IF($E61,clean_alt(INDEX(INDIRECT($F$183&Q$191),$E61)),FALSE) -> 156000 | K61: =IF($E61,clean_alt(INDEX(INDIRECT($F$183&R$191),$E61)),FALSE) -> 200000 | L61: =IF($E61,clean_alt(INDEX(INDIRECT($F$183&S$191),$E61)),FALSE) -> 1110000 | M61: =U61 -> 1154000 | O61: =IF($F61,clean_alt(INDEX(INDIRECT($J$183&O$191),$F61)),FALSE) -> 821000 | P61: =IF($F61,clean_alt(INDEX(INDIRECT($J$183&P$191),$F61)),FALSE) -> 5000 | Q61: =IF($F61,clean_alt(INDEX(INDIRECT($J$183&Q$191),$F61)),FALSE) -> 234000 | R61: =IF($F61,clean_alt(INDEX(INDIRECT($J$183&R$191),$F61)),FALSE) -> 123000 | S61: =IF($F61,clean_alt(INDEX(INDIRECT($J$183&S$191),$F61)),FALSE) -> 792000 | T61: =SUMIF($10:$10,TRUE,61:61) -> 915000 | U61: =SUM(P61:S61) -> 1154000 | V61: =IFERROR(OFFSET(S61,0,-$S$2)/OFFSET(S61,0,-$S$2-1),FALSE) -> 46.8 | W61: =V61*S61+T61 -> 37980600 | X61: =IFERROR(4/$S$2*T61,FALSE) -> 1830000
H62: =IF($E62,clean_alt(INDEX(INDIRECT($F$183&O$191),$E62)),FALSE) -> FALSE | I62: =IF($E62,clean_alt(INDEX(INDIRECT($F$183&P$191),$E62)),FALSE) -> FALSE | J62: =IF($E62,clean_alt(INDEX(INDIRECT($F$183&Q$191),$E62)),FALSE) -> FALSE | K62: =IF($E62,clean_alt(INDEX(INDIRECT($F$183&R$191),$E62)),FALSE) -> FALSE | L62: =IF($E62,clean_alt(INDEX(INDIRECT($F$183&S$191),$E62)),FALSE) -> FALSE | O62: =IF($F62,clean_alt(INDEX(INDIRECT($J$183&O$191),$F62)),FALSE) -> FALSE | P62: =IF($F62,clean_alt(INDEX(INDIRECT($J$183&P$191),$F62)),FALSE) -> FALSE | Q62: =IF($F62,clean_alt(INDEX(INDIRECT($J$183&Q$191),$F62)),FALSE) -> FALSE | R62: =IF($F62,clean_alt(INDEX(INDIRECT($J$183&R$191),$F62)),FALSE) -> FALSE | S62: =IF($F62,clean_alt(INDEX(INDIRECT($J$183&S$191),$F62)),FALSE) -> FALSE
D63: Purchase/Sale of Investments | E63: =IFERROR(MATCH($D63,INDIRECT($F$183&"A:A"),0),FALSE) -> 138 | F63: =IFERROR(MATCH($D63,INDIRECT($J$183&"A:A"),0),FALSE) -> 125 | H63: =IF($E63,clean_alt(INDEX(INDIRECT($F$183&O$191),$E63)),FALSE) -> 627000 | I63: =IF($E63,clean_alt(INDEX(INDIRECT($F$183&P$191),$E63)),FALSE) -> 754000 | J63: =IF($E63,clean_alt(INDEX(INDIRECT($F$183&Q$191),$E63)),FALSE) -> 1300000 | K63: =IF($E63,clean_alt(INDEX(INDIRECT($F$183&R$191),$E63)),FALSE) -> -163000 | L63: =IF($E63,clean_alt(INDEX(INDIRECT($F$183&S$191),$E63)),FALSE) -> -798000 | O63: =IF($F63,clean_alt(INDEX(INDIRECT($J$183&O$191),$F63)),FALSE) -> -2000 | P63: =IF($F63,clean_alt(INDEX(INDIRECT($J$183&P$191),$F63)),FALSE) -> -446000 | Q63: =IF($F63,clean_alt(INDEX(INDIRECT($J$183&Q$191),$F63)),FALSE) -> -488000 | R63: =IF($F63,clean_alt(INDEX(INDIRECT($J$183&R$191),$F63)),FALSE) -> 473000 | S63: =IF($F63,clean_alt(INDEX(INDIRECT($J$183&S$191),$F63)),FALSE) -> 199000 | T63: =SUMIF($10:$10,TRUE,63:63) -> 672000 | U63: =SUM(P63:S63) -> -262000 | V63: =IFERROR(OFFSET(S63,0,-$S$2)/OFFSET(S63,0,-$S$2-1),FALSE) -> 1.094170404 | W63: =V63*S63+T63 -> 889739.9103 | X63: =IFERROR(4/$S$2*T63,FALSE) -> 1344000
D64: Other Uses | E64: =IFERROR(MATCH($D64,INDIRECT($F$183&"A:A"),0),FALSE) -> 141 | F64: =IFERROR(MATCH($D64,INDIRECT($J$183&"A:A"),0),FALSE) -> 128 | H64: =IF($E64,clean_alt(INDEX(INDIRECT($F$183&O$191),$E64)),FALSE) -> 0 | I64: =IF($E64,clean_alt(INDEX(INDIRECT($F$183&P$191),$E64)),FALSE) -> 0 | J64: =IF($E64,clean_alt(INDEX(INDIRECT($F$183&Q$191),$E64)),FALSE) -> 0 | K64: =IF($E64,clean_alt(INDEX(INDIRECT($F$183&R$191),$E64)),FALSE) -> -4000 | L64: =IF($E64,clean_alt(INDEX(INDIRECT($F$183&S$191),$E64)),FALSE) -> -6000 | O64: =IF($F64,clean_alt(INDEX(INDIRECT($J$183&O$191),$F64)),FALSE) -> 0 | P64: =IF($F64,clean_alt(INDEX(INDIRECT($J$183&P$191),$F64)),FALSE) -> 0 | Q64: =IF($F64,clean_alt(INDEX(INDIRECT($J$183&Q$191),$F64)),FALSE) -> 0 | R64: =IF($F64,clean_alt(INDEX(INDIRECT($J$183&R$191),$F64)),FALSE) -> -11000 | S64: =IF($F64,clean_alt(INDEX(INDIRECT($J$183&S$191),$F64)),FALSE) -> 0 | T64: =SUMIF($10:$10,TRUE,64:64) -> -11000 | U64: =SUM(P64:S64) -> -11000 | V64: =IFERROR(OFFSET(S64,0,-$S$2)/OFFSET(S64,0,-$S$2-1),FALSE) -> FALSE | W64: =V64*S64+T64 -> -11000 | X64: =IFERROR(4/$S$2*T64,FALSE) -> -22000
D65: Other Sources | E65: =IFERROR(MATCH($D65,INDIRECT($F$183&"A:A"),0),FALSE) -> 142 | F65: =IFERROR(MATCH($D65,INDIRECT($J$183&"A:A"),0),FALSE) -> 129 | H65: =IF($E65,clean_alt(INDEX(INDIRECT($F$183&O$191),$E65)),FALSE) -> 46000 | I65: =IF($E65,clean_alt(INDEX(INDIRECT($F$183&P$191),$E65)),FALSE) -> 102000 | J65: =IF($E65,clean_alt(INDEX(INDIRECT($F$183&Q$191),$E65)),FALSE) -> 102000 | K65: =IF($E65,clean_alt(INDEX(INDIRECT($F$183&R$191),$E65)),FALSE) -> 0 | L65: =IF($E65,clean_alt(INDEX(INDIRECT($F$183&S$191),$E65)),FALSE) -> 0 | O65: =IF($F65,clean_alt(INDEX(INDIRECT($J$183&O$191),$F65)),FALSE) -> 0 | P65: =IF($F65,clean_alt(INDEX(INDIRECT($J$183&P$191),$F65)),FALSE) -> -3000 | Q65: =IF($F65,clean_alt(INDEX(INDIRECT($J$183&Q$191),$F65)),FALSE) -> 0 | R65: =IF($F65,clean_alt(INDEX(INDIRECT($J$183&R$191),$F65)),FALSE) -> 0 | S65: =IF($F65,clean_alt(INDEX(INDIRECT($J$183&S$191),$F65)),FALSE) -> 0 | T65: =SUMIF($10:$10,TRUE,65:65) -> 0 | U65: =SUM(P65:S65) -> -3000 | V65: =IFERROR(OFFSET(S65,0,-$S$2)/OFFSET(S65,0,-$S$2-1),FALSE) -> 0 | W65: =V65*S65+T65 -> 0 | X65: =IFERROR(4/$S$2*T65,FALSE) -> 0
D66: Net Investing Cash Flow | H66: =SUM(H58:H65) -> -861000 | I66: =SUM(I58:I65) -> -1454000 | J66: =SUM(J58:J65) -> -2812000 | K66: =SUM(K58:K65) -> -1403000 | L66: =SUM(L58:L65) -> -3084000 | O66: =SUM(O58:O65) -> 517000 | P66: =SUM(P58:P65) -> -781000 | Q66: =SUM(Q58:Q65) -> -2723000 | R66: =SUM(R58:R65) -> 281000 | S66: =SUM(S58:S65) -> 626000
D67: Financing Activities
D68: Common Dividends | E68: =IFERROR(MATCH($D68,INDIRECT($F$183&"A:A"),0),FALSE) -> 151 | F68: =IFERROR(MATCH($D68,INDIRECT($J$183&"A:A"),0),FALSE) -> 138 | H68: =IF($E68,clean_alt(INDEX(INDIRECT($F$183&O$191),$E68)),FALSE) -> -1730000 | I68: =IF($E68,clean_alt(INDEX(INDIRECT($F$183&P$191),$E68)),FALSE) -> -2220000 | J68: =IF($E68,clean_alt(INDEX(INDIRECT($F$183&Q$191),$E68)),FALSE) -> -2560000 | K68: =IF($E68,clean_alt(INDEX(INDIRECT($F$183&R$191),$E68)),FALSE) -> -2680000 | L68: =IF($E68,clean_alt(INDEX(INDIRECT($F$183&S$191),$E68)),FALSE) -> -2800000 | O68: =IF($F68,clean_alt(INDEX(INDIRECT($J$183&O$191),$F68)),FALSE) -> -701000 | P68: =IF($F68,clean_alt(INDEX(INDIRECT($J$183&P$191),$F68)),FALSE) -> -701000 | Q68: =IF($F68,clean_alt(INDEX(INDIRECT($J$183&Q$191),$F68)),FALSE) -> -699000 | R68: =IF($F68,clean_alt(INDEX(INDIRECT($J$183&R$191),$F68)),FALSE) -> -810000 | S68: =IF($F68,clean_alt(INDEX(INDIRECT($J$183&S$191),$F68)),FALSE) -> -802000
D69: Preferred Dividends | E69: 152 | F69: 139 | H69: =IF($E69,clean_alt(INDEX(INDIRECT($F$183&O$191),$E69)),FALSE) -> 0 | I69: =IF($E69,clean_alt(INDEX(INDIRECT($F$183&P$191),$E69)),FALSE) -> 0 | J69: =IF($E69,clean_alt(INDEX(INDIRECT($F$183&Q$191),$E69)),FALSE) -> 0 | K69: =IF($E69,clean_alt(INDEX(INDIRECT($F$183&R$191),$E69)),FALSE) -> 0 | L69: =IF($E69,clean_alt(INDEX(INDIRECT($F$183&S$191),$E69)),FALSE) -> 0 | O69: =IF($F69,clean_alt(INDEX(INDIRECT($J$183&O$191),$F69)),FALSE) -> 0 | P69: =IF($F69,clean_alt(INDEX(INDIRECT($J$183&P$191),$F69)),FALSE) -> 0 | Q69: =IF($F69,clean_alt(INDEX(INDIRECT($J$183&Q$191),$F69)),FALSE) -> 0 | R69: =IF($F69,clean_alt(INDEX(INDIRECT($J$183&R$191),$F69)),FALSE) -> 0 | S69: =IF($F69,clean_alt(INDEX(INDIRECT($J$183&S$191),$F69)),FALSE) -> 0
D70: Change in Capital Stock | E70: 153 | F70: 140 | H70: =IF($E70,clean_alt(INDEX(INDIRECT($F$183&O$191),$E70)),FALSE) -> -3600000 | I70: =IF($E70,clean_alt(INDEX(INDIRECT($F$183&P$191),$E70)),FALSE) -> -4680000 | J70: =IF($E70,clean_alt(INDEX(INDIRECT($F$183&Q$191),$E70)),FALSE) -> -4600000 | K70: =IF($E70,clean_alt(INDEX(INDIRECT($F$183&R$191),$E70)),FALSE) -> -2950000 | L70: =IF($E70,clean_alt(INDEX(INDIRECT($F$183&S$191),$E70)),FALSE) -> -1330000 | O70: =IF($F70,clean_alt(INDEX(INDIRECT($J$183&O$191),$F70)),FALSE) -> -313000 | P70: =IF($F70,clean_alt(INDEX(INDIRECT($J$183&P$191),$F70)),FALSE) -> -294000 | Q70: =IF($F70,clean_alt(INDEX(INDIRECT($J$183&Q$191),$F70)),FALSE) -> -352000 | R70: =IF($F70,clean_alt(INDEX(INDIRECT($J$183&R$191),$F70)),FALSE) -> -718000 | S70: =IF($F70,clean_alt(INDEX(INDIRECT($J$183&S$191),$F70)),FALSE) -> -1510000
D71: Repurchase of Common & Preferred Stk. | E71: 154 | F71: 141 | H71: =IF($E71,clean_alt(INDEX(INDIRECT($F$183&O$191),$E71)),FALSE) -> -5210000 | I71: =IF($E71,clean_alt(INDEX(INDIRECT($F$183&P$191),$E71)),FALSE) -> -5650000 | J71: =IF($E71,clean_alt(INDEX(INDIRECT($F$183&Q$191),$E71)),FALSE) -> -5240000 | K71: =IF($E71,clean_alt(INDEX(INDIRECT($F$183&R$191),$E71)),FALSE) -> -3750000 | L71: =IF($E71,clean_alt(INDEX(INDIRECT($F$183&S$191),$E71)),FALSE) -> -2069999.875 | O71: =IF($F71,clean_alt(INDEX(INDIRECT($J$183&O$191),$F71)),FALSE) -> -494000 | P71: =IF($F71,clean_alt(INDEX(INDIRECT($J$183&P$191),$F71)),FALSE) -> -380000 | Q71: =IF($F71,clean_alt(INDEX(INDIRECT($J$183&Q$191),$F71)),FALSE) -> -504000 | R71: =IF($F71,clean_alt(INDEX(INDIRECT($J$183&R$191),$F71)),FALSE) -> -937000 | S71: =IF($F71,clean_alt(INDEX(INDIRECT($J$183&S$191),$F71)),FALSE) -> -1600000
D72: Sale of Common & Preferred Stock | E72: 155 | F72: 142 | H72: =IF($E72,clean_alt(INDEX(INDIRECT($F$183&O$191),$E72)),FALSE) -> 1610000 | I72: =IF($E72,clean_alt(INDEX(INDIRECT($F$183&P$191),$E72)),FALSE) -> 968000 | J72: =IF($E72,clean_alt(INDEX(INDIRECT($F$183&Q$191),$E72)),FALSE) -> 635000 | K72: =IF($E72,clean_alt(INDEX(INDIRECT($F$183&R$191),$E72)),FALSE) -> 804000 | L72: =IF($E72,clean_alt(INDEX(INDIRECT($F$183&S$191),$E72)),FALSE) -> 734000 | O72: =IF($F72,clean_alt(INDEX(INDIRECT($J$183&O$191),$F72)),FALSE) -> 181000 | P72: =IF($F72,clean_alt(INDEX(INDIRECT($J$183&P$191),$F72)),FALSE) -> 86000 | Q72: =IF($F72,clean_alt(INDEX(INDIRECT($J$183&Q$191),$F72)),FALSE) -> 152000 | R72: =IF($F72,clean_alt(INDEX(INDIRECT($J$183&R$191),$F72)),FALSE) -> 219000 | S72: =IF($F72,clean_alt(INDEX(INDIRECT($J$183&S$191),$F72)),FALSE) -> 86000
D73: Issuance/Reduction of Debt, Net | E73: 158 | F73: 145 | H73: =IF($E73,clean_alt(INDEX(INDIRECT($F$183&O$191),$E73)),FALSE) -> -37000 | I73: =IF($E73,clean_alt(INDEX(INDIRECT($F$183&P$191),$E73)),FALSE) -> 1010000 | J73: =IF($E73,clean_alt(INDEX(INDIRECT($F$183&Q$191),$E73)),FALSE) -> 3480000 | K73: =IF($E73,clean_alt(INDEX(INDIRECT($F$183&R$191),$E73)),FALSE) -> 1039999.938 | L73: =IF($E73,clean_alt(INDEX(INDIRECT($F$183&S$191),$E73)),FALSE) -> 1600000 | O73: =IF($F73,clean_alt(INDEX(INDIRECT($J$183&O$191),$F73)),FALSE) -> -695000 | P73: =IF($F73,clean_alt(INDEX(INDIRECT($J$183&P$191),$F73)),FALSE) -> 173000 | Q73: =IF($F73,clean_alt(INDEX(INDIRECT($J$183&Q$191),$F73)),FALSE) -> 206000 | R73: =IF($F73,clean_alt(INDEX(INDIRECT($J$183&R$191),$F73)),FALSE) -> 1580000 | S73: =IF($F73,clean_alt(INDEX(INDIRECT($J$183&S$191),$F73)),FALSE) -> -807000
D74: Change in Current Debt | E74: 159 | F74: 146 | H74: =IF($E74,clean_alt(INDEX(INDIRECT($F$183&O$191),$E74)),FALSE) -> -2000 | I74: =IF($E74,clean_alt(INDEX(INDIRECT($F$183&P$191),$E74)),FALSE) -> 27000 | J74: =IF($E74,clean_alt(INDEX(INDIRECT($F$183&Q$191),$E74)),FALSE) -> 860000 | K74: =IF($E74,clean_alt(INDEX(INDIRECT($F$183&R$191),$E74)),FALSE) -> -797000 | L74: =IF($E74,clean_alt(INDEX(INDIRECT($F$183&S$191),$E74)),FALSE) -> 578000 | O74: =IF($F74,clean_alt(INDEX(INDIRECT($J$183&O$191),$F74)),FALSE) -> -45000 | P74: =IF($F74,clean_alt(INDEX(INDIRECT($J$183&P$191),$F74)),FALSE) -> 173000 | Q74: =IF($F74,clean_alt(INDEX(INDIRECT($J$183&Q$191),$F74)),FALSE) -> 518000 | R74: =IF($F74,clean_alt(INDEX(INDIRECT($J$183&R$191),$F74)),FALSE) -> 1580000 | S74: =IF($F74,clean_alt(INDEX(INDIRECT($J$183&S$191),$F74)),FALSE) -> -807000
